Workbook

Sheet Table_S6
A1: Supplementary table 6 : Statistical analysis of the specificity and inductibility of root features in B. rapa and B. oleracea
A2: Statistical analyses for the comparison between BR and BO were conducted on combined Tem and Cu datasets. Prior validation, performed by analyzing each condition separately, confirmed the consistency of the results. Differential metabolites were identified using unpaired t-tests with Benjamini–Hochberg FDR correction (adjusted p-value < 0.05).
A3: This column indicates features that were detected only upon CuCl₂ treatment. These features are at or below the detection limit (> 0.001 ng Apigenin equivalents per mg of dry sample) in control samples and become clearly detectable under CuCl₂ elicitation, highlighting CuCl₂’s role in expanding the observed metabolite repertoire. This is a qualitative assessment (presence/absence relative to the detection threshold), distinct from statistical tests of treatment effect, which quantify changes in feature abundance.
G5: BR/BO comparison | L5: BR_Cu/BR_Control comparison | P5: BO_Cu/BO_Control comparison | U5: Brassica rapa Control | BB5: Brassica oleracea Control | CE5: Brassica rapa CuCl2 | DL5: Brassica oleracea CuCl2
A6: Concat_ID | B6: ID | C6: Exp. m/z | D6: RT | E6: Chemical_Family_annotation | F6: Putative_name_annotation | G6: FC | H6: log2(FC) | I6: p.ajusted | J6: log2(FC)_color | K6: Specificity | L6: FC | M6: log2(FC) | N6: p.ajusted | O6: Effect of CuCl2 | P6: FC | Q6: log2(FC) | R6: p.ajusted | S6: Effect of CuCl2 | T6: CuCl₂-dependent detection* | U6: Chiifu_Tem_1 | V6: Chiifu_Tem_2 | W6: Chiifu_Tem_3 | X6: PBD01_R500_Tem_1 | Y6: PBD01_R500_Tem_2 | Z6: PBD01_R500_Tem_3 | AA6: PBD02_Sampad_Tem_1 | AB6: PBD02_Sampad_Tem_2 | AC6: PBD02_Sampad_Tem_3 | AD6: PBD03_Soloveckaja_Tem_1 | AE6: PBD03_Soloveckaja_Tem_2 | AF6: PBD03_Soloveckaja_Tem_3 | AG6: PBD04_Terauchikabu_Tem_1 | AH6: PBD04_Terauchikabu_Tem_2 | AI6: PBD04_Terauchikabu_Tem_3 | AJ6: PBD05_Komatsuna_Tem_1 | AK6: PBD05_Komatsuna_Tem_2 | AL6: PBD05_Komatsuna_Tem_3 | AM6: PBD06_Wutacai_Tem_1 | AN6: PBD06_Wutacai_Tem_2 | AO6: PBD06_Wutacai_Tem_3 | AP6: PBD07_Round_leaves_Mibuna_Tem_1 | AQ6: PBD07_Round_leaves_Mibuna_Tem_2 | AR6: PBD07_Round_leaves_Mibuna_Tem_3 | AS6: PBD08_Winter_turnip_rape_Tem_1 | AT6: PBD08_Winter_turnip_rape_Tem_2 | AU6: PBD08_Winter_turnip_rape_Tem_3 | AV6: PBD09_Kyoto_Sang_Tem_1 | AW6: PBD09_Kyoto_Sang_Tem_2 | AX6: PBD09_Kyoto_Sang_Tem_3 | AY6: PBD10_Chicon_Tem_1 | AZ6: PBD10_Chicon_Tem_2 | BA6: PBD10_Chicon_Tem_3 | BB6: HDEM_Tem_1 | BC6: HDEM_Tem_2 | BD6: HDEM_Tem_3 | BE6: PBD11_C10_Tem_1 | BF6: PBD11_C10_Tem_2 | BG6: PBD11_C10_Tem_3 | BH6: PBD12_CB151_Tem_1 | BI6: PBD12_CB151_Tem_2 | BJ6: PBD12_CB151_Tem_3 | BK6: PBD13_Richelain_Tem_1 | BL6: PBD13_Richelain_Tem_2 | BM6: PBD13_Richelain_Tem_3 | BN6: PBD14_po_29.10_Tem_1 | BO6: PBD14_po_29.10_Tem_2 | BP6: PBD14_po_29.10_Tem_3 | BQ6: PBD15_nd_125_Tem_1 | BR6: PBD15_nd_125_Tem_2 | BS6: PBD15_nd_125_Tem_3 | BT6: PBD16_Vertus_Verius_Tem_1 | BU6: PBD16_Vertus_Verius_Tem_2 | BV6: PBD16_Vertus_Verius_Tem_3 | BW6: PBD17_RC_Tem_1 | BX6: PBD17_RC_Tem_2 | BY6: PBD18_Balady_Tem_1 | BZ6: PBD18_Balady_Tem_2 | CA6: PBD18_Balady_Tem_3 | CB6: PBD19_Sel.Mars_Tem_1 | CC6: PBD19_Sel.Mars_Tem_2 | CD6: PBD20_bos01_Le_Hode_Tem_1 | CE6: Chiifu_Cu_1 | CF6: Chiifu_Cu_2 | CG6: Chiifu_Cu_3 | CH6: PBD01_R500_Cu_1 | CI6: PBD01_R500_Cu_2 | CJ6: PBD01_R500_Cu_3 | CK6: PBD02_Sampad_Cu_1 | CL6: PBD02_Sampad_Cu_2 | CM6: PBD02_Sampad_Cu_3 | CN6: PBD03_Soloveckaja_Cu_1 | CO6: PBD03_Soloveckaja_Cu_2 | CP6: PBD03_Soloveckaja_Cu_3 | CQ6: PBD04_Terauchikabu_Cu_1 | CR6: PBD04_Terauchikabu_Cu_2 | CS6: PBD04_Terauchikabu_Cu_3 | CT6: PBD05_Komatsuna_Cu_1 | CU6: PBD05_Komatsuna_Cu_2 | CV6: PBD05_Komatsuna_Cu_3 | CW6: PBD06_Wutacai_Cu_1 | CX6: PBD06_Wutacai_Cu_2 | CY6: PBD06_Wutacai_Cu_3 | CZ6: PBD07_Round_leaves_Mibuna_Cu_1 | DA6: PBD07_Round_leaves_Mibuna_Cu_2 | DB6: PBD07_Round_leaves_Mibuna_Cu_3 | DC6: PBD08_Winter_turnip_rape_Cu_1 | DD6: PBD08_Winter_turnip_rape_Cu_2 | DE6: PBD08_Winter_turnip_rape_Cu_3 | DF6: PBD09_Kyoto_Sang_Cu_1 | DG6: PBD09_Kyoto_Sang_Cu_2 | DH6: PBD09_Kyoto_Sang_Cu_3 | DI6: PBD10_Chicon_Cu_1 | DJ6: PBD10_Chicon_Cu_2 | DK6: PBD10_Chicon_Cu_3 | DL6: HDEM_Cu_1 | DM6: HDEM_Cu_2 | DN6: HDEM_Cu_3 | DO6: PBD11_C10_Cu_1 | DP6: PBD11_C10_Cu_2 | DQ6: PBD11_C10_Cu_3 | DR6: PBD12_CB151_Cu_1 | DS6: PBD12_CB151_Cu_2 | DT6: PBD13_Richelain_Cu_1 | DU6: PBD13_Richelain_Cu_2 | DV6: PBD14_po_29.10_Cu_1 | DW6: PBD14_po_29.10_Cu_2 | DX6: PBD14_po_29.10_Cu_3 | DY6: PBD15_nd_125_Cu_1 | DZ6: PBD15_nd_125_Cu_2 | EA6: PBD15_nd_125_Cu_3 | EB6: PBD16_Vertus_Verius_Cu_1 | EC6: PBD16_Vertus_Verius_Cu_2 | ED6: PBD16_Vertus_Verius_Cu_3 | EE6: PBD17_RC_Cu_1 | EF6: PBD17_RC_Cu_2 | EG6: PBD17_RC_Cu_3 | EH6: PBD18_Balady_Cu_1 | EI6: PBD18_Balady_Cu_2 | EJ6: PBD18_Balady_Cu_3 | EK6: PBD19_Sel.Mars_Cu_1 | EL6: PBD19_Sel.Mars_Cu_2 | EM6: PBD19_Sel.Mars_Cu_3 | EN6: PBD20_bos01_Le_Hode_Cu_1
A7: p1284_393.2016_12.6 | B7: p1284 | C7: 393.2016 | D7: 12.6 | G7: 81.805 | H7: 6.3541 | I7: 8.60E-31 | J7: =ROUND(H7,1) -> 6.4 | K7: B. rapa | L7: 0.96702 | M7: -0.048376 | N7: 0.94393 | P7: 0.67913 | Q7: -0.55824 | R7: 0.50945 | U7: 0.01146918009 | V7: 0.02203493724 | W7: 0.03327700908 | X7: 7.892882311e-05 | Y7: 3.385619179e-05 | Z7: 0.006057968168 | AA7: 0.0001349169682 | AB7: 0.0005096620407 | AC7: 0.001714158658 | AD7: 0.02808806476 | AE7: 0.009130940512 | AF7: 0.01363444081 | AG7: 0.001243737243 | AH7: 0.00260783551 | AI7: 0.001535431259 | AJ7: 0.0196683476 | AK7: 0.01859353806 | AL7: 0.01686154616 | AM7: 0.02295211316 | AN7: 0.005571926332 | AO7: 0.006993142793 | AP7: 0.02256746277 | AQ7: 0.02510961144 | AR7: 0.01222249938 | AS7: 0.004011115755 | AT7: 0.001731746679 | AU7: 0.003057640899 | AV7: 0.02364204374 | AW7: 0.01451165575 | AX7: 0.01423095942 | AY7: 0.00092086619 | AZ7: 0.00242297676 | BA7: 0.001280848546 | BB7: 7.291643296e-05 | BC7: 9.037891782e-05 | BD7: 0.0001518060858 | BE7: 0.001473083479 | BF7: 0.000123450051 | BG7: 0.0002303664312 | BH7: 0.0001406386437 | BI7: 0.0002222891867 | BJ7: 9.937052312e-05 | BK7: 2.216599662e-05 | BL7: 7.787774711e-05 | BM7: 0.0001820370816 | BN7: 7.071673221e-05 | BO7: 0.000231853194 | BP7: 1.529389243e-05 | BQ7: 4.886501473e-05 | BR7: 6.04657904e-05 | BS7: 0.0001288218771 | BT7: 4.646742223e-05 | BU7: 0.0001158536337 | BV7: 2.856638127e-05 | BW7: 9.604200779e-05 | BX7: 8.874258974e-05 | BY7: 4.03824389e-05 | BZ7: 0.0001076281287 | CA7: 0.0002184262111 | CB7: 3.541111093e-05 | CC7: 6.524173275e-05 | CD7: 9.292214452e-05 | CE7: 0.02827254552 | CF7: 0.03002900359 | CG7: 0.02559160713 | CH7: 0.000677155167 | CI7: 0.0008022296765 | CJ7: 0.0005063923708 | CK7: 0.009352096516 | CL7: 0.0009511274557 | CM7: 0.001263806943 | CN7: 0.002398170231 | CO7: 0.01726877227 | CP7: 0.01891391488 | CQ7: 0.002024052839 | CR7: 0.003658218257 | CS7: 0.004161336148 | CT7: 0.00952099738 | CU7: 0.02086698759 | CV7: 0.02265827857 | CW7: 0.006981047348 | CX7: 0.008570387298 | CY7: 0.006955909523 | CZ7: 0.02676019598 | DA7: 0.03157027499 | DB7: 0.01302236392 | DC7: 0.001920702133 | DD7: 0.002551013232 | DE7: 0.003273060197 | DF7: 0.003535299485 | DG7: 0.0147416617 | DH7: 0.01516687137 | DI7: 0.0002385901703 | DJ7: 0.0003465381617 | DK7: 0.001878167436 | DL7: 0.0001701586589 | DM7: 0.0001482982346 | DN7: 8.904915929e-05 | DO7: 0.0001307752035 | DP7: 8.419652459e-05 | DQ7: 0.000542822427 | DR7: 3.79513301e-05 | DS7: 0.0001263426412 | DT7: 5.314437555e-05 | DU7: 3.341343243e-05 | DV7: 6.190339329e-05 | DW7: 4.864639476e-05 | DX7: 5.939167189e-05 | DY7: 0.0002396750457 | DZ7: 6.0805125e-05 | EA7: 2.832623102e-05 | EB7: 1.181346163e-05 | EC7: 7.264760148e-05 | ED7: 5.72221477e-05 | EE7: 3e-07 | EF7: 8.315823705e-05 | EG7: 0.0001485783044 | EH7: 2.781645714e-05 | EI7: 0.0001163531595 | EJ7: 0.0001018169352 | EK7: 9.246577723e-05 | EL7: 3.595679314e-05 | EM7: 0.0002023993106 | EN7: 0.0001078644914
A8: p1278_276.109_5.06 | B8: p1278 | C8: 276.109 | D8: 5.06 | G8: 50.979 | H8: 5.6718 | I8: 4.47E-46 | J8: =ROUND(H8,1) -> 5.7 | K8: B. rapa | L8: 1.3315 | M8: 0.41304 | N8: 0.43068 | P8: 0.23828 | Q8: -2.0693 | R8: 0.53321 | U8: 0.01608332908 | V8: 0.03474846933 | W8: 0.0412921752 | X8: 0.006995461593 | Y8: 0.003142252907 | Z8: 0.01344497609 | AA8: 0.00087822251 | AB8: 0.001787878195 | AC8: 0.002366825605 | AD8: 0.02112714279 | AE8: 0.005058882492 | AF8: 0.003402458216 | AG8: 0.005883559102 | AH8: 0.01436643512 | AI8: 0.005955054457 | AJ8: 0.004919793056 | AK8: 0.005126968894 | AL8: 0.003387086006 | AM8: 0.05084067369 | AN8: 0.02675261324 | AO8: 0.01203787215 | AP8: 0.01192659911 | AQ8: 0.01352216796 | AR8: 0.005897759453 | AS8: 0.04228645084 | AT8: 0.02741691567 | AU8: 0.01107153783 | AV8: 0.02493802278 | AW8: 0.01974145338 | AX8: 0.01685282018 | AY8: 0.01550403804 | AZ8: 0.01775252362 | BA8: 0.00920751634 | BB8: 5.160239871e-05 | BC8: 6.025261188e-05 | BD8: 0.0001057220955 | BE8: 0.01265564854 | BF8: 0.0001572518507 | BG8: 0.0002854097377 | BH8: 0.0001893212511 | BI8: 0.0001882363752 | BJ8: 0.0001394833948 | BK8: 6.193440231e-05 | BL8: 0.0001460207758 | BM8: 0.0001199133157 | BN8: 0.0001060750983 | BO8: 4.207706113e-05 | BP8: 9.088941787e-05 | BQ8: 9.35713048e-05 | BR8: 0.0001949851893 | BS8: 8.407322507e-05 | BT8: 2.82123635e-05 | BU8: 9.021389511e-05 | BV8: 3.976131447e-05 | BW8: 0.0001505843826 | BX8: 8.667880858e-05 | BY8: 3.188087282e-05 | BZ8: 0.0001188915375 | CA8: 0.0005763091571 | CB8: 4.184949473e-05 | CC8: 0.0001036717945 | CD8: 4.895897937e-05 | CE8: 0.04499270546 | CF8: 0.04257888566 | CG8: 0.03198177263 | CH8: 0.03658584549 | CI8: 0.03006871999 | CJ8: 0.02724940657 | CK8: 0.01484322014 | CL8: 0.01059789025 | CM8: 0.003443058133 | CN8: 0.0007519936157 | CO8: 0.01740553946 | CP8: 0.01145120629 | CQ8: 0.01228798864 | CR8: 0.01604229583 | CS8: 0.01229093249 | CT8: 0.00226326013 | CU8: 0.005936037107 | CV8: 0.01076799598 | CW8: 0.01771548266 | CX8: 0.05701272605 | CY8: 0.01781700711 | CZ8: 0.009213392041 | DA8: 0.01588673069 | DB8: 0.009960555439 | DC8: 0.01733352837 | DD8: 0.01735264181 | DE8: 0.05991073472 | DF8: 0.005944939232 | DG8: 0.02816999953 | DH8: 0.03424289163 | DI8: 0.003937835923 | DJ8: 0.01620083623 | DK8: 0.01780104794 | DL8: 0.0001154223071 | DM8: 0.0001250188606 | DN8: 7.465737597e-05 | DO8: 6.126405932e-05 | DP8: 7.511650724e-05 | DQ8: 9.318839949e-05 | DR8: 5.94020819e-05 | DS8: 3e-07 | DT8: 6.306465899e-05 | DU8: 0.0002290042564 | DV8: 0.0001023786889 | DW8: 4.684467644e-05 | DX8: 9.123938e-05 | DY8: 0.0009631661775 | DZ8: 0.0001159097695 | EA8: 0.0001038628471 | EB8: 2.248368504e-05 | EC8: 0.0001331872694 | ED8: 7.556257965e-05 | EE8: 1.835504523e-05 | EF8: 6.299866443e-05 | EG8: 0.0002061262392 | EH8: 1.806263451e-05 | EI8: 9.827888233e-05 | EJ8: 9.358930408e-05 | EK8: 0.0002384643729 | EL8: 8.133084163e-05 | EM8: 0.0002078943145 | EN8: 0.000257676285
A9: n27_320.1002_5.06 | B9: n27 | C9: 320.1002 | D9: 5.06 | F9: Polynitrogen heterocycle conjugated to leucine | G9: 46.828 | H9: 5.5493 | I9: 2.10E-41 | J9: =ROUND(H9,1) -> 5.5 | K9: B. rapa | L9: 0.85794 | M9: -0.22106 | N9: 0.99695 | P9: 0.068298 | Q9: -3.872 | R9: 0.48666 | U9: 0.01961697561 | V9: 0.03011214351 | W9: 0.08810747386 | X9: 0.00575894162 | Y9: 0.001767652549 | Z9: 0.03442396669 | AA9: 0.0003265866411 | AB9: 0.001890856383 | AC9: 0.006666302069 | AD9: 0.03858227605 | AE9: 0.005865679748 | AF9: 0.01047716223 | AG9: 0.006047762432 | AH9: 0.01425890867 | AI9: 0.01545672483 | AJ9: 0.009458155584 | AK9: 0.006421502618 | AL9: 0.008665996913 | AM9: 0.07728779841 | AN9: 0.03640510068 | AO9: 0.04072664272 | AP9: 0.02099875777 | AQ9: 0.01878330398 | AR9: 0.01113064201 | AS9: 0.1148589345 | AT9: 0.02886427049 | AU9: 0.03622712003 | AV9: 0.04301642996 | AW9: 0.01613839388 | AX9: 0.04372198114 | AY9: 0.0264410188 | AZ9: 0.01741332934 | BA9: 0.03032379659 | BB9: 9.725269741e-05 | BC9: 2.840442491e-05 | BD9: 0.000417604913 | BE9: 0.02431090435 | BF9: 6e-08 | BG9: 0.0002427248468 | BH9: 9.512573275e-05 | BI9: 4.568063669e-05 | BJ9: 0.0001614803751 | BK9: 1.57040244e-05 | BL9: 7.033239282e-05 | BM9: 0.0001522287031 | BN9: 3.111422253e-05 | BO9: 0.000100548915 | BP9: 9.420346388e-05 | BQ9: 3.987166084e-05 | BR9: 0.0004662280208 | BS9: 5.202925908e-05 | BT9: 1.830993434e-05 | BU9: 6.632556377e-05 | BV9: 5.903927562e-06 | BW9: 1.846744214e-05 | BX9: 6.697566244e-05 | BY9: 9.545813084e-06 | BZ9: 3.578050614e-05 | CA9: 0.001404346139 | CB9: 2.87528006e-05 | CC9: 2.038173613e-05 | CD9: 0.0001756922457 | CE9: 0.05968733823 | CF9: 0.04104570426 | CG9: 0.0371623532 | CH9: 0.05768834647 | CI9: 0.03046907107 | CJ9: 0.03966804235 | CK9: 0.02565111526 | CL9: 0.0102683893 | CM9: 0.00358809419 | CN9: 0.0006494932603 | CO9: 0.02104098824 | CP9: 0.0121511876 | CQ9: 0.01934590679 | CR9: 0.02235067958 | CS9: 0.01363935613 | CT9: 0.002462762953 | CU9: 0.007105327594 | CV9: 0.01084065721 | CW9: 0.02175187176 | CX9: 0.05643068389 | CY9: 0.01805375651 | CZ9: 0.01412434632 | DA9: 0.01348894084 | DB9: 0.01139878718 | DC9: 0.01820088069 | DD9: 0.02123952325 | DE9: 0.04132448879 | DF9: 0.003907530219 | DG9: 0.02993920915 | DH9: 0.04017981121 | DI9: 0.002936940293 | DJ9: 0.01374853258 | DK9: 0.02164050318 | DL9: 7.835019237e-05 | DM9: 0.0001043869516 | DN9: 5.033411516e-05 | DO9: 3.965138398e-05 | DP9: 1.364172288e-05 | DQ9: 1.852745423e-05 | DR9: 1.753946379e-05 | DS9: 3.587664975e-05 | DT9: 4.078533463e-05 | DU9: 4.264888337e-05 | DV9: 5.364771422e-05 | DW9: 3.885650847e-05 | DX9: 3.903650971e-05 | DY9: 0.0007318138486 | DZ9: 3.515914307e-05 | EA9: 5.21170978e-05 | EB9: 6.703616362e-06 | EC9: 3.631951128e-05 | ED9: 3.390823946e-05 | EE9: 6e-08 | EF9: 4.629340233e-05 | EG9: 5.37027278e-05 | EH9: 8.351326292e-06 | EI9: 2.812125534e-05 | EJ9: 7.392129362e-05 | EK9: 9.811171203e-05 | EL9: 6.752858019e-05 | EM9: 2.588046395e-05 | EN9: 5.964924673e-05
A10: p1286_464.14_3.48 | B10: p1286 | C10: 464.14 | D10: 3.48 | G10: 43.624 | H10: 5.4471 | I10: 1.47E-56 | J10: =ROUND(H10,1) -> 5.4 | K10: B. rapa | L10: 0.88167 | M10: -0.18169 | N10: 0.9465 | P10: 1.095 | Q10: 0.13098 | R10: 0.93877 | U10: 0.01671798053 | V10: 0.02334908263 | W10: 0.03160983032 | X10: 0.003725440451 | Y10: 0.001870056711 | Z10: 0.005893308376 | AA10: 0.004466284582 | AB10: 0.01046177789 | AC10: 0.01123541764 | AD10: 0.02503526327 | AE10: 0.01142540122 | AF10: 0.008926121097 | AG10: 0.01137873446 | AH10: 0.008350208391 | AI10: 0.004580659438 | AJ10: 0.02255175766 | AK10: 0.009862350401 | AL10: 0.006876541234 | AM10: 0.05192307692 | AN10: 0.01183673469 | AO10: 0.008381198566 | AP10: 0.01988986381 | AQ10: 0.01965498907 | AR10: 0.006571977756 | AS10: 0.03073104276 | AT10: 0.02087204625 | AU10: 0.007612446671 | AV10: 0.03184923914 | AW10: 0.02071064339 | AX10: 0.00849232485 | AY10: 0.01328093683 | AZ10: 0.0139347206 | BA10: 0.007706783863 | BB10: 0.0005866968375 | BC10: 0.000630032746 | BD10: 0.0002629498272 | BE10: 0.002424497769 | BF10: 0.000268944754 | BG10: 0.0003588008131 | BH10: 0.0003966730976 | BI10: 0.0001702640579 | BJ10: 0.0001805079227 | BK10: 0.0002757710755 | BL10: 0.000201774163 | BM10: 0.0002759450999 | BN10: 0.0002692675573 | BO10: 0.0002352880561 | BP10: 6.554525328e-05 | BQ10: 0.0001694680298 | BR10: 0.0001209315808 | BS10: 0.0003864656314 | BT10: 9.570076245e-05 | BU10: 0.0001272490731 | BV10: 6.253721304e-05 | BW10: 0.0001410987522 | BX10: 0.0001960592099 | BY10: 6.216770199e-05 | BZ10: 0.0001727056019 | CA10: 0.0002822738729 | CB10: 0.0001569356052 | CC10: 0.0001939377535 | CD10: 0.0001268936812 | CE10: 0.02628302804 | CF10: 0.02644126601 | CG10: 0.01853612173 | CH10: 0.01264208373 | CI10: 0.008467097378 | CJ10: 0.00752675634 | CK10: 0.02652823593 | CL10: 0.021743153 | CM10: 0.01504044913 | CN10: 0.002102225819 | CO10: 0.01427521205 | CP10: 0.0112403117 | CQ10: 0.01145397044 | CR10: 0.0109641864 | CS10: 0.009888471168 | CT10: 0.005698963214 | CU10: 0.01144725303 | CV10: 0.01046201116 | CW10: 0.01546075767 | CX10: 0.019122375 | CY10: 0.01444544723 | CZ10: 0.01517965737 | DA10: 0.01990768223 | DB10: 0.00755144062 | DC10: 0.01034786358 | DD10: 0.006676783566 | DE10: 0.00973698995 | DF10: 0.004490420472 | DG10: 0.01578204107 | DH10: 0.01787874555 | DI10: 0.002748678556 | DJ10: 0.009129756927 | DK10: 0.014373775 | DL10: 0.0006830144771 | DM10: 0.0003888517664 | DN10: 0.0004218591486 | DO10: 0.0002403436173 | DP10: 0.0001510584706 | DQ10: 0.00359008309 | DR10: 0.0001309045879 | DS10: 0.0003130489889 | DT10: 0.0001332152347 | DU10: 0.000220039677 | DV10: 0.0003107074163 | DW10: 0.0001765683958 | DX10: 0.0002039974817 | DY10: 0.0003012065274 | DZ10: 0.0001396617715 | EA10: 0.0001147575513 | EB10: 4.496737008e-05 | EC10: 0.0001372232472 | ED10: 0.0001276494064 | EE10: 5.023486062e-05 | EF10: 0.0002658543639 | EG10: 0.0002165895001 | EH10: 6.177421002e-05 | EI10: 0.0002022059763 | EJ10: 0.0001738087076 | EK10: 0.0002165645835 | EL10: 0.0001369782596 | EM10: 0.0003645019259 | EN10: 0.0002253169376
A11: p1266_370.1148_6.76 | B11: p1266 | C11: 370.1148 | D11: 6.76 | F11: Polynitrogen heterocycle conjugated to homophenylalanine | G11: 41.181 | H11: 5.3639 | I11: 4.52E-51 | J11: =ROUND(H11,1) -> 5.4 | K11: B. rapa | L11: 1.0295 | M11: 0.041998 | N11: 0.81141 | P11: 0.070086 | Q11: -3.8347 | R11: 0.40701 | U11: 0.02738376121 | V11: 0.04464448759 | W11: 0.06276277499 | X11: 0.01348222692 | Y11: 0.002998861977 | Z11: 0.0254601003 | AA11: 0.001219862567 | AB11: 0.001956919489 | AC11: 0.002707167033 | AD11: 0.05440821572 | AE11: 0.002105913442 | AF11: 0.01016472088 | AG11: 0.01735971423 | AH11: 0.02773626007 | AI11: 0.01403447271 | AJ11: 0.0165048503 | AK11: 0.01372009172 | AL11: 0.009073473761 | AM11: 0.07431139357 | AN11: 0.05119462419 | AO11: 0.02289989945 | AP11: 0.04023473647 | AQ11: 0.02160364913 | AR11: 0.01276319458 | AS11: 0.128646041 | AT11: 0.06399242748 | AU11: 0.04377390656 | AV11: 0.09000100776 | AW11: 0.04222827346 | AX11: 0.04949645965 | AY11: 0.02539544315 | AZ11: 0.03657382376 | BA11: 0.01473813951 | BB11: 9.086509338e-05 | BC11: 7.597068455e-05 | BD11: 0.0001942756455 | BE11: 0.03831166095 | BF11: 7.05428863e-05 | BG11: 0.000872538341 | BH11: 0.0003101262399 | BI11: 7.188926891e-05 | BJ11: 0.0001568048622 | BK11: 8.670816323e-05 | BL11: 4.778861754e-05 | BM11: 0.0001083554057 | BN11: 7.7516418e-05 | BO11: 7.127338926e-05 | BP11: 9.635152231e-05 | BQ11: 0.0001185236527 | BR11: 0.0001066643718 | BS11: 9.898944242e-05 | BT11: 4.868015662e-05 | BU11: 0.0001016093345 | BV11: 7.141595317e-05 | BW11: 8.537067359e-05 | BX11: 0.000171293836 | BY11: 3.134952494e-05 | BZ11: 8.384982122e-05 | CA11: 0.001378605433 | CB11: 6.116464614e-05 | CC11: 6.613545512e-05 | CD11: 6.09489335e-05 | CE11: 0.05906846058 | CF11: 0.04195133156 | CG11: 0.04137605698 | CH11: 0.06839267187 | CI11: 0.04555433418 | CJ11: 0.04638903927 | CK11: 0.02224185836 | CL11: 0.01502293622 | CM11: 0.002331825232 | CN11: 0.00114953427 | CO11: 0.02078095367 | CP11: 0.01287659473 | CQ11: 0.02547143994 | CR11: 0.03106345008 | CS11: 0.02314556828 | CT11: 0.00420326364 | CU11: 0.01149882092 | CV11: 0.0157397359 | CW11: 0.02594392015 | CX11: 0.06775225562 | CY11: 0.0445899269 | CZ11: 0.0152005569 | DA11: 0.02548232213 | DB11: 0.01825381617 | DC11: 0.04754287474 | DD11: 0.04516583696 | DE11: 0.1189818764 | DF11: 0.01527335687 | DG11: 0.05681587956 | DH11: 0.07200662684 | DI11: 0.006672738142 | DJ11: 0.02483452626 | DK11: 0.02427842981 | DL11: 6.782547943e-05 | DM11: 5.776733559e-05 | DN11: 0.0001520132113 | DO11: 0.0001013213289 | DP11: 0.0001345493481 | DQ11: 0.0001665742641 | DR11: 3.355117589e-05 | DS11: 0.0001712644692 | DT11: 9.495128432e-05 | DU11: 6.438197957e-05 | DV11: 9.880733929e-05 | DW11: 7.38704513e-05 | DX11: 0.0001015683664 | DY11: 0.0002927707598 | DZ11: 8.740736719e-05 | EA11: 0.0001103996696 | EB11: 2.59133997e-05 | EC11: 6.296125461e-05 | ED11: 7.776343148e-05 | EE11: 1.811353148e-05 | EF11: 7.433842403e-05 | EG11: 8.684506526e-05 | EH11: 3.540276363e-05 | EI11: 8.472317442e-05 | EJ11: 8.536167295e-05 | EK11: 0.0001545151804 | EL11: 9.759700996e-05 | EM11: 0.0003489327481 | EN11: 6.112321178e-05
A12: n607_573.0886_4.58 | B12: n607 | C12: 573.0886 | D12: 4.58 | G12: 39.891 | H12: 5.318 | I12: 2.09E-12 | J12: =ROUND(H12,1) -> 5.3 | K12: B. rapa | L12: 0.9874 | M12: -0.018291 | N12: 0.95415 | P12: 0.9857 | Q12: -0.020773 | R12: 0.95008 | U12: 0.001159744906 | V12: 0.00144310571 | W12: 0.003562247037 | X12: 2.404943209e-05 | Y12: 1.024986727e-05 | Z12: 0.0001405263502 | AA12: 5.293202933e-06 | AB12: 3.217548447e-05 | AC12: 0.0001263330599 | AD12: 3.045996802e-05 | AE12: 2.947281554e-05 | AF12: 5.299731869e-05 | AG12: 0.001045838778 | AH12: 0.001407112313 | AI12: 0.0002144677008 | AJ12: 0.001692606731 | AK12: 0.002156251831 | AL12: 5.524211328e-05 | AM12: 0.0007509756395 | AN12: 0.0001095957855 | AO12: 5.218420727e-05 | AP12: 0.001790568956 | AQ12: 5.083056026e-05 | AR12: 8.354886376e-05 | AS12: 0.004084518197 | AT12: 0.0008169742429 | AU12: 0.001151268493 | AV12: 0.007828460039 | AW12: 0.00240480533 | AX12: 0.004410056504 | AY12: 6e-08 | AZ12: 5.611958191e-05 | BA12: 0.0001213154056 | BB12: 6e-08 | BC12: 1.149702913e-05 | BD12: 0.0001460252474 | BE12: 6e-08 | BF12: 4.801169679e-05 | BG12: 6e-08 | BH12: 6e-08 | BI12: 6.449031062e-05 | BJ12: 1.858766907e-05 | BK12: 9.091803601e-06 | BL12: 6e-08 | BM12: 4.133362137e-05 | BN12: 9.564742482e-05 | BO12: 5.266847928e-05 | BP12: 3.694253485e-06 | BQ12: 2.069288727e-05 | BR12: 1.512571823e-05 | BS12: 6e-08 | BT12: 6e-08 | BU12: 3.511353376e-05 | BV12: 6e-08 | BW12: 4.47695567e-05 | BX12: 6e-08 | BY12: 5.275317757e-06 | BZ12: 6e-08 | CA12: 8.963911525e-05 | CB12: 2.613890963e-05 | CC12: 4.612708702e-05 | CD12: 3.904272128e-05 | CE12: 0.002455050557 | CF12: 5.298441832e-05 | CG12: 0.002071505671 | CH12: 6.747987477e-05 | CI12: 9.655591541e-05 | CJ12: 0.0001704647407 | CK12: 0.0003433400422 | CL12: 0.0001052489421 | CM12: 9.33132809e-05 | CN12: 6e-08 | CO12: 1.457291498e-05 | CP12: 2.421520049e-05 | CQ12: 0.001921643661 | CR12: 0.003971103599 | CS12: 0.002010079715 | CT12: 0.000961650296 | CU12: 0.00122412227 | CV12: 0.003054284975 | CW12: 0.0004284017309 | CX12: 0.001281089775 | CY12: 0.0004899540541 | CZ12: 0.0001209919192 | DA12: 0.0006411316909 | DB12: 0.001255944461 | DC12: 0.000427622842 | DD12: 0.0005097882818 | DE12: 0.001764035841 | DF12: 0.0007115254656 | DG12: 0.003948743378 | DH12: 0.006106883092 | DI12: 1.846116315e-06 | DJ12: 6e-08 | DK12: 0.0001088989627 | DL12: 2.309268828e-05 | DM12: 6e-08 | DN12: 7.235529054e-05 | DO12: 6.362663941e-05 | DP12: 3.524111745e-05 | DQ12: 6e-08 | DR12: 6e-08 | DS12: 6e-08 | DT12: 2.820262501e-05 | DU12: 6e-08 | DV12: 6e-08 | DW12: 6e-08 | DX12: 7.201562999e-05 | DY12: 1.652677928e-05 | DZ12: 6.009017179e-05 | EA12: 3.89704425e-05 | EB12: 6e-08 | EC12: 2.811833131e-05 | ED12: 6e-08 | EE12: 5.22909766e-06 | EF12: 2.853702883e-05 | EG12: 4.065346684e-05 | EH12: 7.806674577e-06 | EI12: 3.515156917e-05 | EJ12: 0.0001732530319 | EK12: 3.975215918e-05 | EL12: 6e-08 | EM12: 3.265868069e-05 | EN12: 6e-08
A13: p1310_321.1082_6.44 | B13: p1310 | C13: 321.1082 | D13: 6.44 | G13: 39.417 | H13: 5.3007 | I13: 8.20E-21 | J13: =ROUND(H13,1) -> 5.3 | K13: B. rapa | L13: 1.3316 | M13: 0.41316 | N13: 0.76208 | P13: 0.76471 | Q13: -0.38702 | R13: 0.64969 | U13: 0.003540866459 | V13: 0.007697385308 | W13: 0.01335255874 | X13: 3.828047921e-05 | Y13: 2.031371508e-05 | Z13: 8.148979507e-05 | AA13: 2.468335384e-05 | AB13: 5.330130904e-05 | AC13: 9.442399387e-05 | AD13: 0.04387137304 | AE13: 0.01150607318 | AF13: 0.02353257564 | AG13: 0.001380775654 | AH13: 0.009105640456 | AI13: 0.004284878587 | AJ13: 0.01068931935 | AK13: 0.00980179565 | AL13: 0.01131491464 | AM13: 0.0125240295 | AN13: 0.005416625187 | AO13: 0.004366560651 | AP13: 0.01358317286 | AQ13: 0.01260474158 | AR13: 0.01777984828 | AS13: 0.03777059557 | AT13: 0.02418446998 | AU13: 0.01553857133 | AV13: 0.01847828278 | AW13: 0.02666682978 | AX13: 0.0141720412 | AY13: 0.01695323958 | AZ13: 0.02543083906 | BA13: 0.02091559612 | BB13: 0.0001536854049 | BC13: 0.000276376111 | BD13: 0.0003126482481 | BE13: 0.006126740334 | BF13: 0.0001175714772 | BG13: 0.0003261825574 | BH13: 0.0003263537757 | BI13: 0.0001958036666 | BJ13: 0.0003017581941 | BK13: 4.693975754e-05 | BL13: 8.23026191e-05 | BM13: 0.000151697568 | BN13: 0.0001767918305 | BO13: 0.0001322421921 | BP13: 9.198183876e-05 | BQ13: 0.0001258014209 | BR13: 7.065665395e-05 | BS13: 0.0001057695412 | BT13: 5.199925821e-05 | BU13: 0.0001149040138 | BV13: 3.590099267e-05 | BW13: 4.38710406e-05 | BX13: 0.000105252839 | BY13: 3.294356858e-05 | BZ13: 0.0001113825983 | CA13: 0.002194343321 | CB13: 0.0001046237368 | CC13: 0.0001295897431 | CD13: 0.000230806617 | CE13: 0.007924569082 | CF13: 0.02227037108 | CG13: 0.007737092195 | CH13: 0.0002252549015 | CI13: 0.000143964484 | CJ13: 8.495398326e-05 | CK13: 0.0001582505415 | CL13: 0.0001801993613 | CM13: 0.0001023039814 | CN13: 0.004909048793 | CO13: 0.04711684347 | CP13: 0.01586796801 | CQ13: 0.008574213119 | CR13: 0.01052546668 | CS13: 0.0050654967 | CT13: 0.004938823182 | CU13: 0.01265787063 | CV13: 0.01218291907 | CW13: 0.01325838119 | CX13: 0.02860978685 | CY13: 0.01694048975 | CZ13: 0.01858188058 | DA13: 0.06196420777 | DB13: 0.02611945001 | DC13: 0.03461014705 | DD13: 0.02016248728 | DE13: 0.03577893839 | DF13: 0.003985823347 | DG13: 0.01461227892 | DH13: 0.02484318917 | DI13: 0.006490650916 | DJ13: 0.0419240309 | DK13: 0.04643271566 | DL13: 0.0001225618313 | DM13: 9.742849137e-05 | DN13: 0.0001493147519 | DO13: 9.778686391e-05 | DP13: 9.740382257e-05 | DQ13: 0.005863880038 | DR13: 8.965314213e-05 | DS13: 0.0002007444189 | DT13: 0.0002033658105 | DU13: 8.06812149e-05 | DV13: 0.0001809483804 | DW13: 8.197818376e-05 | DX13: 6.71384117e-05 | DY13: 0.0004371712532 | DZ13: 4.940416407e-05 | EA13: 9.296814285e-05 | EB13: 4.039441719e-05 | EC13: 8.717712177e-05 | ED13: 0.0001166451472 | EE13: 2.366834779e-05 | EF13: 5.795877127e-05 | EG13: 0.0001423003479 | EH13: 2.275891948e-05 | EI13: 9.150102838e-05 | EJ13: 9.770311964e-05 | EK13: 0.0002652307821 | EL13: 0.0001361221455 | EM13: 0.0001822509629 | EN13: 0.0002121334997
A14: p2822_373.1162_4.23 | B14: p2822 | C14: 373.1162 | D14: 4.23 | G14: 30.021 | H14: 4.9079 | I14: 3.47e-34 | J14: =ROUND(H14,1) -> 4.9 | K14: B. rapa | L14: 0.58786 | M14: -0.76645 | N14: 0.94393 | P14: 0.040223 | Q14: -4.6358 | R14: 0.36819 | U14: 0.00037556366 | V14: 3e-07 | W14: 3e-07 | X14: 0.0009873995772 | Y14: 0.0003431424615 | Z14: 0.001250910359 | AA14: 0.0003775431167 | AB14: 0.0007533251677 | AC14: 0.001476542234 | AD14: 0.004746256729 | AE14: 3e-07 | AF14: 0.001243521373 | AG14: 0.001080719985 | AH14: 0.001498416227 | AI14: 0.001001053856 | AJ14: 0.004459746401 | AK14: 0.001509024388 | AL14: 0.00181149015 | AM14: 0.009791122715 | AN14: 0.002217023395 | AO14: 0.001665213808 | AP14: 0.002947188652 | AQ14: 0.002327243609 | AR14: 0.00177615072 | AS14: 0.002867635094 | AT14: 0.002093869461 | AU14: 0.0009877978716 | AV14: 0.003781114582 | AW14: 0.001527330611 | AX14: 0.0008845097689 | AY14: 0.004496431477 | AZ14: 0.002216721645 | BA14: 0.002091362407 | BB14: 3e-07 | BC14: 3e-07 | BD14: 3e-07 | BE14: 0.001985560258 | BF14: 3e-07 | BG14: 3e-07 | BH14: 3e-07 | BI14: 3e-07 | BJ14: 3e-07 | BK14: 0.0003083681294 | BL14: 3e-07 | BM14: 3e-07 | BN14: 3e-07 | BO14: 3e-07 | BP14: 3e-07 | BQ14: 3e-07 | BR14: 0.0002343898617 | BS14: 3e-07 | BT14: 3e-07 | BU14: 3e-07 | BV14: 3e-07 | BW14: 3e-07 | BX14: 3e-07 | BY14: 3e-07 | BZ14: 3e-07 | CA14: 3e-07 | CB14: 0.0003500871194 | CC14: 3e-07 | CD14: 3e-07 | CE14: 0.0007597125412 | CF14: 3e-07 | CG14: 3e-07 | CH14: 0.00184792447 | CI14: 0.001805016772 | CJ14: 0.001047765794 | CK14: 0.001788401281 | CL14: 0.00116655376 | CM14: 0.0004683052942 | CN14: 0.0003526387432 | CO14: 0.0005897401163 | CP14: 0.0005873599349 | CQ14: 0.00183700867 | CR14: 0.0008622127317 | CS14: 0.0004701320922 | CT14: 0.001094063657 | CU14: 0.001519206408 | CV14: 0.0007731764065 | CW14: 0.001858372004 | CX14: 0.002431149285 | CY14: 0.001839032665 | CZ14: 0.002041553919 | DA14: 0.002103666521 | DB14: 0.001313489731 | DC14: 0.001470598198 | DD14: 0.001717775516 | DE14: 0.001358746541 | DF14: 0.0004455844781 | DG14: 0.000438660808 | DH14: 0.001058445119 | DI14: 0.0005818006327 | DJ14: 0.0009878817943 | DK14: 0.001351231054 | DL14: 3e-07 | DM14: 3e-07 | DN14: 3e-07 | DO14: 3e-07 | DP14: 3e-07 | DQ14: 3e-07 | DR14: 3e-07 | DS14: 3e-07 | DT14: 3e-07 | DU14: 3e-07 | DV14: 3e-07 | DW14: 3e-07 | DX14: 3e-07 | DY14: 0.000107680093 | DZ14: 3e-07 | EA14: 3e-07 | EB14: 3e-07 | EC14: 3e-07 | ED14: 3e-07 | EE14: 3e-07 | EF14: 3e-07 | EG14: 3e-07 | EH14: 3e-07 | EI14: 3e-07 | EJ14: 3e-07 | EK14: 3e-07 | EL14: 3e-07 | EM14: 3e-07 | EN14: 3e-07
A15: p1308_296.1133_7.89 | B15: p1308 | C15: 296.1133 | D15: 7.89 | G15: 28.334 | H15: 4.8245 | I15: 1.31E-33 | J15: =ROUND(H15,1) -> 4.8 | K15: B. rapa | L15: 0.80157 | M15: -0.3191 | N15: 0.98105 | P15: 0.63665 | Q15: -0.65142 | R15: 0.35072 | U15: 0.004402219724 | V15: 0.00759756581 | W15: 0.01352502551 | X15: 0.0002367864693 | Y15: 0.0001222805986 | Z15: 0.001241669249 | AA15: 0.0004888987017 | AB15: 0.0007913975313 | AC15: 0.002009882155 | AD15: 0.005441203411 | AE15: 0.001932374918 | AF15: 0.001896452121 | AG15: 0.0005955650399 | AH15: 0.001087635454 | AI15: 0.0006967282256 | AJ15: 0.006045554284 | AK15: 0.004380934366 | AL15: 0.004507806448 | AM15: 0.03612386308 | AN15: 0.006651070184 | AO15: 0.008554894337 | AP15: 0.00156508404 | AQ15: 0.001889433809 | AR15: 0.002060804367 | AS15: 0.009220801734 | AT15: 0.003096927352 | AU15: 0.0008863561383 | AV15: 0.002323893984 | AW15: 0.001610950955 | AX15: 0.0008145443833 | AY15: 0.0005394973639 | AZ15: 0.0006479327364 | BA15: 0.0008864379085 | BB15: 6.955105913e-05 | BC15: 9.430843599e-05 | BD15: 7.228861228e-05 | BE15: 0.001916617194 | BF15: 0.0001131625468 | BG15: 0.0001732844836 | BH15: 0.0002307916204 | BI15: 0.0001068879919 | BJ15: 7.840243108e-05 | BK15: 3.650870031e-05 | BL15: 3.451400156e-05 | BM15: 0.0001112448832 | BN15: 6.935679506e-05 | BO15: 8.930641546e-05 | BP15: 7.494007291e-05 | BQ15: 6.861895685e-05 | BR15: 8.220629931e-05 | BS15: 7.186904723e-05 | BT15: 5.144607461e-05 | BU15: 7.786883578e-05 | BV15: 3.35847996e-05 | BW15: 6.877082039e-05 | BX15: 8.151935569e-05 | BY15: 3.77256995e-05 | BZ15: 0.0001126340882 | CA15: 0.000308316998 | CB15: 0.0001094525247 | CC15: 0.0001063529616 | CD15: 8.892549314e-05 | CE15: 0.008982547144 | CF15: 0.01035404268 | CG15: 0.007834813599 | CH15: 0.0009719331863 | CI15: 0.0009054869616 | CJ15: 0.0006454836963 | CK15: 0.003078228275 | CL15: 0.00245098229 | CM15: 0.001676550592 | CN15: 0.0008635680605 | CO15: 0.003552664485 | CP15: 0.001782429283 | CQ15: 0.0007255867989 | CR15: 0.0008745844376 | CS15: 0.001026598959 | CT15: 0.002456657564 | CU15: 0.004896493929 | CV15: 0.002939713216 | CW15: 0.008250124728 | CX15: 0.01415389465 | CY15: 0.007203980476 | CZ15: 0.003744315485 | DA15: 0.003978175469 | DB15: 0.001267576108 | DC15: 0.003439156209 | DD15: 0.002148385306 | DE15: 0.003162779084 | DF15: 0.0003075416788 | DG15: 0.001356746863 | DH15: 0.0009154402061 | DI15: 0.0002431822823 | DJ15: 9.637871164e-05 | DK15: 0.001022169123 | DL15: 7.020532082e-05 | DM15: 9.570409329e-05 | DN15: 3.418048538e-05 | DO15: 0.0001295970486 | DP15: 6.6861946e-05 | DQ15: 0.0009831376146 | DR15: 3.190111806e-05 | DS15: 9.265127024e-05 | DT15: 9.5659876e-05 | DU15: 4.971266777e-05 | DV15: 9.04741902e-05 | DW15: 4.234038063e-05 | DX15: 5.594867641e-05 | DY15: 6.748614124e-05 | DZ15: 0.0001045088086 | EA15: 7.26313616e-05 | EB15: 1.676749393e-05 | EC15: 4.60101476e-05 | ED15: 5.942299953e-05 | EE15: 2.173623777e-05 | EF15: 7.055850416e-05 | EG15: 6.277956525e-05 | EH15: 1.914639258e-05 | EI15: 9.150102838e-05 | EJ15: 7.610558793e-05 | EK15: 8.273253753e-05 | EL15: 5.136684735e-05 | EM15: 0.0001483651055 | EN15: 8.029912136e-05
A16: p1347_304.1043_5.05 | B16: p1347 | C16: 304.1043 | D16: 5.05 | G16: 27.489 | H16: 4.7808 | I16: 1.61E-38 | J16: =ROUND(H16,1) -> 4.8 | K16: B. rapa | L16: 1.2225 | M16: 0.28982 | N16: 0.55038 | P16: 0.44098 | Q16: -1.1812 | R16: 0.87241 | U16: 0.003169848199 | V16: 0.006454415556 | W16: 0.007643000994 | X16: 0.001289302326 | Y16: 0.0005124234205 | Z16: 0.002503500921 | AA16: 0.0001060262245 | AB16: 0.0002878270688 | AC16: 0.0005924846209 | AD16: 0.004893264681 | AE16: 0.001013089763 | AF16: 0.0008071405219 | AG16: 0.001309333828 | AH16: 0.002421894971 | AI16: 0.001057580863 | AJ16: 0.001095993503 | AK16: 0.001025393779 | AL16: 0.0007958094322 | AM16: 0.01087137406 | AN16: 0.005221503235 | AO16: 0.002442313585 | AP16: 0.002357994894 | AQ16: 0.002826602268 | AR16: 0.0009251243526 | AS16: 0.009438182172 | AT16: 0.004895322396 | AU16: 0.001861204001 | AV16: 0.004619570694 | AW16: 0.003820341476 | AX16: 0.003172746115 | AY16: 0.002816548306 | AZ16: 0.003887596419 | BA16: 0.001928668019 | BB16: 9.647404976e-05 | BC16: 5.76329331e-05 | BD16: 4.427677502e-05 | BE16: 0.00295995557 | BF16: 0.0001205107641 | BG16: 7.746835738e-05 | BH16: 0.0001478508818 | BI16: 6.337606601e-05 | BJ16: 6.381593228e-05 | BK16: 5.997857908e-05 | BL16: 6.725805432e-05 | BM16: 0.0001647002167 | BN16: 4.623786337e-05 | BO16: 3.8642199e-05 | BP16: 3.364656335e-05 | BQ16: 5.302373939e-05 | BR16: 0.0001012292446 | BS16: 5.559681012e-05 | BT16: 3.982921905e-05 | BU16: 7.596959588e-05 | BV16: 2.123176986e-05 | BW16: 6.995652419e-05 | BX16: 8.255124627e-05 | BY16: 2.444200249e-05 | BZ16: 3e-07 | CA16: 0.0001024922991 | CB16: 4.828787854e-05 | CC16: 4.557984069e-05 | CD16: 7.293888763e-05 | CE16: 0.009121953855 | CF16: 0.00745745454 | CG16: 0.005664584076 | CH16: 0.008174528186 | CI16: 0.005578871971 | CJ16: 0.004875692333 | CK16: 0.003294333853 | CL16: 0.0019185135 | CM16: 0.0005697273448 | CN16: 0.0001805147521 | CO16: 0.00278676823 | CP16: 0.002102471074 | CQ16: 0.002151459736 | CR16: 0.002938755977 | CS16: 0.002177990911 | CT16: 0.0004294628854 | CU16: 0.001142678958 | CV16: 0.00165930023 | CW16: 0.003648690949 | CX16: 0.01093396635 | CY16: 0.003266818817 | CZ16: 0.001649962758 | DA16: 0.002612396333 | DB16: 0.001768124628 | DC16: 0.003508999923 | DD16: 0.002976182104 | DE16: 0.008378243409 | DF16: 0.001191951477 | DG16: 0.004533714533 | DH16: 0.006171131697 | DI16: 0.0008359640526 | DJ16: 0.002805612643 | DK16: 0.003374797948 | DL16: 8.091460704e-05 | DM16: 8.621990386e-05 | DN16: 8.185326763e-05 | DO16: 7.893638412e-05 | DP16: 6.6861946e-05 | DQ16: 6.872644462e-05 | DR16: 5.445190841e-05 | DS16: 9.124746312e-05 | DT16: 5.527015058e-05 | DU16: 6.927175017e-05 | DV16: 7.737924162e-05 | DW16: 5.855584555e-05 | DX16: 3.959444792e-05 | DY16: 0.0002471183701 | DZ16: 9.405792774e-05 | EA16: 3.050517187e-05 | EB16: 2.438908207e-05 | EC16: 8.233394834e-05 | ED16: 3.668086391e-05 | EE16: 2.680802658e-05 | EF16: 0.0001070977295 | EG16: 8.998404353e-05 | EH16: 2.239766679e-05 | EI16: 4.744497768e-05 | EJ16: 6.273568735e-05 | EK16: 0.0001070656368 | EL16: 6.506467331e-05 | EM16: 7.14350508e-05 | EN16: 0.0001078644914
A17: p1390_356.0986_5.42 | B17: p1390 | C17: 356.0986 | D17: 5.42 | F17: Polynitrogen heterocycle conjugated to phenylalanine | G17: 25.366 | H17: 4.6648 | I17: 8.11E-23 | J17: =ROUND(H17,1) -> 4.7 | K17: B. rapa | L17: 1.0761 | M17: 0.10577 | N17: 0.89438 | P17: 0.47649 | Q17: -1.0695 | R17: 0.10744 | U17: 0.002040884519 | V17: 0.003223735795 | W17: 0.004916815762 | X17: 0.002313009161 | Y17: 0.0005490677693 | Z17: 0.003566228661 | AA17: 0.0002047596398 | AB17: 0.0002807202276 | AC17: 0.0004441040591 | AD17: 0.004194499612 | AE17: 0.001184752195 | AF17: 0.0006291430694 | AG17: 0.0009092596029 | AH17: 0.001029285913 | AI17: 0.001058238154 | AJ17: 0.0009728633684 | AK17: 0.0005700220535 | AL17: 0.000664064694 | AM17: 0.005343155539 | AN17: 0.00274763564 | AO17: 0.001147902489 | AP17: 0.00143699844 | AQ17: 0.001306461607 | AR17: 0.0005340924097 | AS17: 0.02004515643 | AT17: 0.009026410208 | AU17: 0.003412327243 | AV17: 0.005383452585 | AW17: 0.002019985406 | AX17: 0.002775048134 | AY17: 0.001906844131 | AZ17: 0.001887546814 | BA17: 0.001225631057 | BB17: 0.0001480764485 | BC17: 0.0001467020115 | BD17: 0.0001572277317 | BE17: 0.001222590344 | BF17: 0.0003027465537 | BG17: 0.0003221052754 | BH17: 0.000185715132 | BI17: 9.1753409e-05 | BJ17: 0.0001650097677 | BK17: 6.258634339e-05 | BL17: 4.955856634e-05 | BM17: 0.0002008186853 | BN17: 3e-07 | BO17: 0.0001004697174 | BP17: 3.626837348e-05 | BQ17: 5.822214521e-05 | BR17: 0.0001073437627 | BS17: 0.00011254964 | BT17: 4.591423863e-05 | BU17: 0.0001244002133 | BV17: 2.277589858e-05 | BW17: 7.114222799e-05 | BX17: 0.0001424008998 | BY17: 2.97554813e-05 | BZ17: 0.000123897497 | CA17: 8.148977877e-05 | CB17: 8.128459553e-05 | CC17: 0.0001009906274 | CD17: 3.896735093e-05 | CE17: 0.005267196196 | CF17: 0.004092900634 | CG17: 0.003057865613 | CH17: 0.01106529942 | CI17: 0.008370790103 | CJ17: 0.007556740099 | CK17: 0.003573399324 | CL17: 0.002812735895 | CM17: 0.0004118617183 | CN17: 0.0001020497971 | CO17: 0.00305045537 | CP17: 0.003115320096 | CQ17: 0.001537918719 | CR17: 0.001805317386 | CS17: 0.001188280447 | CT17: 0.0002699215975 | CU17: 0.0005304125821 | CV17: 0.0007978194792 | CW17: 0.001788075437 | CX17: 0.005362869863 | CY17: 0.001178612661 | CZ17: 0.0005598873625 | DA17: 0.001153426451 | DB17: 0.0009074692591 | DC17: 0.003781261067 | DD17: 0.003122309614 | DE17: 0.009690172496 | DF17: 0.0007058120525 | DG17: 0.002982007311 | DH17: 0.003033374275 | DI17: 0.0003839404999 | DJ17: 0.0007816596981 | DK17: 0.001679199756 | DL17: 5.473635182e-05 | DM17: 3e-07 | DN17: 4.317534996e-05 | DO17: 6.479852428e-05 | DP17: 9.080017358e-05 | DQ17: 6.989129961e-05 | DR17: 5.170181203e-05 | DS17: 0.0001544187837 | DT17: 3e-07 | DU17: 3e-07 | DV17: 0.000110711838 | DW17: 0.0001252194236 | DX17: 0.0001316945768 | DY17: 0.0001027178767 | DZ17: 8.26569668e-05 | EA17: 0.0001009575926 | EB17: 2.896203496e-05 | EC17: 8.556273063e-05 | ED17: 0.0001078417399 | EE17: 1.135114639e-05 | EF17: 0.0001675764474 | EG17: 6.591854351e-05 | EH17: 3.179023673e-05 | EI17: 0.0001084456633 | EJ17: 3e-07 | EK17: 3e-07 | EL17: 3e-07 | EM17: 0.0001053209082 | EN17: 0.0001665907145
A18: p1361_392.0968_6.75 | B18: p1361 | C18: 392.0968 | D18: 6.75 | G18: 23.739 | H18: 4.5692 | I18: 1.61E-38 | J18: =ROUND(H18,1) -> 4.6 | K18: B. rapa | L18: 0.95014 | M18: -0.073788 | N18: 0.81038 | P18: 0.29315 | Q18: -1.7703 | R18: 0.50703 | U18: 0.003217006722 | V18: 0.004823451754 | W18: 0.007007597111 | X18: 0.001547794221 | Y18: 0.0004500881968 | Z18: 0.001905349023 | AA18: 0.000119489872 | AB18: 0.0001959457646 | AC18: 0.0002220520295 | AD18: 0.00654662684 | AE18: 0.0001519634644 | AF18: 0.0008022189334 | AG18: 0.00175876786 | AH18: 0.002767324257 | AI18: 0.001118708906 | AJ18: 0.002163572359 | AK18: 0.001515483561 | AL18: 0.0007762257549 | AM18: 0.007766189424 | AN18: 0.006222996516 | AO18: 0.002067734878 | AP18: 0.003971873448 | AQ18: 0.002160016524 | AR18: 0.001198039705 | AS18: 0.01423395197 | AT18: 0.007386860434 | AU18: 0.003441824485 | AV18: 0.01024488562 | AW18: 0.004793561377 | AX18: 0.003004092712 | AY18: 0.003199777468 | AZ18: 0.003806344403 | BA18: 0.00127098828 | BB18: 3.253194701e-05 | BC18: 6.549196944e-05 | BD18: 7.680665055e-05 | BE18: 0.004131987667 | BF18: 6.025538204e-05 | BG18: 0.0002915256607 | BH18: 0.0001208049888 | BI18: 5.486286311e-05 | BJ18: 8.022574343e-05 | BK18: 2.933734846e-05 | BL18: 5.663836153e-05 | BM18: 5.345533349e-05 | BN18: 9.927541253e-05 | BO18: 5.66752252e-05 | BP18: 1.441995572e-05 | BQ18: 4.366660891e-05 | BR18: 6.929787215e-05 | BS18: 6.64449682e-05 | BT18: 2.157416032e-05 | BU18: 6.362453655e-05 | BV18: 2.04597055e-05 | BW18: 0.0001031562306 | BX18: 7.429612164e-05 | BY18: 5.207209227e-05 | BZ18: 9.26102503e-05 | CA18: 0.0002007840941 | CB18: 6.92126259e-05 | CC18: 5.630450908e-05 | CD18: 8.692716745e-05 | CE18: 0.005926406225 | CF18: 0.005145223664 | CG18: 0.004149087963 | CH18: 0.005976207203 | CI18: 0.004610834923 | CJ18: 0.005169699746 | CK18: 0.002479258483 | CL18: 0.001162489113 | CM18: 0.0002813359489 | CN18: 0.0001607851247 | CO18: 0.002171862951 | CP18: 0.001278317213 | CQ18: 0.002451453282 | CR18: 0.003285163742 | CS18: 0.002245489008 | CT18: 0.0003891137806 | CU18: 0.001368595428 | CV18: 0.001564835118 | CW18: 0.00279765379 | CX18: 0.006959733659 | CY18: 0.004259102629 | CZ18: 0.001794059506 | DA18: 0.00267350502 | DB18: 0.001925671374 | DC18: 0.004001139426 | DD18: 0.004367502545 | DE18: 0.008478120643 | DF18: 0.001377828316 | DG18: 0.00574512731 | DH18: 0.007266110918 | DI18: 0.0006189368433 | DJ18: 0.002128126993 | DK18: 0.002072762199 | DL18: 3.093793799e-05 | DM18: 7.242471925e-05 | DN18: 4.587380933e-05 | DO18: 3.652280459e-05 | DP18: 7.594196336e-05 | DQ18: 4.892390973e-05 | DR18: 4.455156143e-05 | DS18: 0.000123535027 | DT18: 6.448184234e-05 | DU18: 6.438197957e-05 | DV18: 0.0001142831876 | DW18: 3.062921152e-05 | DX18: 5.336642981e-05 | DY18: 9.08085577e-05 | DZ18: 9.500800782e-05 | EA18: 5.084195312e-05 | EB18: 1.600533511e-05 | EC18: 3.874538745e-05 | ED18: 2.420937018e-05 | EE18: 3.260435666e-05 | EF18: 0.0001058377562 | EG18: 8.789139135e-05 | EH18: 1.553386568e-05 | EI18: 5.761175861e-05 | EJ18: 5.039424066e-05 | EK18: 8.516584745e-05 | EL18: 8.304306988e-05 | EM18: 0.0001108159121 | EN18: 8.029912136e-05
A19: p1323_337.103_4.14 | B19: p1323 | C19: 337.103 | D19: 4.14 | G19: 23.145 | H19: 4.5326 | I19: 5.96E-20 | J19: =ROUND(H19,1) -> 4.5 | K19: B. rapa | L19: 1.1968 | M19: 0.25916 | N19: 0.69526 | P19: 0.77851 | Q19: -0.36121 | R19: 0.81231 | U19: 0.00237894863 | V19: 0.00459343291 | W19: 0.01031774877 | X19: 4.222692037e-05 | Y19: 3.027141855e-05 | Z19: 0.0001554186813 | AA19: 3.225665559e-05 | AB19: 9.644998778e-05 | AC19: 0.0002023371297 | AD19: 0.007730327231 | AE19: 0.002158444023 | AF19: 0.003166221966 | AG19: 0.0007923547968 | AH19: 0.001373159211 | AI19: 0.001237678537 | AJ19: 0.005462377494 | AK19: 0.005226278686 | AL19: 0.003594494952 | AM19: 0.004437207701 | AN19: 0.001960179194 | AO19: 0.0009492851502 | AP19: 0.007332595607 | AQ19: 0.005538235915 | AR19: 0.00516778425 | AS19: 0.01493820504 | AT19: 0.007250231286 | AU19: 0.003573482905 | AV19: 0.01841580167 | AW19: 0.02509114042 | AX19: 0.008023925006 | AY19: 0.003478827829 | AZ19: 0.006518911679 | BA19: 0.004276397341 | BB19: 0.0001817301868 | BC19: 0.0002344612506 | BD19: 0.0001798179231 | BE19: 0.002592259226 | BF19: 0.0003556537184 | BG19: 0.000501505682 | BH19: 0.0002920956446 | BI19: 0.0001503999178 | BJ19: 0.0002051226395 | BK19: 9.127175077e-05 | BL19: 0.0001221264671 | BM19: 0.000208042379 | BN19: 0.0002203098196 | BO19: 0.0001185027436 | BP19: 5.243620262e-05 | BQ19: 0.0001476347254 | BR19: 0.0001046261991 | BS19: 0.0002345914183 | BT19: 7.855207091e-05 | BU19: 9.306275496e-05 | BV19: 8.724327252e-05 | BW19: 0.0001612557168 | BX19: 0.0001764532889 | BY19: 9.776800997e-05 | BZ19: 0.0001989868892 | CA19: 0.0002856342761 | CB19: 9.979494897e-05 | CC19: 0.0002314740929 | CD19: 0.0002607815024 | CE19: 0.006733668342 | CF19: 0.02293152272 | CG19: 0.006066870524 | CH19: 0.0001946647297 | CI19: 0.0001955931266 | CJ19: 0.0001482530296 | CK19: 0.0002637509025 | CL19: 0.0001883286558 | CM19: 0.0003871676538 | CN19: 0.0006234108714 | CO19: 0.008998186858 | CP19: 0.00335026407 | CQ19: 0.005931197694 | CR19: 0.004999120838 | CS19: 0.001747101899 | CT19: 0.001878784178 | CU19: 0.004615735417 | CV19: 0.005012811709 | CW19: 0.004932725046 | CX19: 0.006340569718 | CY19: 0.001502758707 | CZ19: 0.0062335593 | DA19: 0.01356612833 | DB19: 0.006759205553 | DC19: 0.006139779814 | DD19: 0.003750346997 | DE19: 0.008829771739 | DF19: 0.003198381466 | DG19: 0.01043392395 | DH19: 0.01740588989 | DI19: 0.00194465963 | DJ19: 0.0177131316 | DK19: 0.01510077229 | DL19: 0.0001320811968 | DM19: 0.0001310542539 | DN19: 0.0001736008863 | DO19: 0.0002886479718 | DP19: 0.0001642657686 | DQ19: 0.001398990847 | DR19: 0.0001842564578 | DS19: 0.0003734126952 | DT19: 0.0001296722764 | DU19: 0.0001344686915 | DV19: 0.0001535680334 | DW19: 0.0001801718325 | DX19: 0.0002642499024 | DY19: 0.0001647455801 | DZ19: 0.0002109177774 | EA19: 0.0001212943739 | EB19: 4.839708474e-05 | EC19: 0.0001323800738 | ED19: 0.0001445226038 | EE19: 6.01369245e-05 | EF19: 0.0001612765809 | EG19: 0.0001600878914 | EH19: 5.238164007e-05 | EI19: 0.0002338359614 | EJ19: 0.0001655810764 | EK19: 0.000167898385 | EL19: 0.0001575249985 | EM19: 0.0001712609551 | EN19: 0.0001833696353
A20: p1314_344.0965_5.05 | B20: p1314 | C20: 344.0965 | D20: 5.05 | G20: 22.809 | H20: 4.5115 | I20: 2.23E-35 | J20: =ROUND(H20,1) -> 4.5 | K20: B. rapa | L20: 0.94984 | M20: -0.074242 | N20: 0.8484 | P20: 0.28717 | Q20: -1.8 | R20: 0.20999 | U20: 0.0037647274 | V20: 0.005339909158 | W20: 0.01150686175 | X20: 0.002044651163 | Y20: 0.0006645771295 | Z20: 0.001922151043 | AA20: 0.0004465443104 | AB20: 0.0003507733766 | AC20: 0.0004129752699 | AD20: 0.006657360103 | AE20: 0.001190380471 | AF20: 0.0008153431695 | AG20: 0.001828261273 | AH20: 0.002577493748 | AI20: 0.00111410787 | AJ20: 0.001660227195 | AK20: 0.001265997988 | AL20: 0.0005964119906 | AM20: 0.01352466072 | AN20: 0.004956694873 | AO20: 0.002316195351 | AP20: 0.003697404306 | AQ20: 0.003637189114 | AR20: 0.001038839083 | AS20: 0.01047892824 | AT20: 0.004689823271 | AU20: 0.00195904851 | AV20: 0.007890758843 | AW20: 0.004762329683 | AX20: 0.00201942197 | AY20: 0.005443342368 | AZ20: 0.004190728937 | BA20: 0.001235491323 | BB20: 0.0001166662927 | BC20: 7.073132699e-05 | BD20: 0.000112047349 | BE20: 0.004460616274 | BF20: 8.670896441e-05 | BG20: 0.0001692072016 | BH20: 0.0001370325246 | BI20: 7.851064894e-05 | BJ20: 7.657911873e-05 | BK20: 4.433199323e-05 | BL20: 9.469226069e-05 | BM20: 0.0001531423068 | BN20: 4.759780053e-05 | BO20: 7.299082033e-05 | BP20: 8.258701913e-05 | BQ20: 3.119043493e-05 | BR20: 4.416040872e-05 | BS20: 0.000117973719 | BT20: 2.157416032e-05 | BU20: 8.831465521e-05 | BV20: 1.582731935e-05 | BW20: 3.79425216e-05 | BX20: 0.00012485876 | BY20: 2.497335037e-05 | BZ20: 0.0001038736591 | CA20: 0.00016549986 | CB20: 5.633585829e-05 | CC20: 2.323678153e-05 | CD20: 0.0001109070757 | CE20: 0.006318690225 | CF20: 0.005895168811 | CG20: 0.004959361274 | CH20: 0.007146976506 | CI20: 0.004723027935 | CJ20: 0.004066130846 | CK20: 0.004281272714 | CL20: 0.002082454273 | CM20: 0.0005238669393 | CN20: 0.000196389165 | CO20: 0.002434455953 | CP20: 0.001963724633 | CQ20: 0.002788494223 | CR20: 0.002438177725 | CS20: 0.002017094285 | CT20: 0.0007721983846 | CU20: 0.001229443979 | CV20: 0.001673675355 | CW20: 0.003554463636 | CX20: 0.009326070683 | CY20: 0.003009927563 | CZ20: 0.002834636018 | DA20: 0.003195984286 | DB20: 0.00160787708 | DC20: 0.003181769189 | DD20: 0.003089664107 | DE20: 0.00880480243 | DF20: 0.001209369307 | DG20: 0.003893003898 | DH20: 0.005027092397 | DI20: 0.0006972024055 | DJ20: 0.002347105095 | DK20: 0.002891590726 | DL20: 7.615492427e-05 | DM20: 3.535016058e-05 | DN20: 5.576816036e-05 | DO20: 8.364900407e-05 | DP20: 7.759287561e-05 | DQ20: 4.076992478e-05 | DR20: 3.520123372e-05 | DS20: 0.0001488035552 | DT20: 1.91319752e-05 | DU20: 7.497648253e-05 | DV20: 7.737924162e-05 | DW20: 9.729278952e-05 | DX20: 3e-07 | DY20: 0.0002466221485 | DZ20: 8.835744727e-05 | EA20: 4.648407142e-05 | EB20: 3.048635259e-05 | EC20: 1.775830258e-05 | ED20: 7.116087598e-05 | EE20: 1.352477017e-05 | EF20: 3e-07 | EG20: 0.0001454393262 | EH20: 2.528768831e-05 | EI20: 0.0001231310135 | EJ20: 8.330476517e-05 | EK20: 7.056598789e-05 | EL20: 5.564741796e-05 | EM20: 6.777171486e-05 | EN20: 3.595483046e-05
A21: p1824_324.109_6.76 | B21: p1824 | C21: 324.109 | D21: 6.76 | G21: 22.52 | H21: 4.4931 | I21: 1.01E-32 | J21: =ROUND(H21,1) -> 4.5 | K21: B. rapa | L21: 1.3731 | M21: 0.45739 | N21: 0.45007 | P21: 0.39476 | Q21: -1.341 | R21: 0.15785 | U21: 0.001569867462 | V21: 0.002728110287 | W21: 0.004287463345 | X21: 0.0005730232558 | Y21: 0.0002158830112 | Z21: 0.001648278123 | AA21: 9.284306957e-05 | AB21: 0.0001659955053 | AC21: 0.0001680954616 | AD21: 0.001821371247 | AE21: 0.00036583797 | AF21: 0.0005044628262 | AG21: 0.000837817777 | AH21: 0.001888191164 | AI21: 0.0007361656723 | AJ21: 0.0007956100982 | AK21: 0.0008711810137 | AL21: 0.0005118461113 | AM21: 0.003128855479 | AN21: 0.00356197113 | AO21: 0.001200766419 | AP21: 0.002084745615 | AQ21: 0.00165369007 | AR21: 0.0005304241926 | AS21: 0.006269787841 | AT21: 0.00428771147 | AU21: 0.00291878803 | AV21: 0.005514461352 | AW21: 0.003004287522 | AX21: 0.003426830936 | AY21: 0.001045508684 | AZ21: 0.002520895856 | BA21: 0.0009081304936 | BB21: 8.637792828e-05 | BC21: 7.073132699e-05 | BD21: 0.0001246978562 | BE21: 0.001921213398 | BF21: 0.0001263893379 | BG21: 0.0002181345853 | BH21: 0.0001622753581 | BI21: 7.378109177e-05 | BJ21: 9.754721077e-05 | BK21: 4.237617e-05 | BL21: 6.283318233e-05 | BM21: 9.246327956e-05 | BN21: 0.0001074350355 | BO21: 0.0001047632951 | BP21: 1.791570256e-05 | BQ21: 5.198405822e-05 | BR21: 3.532832698e-05 | BS21: 5.695282988e-05 | BT21: 2.102097672e-05 | BU21: 4.653137748e-05 | BV21: 3.628702485e-05 | BW21: 8.181356219e-05 | BX21: 6.397721586e-05 | BY21: 4.144513466e-05 | BZ21: 8.635280095e-05 | CA21: 7.308877065e-05 | CB21: 8.530858541e-05 | CC21: 6.077312092e-05 | CD21: 5.595311928e-05 | CE21: 0.003941211434 | CF21: 0.003330956364 | CG21: 0.003549730016 | CH21: 0.004388299193 | CI21: 0.00375300517 | CJ21: 0.003717153209 | CK21: 0.001449779154 | CL21: 0.00108797058 | CM21: 0.0001940247923 | CN21: 8.776282547e-05 | CO21: 0.001421284622 | CP21: 0.0009157265127 | CQ21: 0.001507196489 | CR21: 0.0023039923 | CS21: 0.001717277158 | CT21: 0.0002221519677 | CU21: 0.001019079729 | CV21: 0.001336886695 | CW21: 0.001464262529 | CX21: 0.005335290178 | CY21: 0.003444327365 | CZ21: 0.0009888776796 | DA21: 0.001946311654 | DB21: 0.00204900797 | DC21: 0.003117745785 | DD21: 0.003514832979 | DE21: 0.01177094821 | DF21: 0.0008381355643 | DG21: 0.004269631865 | DH21: 0.005947751761 | DI21: 0.0004128907716 | DJ21: 0.001998440933 | DK21: 0.001866141917 | DL21: 9.281381396e-05 | DM21: 3.879895674e-05 | DN21: 4.22758635e-05 | DO21: 5.183881942e-05 | DP21: 6.273466538e-05 | DQ21: 0.0001188152093 | DR21: 3.190111806e-05 | DS21: 4.071040662e-05 | DT21: 4.818423384e-05 | DU21: 4.726778247e-05 | DV21: 8.095059123e-05 | DW21: 4.684467644e-05 | DX21: 7.574590038e-05 | DY21: 5.160704918e-05 | DZ21: 4.085344336e-05 | EA21: 5.955771651e-05 | EB21: 2.248368504e-05 | EC21: 2.825184502e-05 | ED21: 4.69515058e-05 | EE21: 1.714747646e-05 | EF21: 9.449799664e-05 | EG21: 9.20766957e-05 | EH21: 2.637144638e-05 | EI21: 4.179676605e-05 | EJ21: 0.0001018169352 | EK21: 9.611574212e-05 | EL21: 4.879850498e-05 | EM21: 7.326671877e-05 | EN21: 3e-07
A22: p1816_469.1823_4.35 | B22: p1816 | C22: 469.1823 | D22: 4.35 | G22: 21.595 | H22: 4.4326 | I22: 4.85E-14 | J22: =ROUND(H22,1) -> 4.4 | K22: B. rapa | L22: 3.5478 | M22: 1.8269 | N22: 0.0015881 | O22: + | P22: 1.3564 | Q22: 0.43975 | R22: 0.33547 | U22: 0.0002693149393 | V22: 0.0005555172076 | W22: 0.001449326 | X22: 0.0002095560254 | Y22: 0.0001153102062 | Z22: 0.0008401009801 | AA22: 0.0003649209472 | AB22: 0.0001939152386 | AC22: 0.001419472787 | AD22: 0.000160372311 | AE22: 0.0001106894371 | AF22: 0.001158213838 | AG22: 0.0003591575431 | AH22: 0.0004940261184 | AI22: 0.003878015595 | AJ22: 0.003109374159 | AK22: 0.0008413073367 | AL22: 0.03231751838 | AM22: 0.0003421513213 | AN22: 8.959681434e-05 | AO22: 0.0005648888563 | AP22: 0.0001427239537 | AQ22: 0.0001393559048 | AR22: 0.00197570173 | AS22: 0.0002873590723 | AT22: 0.0003643443943 | AU22: 0.0004510919632 | AV22: 0.0009029527361 | AW22: 0.0007888521561 | AX22: 0.003779603775 | AY22: 0.0003088157324 | AZ22: 0.0001625040304 | BA22: 0.0008824938021 | BB22: 0.0001435892834 | BC22: 0.0001218150632 | BD22: 0.0001436736169 | BE22: 0.0003286286075 | BF22: 0.0002395518847 | BG22: 0.0002792938148 | BH22: 0.0004056883953 | BI22: 0.0001882363752 | BJ22: 9.937052312e-05 | BK22: 0.0001955823231 | BL22: 0.0001725700078 | BM22: 0.0001459186131 | BN22: 0.0001536728988 | BO22: 0.000141688063 | BP22: 3.473898424e-05 | BQ22: 9.253162364e-05 | BR22: 0.0001080231536 | BS22: 0.0002617118135 | BT22: 0.0001023389656 | BU22: 0.0001338964127 | BV22: 3.783115357e-05 | BW22: 0.0001375416408 | BX22: 0.0002290797084 | BY22: 5.047804863e-05 | BZ22: 0.0001601907032 | CA22: 0.0001243349202 | CB22: 0.0001239388882 | CC22: 9.920318267e-05 | CD22: 0.0001808484748 | CE22: 0.001885772951 | CF22: 0.003159368915 | CG22: 0.01069397902 | CH22: 0.002290091499 | CI22: 0.002035359947 | CJ22: 0.001627451797 | CK22: 0.001985789053 | CL22: 0.0008495112746 | CM22: 0.004072756777 | CN22: 8.436116557e-05 | CO22: 0.0004628201655 | CP22: 0.00125426783 | CQ22: 0.001005701254 | CR22: 0.008812461253 | CS22: 0.007126543234 | CT22: 0.002619909114 | CU22: 0.005857457465 | CV22: 0.05191473986 | CW22: 0.00136928738 | CX22: 0.001032859225 | CY22: 0.01425250315 | CZ22: 0.0008821800879 | DA22: 0.002630728939 | DB22: 0.006752003416 | DC22: 0.001133666949 | DD22: 0.01211770149 | DE22: 0.004102249319 | DF22: 0.001926619934 | DG22: 0.01997191642 | DH22: 0.03335667871 | DI22: 3.394169786e-05 | DJ22: 0.0002969314719 | DK22: 0.001821319527 | DL22: 0.0001023331795 | DM22: 0.0002776280904 | DN22: 0.0003525986913 | DO22: 0.0001366659785 | DP22: 0.0001097856644 | DQ22: 0.0007140561111 | DR22: 7.590266021e-05 | DS22: 0.0001445921339 | DT22: 0.0002324180691 | DU22: 0.0001686970857 | DV22: 0.0002726130205 | DW22: 0.0002621500162 | DX22: 0.0001411628143 | DY22: 0.0002649823487 | DZ22: 8.075680665e-05 | EA22: 9.877865178e-05 | EB22: 5.792406993e-05 | EC22: 0.0004584870849 | ED22: 0.0002670366892 | EE22: 0.000142734628 | EF22: 0.0001688364207 | EG22: 0.0005074681524 | EH22: 5.888418849e-05 | EI22: 0.0002519102386 | EJ22: 0.0001923208776 | EK22: 0.0001204488414 | EL22: 0.0001549566562 | EM22: 0.0002298743301 | EN22: 0.0002420958584
A23: n637_276.1103_5.04 | B23: n637 | C23: 276.1103 | D23: 5.04 | G23: 20.541 | H23: 4.3604 | I23: 1.59E-24 | J23: =ROUND(H23,1) -> 4.4 | K23: B. rapa | L23: 0.929 | M23: -0.10626 | N23: 0.93109 | P23: 0.37629 | Q23: -1.4101 | R23: 0.17126 | U23: 0.001225754618 | V23: 0.001634454357 | W23: 0.004872710973 | X23: 0.0003725867241 | Y23: 8.703396071e-05 | Z23: 0.001635593673 | AA23: 1.301411548e-05 | AB23: 9.965028685e-05 | AC23: 0.000317746787 | AD23: 0.001670046523 | AE23: 0.0003801993204 | AF23: 0.0005544334878 | AG23: 0.0003155569357 | AH23: 0.000744490333 | AI23: 0.0007796089055 | AJ23: 0.0004260135782 | AK23: 0.0003628151695 | AL23: 0.0005226079288 | AM23: 0.004912687887 | AN23: 0.001807296539 | AO23: 0.001986130929 | AP23: 0.001142994551 | AQ23: 0.0008584716844 | AR23: 0.0007519397738 | AS23: 0.006227055886 | AT23: 0.001371849371 | AU23: 0.001766758221 | AV23: 0.001782233361 | AW23: 0.0009426480567 | AX23: 0.002357434616 | AY23: 0.001226267553 | AZ23: 0.001046341738 | BA23: 0.001454099931 | BB23: 5.465440846e-05 | BC23: 2.231776243e-05 | BD23: 3.002388263e-05 | BE23: 0.001369590516 | BF23: 3.395949285e-05 | BG23: 5.998903058e-05 | BH23: 9.224313478e-05 | BI23: 3.157338124e-05 | BJ23: 5.227781927e-05 | BK23: 1.70815704e-05 | BL23: 5.588053128e-05 | BM23: 8.165910564e-05 | BN23: 1.84380578e-05 | BO23: 2.753125053e-05 | BP23: 7.388506971e-06 | BQ23: 2.220700097e-05 | BR23: 8.541582061e-05 | BS23: 4.129306277e-05 | BT23: 2.428868841e-05 | BU23: 7.022706752e-05 | BV23: 3.003752619e-06 | BW23: 3.52560259e-05 | BX23: 5.538372087e-05 | BY23: 1.783559813e-05 | BZ23: 7.717364069e-05 | CA23: 0.0001557366447 | CB23: 2.613890963e-05 | CC23: 0.0001040541265 | CD23: 6.466450712e-05 | CE23: 0.003948648928 | CF23: 0.002277005377 | CG23: 0.002058019306 | CH23: 0.003015754991 | CI23: 0.001860689288 | CJ23: 0.002006100843 | CK23: 0.001643127345 | CL23: 0.0006163680562 | CM23: 0.0001598238109 | CN23: 4.383821635e-05 | CO23: 0.001344543156 | CP23: 0.0007210075945 | CQ23: 0.001205412054 | CR23: 0.001081563584 | CS23: 0.0008112270288 | CT23: 0.0001341890071 | CU23: 0.0003676790016 | CV23: 0.000708785863 | CW23: 0.00117461012 | CX23: 0.00360058866 | CY23: 0.001066649628 | CZ23: 0.0008945057748 | DA23: 0.0007099442546 | DB23: 0.0005963123482 | DC23: 0.0009022156986 | DD23: 0.001193368023 | DE23: 0.002379255523 | DF23: 0.0002002659632 | DG23: 0.001315074143 | DH23: 0.002383335712 | DI23: 0.0001663812329 | DJ23: 0.0008299543463 | DK23: 0.0009910649788 | DL23: 5.443276523e-05 | DM23: 4.739407574e-05 | DN23: 3.082964554e-05 | DO23: 6e-08 | DP23: 2.898866113e-05 | DQ23: 3.491712527e-05 | DR23: 1.80709627e-05 | DS23: 5.953997193e-05 | DT23: 5.683913657e-05 | DU23: 4.006410256e-05 | DV23: 5.642259599e-05 | DW23: 4.34278624e-05 | DX23: 1.413390869e-05 | DY23: 4.554941608e-05 | DZ23: 6e-08 | EA23: 2.911045102e-05 | EB23: 4.309467661e-06 | EC23: 4.042010126e-05 | ED23: 3.164769016e-05 | EE23: 2.736724009e-06 | EF23: 2.536624785e-05 | EG23: 1.003789305e-05 | EH23: 6e-08 | EI23: 3.690914763e-05 | EJ23: 8.08514149e-05 | EK23: 8.965380582e-05 | EL23: 8.015074471e-05 | EM23: 2.957767308e-05 | EN23: 3.845806697e-05
A24: p1303_469.0958_3.47 | B24: p1303 | C24: 469.0958 | D24: 3.47 | G24: 20.049 | H24: 4.3255 | I24: 4.11E-48 | J24: =ROUND(H24,1) -> 4.3 | K24: B. rapa | L24: 0.85076 | M24: -0.23317 | N24: 0.98738 | P24: 0.76812 | Q24: -0.38059 | R24: 0.36425 | U24: 0.00576924872 | V24: 0.007331091149 | W24: 0.01444484828 | X24: 0.001389147287 | Y24: 0.0007018189405 | Z24: 0.001378605708 | AA24: 0.001146092998 | AB24: 0.002836644904 | AC24: 0.00317721175 | AD24: 0.01000035911 | AE24: 0.004012961117 | AF24: 0.001642170046 | AG24: 0.003423362405 | AH24: 0.002970380661 | AI24: 0.001174578622 | AJ24: 0.006865519793 | AK24: 0.004194425733 | AL24: 0.002047384445 | AM24: 0.0119494735 | AN24: 0.003283225485 | AO24: 0.002314684953 | AP24: 0.007569249 | AQ24: 0.0061444341 | AR24: 0.002126832274 | AS24: 0.009895276655 | AT24: 0.007895609618 | AU24: 0.002277762609 | AV24: 0.01010379925 | AW24: 0.006565708175 | AX24: 0.001888328932 | AY24: 0.004615492965 | AZ24: 0.005839728168 | BA24: 0.001481997972 | BB24: 0.000320832305 | BC24: 0.0002606580384 | BD24: 0.0003975873676 | BE24: 0.0008181243656 | BF24: 0.000249839389 | BG24: 0.0004097668377 | BH24: 0.0003245507162 | BI24: 0.000176885438 | BJ24: 0.000275320165 | BK24: 0.000110178042 | BL24: 0.0001194715439 | BM24: 0.0004695400915 | BN24: 0.0003454240381 | BO24: 0.0001949284261 | BP24: 5.374710769e-05 | BQ24: 0.0002380869867 | BR24: 0.0001229697535 | BS24: 0.0003837535918 | BT24: 0.000107317618 | BU24: 0.000239304227 | BV24: 7.296008188e-05 | BW24: 0.000231212241 | BX24: 0.0002435261765 | BY24: 6.801252868e-05 | BZ24: 0.0002703218117 | CA24: 0.0002066647998 | CB24: 0.0001947611101 | CC24: 0.0001394206892 | CD24: 0.00022481164 | CE24: 0.00870265305 | CF24: 0.007986615836 | CG24: 0.00564259676 | CH24: 0.00410881626 | CI24: 0.003325083152 | CJ24: 0.002584433432 | CK24: 0.008356649561 | CL24: 0.006228394464 | CM24: 0.00436820362 | CN24: 0.0007000616078 | CO24: 0.004861252944 | CP24: 0.003865475855 | CQ24: 0.003307157763 | CR24: 0.003544017895 | CS24: 0.003299558123 | CT24: 0.001970613175 | CU24: 0.004359533044 | CV24: 0.003127616646 | CW24: 0.0041258102 | CX24: 0.005390449549 | CY24: 0.004326357421 | CZ24: 0.004678194406 | DA24: 0.005603666521 | DB24: 0.002410915353 | DC24: 0.003640926938 | DD24: 0.002383122051 | DE24: 0.003044174868 | DF24: 0.001475316169 | DG24: 0.004227981242 | DH24: 0.005188886277 | DI24: 0.0009218165825 | DJ24: 0.00295018071 | DK24: 0.004102888467 | DL24: 0.0003379374765 | DM24: 0.0002552109154 | DN24: 0.0001700029405 | DO24: 0.0002356309974 | DP24: 0.00014693119 | DQ24: 0.0006138785816 | DR24: 0.0001226542987 | DS24: 0.0003804317309 | DT24: 0.0001750221435 | DU24: 0.0001230592268 | DV24: 0.0002726130205 | DW24: 0.0002828697769 | DX24: 0.0001936684953 | DY24: 7.0463471e-05 | DZ24: 0.0001368115313 | EA24: 0.0001365469598 | EB24: 7.049969037e-05 | EC24: 0.0001323800738 | ED24: 0.0001327847273 | EE24: 3.526100794e-05 | EF24: 0.0001562366878 | EG24: 0.0001266054566 | EH24: 8.525563488e-05 | EI24: 0.0001513720716 | EJ24: 0.0002026054165 | EK24: 0.0002056146888 | EL24: 0.0001378343737 | EM24: 0.0002088101485 | EN24: 0.000285241655
A25: p1926_408.0698_6.76 | B25: p1926 | C25: 408.0698 | D25: 6.76 | G25: 19.317 | H25: 4.2718 | I25: 2.82E-31 | J25: =ROUND(H25,1) -> 4.3 | K25: B. rapa | L25: 1.0601 | M25: 0.084243 | N25: 0.6805 | P25: 0.52163 | Q25: -0.9389 | R25: 0.90626 | U25: 0.00124543955 | V25: 0.002155233166 | W25: 0.003764011574 | X25: 0.0006436645525 | Y25: 0.0001605181799 | Z25: 0.0009753572379 | AA25: 5.048867831e-05 | AB25: 5.837762418e-05 | AC25: 0.000308175013 | AD25: 0.002943977424 | AE25: 0.0001932374918 | AF25: 0.0004790346187 | AG25: 0.0007800148451 | AH25: 0.001351375382 | AI25: 0.0005981346088 | AJ25: 0.0008497332342 | AK25: 0.0007339235788 | AL25: 0.00035606686 | AM25: 0.004441511491 | AN25: 0.003287207566 | AO25: 0.0009485299512 | AP25: 0.00188590797 | AQ25: 0.0009302006642 | AR25: 0.000462928998 | AS25: 0.007005307954 | AT25: 0.003255772621 | AU25: 0.001715156683 | AV25: 0.003940340623 | AW25: 0.002284951073 | AX25: 0.001224026008 | AY25: 0.001480827247 | AZ25: 0.00214380317 | BA25: 0.0007582544512 | BB25: 5.608956382e-05 | BC25: 4.322469983e-05 | BD25: 5.331285156e-05 | BE25: 0.001675316468 | BF25: 8.083039055e-05 | BG25: 0.0001610526377 | BH25: 0.0002145640846 | BI25: 6.432197744e-05 | BJ25: 4.922943347e-05 | BK25: 3.064123062e-05 | BL25: 3.716892476e-05 | BM25: 3e-07 | BN25: 5.983723495e-05 | BO25: 5.324036306e-05 | BP25: 1.26720823e-05 | BQ25: 7.797608733e-05 | BR25: 3.94046724e-05 | BS25: 5.830884964e-05 | BT25: 3.097828149e-05 | BU25: 3.893441789e-05 | BV25: 2.277589858e-05 | BW25: 5.45423748e-05 | BX25: 4.437129487e-05 | BY25: 3.028682918e-05 | BZ25: 4.880810489e-05 | CA25: 0.0001318958275 | CB25: 3.2996717e-05 | CC25: 4.468611832e-05 | CD25: 4.196483946e-05 | CE25: 0.002879991355 | CF25: 0.001831066071 | CG25: 0.002119740131 | CH25: 0.003982284185 | CI25: 0.002229960215 | CJ25: 0.00285012285 | CK25: 0.0008797368811 | CL25: 0.0009118358657 | CM25: 0.0003148493221 | CN25: 7.755784577e-05 | CO25: 0.001298741221 | CP25: 0.0005512858602 | CQ25: 0.001423162152 | CR25: 0.001502686428 | CS25: 0.001320922055 | CT25: 0.0001836579942 | CU25: 0.0006597415759 | CV25: 0.001240367993 | CW25: 0.001583168424 | CX25: 0.004181080336 | CY25: 0.002486222218 | CZ25: 0.0007952820493 | DA25: 0.001323003055 | DB25: 0.0008192430811 | DC25: 0.002383740088 | DD25: 0.002432867586 | DE25: 0.005006346366 | DF25: 0.0006449796325 | DG25: 0.002839331775 | DH25: 0.003197255817 | DI25: 0.0002857092332 | DJ25: 0.001088512508 | DK25: 0.001298756062 | DL25: 5.235651044e-05 | DM25: 3.103916539e-05 | DN25: 7.015994368e-05 | DO25: 7.422376417e-05 | DP25: 6.190920926e-05 | DQ25: 8.852897951e-05 | DR25: 4.620161926e-05 | DS25: 9.405507737e-05 | DT25: 4.960141718e-05 | DU25: 7.416152077e-05 | DV25: 8.21410411e-05 | DW25: 9.909450785e-05 | DX25: 5.422717868e-05 | DY25: 4.217883827e-05 | DZ25: 4.180352344e-05 | EA25: 5.88314029e-05 | EB25: 2.172152622e-05 | EC25: 2.421586716e-05 | ED25: 7.556257965e-05 | EE25: 5.313302566e-06 | EF25: 6.551861101e-05 | EG25: 7.847445656e-05 | EH25: 1.192133877e-05 | EI25: 3.95374814e-05 | EJ25: 5.450805622e-05 | EK25: 9.854905205e-05 | EL25: 4.280570612e-05 | EM25: 9.707840237e-05 | EN25: 8.029912136e-05
A26: n774_244.0855_6.44 | B26: n774 | C26: 244.0855 | D26: 6.44 | G26: 19.044 | H26: 4.2513 | I26: 6.46E-10 | J26: =ROUND(H26,1) -> 4.3 | K26: B. rapa | L26: 1.132 | M26: 0.17883 | N26: 0.88172 | P26: 0.55046 | Q26: -0.86128 | R26: 0.99093 | U26: 0.0002222109146 | V26: 0.0004664933154 | W26: 0.001369527099 | X26: 6e-08 | Y26: 4.1958521e-06 | Z26: 5.571162995e-05 | AA26: 6e-08 | AB26: 6e-08 | AC26: 2.679792179e-05 | AD26: 0.00215425498 | AE26: 0.0008765215341 | AF26: 0.0015850275 | AG26: 6.553494355e-05 | AH26: 0.0005341910018 | AI26: 0.0003491684673 | AJ26: 0.0006050864643 | AK26: 0.0006300383183 | AL26: 0.0008663366337 | AM26: 0.00102041983 | AN26: 0.0003598050318 | AO26: 0.000516623652 | AP26: 0.0006725659256 | AQ26: 0.0005570182229 | AR26: 0.001148969498 | AS26: 0.003828522446 | AT26: 0.0009461401311 | AU26: 0.001478184349 | AV26: 0.001327763854 | AW26: 0.0008993218788 | AX26: 0.001196552096 | AY26: 0.0007038127192 | AZ26: 0.0009015846851 | BA26: 0.001927567 | BB26: 3.295339334e-05 | BC26: 6e-08 | BD26: 7.096554077e-05 | BE26: 0.0006551970348 | BF26: 6.440593471e-05 | BG26: 4.70683163e-05 | BH26: 7.783014497e-05 | BI26: 1.746612579e-05 | BJ26: 6e-08 | BK26: 1.87346256e-05 | BL26: 5.395361641e-05 | BM26: 6e-08 | BN26: 6e-08 | BO26: 8.019972982e-05 | BP26: 5.782309803e-06 | BQ26: 2.573993295e-05 | BR26: 4.715665096e-05 | BS26: 3.551203398e-05 | BT26: 6e-08 | BU26: 3.771453626e-05 | BV26: 6e-08 | BW26: 3.357716753e-05 | BX26: 6e-08 | BY26: 1.833800935e-05 | BZ26: 6.173891255e-05 | CA26: 0.00017112922 | CB26: 6e-08 | CC26: 4.18361952e-05 | CD26: 0.0001342093544 | CE26: 0.0005942644166 | CF26: 0.000902059722 | CG26: 0.0003964991323 | CH26: 5.259460827e-05 | CI26: 6e-08 | CJ26: 2.751360727e-05 | CK26: 4.904857745e-05 | CL26: 6e-08 | CM26: 1.637945888e-05 | CN26: 0.0001696796845 | CO26: 0.002838650439 | CP26: 0.0009673972594 | CQ26: 0.0004662202178 | CR26: 0.0007733459823 | CS26: 0.0004013065627 | CT26: 0.0002174087442 | CU26: 0.0008155286126 | CV26: 0.00063208633 | CW26: 0.0008333688181 | CX26: 0.001608791219 | CY26: 0.0006315866921 | CZ26: 0.001471929279 | DA26: 0.002883414254 | DB26: 0.001712707425 | DC26: 0.001639710165 | DD26: 0.001030059223 | DE26: 0.001732970293 | DF26: 0.0001507620172 | DG26: 0.0006631119062 | DH26: 0.001437520766 | DI26: 0.000175842579 | DJ26: 0.002477111326 | DK26: 0.003129367867 | DL26: 1.319582187e-05 | DM26: 1.199850019e-05 | DN26: 3.208799841e-05 | DO26: 5.348326211e-05 | DP26: 3.580952257e-05 | DQ26: 0.0002786244078 | DR26: 1.302172312e-05 | DS26: 3.74033157e-05 | DT26: 3.080594425e-05 | DU26: 7.883581472e-05 | DV26: 3.514850242e-05 | DW26: 4.571353937e-05 | DX26: 6e-08 | DY26: 1.26974036e-05 | DZ26: 1.662068581e-05 | EA26: 3.756187228e-05 | EB26: 2.394148701e-06 | EC26: 6e-08 | ED26: 3.108255284e-05 | EE26: 2.687853937e-06 | EF26: 1.64880611e-05 | EG26: 6e-08 | EH26: 6e-08 | EI26: 4.306067224e-05 | EJ26: 5.544097022e-05 | EK26: 6e-08 | EL26: 2.335100436e-05 | EM26: 6e-08 | EN26: 4.552179356e-05
A27: p1794_470.1664_3.4 | B27: p1794 | C27: 470.1664 | D27: 3.4 | G27: 18.279 | H27: 4.1921 | I27: 1.15E-10 | J27: =ROUND(H27,1) -> 4.2 | K27: B. rapa | L27: 2.1275 | M27: 1.0891 | N27: 0.069216 | P27: 1.1927 | Q27: 0.25418 | R27: 0.54628 | U27: 0.0001545435938 | V27: 0.0001631831797 | W27: 0.0005597605637 | X27: 4.380549683e-05 | Y27: 4.062743015e-05 | Z27: 0.001588630953 | AA27: 9.648947411e-05 | AB27: 0.0001005110399 | AC27: 0.0008186871557 | AD27: 0.0001584631169 | AE27: 0.0001031850685 | AF27: 0.002277875233 | AG27: 4.156615328e-05 | AH27: 0.0001571547652 | AI27: 0.005365464628 | AJ27: 0.0005655867705 | AK27: 0.000194582599 | AL27: 0.02218652605 | AM27: 0.0002065819298 | AN27: 0.0001682429069 | AO27: 0.0009560819412 | AP27: 0.0001256458738 | AQ27: 0.0003112281873 | AR27: 0.001784954441 | AS27: 0.000162290875 | AT27: 0.0001121914141 | AU27: 0.000853981117 | AV27: 0.0003930263025 | AW27: 0.0001521285767 | AX27: 0.005846896798 | AY27: 0.0001730112236 | AZ27: 0.0001593789529 | BA27: 0.0003815922921 | BB27: 6.842926785e-05 | BC27: 6.025261188e-05 | BD27: 0.0001084329184 | BE27: 0.0002642817473 | BF27: 0.0001557822072 | BG27: 0.0001630912787 | BH27: 0.0002217763227 | BI27: 0.0001182389291 | BJ27: 0.0001048404602 | BK27: 5.215528616e-05 | BL27: 8.23026191e-05 | BM27: 0.0001993739465 | BN27: 0.0001196744699 | BO27: 9.703485526e-05 | BP27: 1.376450319e-05 | BQ27: 6.549991336e-05 | BR27: 8.560325383e-05 | BS27: 0.0001098376005 | BT27: 9.348802805e-05 | BU27: 7.881845573e-05 | BV27: 5.520260164e-05 | BW27: 0.0001209417876 | BX27: 0.0002115375686 | BY27: 6.269904987e-05 | BZ27: 9.26102503e-05 | CA27: 4.956594791e-05 | CB27: 7.645580768e-05 | CC27: 0.0001644449154 | CD27: 8.592800461e-05 | CE27: 0.0005241260064 | CF27: 0.0008003414607 | CG27: 0.006558734927 | CH27: 0.0005047378349 | CI27: 0.0003723219415 | CJ27: 0.002086369883 | CK27: 0.0005343082798 | CL27: 0.0002885899545 | CM27: 0.001398742367 | CN27: 3.4696931e-05 | CO27: 0.0001761561386 | CP27: 0.001108121578 | CQ27: 0.0003695703621 | CR27: 0.002353479123 | CS27: 0.0068432082 | CT27: 0.0005027405699 | CU27: 0.001596148974 | CV27: 0.01890226357 | CW27: 0.0004120575349 | CX27: 0.000222016469 | CY27: 0.01937930285 | CZ27: 0.0002210950096 | DA27: 0.0009869052815 | DB27: 0.002584666908 | DC27: 0.0001707290785 | DD27: 0.009349051541 | DE27: 0.003527955222 | DF27: 0.0003010424887 | DG27: 0.006063267168 | DH27: 0.009342291727 | DI27: 2.67540442e-05 | DJ27: 0.000270710793 | DK27: 0.0009106597637 | DL27: 0.0001511199279 | DM27: 0.0001681288125 | DN27: 0.0002761423424 | DO27: 5.655143937e-05 | DP27: 8.749834909e-05 | DQ27: 0.0003995452628 | DR27: 9.020316141e-05 | DS27: 0.0001375730982 | DT27: 0.0002125775022 | DU27: 8.231113843e-05 | DV27: 0.0001023786889 | DW27: 7.296959214e-05 | DX27: 7.832814698e-05 | DY27: 5.706548708e-05 | DZ27: 7.220608594e-05 | EA27: 6.682085267e-05 | EB27: 4.687276711e-05 | EC27: 0.000150945572 | ED27: 0.0002420937018 | EE27: 5.120091564e-05 | EF27: 0.000113397596 | EG27: 0.0002103115436 | EH27: 6.141295733e-05 | EI27: 0.0001954281223 | EJ27: 0.000131642098 | EK27: 0.0001034156719 | EL27: 0.0001070142653 | EM27: 0.0001621026153 | EN27: 0.0001078644914
A28: p1610_349.0159_3.69 | B28: p1610 | C28: 349.0159 | D28: 3.69 | G28: 18.224 | H28: 4.1878 | I28: 1.44E-12 | J28: =ROUND(H28,1) -> 4.2 | K28: B. rapa | L28: 0.87138 | M28: -0.19863 | N28: 0.96636 | P28: 1.4575 | Q28: 0.54347 | R28: 0.98893 | U28: 0.003236324671 | V28: 0.006299912332 | W28: 0.01136767804 | X28: 2.486257928e-05 | Y28: 1.732640404e-05 | Z28: 8.148979507e-05 | AA28: 1.851251538e-05 | AB28: 4.314867874e-05 | AC28: 0.0001328161672 | AD28: 0.003404093221 | AE28: 0.004759645794 | AF28: 0.006112612977 | AG28: 0.002715438857 | AH28: 0.00348852459 | AI28: 0.003216781072 | AJ28: 0.002959182457 | AK28: 0.002686208742 | AL28: 0.002584155237 | AM28: 0.003395690471 | AN28: 0.0006660029866 | AO28: 0.0008941556228 | AP28: 0.005849242378 | AQ28: 0.009710783963 | AR28: 0.005745895265 | AS28: 0.0008829219164 | AT28: 0.0007642345832 | AU28: 0.001001467325 | AV28: 0.01237730525 | AW28: 0.00594510418 | AX28: 0.003437141625 | AY28: 0.0001283631659 | AZ28: 0.0001031275577 | BA28: 7.888212756e-05 | BB28: 0.0001256406229 | BC28: 6.287229066e-05 | BD28: 0.0001192762103 | BE28: 0.0002183197043 | BF28: 0.0001469643464 | BG28: 0.0002833710967 | BH28: 0.0003065201209 | BI28: 0.0001910741095 | BJ28: 0.0001358367701 | BK28: 6.128246123e-05 | BL28: 0.0002433679597 | BM28: 0.000151697568 | BN28: 9.519560106e-05 | BO28: 8.75889844e-05 | BP28: 3.102475322e-05 | BQ28: 0.0001975394212 | BR28: 0.0001032674173 | BS28: 0.0001600103316 | BT28: 4.646742223e-05 | BU28: 0.0001244002133 | BV28: 3.319876742e-05 | BW28: 8.299926599e-05 | BX28: 9.493393321e-05 | BY28: 6.163635411e-05 | BZ28: 0.0001326579261 | CA28: 0.000232707925 | CB28: 0.0001102573227 | CC28: 7.060406695e-05 | CD28: 0.0001129054014 | CE28: 0.005721078511 | CF28: 0.008123405831 | CG28: 0.006686587097 | CH28: 0.0001362653108 | CI28: 8.538583191e-05 | CJ28: 7.329363262e-05 | CK28: 0.0001174116921 | CL28: 0.000153101713 | CM28: 8.642922568e-05 | CN28: 0.001310999726 | CO28: 0.003832763687 | CP28: 0.004152218501 | CQ28: 0.003824917708 | CR28: 0.002825507285 | CS28: 0.002838059508 | CT28: 0.0009595666413 | CU28: 0.003536902419 | CV28: 0.001738363421 | CW28: 0.001580924916 | CX28: 0.001366573421 | CY28: 0.003112463557 | CZ28: 0.005986064886 | DA28: 0.01183828023 | DB28: 0.006796116505 | DC28: 0.0002431595966 | DD28: 0.0005580827242 | DE28: 0.0003204394598 | DF28: 0.001427222161 | DG28: 0.006664099548 | DH28: 0.004463423399 | DI28: 1.277805096e-05 | DJ28: 7.937070371e-05 | DK28: 8.417863362e-05 | DL28: 0.0001213719106 | DM28: 7.242471925e-05 | DN28: 5.306970099e-05 | DO28: 7.775822913e-05 | DP28: 0.0001477566461 | DQ28: 0.002318061437 | DR28: 5.830204335e-05 | DS28: 0.0001151121842 | DT28: 0.0001969884854 | DU28: 0.0001483230415 | DV28: 0.0002154714267 | DW28: 0.0001981890157 | DX28: 0.0001308338279 | DY28: 0.000211390413 | DZ28: 0.0001159097695 | EA28: 0.0001321890781 | EB28: 4.649168771e-05 | EC28: 0.0001767758303 | ED28: 5.355406131e-05 | EE28: 1.521536644e-05 | EF28: 9.701794322e-05 | EG28: 9.730832614e-05 | EH28: 5.093662931e-05 | EI28: 0.0001796131298 | EJ28: 9.256085019e-05 | EK28: 0.0001897981743 | EL28: 0.0001087264936 | EM28: 8.33408926e-05 | EN28: 6.831417787e-05
A29: n640_605.1189_4.3 | B29: n640 | C29: 605.1189 | D29: 4.3 | G29: 17.184 | H29: 4.103 | I29: 2.02E-11 | J29: =ROUND(H29,1) -> 4.1 | K29: B. rapa | L29: 0.83729 | M29: -0.2562 | N29: 0.98068 | P29: 0.73864 | Q29: -0.43706 | R29: 0.45846 | U29: 0.001229675988 | V29: 0.001871588459 | W29: 0.005341524832 | X29: 1.136664701e-05 | Y29: 5.035022521e-06 | Z29: 0.0001746185416 | AA29: 2.507306653e-06 | AB29: 3.248786781e-05 | AC29: 0.0001429222496 | AD29: 0.0003014486491 | AE29: 0.0001803736311 | AF29: 0.0002079125579 | AG29: 0.001157124532 | AH29: 0.001439859654 | AI29: 0.001201771643 | AJ29: 0.002214289386 | AK29: 0.001923789417 | AL29: 0.002080786267 | AM29: 0.004097685905 | AN29: 0.0001082172222 | AO29: 0.000308930507 | AP29: 0.002383750051 | AQ29: 0.002854277155 | AR29: 0.001323662577 | AS29: 0.003303486574 | AT29: 0.001715753548 | AU29: 0.002332806972 | AV29: 0.004584795322 | AW29: 0.001360522968 | AX29: 0.002957332008 | AY29: 0.0001477286083 | AZ29: 5.297268947e-05 | BA29: 9.604136278e-05 | BB29: 8.60003192e-05 | BC29: 8.994734554e-05 | BD29: 0.0002033435687 | BE29: 0.0001103206506 | BF29: 3.220296736e-05 | BG29: 0.0001181322448 | BH29: 0.000152777692 | BI29: 9.203304745e-05 | BJ29: 9.061488673e-05 | BK29: 2.72754108e-05 | BL29: 0.0001136879774 | BM29: 0.0001300496868 | BN29: 6.626177021e-05 | BO29: 0.0001687785359 | BP29: 1.301019706e-05 | BQ29: 3.129168319e-05 | BR29: 8.986456127e-05 | BS29: 9.992921189e-05 | BT29: 4.558799979e-05 | BU29: 0.0001443556388 | BV29: 4.712784282e-06 | BW29: 5.652156534e-05 | BX29: 0.0001275113573 | BY29: 1.281148598e-05 | BZ29: 4.490102731e-05 | CA29: 0.0001847109042 | CB29: 6.482449589e-05 | CC29: 4.398164111e-05 | CD29: 0.0001024871434 | CE29: 0.002889878179 | CF29: 0.001686891418 | CG29: 0.001691190177 | CH29: 5.060990607e-05 | CI29: 8.519639595e-05 | CJ29: 5.921406783e-05 | CK29: 0.0001716700211 | CL29: 8.697217971e-05 | CM29: 4.913837665e-05 | CN29: 4.976926915e-05 | CO29: 0.0003459149818 | CP29: 5.932724119e-05 | CQ29: 0.001109744431 | CR29: 0.001440917288 | CS29: 0.001453722889 | CT29: 0.001272653054 | CU29: 0.002069507523 | CV29: 0.003200151051 | CW29: 0.0010562035 | CX29: 0.002608404439 | CY29: 0.001307221812 | CZ29: 0.001925023155 | DA29: 0.00332314332 | DB29: 0.002307790263 | DC29: 0.0008376319284 | DD29: 0.001534882035 | DE29: 0.001650737959 | DF29: 0.0002946797389 | DG29: 0.002119610801 | DH29: 0.002612601844 | DI29: 1.061516881e-05 | DJ29: 4.372015871e-05 | DK29: 7.091095249e-05 | DL29: 8.907179764e-05 | DM29: 7.259092613e-05 | DN29: 9.56348188e-05 | DO29: 7.745851754e-05 | DP29: 4.376719425e-05 | DQ29: 6.41334954e-05 | DR29: 2.763794295e-05 | DS29: 7.404329843e-05 | DT29: 5.640525003e-05 | DU29: 5.557278743e-05 | DV29: 0.0001886919604 | DW29: 0.0001074268175 | DX29: 4.845911551e-05 | DY29: 0.0001374544326 | DZ29: 5.689388605e-05 | EA29: 4.460472334e-05 | EB29: 1.06938642e-05 | EC29: 5.330766978e-05 | ED29: 6.951189089e-05 | EE29: 7.574861096e-06 | EF29: 6.91230254e-05 | EG29: 3.061557379e-05 | EH29: 1.488714687e-05 | EI29: 6e-08 | EJ29: 7.276627341e-05 | EK29: 0.0001091069901 | EL29: 7.51018789e-05 | EM29: 6.346875682e-05 | EN29: 6.592811481e-05
A30: p1705_343.0899_6.44 | B30: p1705 | C30: 343.0899 | D30: 6.44 | G30: 16.555 | H30: 4.0492 | I30: 1.17E-19 | J30: =ROUND(H30,1) -> 4.0 | K30: B. rapa | L30: 1.3622 | M30: 0.44596 | N30: 0.65402 | P30: 0.79943 | Q30: -0.32296 | R30: 0.61869 | U30: 0.0004903350054 | V30: 0.0008671276412 | W30: 0.00150378919 | X30: 2.486257928e-05 | Y30: 1.613147962e-05 | Z30: 5.880706861e-05 | AA30: 2.215891993e-05 | AB30: 5.431657207e-05 | AC30: 8.923586234e-05 | AD30: 0.005637850411 | AE30: 0.001361104857 | AF30: 0.001686464343 | AG30: 0.0002929114864 | AH30: 0.00117477077 | AI30: 0.0003490214036 | AJ30: 0.001657521038 | AK30: 0.001082718943 | AL30: 0.001014790551 | AM30: 0.001609617537 | AN30: 0.0009756097561 | AO30: 0.0004304634333 | AP30: 0.001859070987 | AQ30: 0.001457430504 | AR30: 0.001393188854 | AS30: 0.004743658053 | AT30: 0.00276590714 | AU30: 0.001379175907 | AV30: 0.002849944573 | AW30: 0.002955928769 | AX30: 0.001284417183 | AY30: 0.002267749264 | AZ30: 0.002451102458 | BA30: 0.001257183908 | BB30: 9.310867593e-05 | BC30: 5.501325433e-05 | BD30: 7.138500463e-05 | BE30: 0.0008204224678 | BF30: 9.699646866e-05 | BG30: 0.000122318459 | BH30: 0.000104577453 | BI30: 0.0001655345008 | BJ30: 6.472758845e-05 | BK30: 8.344845785e-05 | BL30: 8.05326703e-05 | BM30: 0.0001372501806 | BN30: 6.119717211e-05 | BO30: 7.384953586e-05 | BP30: 1.66047975e-05 | BQ30: 9.876971062e-05 | BR30: 5.97863995e-05 | BS30: 0.0001532302328 | BT30: 5.531835979e-05 | BU30: 0.0001006597145 | BV30: 3.16546387e-05 | BW30: 3.91282254e-05 | BX30: 0.0001155717448 | BY30: 3.931974314e-05 | BZ30: 9.886769964e-05 | CA30: 0.0002612713526 | CB30: 0.0001086477267 | CC30: 2.144933679e-05 | CD30: 4.895897937e-05 | CE30: 0.001270870481 | CF30: 0.002725000686 | CG30: 0.001074121104 | CH30: 8.06468166e-05 | CI30: 9.233584148e-05 | CJ30: 4.997293133e-05 | CK30: 0.0001293230231 | CL30: 9.890641634e-05 | CM30: 6.967253907e-05 | CN30: 0.000532246386 | CO30: 0.005649031949 | CP30: 0.00200904847 | CQ30: 0.0008683548116 | CR30: 0.001589288369 | CS30: 0.000529781573 | CT30: 0.0006094106171 | CU30: 0.001574866988 | CV30: 0.001587424601 | CW30: 0.001807519169 | CX30: 0.003686024979 | CY30: 0.001856673266 | CZ30: 0.001960155756 | DA30: 0.007316237451 | DB30: 0.002644984805 | DC30: 0.004109138502 | DD30: 0.002235439993 | DE30: 0.004105370482 | DF30: 0.0004578029556 | DG30: 0.001527780269 | DH30: 0.002497888727 | DI30: 0.0007782631662 | DJ30: 0.003918219829 | DK30: 0.004670274322 | DL30: 5.592627251e-05 | DM30: 6.46649279e-05 | DN30: 7.19589166e-05 | DO30: 8.600531404e-05 | DP30: 8.172015622e-05 | DQ30: 0.0006197028566 | DR30: 1.925067469e-05 | DS30: 0.0001080931486 | DT30: 5.597874225e-05 | DU30: 5.949220897e-05 | DV30: 9.404553981e-05 | DW30: 5.315069057e-05 | DX30: 5.422717868e-05 | DY30: 8.931989282e-05 | DZ30: 5.22544043e-05 | EA30: 5.44735212e-05 | EB30: 2.210260563e-05 | EC30: 5.408210332e-05 | ED30: 8.289875243e-05 | EE30: 1.23172014e-05 | EF30: 9.575796993e-05 | EG30: 6.591854351e-05 | EH30: 3.28739948e-05 | EI30: 8.585281675e-05 | EJ30: 0.0001028453891 | EK30: 0.0001824982445 | EL30: 4.708627674e-05 | EM30: 6.868754884e-05 | EN30: 0.0001486132992
A31: p1906_291.1526_2.51 | B31: p1906 | C31: 291.1526 | D31: 2.51 | G31: 16.286 | H31: 4.0255 | I31: 1.95E-11 | J31: =ROUND(H31,1) -> 4.0 | K31: B. rapa | L31: 5.3305 | M31: 2.4143 | N31: 0.0044288 | O31: + | P31: 1.0872 | Q31: 0.12055 | R31: 0.80313 | U31: 8.863529646e-05 | V31: 0.0002291508481 | W31: 0.0001543123716 | X31: 5.011980268e-05 | Y31: 1.453824706e-05 | Z31: 0.0004763372557 | AA31: 8.218434859e-05 | AB31: 6.751499145e-05 | AC31: 0.0002552560713 | AD31: 0.0001107332624 | AE31: 5.065448815e-05 | AF31: 0.0005266099747 | AG31: 7.988495083e-05 | AH31: 8.869130314e-05 | AI31: 0.001277115983 | AJ31: 0.0006481245528 | AK31: 0.0002486781763 | AL31: 0.004676938207 | AM31: 0.0001118985453 | AN31: 5.774016924e-05 | AO31: 0.0003526779357 | AP31: 0.0001110075196 | AQ31: 8.361354285e-05 | AR31: 0.0002773172127 | AS31: 0.0001459128968 | AT31: 0.0001532912391 | AU31: 0.0002942529712 | AV31: 0.0002358157815 | AW31: 0.0002347414462 | AX31: 0.001445705809 | AY31: 0.0001971955882 | AZ31: 0.0001062526352 | BA31: 0.0001370576966 | BB31: 0.0001099355451 | BC31: 0.0001021674723 | BD31: 4.156595206e-05 | BE31: 0.0001585690484 | BF31: 0.0001293286249 | BG31: 0.0001039706902 | BH31: 0.0001298202865 | BI31: 7.283518034e-05 | BJ31: 6.563924463e-05 | BK31: 6.258634339e-05 | BL31: 8.23026191e-05 | BM31: 8.090536961e-05 | BN31: 7.343660653e-05 | BO31: 6.096880286e-05 | BP31: 1.289056648e-05 | BQ31: 5.926182637e-05 | BR31: 3.736649969e-05 | BS31: 9.085332386e-05 | BT31: 4.923334022e-05 | BU31: 8.926427516e-05 | BV31: 3.898925011e-05 | BW31: 5.80994862e-05 | BX31: 7.945557453e-05 | BY31: 4.30391783e-05 | BZ31: 6.507747318e-05 | CA31: 7.896947634e-05 | CB31: 4.909267651e-05 | CC31: 4.557984069e-05 | CD31: 6.794307341e-05 | CE31: 0.0006397579294 | CF31: 0.0009047338252 | CG31: 0.007575851878 | CH31: 0.0004018436207 | CI31: 0.0004616792074 | CJ31: 0.001535001874 | CK31: 0.0005870584603 | CL31: 0.0003156876028 | CM31: 0.0004594859855 | CN31: 3.242915773e-05 | CO31: 8.206031303e-05 | CP31: 0.00059105984 | CQ31: 0.0002448742497 | CR31: 0.001939502812 | CS31: 0.004687193413 | CT31: 0.0003858673009 | CU31: 0.001351406131 | CV31: 0.01698113069 | CW31: 0.0003148388788 | CX31: 0.000222016469 | CY31: 0.009468592642 | CZ31: 0.0001330969958 | DA31: 0.0006156700131 | DB31: 0.0009812911631 | DC31: 0.0002884286704 | DD31: 0.003763560655 | DE31: 0.00129112133 | DF31: 0.0002651669589 | DG31: 0.009124144807 | DH31: 0.003685768948 | DI31: 2.875061466e-05 | DJ31: 9.212670966e-05 | DK31: 0.0002186458016 | DL31: 6.306579666e-05 | DM31: 8.70821029e-05 | DN31: 0.0001043404291 | DO31: 9.425239895e-05 | DP31: 9.822927869e-05 | DQ31: 0.000172398539 | DR31: 4.565159998e-05 | DS31: 0.0001038817272 | DT31: 0.0001388839681 | DU31: 4.074808833e-05 | DV31: 7.023654239e-05 | DW31: 7.567216963e-05 | DX31: 4.992343434e-05 | DY31: 5.607304382e-05 | DZ31: 0.0001073590488 | EA31: 4.06735625e-05 | EB31: 2.972419378e-05 | EC31: 8.152675277e-05 | ED31: 6.602555503e-05 | EE31: 2.656651283e-05 | EF31: 8.189826376e-05 | EG31: 0.0001653195218 | EH31: 2.745520445e-05 | EI31: 0.0001242606558 | EJ31: 9.15323963e-05 | EK31: 6.934933293e-05 | EL31: 3.852513551e-05 | EM31: 7.784588869e-05 | EN31: 9.707804224e-05
A32: n555_334.1161_6.38 | B32: n555 | C32: 334.1161 | D32: 6.38 | F32: Polynitrogen heterocycle conjugated to homoleucine | G32: 16.233 | H32: 4.0208 | I32: 1.08E-21 | J32: =ROUND(H32,1) -> 4.0 | K32: B. rapa | L32: 0.7729 | M32: -0.37165 | N32: 0.94783 | P32: 0.13884 | Q32: -2.8485 | R32: 0.84411 | U32: 0.00171854 | V32: 0.002230097211 | W32: 0.004987145852 | X32: 6.353357434e-05 | Y32: 9.530578343e-06 | Z32: 0.0003783401735 | AA32: 5.173807378e-06 | AB32: 3.779838467e-05 | AC32: 0.0001824810865 | AD32: 0.004041722654 | AE32: 0.0009761396506 | AF32: 0.0009572131098 | AG32: 0.0006585643573 | AH32: 0.001161507255 | AI32: 0.001514066716 | AJ32: 0.001024558567 | AK32: 0.0004768738306 | AL32: 0.0005883723494 | AM32: 0.006055824873 | AN32: 0.001934813648 | AO32: 0.002601904574 | AP32: 0.002431527958 | AQ32: 0.001619518128 | AR32: 0.0008852036639 | AS32: 0.004016035257 | AT32: 0.001763652565 | AU32: 0.002810063762 | AV32: 0.00684823169 | AW32: 0.001547999794 | AX32: 0.003087039553 | AY32: 0.002394884918 | AZ32: 0.001476417038 | BA32: 0.002102800364 | BB32: 4.902821936e-05 | BC32: 3.584367905e-05 | BD32: 7.505970658e-05 | BE32: 0.004478749341 | BF32: 6e-08 | BG32: 7.014102037e-05 | BH32: 4.035637147e-05 | BI32: 2.955805903e-05 | BJ32: 6.15716538e-05 | BK32: 1.54285152e-05 | BL32: 6e-08 | BM32: 6e-08 | BN32: 6e-08 | BO32: 4.548641393e-05 | BP32: 5.46107037e-06 | BQ32: 3.028227405e-05 | BR32: 3.381042899e-05 | BS32: 6e-08 | BT32: 9.715475364e-06 | BU32: 6e-08 | BV32: 2.330497722e-06 | BW32: 6e-08 | BX32: 1.931990263e-05 | BY32: 1.230907477e-05 | BZ32: 2.0345778e-05 | CA32: 0.0001584529815 | CB32: 6e-08 | CC32: 2.252718203e-05 | CD32: 5.856408192e-05 | CE32: 0.005259343617 | CF32: 0.00198095494 | CG32: 0.002809884157 | CH32: 0.0005358695937 | CI32: 0.0002561571638 | CJ32: 0.0003594712602 | CK32: 0.0003084897371 | CL32: 0.0001512559647 | CM32: 5.807262695e-05 | CN32: 3.885269371e-05 | CO32: 0.002750445953 | CP32: 0.001245266685 | CQ32: 0.002037720377 | CR32: 0.001882228854 | CS32: 0.00157786444 | CT32: 0.0001941793867 | CU32: 0.0008647367797 | CV32: 0.000573876863 | CW32: 0.001159809293 | CX32: 0.004369077436 | CY32: 0.001426491402 | CZ32: 0.001319229132 | DA32: 0.001297368579 | DB32: 0.001059222862 | DC32: 0.001039537755 | DD32: 0.0009837148338 | DE32: 0.00267346454 | DF32: 0.0005404180766 | DG32: 0.004299077721 | DH32: 0.003349791981 | DI32: 0.000131612709 | DJ32: 0.0007100882445 | DK32: 0.00113035435 | DL32: 6e-08 | DM32: 4.49943757e-05 | DN32: 2.265035182e-05 | DO32: 1.936462938e-05 | DP32: 1.307331776e-05 | DQ32: 6e-08 | DR32: 9.832729702e-06 | DS32: 3.282331786e-05 | DT32: 6e-08 | DU32: 1.938585608e-05 | DV32: 8.602133488e-05 | DW32: 3.809461614e-05 | DX32: 4.307476934e-05 | DY32: 8.747100256e-05 | DZ32: 3.83554288e-05 | EA32: 2.253712337e-05 | EB32: 9.257374976e-06 | EC32: 3.280471986e-05 | ED32: 2.373576762e-05 | EE32: 1.661582434e-06 | EF32: 6e-08 | EG32: 2.810610053e-05 | EH32: 5.991168861e-06 | EI32: 3.954551532e-05 | EJ32: 5.659599043e-05 | EK32: 6e-08 | EL32: 2.461322082e-05 | EM32: 1.478883654e-05 | EN32: 1.726688721e-05
A33: n155_461.1303_2.91 | B33: n155 | C33: 461.1303 | D33: 2.91 | G33: 16.2 | H33: 4.018 | I33: 1.58E-16 | J33: =ROUND(H33,1) -> 4.0 | K33: B. rapa | L33: 1.0067 | M33: 0.0096187 | N33: 0.8618 | P33: 0.81107 | Q33: -0.30211 | R33: 0.82591 | U33: 4.346184064e-05 | V33: 0.0001105761933 | W33: 0.0008601073157 | X33: 0.001549214163 | Y33: 0.000835214331 | Z33: 0.0111331793 | AA33: 0.0006987027872 | AB33: 0.006747480238 | AC33: 0.02270039194 | AD33: 0.009696773269 | AE33: 0.003369332272 | AF33: 0.005717187671 | AG33: 0.001460563685 | AH33: 0.005317349512 | AI33: 0.008349189968 | AJ33: 0.0008234082021 | AK33: 0.0009179006534 | AL33: 0.001224095082 | AM33: 0.01660683253 | AN33: 0.009878784895 | AO33: 0.01274651447 | AP33: 0.01084926018 | AQ33: 0.008475289943 | AR33: 0.008059358163 | AS33: 0.02067532564 | AT33: 0.006638050272 | AU33: 0.009085031996 | AV33: 0.0005034809245 | AW33: 0.001060883981 | AX33: 0.002436880487 | AY33: 0.007811600556 | AZ33: 0.004491664481 | BA33: 0.009742301045 | BB33: 0.0003142628487 | BC33: 0.0002475242742 | BD33: 0.0006332309792 | BE33: 0.001915812274 | BF33: 0.0006522564661 | BG33: 0.001348368826 | BH33: 0.0002421382288 | BI33: 0.0001000943363 | BJ33: 0.0003357397726 | BK33: 0.0001881727836 | BL33: 0.0007177757897 | BM33: 0.0002036436955 | BN33: 0.0001924472283 | BO33: 0.0002358111459 | BP33: 3.493478839e-05 | BQ33: 9.690327697e-05 | BR33: 0.0003692454745 | BS33: 0.000853940538 | BT33: 0.000485026424 | BU33: 0.00186231779 | BV33: 1.020240114e-05 | BW33: 7.442938802e-05 | BX33: 0.0003104064356 | BY33: 1.482113084e-05 | BZ33: 5.402154848e-05 | CA33: 0.0002363213038 | CB33: 0.0002389096341 | CC33: 0.0006339792658 | CD33: 5.612391184e-05 | CE33: 0.0001276874763 | CF33: 0.0003450610243 | CG33: 0.0001267718314 | CH33: 0.01770751302 | CI33: 0.01195362233 | CJ33: 0.01174711406 | CK33: 0.02930781578 | CL33: 0.01489556136 | CM33: 0.01280923319 | CN33: 0.0006107265239 | CO33: 0.00864710755 | CP33: 0.005210505765 | CQ33: 0.004521889663 | CR33: 0.006383606826 | CS33: 0.005343153666 | CT33: 0.0003881332457 | CU33: 0.0008166344141 | CV33: 0.0005704527767 | CW33: 0.005630070348 | CX33: 0.007784766541 | CY33: 0.00927930963 | CZ33: 0.009570043593 | DA33: 0.01283102559 | DB33: 0.009613538662 | DC33: 0.004356795042 | DD33: 0.005046572959 | DE33: 0.007908313994 | DF33: 4.866012869e-05 | DG33: 0.0002464663722 | DH33: 0.0003848132513 | DI33: 0.0006450638091 | DJ33: 0.0017998132 | DK33: 0.005366439583 | DL33: 0.0004098952169 | DM33: 0.0002789651294 | DN33: 0.0002088865779 | DO33: 0.001207061898 | DP33: 0.0005320271925 | DQ33: 0.001396685011 | DR33: 6.643736285e-05 | DS33: 0.0001809099147 | DT33: 0.0002924395271 | DU33: 0.0003198666253 | DV33: 0.0001970166057 | DW33: 0.0002986617906 | DX33: 0.0001958555918 | DY33: 0.0002325841865 | DZ33: 0.0001777134868 | EA33: 3.89704425e-05 | EB33: 0.0001749324651 | EC33: 0.0009970291644 | ED33: 0.0006380400392 | EE33: 6.255369163e-06 | EF33: 8.687939889e-05 | EG33: 6.323872619e-05 | EH33: 1.706575373e-05 | EI33: 5.184856453e-05 | EJ33: 0.0001397574458 | EK33: 0.0008584774802 | EL33: 0.0006494103646 | EM33: 0.000492961218 | EN33: 5.72946712e-05
A34: n666_167.0349_3.65 | B34: n666 | C34: 167.0349 | D34: 3.65 | G34: 16.093 | H34: 4.0083 | I34: 2.94E-28 | J34: =ROUND(H34,1) -> 4.0 | K34: B. rapa | L34: 0.67086 | M34: -0.57592 | N34: 0.70927 | P34: 0.74485 | Q34: -0.42497 | R34: 0.56542 | U34: 0.005323912089 | V34: 0.007097609407 | W34: 0.03322672081 | X34: 0.0002311617055 | Y34: 0.0001472744087 | Z34: 0.002487066943 | AA34: 0.0001038741328 | AB34: 0.001063977671 | AC34: 0.003791267888 | AD34: 0.009167400032 | AE34: 0.00655888037 | AF34: 0.006772241985 | AG34: 0.0008113967916 | AH34: 0.00179394028 | AI34: 0.002186065512 | AJ34: 0.003996023718 | AK34: 0.003931221851 | AL34: 0.00533217922 | AM34: 0.006023811702 | AN34: 0.001132489784 | AO34: 0.002042489873 | AP34: 0.001581816254 | AQ34: 0.002863454895 | AR34: 0.002676325586 | AS34: 0.00395081341 | AT34: 0.00259031425 | AU34: 0.004542515998 | AV34: 0.0128053467 | AW34: 0.003726051296 | AX34: 0.004996983141 | AY34: 0.002436921514 | AZ34: 0.002416288915 | BA34: 0.006749854373 | BB34: 0.0001752156036 | BC34: 0.0002495531617 | BD34: 0.0005022176731 | BE34: 0.002218521377 | BF34: 0.0001534032263 | BG34: 0.0002214979591 | BH34: 0.0003156444768 | BI34: 0.0002404951167 | BJ34: 0.0003438718779 | BK34: 0.0001642034832 | BL34: 0.0002957814328 | BM34: 0.0002853028012 | BN34: 0.0002212566936 | BO34: 0.0003136168539 | BP34: 1.325112663e-05 | BQ34: 9.690327697e-05 | BR34: 0.0001405802048 | BS34: 0.0001775601699 | BT34: 7.996583569e-05 | BU34: 0.0002679032576 | BV34: 1.320615376e-05 | BW34: 0.0001382260063 | BX34: 0.0001970630068 | BY34: 3.441516823e-05 | BZ34: 0.0001725883237 | CA34: 0.0002408485319 | CB34: 0.0001714712472 | CC34: 0.0005191979097 | CD34: 0.0001183482489 | CE34: 0.01107706112 | CF34: 0.01185725052 | CG34: 0.01248432812 | CH34: 0.001990656306 | CI34: 0.001885112254 | CJ34: 0.001438483163 | CK34: 0.003814172273 | CL34: 0.001755199424 | CM34: 0.002287168077 | CN34: 0.0003164087733 | CO34: 0.005681135855 | CP34: 0.004306673407 | CQ34: 0.001455423443 | CR34: 0.002133005902 | CS34: 0.001287018522 | CT34: 0.001631467693 | CU34: 0.003653568185 | CV34: 0.003748689676 | CW34: 0.001066481852 | CX34: 0.001865504441 | CY34: 0.001729409054 | CZ34: 0.003042320947 | DA34: 0.002045915003 | DB34: 0.001292215006 | DC34: 0.0009893059342 | DD34: 0.00248218342 | DE34: 0.001247494959 | DF34: 0.0005541066677 | DG34: 0.003437619068 | DH34: 0.00420861849 | DI34: 0.0003928381676 | DJ34: 0.00164096329 | DK34: 0.004888634832 | DL34: 0.0001740199009 | DM34: 0.000193775778 | DN34: 0.0001434522282 | DO34: 0.0002379083039 | DP34: 0.0001529009773 | DQ34: 0.001747994047 | DR34: 6.377986834e-05 | DS34: 0.0002038099039 | DT34: 0.0001353726001 | DU34: 0.0002546009098 | DV34: 0.0002719384135 | DW34: 0.0001523784646 | DX34: 0.0001103790964 | DY34: 3.708448035e-05 | DZ34: 0.0001208196007 | EA34: 9.484372752e-05 | EB34: 2.904900423e-05 | EC34: 0.0001335620737 | ED34: 0.0001361980952 | EE34: 7.281640666e-06 | EF34: 0.0002213205125 | EG34: 9.184672137e-05 | EH34: 2.650638345e-05 | EI34: 0.0001713638997 | EJ34: 0.0003372659022 | EK34: 0.000209756074 | EL34: 0.0001748169786 | EM34: 0.0001928710766 | EN34: 0.0001930751934
A35: n472_589.1237_5.07 | B35: n472 | C35: 589.1237 | D35: 5.07 | G35: 16.012 | H35: 4.0011 | I35: 7.24E-06 | J35: =ROUND(H35,1) -> 4.0 | K35: B. rapa | L35: 0.70616 | M35: -0.50194 | N35: 0.98205 | P35: 0.5377 | Q35: -0.89513 | R35: 0.63073 | U35: 0.000243124883 | V35: 0.000345550604 | W35: 0.00133630407 | X35: 6.939637122e-06 | Y35: 4.315733589e-06 | Z35: 0.0001080971924 | AA35: 2.10932147e-06 | AB35: 3.342501784e-05 | AC35: 0.0001020873211 | AD35: 0.0009957258513 | AE35: 0.001252005204 | AF35: 0.001170833071 | AG35: 1.459079875e-05 | AH35: 5.116772048e-05 | AI35: 0.0009662334312 | AJ35: 8.095075671e-05 | AK35: 5.594305757e-05 | AL35: 0.0001587114683 | AM35: 7.469739931e-05 | AN35: 4.893899857e-05 | AO35: 5.844631214e-05 | AP35: 0.0001139319328 | AQ35: 8.048172041e-05 | AR35: 6.490572887e-05 | AS35: 0.01280630975 | AT35: 0.005013789227 | AU35: 0.00383419831 | AV35: 0.00498802562 | AW35: 0.001707537309 | AX35: 0.002757095987 | AY35: 7.326378135e-05 | AZ35: 4.720338666e-05 | BA35: 0.0001415346399 | BB35: 6.831801058e-05 | BC35: 4.869329984e-05 | BD35: 0.0002401910611 | BE35: 0.000139918874 | BF35: 3.747254383e-05 | BG35: 7.937010199e-05 | BH35: 8.647793886e-05 | BI35: 3.291692938e-05 | BJ35: 0.0001161729317 | BK35: 1.34999508e-05 | BL35: 8.285733948e-05 | BM35: 0.0001663426226 | BN35: 4.551895519e-05 | BO35: 0.0001065339695 | BP35: 3.381045038e-05 | BQ35: 6e-08 | BR35: 4.715665096e-05 | BS35: 6.028787164e-05 | BT35: 3.81145572e-05 | BU35: 6.892656627e-05 | BV35: 6.318238268e-06 | BW35: 3.749450374e-05 | BX35: 9.01595456e-05 | BY35: 2.059885981e-05 | BZ35: 4.0691556e-05 | CA35: 0.0004219376536 | CB35: 3.398058252e-05 | CC35: 0.000115854079 | CD35: 7.93055276e-05 | CE35: 0.0008537805846 | CF35: 0.0004768597649 | CG35: 0.0004295407267 | CH35: 6.648752367e-05 | CI35: 5.225378952e-05 | CJ35: 2.870985107e-05 | CK35: 0.000101969411 | CL35: 7.562798235e-05 | CM35: 4.566394597e-05 | CN35: 9.42951438e-05 | CO35: 0.002211248099 | CP35: 3.753356075e-05 | CQ35: 0.0006180128468 | CR35: 3.642571656e-05 | CS35: 3.597571458e-05 | CT35: 3.315257822e-05 | CU35: 6.026618222e-05 | CV35: 6.711209138e-05 | CW35: 0.001285616327 | CX35: 0.002950138439 | CY35: 5.150277747e-05 | CZ35: 5.006562173e-05 | DA35: 7.133009651e-05 | DB35: 5.040990985e-05 | DC35: 0.003338132849 | DD35: 0.004401061822 | DE35: 0.004212122873 | DF35: 0.0003650916014 | DG35: 0.002518651594 | DH35: 0.002653147302 | DI35: 6.692171643e-06 | DJ35: 3.351878835e-05 | DK35: 4.30530783e-05 | DL35: 4.618537656e-05 | DM35: 2.279715036e-05 | DN35: 3.523388061e-05 | DO35: 7.838064275e-05 | DP35: 2.785185089e-05 | DQ35: 3.420453088e-05 | DR35: 2.258870337e-05 | DS35: 5.037997625e-05 | DT35: 2.126044039e-05 | DU35: 4.135649297e-05 | DV35: 9.897078314e-05 | DW35: 8.457004784e-05 | DX35: 5.518954821e-05 | DY35: 1.733296364e-05 | DZ35: 7.095754328e-05 | EA35: 2.957997442e-05 | EB35: 4.149857748e-06 | EC35: 3.866270555e-05 | ED35: 5.538345778e-05 | EE35: 2.590113794e-06 | EF35: 2.473209166e-05 | EG35: 4.366483475e-05 | EH35: 1.216388829e-05 | EI35: 6.766677066e-05 | EJ35: 6.121607128e-05 | EK35: 6.005113408e-05 | EL35: 5.869306502e-05 | EM35: 5.237712942e-05 | EN35: 5.023094462e-05
A36: p2028_295.057_17.15 | B36: p2028 | C36: 295.057 | D36: 17.15 | G36: 15.829 | H36: 3.9845 | I36: 1.35E-23 | J36: =ROUND(H36,1) -> 4.0 | K36: B. rapa | L36: 0.70321 | M36: -0.50796 | N36: 0.78451 | P36: 0.53147 | Q36: -0.91195 | R36: 0.98091 | U36: 0.000977829136 | V36: 0.0004192418926 | W36: 0.000596069357 | X36: 0.0001771952079 | Y36: 0.0001595224096 | Z36: 0.007644078818 | AA36: 0.0009031863565 | AB36: 0.002349826281 | AC36: 0.004832225708 | AD36: 0.0006548536034 | AE36: 0.0003142454357 | AF36: 0.001510927684 | AG36: 0.00164511041 | AH36: 0.0009608224507 | AI36: 0.0004890243395 | AJ36: 0.008762535708 | AK36: 0.004027294621 | AL36: 0.001428718276 | AM36: 0.02221616504 | AN36: 0.0008481831757 | AO36: 0.002681711669 | AP36: 0.005256389032 | AQ36: 0.0001869691722 | AR36: 0.0004240458967 | AS36: 0.008340857632 | AT36: 0.004795349848 | AU36: 0.001682781662 | AV36: 0.002350095737 | AW36: 0.0005178416452 | AX36: 0.0008145443833 | AY36: 0.001789642979 | AZ36: 0.001787544334 | BA36: 0.0006280989407 | BB36: 5.608956382e-05 | BC36: 7.466084516e-05 | BD36: 0.0001138545643 | BE36: 0.001861462742 | BF36: 4.702859086e-05 | BG36: 8.562292131e-05 | BH36: 0.0001568661795 | BI36: 8.229429467e-05 | BJ36: 5.014108965e-05 | BK36: 4.628781646e-05 | BL36: 3.628395036e-05 | BM36: 0.000151697568 | BN36: 5.711736063e-05 | BO36: 5.66752252e-05 | BP36: 3.430201588e-05 | BQ36: 5.406342055e-05 | BR36: 2.581685433e-05 | BS36: 0.0005641042198 | BT36: 0.0001272322275 | BU36: 0.0004168831574 | BV36: 0.0001779608346 | BW36: 3e-07 | BX36: 8.048746511e-05 | BY36: 2.603604613e-05 | BZ36: 8.885578069e-05 | CA36: 8.821058527e-05 | CB36: 0.0001078429287 | CC36: 6.077312092e-05 | CD36: 0.000962193819 | CE36: 0.0002766520776 | CF36: 0.000275979814 | CG36: 0.0004706914313 | CH36: 0.001526727666 | CI36: 0.0008052082521 | CJ36: 0.0006321575813 | CK36: 0.01270428541 | CL36: 0.005193264299 | CM36: 0.001561017647 | CN36: 0.000102730129 | CO36: 0.0008293562303 | CP36: 0.0004199392291 | CQ36: 0.001376175211 | CR36: 0.001589288369 | CS36: 0.0007079451539 | CT36: 0.002699215975 | CU36: 0.003567188322 | CV36: 0.001968365433 | CW36: 0.006118792651 | CX36: 0.002364958039 | CY36: 0.002357225322 | CZ36: 0.001455267153 | DA36: 0.003964426015 | DB36: 0.0003853143283 | DC36: 0.005756286088 | DD36: 0.0003777551587 | DE36: 0.001452381448 | DF36: 0.0003460168846 | DG36: 0.00118659964 | DH36: 0.0004196202541 | DI36: 0.0003112653351 | DJ36: 0.0009177237616 | DK36: 0.0006974801071 | DL36: 0.0001261315933 | DM36: 7.673571444e-05 | DN36: 4.497432287e-05 | DO36: 9.543055393e-05 | DP36: 6.108375314e-05 | DQ36: 7.571557458e-05 | DR36: 3.5751253e-05 | DS36: 0.00011230457 | DT36: 4.180690877e-05 | DU36: 5.460243837e-05 | DV36: 8.21410411e-05 | DW36: 6.756443717e-05 | DX36: 7.918889585e-05 | DY36: 6.897480612e-05 | DZ36: 3.895328321e-05 | EA36: 3.776830803e-05 | EB36: 4.344305245e-05 | EC36: 0.0002897832103 | ED36: 0.0004592444161 | EE36: 1.400779767e-05 | EF36: 0.0001070977295 | EG36: 0.0001297444349 | EH36: 2.781645714e-05 | EI36: 7.681567814e-05 | EJ36: 4.52519712e-05 | EK36: 0.000199531414 | EL36: 0.0002294385848 | EM36: 0.000119974252 | EN36: 0.0001833696353
A37: n805_324.1108_6.77 | B37: n805 | C37: 324.1108 | D37: 6.77 | G37: 15.766 | H37: 3.9787 | I37: 1.09E-16 | J37: =ROUND(H37,1) -> 4.0 | K37: B. rapa | L37: 0.94356 | M37: -0.083807 | N37: 0.70032 | P37: 0.36737 | Q37: -1.4447 | R37: 0.46572 | U37: 0.0002088129035 | V37: 0.0004137968483 | W37: 0.001107434312 | X37: 0.0001116324385 | Y37: 2.217807539e-05 | Z37: 0.0004240736011 | AA37: 4.178844421e-06 | AB37: 3.03011844e-05 | AC37: 0.0001135721447 | AD37: 0.000324556211 | AE37: 6e-08 | AF37: 0.0001059946374 | AG37: 0.0001303279821 | AH37: 0.0003095647089 | AI37: 0.0003830317885 | AJ37: 0.0002444876389 | AK37: 0.000232462414 | AL37: 0.0001683569167 | AM37: 0.001080444526 | AN37: 0.000480429324 | AO37: 0.0006084678568 | AP37: 0.0003741377663 | AQ37: 0.0002555647613 | AR37: 0.0002603134019 | AS37: 0.002943135866 | AT37: 0.0006985721787 | AU37: 0.001312708421 | AV37: 0.001009189641 | AW37: 0.0003170504417 | AX37: 0.001034417665 | AY37: 0.0002510185296 | AZ37: 0.0002811223916 | BA37: 0.0003521516635 | BB37: 6e-08 | BC37: 3.449108739e-05 | BD37: 6.82360969e-05 | BE37: 0.000495097554 | BF37: 3.161745886e-05 | BG37: 7.844719383e-05 | BH37: 3.02672786e-05 | BI37: 1.410725545e-05 | BJ37: 6e-08 | BK37: 1.1020368e-05 | BL37: 4.04652123e-05 | BM37: 6e-08 | BN37: 3.341897976e-05 | BO37: 2.872826143e-05 | BP37: 6e-08 | BQ37: 2.674934208e-05 | BR37: 6e-08 | BS37: 2.642756017e-05 | BT37: 1.457321305e-05 | BU37: 3.511353376e-05 | BV37: 1.709031663e-06 | BW37: 1.119238918e-05 | BX37: 8.629556507e-05 | BY37: 1.155545794e-05 | BZ37: 6e-08 | CA37: 4.889406286e-05 | CB37: 6e-08 | CC37: 6.75815461e-05 | CD37: 3.904272128e-05 | CE37: 0.000843427546 | CF37: 0.0004987158375 | CG37: 0.0006608318872 | CH37: 0.0009020471494 | CI37: 0.0004969789764 | CJ37: 0.00060529936 | CK37: 0.0005588956326 | CL37: 0.0002344467453 | CM37: 6.89922662e-05 | CN37: 1.813698755e-05 | CO37: 0.0003006622459 | CP37: 0.0001906947038 | CQ37: 0.0003093253155 | CR37: 0.000377566562 | CS37: 0.0002746315113 | CT37: 3.089730079e-05 | CU37: 0.0001371193871 | CV37: 0.0002800902589 | CW37: 0.0002635369573 | CX37: 0.0007107076653 | CY37: 0.0006214216703 | CZ37: 0.0002545002438 | DA37: 0.0002416831505 | DB37: 0.0003799185889 | DC37: 0.0005003611286 | DD37: 0.0007955786822 | DE37: 0.001750025888 | DF37: 0.0001101650312 | DG37: 0.0008896262388 | DH37: 0.0008433455163 | DI37: 2.799943078e-05 | DJ37: 0.0002353601877 | DK37: 0.0003005273701 | DL37: 6e-08 | DM37: 6e-08 | DN37: 1.006682303e-05 | DO37: 5.440538732e-05 | DP37: 3.126228161e-05 | DQ37: 2.13778318e-05 | DR37: 6.377986834e-06 | DS37: 1.373999352e-05 | DT37: 1.561991539e-05 | DU37: 1.680107527e-05 | DV37: 6e-08 | DW37: 6e-08 | DX37: 3.499825009e-05 | DY37: 1.471286449e-05 | DZ37: 6e-08 | EA37: 2.535426379e-05 | EB37: 2.713368527e-06 | EC37: 2.167454705e-05 | ED37: 3.051741551e-05 | EE37: 2.883334223e-06 | EF37: 2.726871644e-05 | EG37: 6e-08 | EH37: 6e-08 | EI37: 4.745461838e-05 | EJ37: 6.468113192e-05 | EK37: 6e-08 | EL37: 1.135994807e-05 | EM37: 6e-08 | EN37: 6e-08
A38: p2290_554.2232_4.41 | B38: p2290 | C38: 554.2232 | D38: 4.41 | G38: 15.116 | H38: 3.918 | I38: 6.90E-12 | J38: =ROUND(H38,1) -> 3.9 | K38: B. rapa | L38: 0.72521 | M38: -0.46353 | N38: 0.38917 | P38: 0.88365 | Q38: -0.17846 | R38: 0.71841 | U38: 0.00012556667 | V38: 0.0003324423289 | W38: 0.001476557595 | X38: 0.007732262156 | Y38: 0.007167754111 | Z38: 0.009812379448 | AA38: 0.004886462583 | AB38: 0.008155100283 | AC38: 0.02360392322 | AD38: 0.004482787933 | AE38: 0.0195826499 | AF38: 0.003370467891 | AG38: 0.0004195583596 | AH38: 0.0004356765768 | AI38: 0.0004134358999 | AJ38: 0.000652183788 | AK38: 0.007699334705 | AL38: 0.001428718276 | AM38: 0.0004863282931 | AN38: 0.01857740169 | AO38: 0.0001004414678 | AP38: 0.005577212962 | AQ38: 0.01738348782 | AR38: 0.003801740202 | AS38: 0.00162290875 | AT38: 0.008872008163 | AU38: 0.002404384914 | AV38: 0.0009634183211 | AW38: 0.002270846436 | AX38: 0.0002364093554 | AY38: 0.0006604191868 | AZ38: 0.0003937597659 | BA38: 0.0009909567275 | BB38: 0.0002366979593 | BC38: 0.0002239825355 | BD38: 0.0001978900761 | BE38: 0.0007537775054 | BF38: 0.0005481770123 | BG38: 0.0007685676508 | BH38: 0.0002325946799 | BI38: 0.000205262781 | BJ38: 0.0002953766008 | BK38: 0.0001453828602 | BL38: 0.0001150466719 | BM38: 0.0003525162533 | BN38: 0.0004256603304 | BO38: 0.0001975045727 | BP38: 3.561292095e-05 | BQ38: 0.0003233408421 | BR38: 0.0002513746343 | BS38: 0.0004881671133 | BT38: 0.000375611663 | BU38: 0.000497600853 | BV38: 7.218801752e-05 | BW38: 0.000361639659 | BX38: 0.0002507494105 | BY38: 0.0001817209751 | BZ38: 0.0006082240763 | CA38: 0.0001041725007 | CB38: 0.0001400348478 | CC38: 0.0002547108744 | CD38: 0.0002018308945 | CE38: 0.0002031663695 | CF38: 0.000898734264 | CG38: 0.0002679195171 | CH38: 0.00357765964 | CI38: 0.01771358869 | CJ38: 0.02212468246 | CK38: 0.003486616769 | CL38: 0.01009522888 | CM38: 0.01710681317 | CN38: 0.0004569563135 | CO38: 0.003221140821 | CP38: 0.01237618257 | CQ38: 0.0002746928853 | CR38: 0.0004387197233 | CS38: 0.0002801955875 | CT38: 0.001963656433 | CU38: 0.0009650562258 | CV38: 0.00429610901 | CW38: 0.0001383496261 | CX38: 0.0002289113904 | CY38: 0.0003880932243 | CZ38: 0.005924466276 | DA38: 0.006034482759 | DB38: 0.003798226988 | DC38: 0.0002754946493 | DD38: 0.001073415379 | DE38: 0.001097609189 | DF38: 0.0001671591712 | DG38: 0.0001825537908 | DH38: 0.0005772388073 | DI38: 4.312592199e-05 | DJ38: 0.0001998440933 | DK38: 0.0005947165804 | DL38: 0.0001713485796 | DM38: 0.0001638178173 | DN38: 0.0001879926696 | DO38: 0.0002862916618 | DP38: 0.0002856078187 | DQ38: 0.0006884293012 | DR38: 8.030281442e-05 | DS38: 0.000606444678 | DT38: 0.0001665190434 | DU38: 0.0001475080798 | DV38: 0.00018451973 | DW38: 0.0002603482979 | DX38: 0.000286629373 | DY38: 0.0001885642182 | DZ38: 0.0001757648145 | EA38: 0.0002462203158 | EB38: 7.774019911e-05 | EC38: 0.0003769603321 | ED38: 0.0004753839962 | EE38: 4.202339302e-05 | EF38: 0.0003124733756 | EG38: 0.0005367652829 | EH38: 6.863801113e-05 | EI38: 0.0005105983312 | EJ38: 0.0005121700377 | EK38: 9.003246731e-05 | EL38: 0.0002696759486 | EM38: 0.0002628443536 | EN38: 0.000154605771
A39: n349_575.1081_3.83 | B39: n349 | C39: 575.1081 | D39: 3.83 | G39: 15.014 | H39: 3.9083 | I39: 4.90E-08 | J39: =ROUND(H39,1) -> 3.9 | K39: B. rapa | L39: 0.8113 | M39: -0.30169 | N39: 0.9725 | P39: 0.87484 | Q39: -0.19291 | R39: 0.59012 | U39: 0.0012005925 | V39: 0.002073303624 | W39: 0.007777880318 | X39: 7.29858387e-06 | Y39: 2.20581939e-05 | Z39: 7.067893352e-05 | AA39: 3.701262201e-06 | AB39: 4.217175149e-05 | AC39: 9.315468052e-05 | AD39: 0.0007488950759 | AE39: 0.001521386738 | AF39: 0.001523876748 | AG39: 0.005366446321 | AH39: 0.01021256533 | AI39: 0.008306296428 | AJ39: 0.02415112677 | AK39: 0.01692956412 | AL39: 0.0120918848 | AM39: 0.008911666514 | AN39: 0.0001633597558 | AO39: 0.0004957499691 | AP39: 0.01662377156 | AQ39: 0.01899368602 | AR39: 0.006985651691 | AS39: 0.01434228426 | AT39: 0.007562662755 | AU39: 0.01215541764 | AV39: 0.01959120022 | AW39: 0.005730393169 | AX39: 0.01522847636 | AY39: 9.368155649e-05 | AZ39: 0.0002171355786 | BA39: 0.0002005074065 | BB39: 5.706563237e-05 | BC39: 7.371624559e-05 | BD39: 0.0005622654384 | BE39: 0.0003457610635 | BF39: 4.625517129e-05 | BG39: 0.0001375133162 | BH39: 0.0001426885991 | BI39: 0.0002035475429 | BJ39: 0.0001579951871 | BK39: 6.364262521e-05 | BL39: 0.0002264124974 | BM39: 8.367537985e-05 | BN39: 0.0002552518626 | BO39: 0.0005075326185 | BP39: 0.0001696144209 | BQ39: 0.0013591694 | BR39: 0.0001681623968 | BS39: 0.0001470033034 | BT39: 8.146052421e-05 | BU39: 0.0002158832076 | BV39: 0.0002618961551 | BW39: 0.0005008594156 | BX39: 0.003643733636 | BY39: 4.245374766e-05 | BZ39: 0.000128388875 | CA39: 0.001040357004 | CB39: 8.416728902e-05 | CC39: 0.000185581071 | CD39: 0.001516565705 | CE39: 0.003787831729 | CF39: 0.001935255879 | CG39: 0.002200974775 | CH39: 0.0003274758628 | CI39: 0.0004083747246 | CJ39: 4.545726419e-05 | CK39: 6.970061006e-05 | CL39: 3.466282525e-05 | CM39: 6.502148829e-05 | CN39: 0.0006016150515 | CO39: 0.00186993509 | CP39: 7.688326155e-05 | CQ39: 0.009777231106 | CR39: 0.01244078319 | CS39: 0.009451478931 | CT39: 0.00805675309 | CU39: 0.01758224399 | CV39: 0.01691704075 | CW39: 0.006528398354 | CX39: 0.0110956242 | CY39: 0.005733072334 | CZ39: 0.009674346971 | DA39: 0.01407300845 | DB39: 0.0109340324 | DC39: 0.00303119685 | DD39: 0.006049597955 | DE39: 0.005831186156 | DF39: 0.001400361623 | DG39: 0.007785403239 | DH39: 0.01010761396 | DI39: 1.284589269e-05 | DJ39: 3.898380819e-05 | DK39: 8.69503346e-05 | DL39: 0.0001468035183 | DM39: 0.0001361829771 | DN39: 5.159246804e-05 | DO39: 8.944614525e-05 | DP39: 6.650339906e-05 | DQ39: 0.0002237546395 | DR39: 7.972483543e-05 | DS39: 0.0003663998273 | DT39: 9.892613082e-05 | DU39: 8.659015715e-05 | DV39: 0.0001378191279 | DW39: 0.0001813303728 | DX39: 5.922780784e-05 | DY39: 0.0006536139661 | DZ39: 0.0004462014884 | EA39: 0.0001680893785 | EB39: 3.878520895e-05 | EC39: 0.000246035399 | ED39: 7.403298949e-05 | EE39: 4.47161155e-05 | EF39: 0.002880337444 | EG39: 0.001671811087 | EH39: 1.942591116e-05 | EI39: 0.0001203941244 | EJ39: 0.0001720980117 | EK39: 0.0001184106869 | EL39: 0.0001249594288 | EM39: 5.977154769e-05 | EN39: 0.002292571707
A40: n514_773.1253_2.59 | B40: n514 | C40: 773.1253 | D40: 2.59 | G40: 14.732 | H40: 3.8809 | I40: 4.30E-04 | J40: =ROUND(H40,1) -> 3.9 | K40: B. rapa | L40: 0.75038 | M40: -0.41431 | N40: 0.56221 | P40: 0.61634 | Q40: -0.6982 | R40: 0.98091 | U40: 8.169518918e-06 | V40: 2.764404832e-05 | W40: 0.0008527244202 | X40: 1.399892316e-05 | Y40: 3.836207635e-06 | Z40: 4.407039384e-05 | AA40: 1.552142214e-06 | AB40: 1.12458004e-05 | AC40: 0.0001046395041 | AD40: 0.0001827598081 | AE40: 0.001809630874 | AF40: 0.0005479107409 | AG40: 0.0003066540755 | AH40: 0.0006882058404 | AI40: 0.0007118822631 | AJ40: 0.007959340059 | AK40: 0.005481876506 | AL40: 0.002998857578 | AM40: 0.0001200493917 | AN40: 8.064595539e-05 | AO40: 0.000114805256 | AP40: 6.100871238e-05 | AQ40: 5.506644028e-05 | AR40: 6.076281e-05 | AS40: 0.000140226972 | AT40: 0.0001549990659 | AU40: 0.0001755659226 | AV40: 0.0003898635478 | AW40: 0.0001486047409 | AX40: 0.0006469163769 | AY40: 0.0001153003772 | AZ40: 2.62241037e-05 | BA40: 8.424680945e-05 | BB40: 3.214965204e-05 | BC40: 6e-08 | BD40: 5.04947117e-05 | BE40: 0.0005610208696 | BF40: 3.278847585e-05 | BG40: 4.245377549e-05 | BH40: 6.485845415e-05 | BI40: 1.477902952e-05 | BJ40: 6.273338312e-05 | BK40: 1.04693496e-05 | BL40: 3.179409538e-05 | BM40: 2.318715345e-05 | BN40: 3.226660115e-05 | BO40: 6e-08 | BP40: 4.336732352e-06 | BQ40: 3.633872887e-05 | BR40: 2.758219207e-05 | BS40: 6.524303917e-05 | BT40: 3.923557359e-05 | BU40: 8.323208002e-05 | BV40: 2.589441913e-06 | BW40: 3.021945077e-05 | BX40: 7.470362349e-05 | BY40: 1.934283178e-05 | BZ40: 3.157103483e-05 | CA40: 4.346138921e-05 | CB40: 2.82300224e-05 | CC40: 4.398164111e-05 | CD40: 6.954484728e-05 | CE40: 3.52003313e-05 | CF40: 3.64267876e-05 | CG40: 0.0001813916098 | CH40: 4.167874618e-05 | CI40: 4.770998173e-05 | CJ40: 4.904599557e-05 | CK40: 6e-08 | CL40: 2.646979382e-05 | CM40: 6e-08 | CN40: 1.263572118e-05 | CO40: 7.669955251e-05 | CP40: 8.293706167e-05 | CQ40: 0.0004419844198 | CR40: 0.001606234001 | CS40: 0.001990318407 | CT40: 0.0007843854901 | CU40: 0.006103471427 | CV40: 0.004199299432 | CW40: 3.20684597e-05 | CX40: 0.0002839528883 | CY40: 0.0003137603417 | CZ40: 3.671478927e-05 | DA40: 0.0001015404903 | DB40: 5.225417485e-05 | DC40: 2.446354931e-05 | DD40: 0.0001771017732 | DE40: 0.0001717742083 | DF40: 3.009614896e-05 | DG40: 0.0002505741451 | DH40: 0.0008168066714 | DI40: 6e-08 | DJ40: 3.133278041e-05 | DK40: 6.753424046e-05 | DL40: 2.886586035e-05 | DM40: 3.779527559e-05 | DN40: 2.013364606e-05 | DO40: 3.596288314e-05 | DP40: 4.604081474e-05 | DQ40: 3.990528603e-05 | DR40: 6e-08 | DS40: 4.045664759e-05 | DT40: 2.299598655e-05 | DU40: 3.618693135e-05 | DV40: 9.157109842e-05 | DW40: 3.580893917e-05 | DX40: 2.557564429e-05 | DY40: 1.652677928e-05 | DZ40: 2.173474299e-05 | EA40: 3.474473186e-05 | EB40: 1.228996333e-05 | EC40: 5.740825976e-05 | ED40: 6.668620427e-05 | EE40: 1.85706272e-06 | EF40: 3.741521558e-05 | EG40: 2.409094331e-05 | EH40: 9.077528578e-06 | EI40: 4.130309378e-05 | EJ40: 8.316145533e-05 | EK40: 1.522423118e-05 | EL40: 3.344873598e-05 | EM40: 2.711286699e-05 | EN40: 1.726688721e-05
A41: p1324_339.1415_5.06 | B41: p1324 | C41: 339.1415 | D41: 5.06 | G41: 14.508 | H41: 3.8588 | I41: 6.14E-34 | J41: =ROUND(H41,1) -> 3.9 | K41: B. rapa | L41: 0.61343 | M41: -0.70503 | N41: 0.38091 | P41: 0.45437 | Q41: -1.1381 | R41: 0.60659 | U41: 0.006170948429 | V41: 0.005743527129 | W41: 0.01026933704 | X41: 0.003827653277 | Y41: 0.0005926825105 | Z41: 0.005103613454 | AA41: 0.0004243853905 | AB41: 0.0003198078542 | AC41: 0.000985744991 | AD41: 0.01168617757 | AE41: 0.0008470556074 | AF41: 0.001377224529 | AG41: 0.003341529041 | AH41: 0.002567379828 | AI41: 0.002511508066 | AJ41: 0.00226370016 | AK41: 0.0008073966763 | AL41: 0.001475897135 | AM41: 0.02585501965 | AN41: 0.005911398706 | AO41: 0.005390610503 | AP41: 0.005064870564 | AQ41: 0.002517696679 | AR41: 0.002381406541 | AS41: 0.0197890644 | AT41: 0.005003070585 | AU41: 0.004180694415 | AV41: 0.01054519802 | AW41: 0.003162460942 | AX41: 0.006220291014 | AY41: 0.006189336998 | AZ41: 0.003320915697 | BA41: 0.003016255353 | BB41: 0.0002400633331 | BC41: 0.0001755184781 | BD41: 0.0001463844399 | BE41: 0.006209472011 | BF41: 0.0002630661801 | BG41: 0.0004138441197 | BH41: 0.0004219159311 | BI41: 0.0001116175491 | BJ41: 0.0001203386152 | BK41: 0.0001721124443 | BL41: 0.0001362860574 | BM41: 0.0002210450277 | BN41: 0.0001903912021 | BO41: 0.0001571449426 | BP41: 7.057038936e-05 | BQ41: 0.0001673886675 | BR41: 0.0001250079262 | BS41: 0.0002183191812 | BT41: 0.0001089771688 | BU41: 0.0001595361514 | BV41: 9.534994828e-05 | BW41: 0.0002347693524 | BX41: 0.0001754213983 | BY41: 8.235892144e-05 | BZ41: 0.0002215137068 | CA41: 0.0001999439933 | CB41: 0.0001368156558 | CC41: 0.0001519328023 | CD41: 0.0002198158257 | CE41: 0.009137083266 | CF41: 0.005376806725 | CG41: 0.003488654138 | CH41: 0.01173967367 | CI41: 0.004874935287 | CJ41: 0.003395660684 | CK41: 0.004596072178 | CL41: 0.001563534308 | CM41: 0.0004515486076 | CN41: 0.0002390233025 | CO41: 0.00270361378 | CP41: 0.001355090244 | CQ41: 0.00311017405 | CR41: 0.001860514228 | CS41: 0.001174152938 | CT41: 0.0004443039354 | CU41: 0.0009683303775 | CV41: 0.0008943381807 | CW41: 0.005358243626 | CX41: 0.009709428313 | CY41: 0.002174204086 | CZ41: 0.002192250518 | DA41: 0.001894369271 | DB41: 0.0009956954371 | DC41: 0.004303148818 | DD41: 0.002184917183 | DE41: 0.004564181527 | DF41: 0.001452958954 | DG41: 0.00358018114 | DH41: 0.003544851699 | DI41: 0.0009286049221 | DJ41: 0.001744029481 | DK41: 0.001585182062 | DL41: 0.0001285114347 | DM41: 0.0001543336279 | DN41: 0.0002383639112 | DO41: 0.0002238494475 | DP41: 0.0002352549952 | DQ41: 0.0002224873038 | DR41: 0.0001001035084 | DS41: 0.0002877804606 | DT41: 0.0001055801594 | DU41: 0.000171141971 | DV41: 0.0002392804241 | DW41: 0.0001315254377 | DX41: 0.0001523525496 | DY41: 0.0002292543916 | DZ41: 0.000194766416 | EA41: 0.0001263785692 | EB41: 6.097270519e-05 | EC41: 0.0001574031365 | ED41: 0.0001731336776 | EE41: 4.250642053e-05 | EF41: 0.0002482147378 | EG41: 0.0001893850218 | EH41: 6.502548423e-05 | EI41: 0.0003660041135 | EJ41: 0.0001234144669 | EK41: 0.0001764149697 | EL41: 0.0001164315207 | EM41: 0.0001914093028 | EN41: 0.0003044175646
A42: p1370_360.0709_5.05 | B42: p1370 | C42: 360.0709 | D42: 5.05 | G42: 14.338 | H42: 3.8418 | I42: 1.63E-35 | J42: =ROUND(H42,1) -> 3.8 | K42: B. rapa | L42: 0.99626 | M42: -0.0054077 | N42: 0.72955 | P42: 0.42929 | Q42: -1.22 | R42: 0.2994 | U42: 0.001803955553 | V42: 0.002614402858 | W42: 0.006611226117 | X42: 0.001168146582 | Y42: 0.00034453654 | Z42: 0.001056006932 | AA42: 0.0001590393367 | AB42: 0.0001644726107 | AC42: 0.0001857351088 | AD42: 0.003971123893 | AE42: 0.0006406854705 | AF42: 0.0003838839068 | AG42: 0.001087864168 | AH42: 0.001040177827 | AI42: 0.0004416994034 | AJ42: 0.0008362024502 | AK42: 0.0005126968894 | AL42: 0.0003311421798 | AM42: 0.006567583852 | AN42: 0.003044300647 | AO42: 0.001313291071 | AP42: 0.001477253914 | AQ42: 0.001247235348 | AR42: 0.0003095975232 | AS42: 0.005078662153 | AT42: 0.002206060875 | AU42: 0.001107945173 | AV42: 0.002886223924 | AW42: 0.001935357589 | AX42: 0.001010447463 | AY42: 0.002630514733 | AZ42: 0.001711500781 | BA42: 0.0006300709939 | BB42: 7.179464168e-05 | BC42: 0.0001493216903 | BD42: 6.505975106e-05 | BE42: 0.002438286382 | BF42: 0.0001939929373 | BG42: 0.0002059027394 | BH42: 0.000158669239 | BI42: 4.445783735e-05 | BJ42: 8.113739961e-05 | BK42: 6.7801872e-05 | BL42: 8.58425167e-05 | BM42: 9.246327956e-05 | BN42: 7.615648085e-05 | BO42: 6.096880286e-05 | BP42: 4.47892564e-05 | BQ42: 5.406342055e-05 | BR42: 4.755736324e-05 | BS42: 4.881671133e-05 | BT42: 4.868015662e-05 | BU42: 6.26749166e-05 | BV42: 2.23898664e-05 | BW42: 8.181356219e-05 | BX42: 8.5646918e-05 | BY42: 5.154074439e-05 | BZ42: 8.259833135e-05 | CA42: 0.0001428171381 | CB42: 8.611338339e-05 | CC42: 0.0001090341287 | CD42: 7.693553901e-05 | CE42: 0.00373588372 | CF42: 0.003062176024 | CG42: 0.002494338848 | CH42: 0.004909722576 | CI42: 0.002204145893 | CJ42: 0.002407862408 | CK42: 0.00197557934 | CL42: 0.001445659537 | CM42: 0.0004806523265 | CN42: 0.0001331182908 | CO42: 0.001300929496 | CP42: 0.001048923096 | CQ42: 0.001389729137 | CR42: 0.001354225957 | CS42: 0.0008437262089 | CT42: 0.0002972847835 | CU42: 0.0005525131064 | CV42: 0.00064277348 | CW42: 0.00168936111 | CX42: 0.004343800481 | CY42: 0.001485118105 | CZ42: 0.001178073409 | DA42: 0.001277171541 | DB42: 0.0007634265196 | DC42: 0.001792008623 | DD42: 0.001738761914 | DE42: 0.004057512641 | DF42: 0.0005493115532 | DG42: 0.001898204951 | DH42: 0.002225448711 | DI42: 0.0003705634778 | DJ42: 0.0008971724187 | DK42: 0.0017524461 | DL42: 7.139524151e-05 | DM42: 7.328691829e-05 | DN42: 4.947175516e-05 | DO42: 9.660870892e-05 | DP42: 4.20982623e-05 | DQ42: 9.202354449e-05 | DR42: 4.950173492e-05 | DS42: 0.0001137083771 | DT42: 4.322409212e-05 | DU42: 6.275205603e-05 | DV42: 6.190339329e-05 | DW42: 6.666357801e-05 | DX42: 6.885990943e-05 | DY42: 0.0002183375158 | DZ42: 6.175520508e-05 | EA42: 6.028403013e-05 | EB42: 2.55323203e-05 | EC42: 1.695110701e-05 | ED42: 5.575491314e-05 | EE42: 2.439288905e-05 | EF42: 8.567818362e-05 | EG42: 9.416934788e-05 | EH42: 2.059140334e-05 | EI42: 6.438961256e-05 | EJ42: 5.245114844e-05 | EK42: 0.0001289654261 | EL42: 8.903586874e-05 | EM42: 8.975173049e-05 | EN42: 9.707804224e-05
A43: p1287_503.1912_5.45 | B43: p1287 | C43: 503.1912 | D43: 5.45 | G43: 14.273 | H43: 3.8352 | I43: 1.12E-23 | J43: =ROUND(H43,1) -> 3.8 | K43: B. rapa | L43: 0.76668 | M43: -0.38329 | N43: 0.99082 | P43: 0.57253 | Q43: -0.80457 | R43: 0.91964 | U43: 0.006851622052 | V43: 0.008691240312 | W43: 0.02783371581 | X43: 0.0001322057787 | Y43: 0.0001394078486 | Z43: 0.001029963802 | AA43: 0.0001941009189 | AB43: 0.0009736372451 | AC43: 0.001942436445 | AD43: 0.00315207959 | AE43: 0.003062720441 | AF43: 0.001597875749 | AG43: 0.007773520134 | AH43: 0.008622506252 | AI43: 0.0019745015 | AJ43: 0.001473502376 | AK43: 0.001466232364 | AL43: 0.0004433032407 | AM43: 0.02292844231 | AN43: 0.003084121453 | AO43: 0.0009681651253 | AP43: 0.006443315587 | AQ43: 0.008911810109 | AR43: 0.002536938946 | AS43: 0.01843118112 | AT43: 0.01706642462 | AU43: 0.003361966099 | AV43: 0.01898014713 | AW43: 0.01067922459 | AX43: 0.003481330289 | AY43: 0.01252750086 | AZ43: 0.007141843796 | BA43: 0.01095771355 | BB43: 9.086509338e-05 | BC43: 0.0002174333385 | BD43: 0.0002313235593 | BE43: 0.006751824119 | BF43: 0.0007171860107 | BG43: 0.0009520453394 | BH43: 0.001018728637 | BI43: 0.0005817355313 | BJ43: 0.0001905361407 | BK43: 0.0001173493939 | BL43: 0.0001150466719 | BM43: 0.0003424030821 | BN43: 0.0005657338577 | BO43: 0.00012880733 | BP43: 0.0001245359812 | BQ43: 0.0003119043493 | BR43: 7.94887357e-05 | BS43: 0.0002264552998 | BT43: 0.0001134026376 | BU43: 0.0002421530869 | BV43: 8.56991438e-05 | BW43: 0.000272711874 | BX43: 0.0002156651309 | BY43: 0.000190753889 | BZ43: 0.0007709177592 | CA43: 0.0005452254271 | CB43: 0.0001150861105 | CC43: 0.0001421018563 | CD43: 9.691879589e-05 | CE43: 0.008891770681 | CF43: 0.01239149365 | CG43: 0.008943951539 | CH43: 0.0007494592095 | CI43: 0.001076258625 | CJ43: 0.0005896805897 | CK43: 0.002081079701 | CL43: 0.002717894126 | CM43: 0.001195016335 | CN43: 0.001537550276 | CO43: 0.00707469312 | CP43: 0.005310288797 | CQ43: 0.009487747682 | CR43: 0.006773033125 | CS43: 0.006484526454 | CT43: 0.0005885403905 | CU43: 0.0008128081698 | CV43: 0.0009004989489 | CW43: 0.005320851835 | CX43: 0.009625310271 | CY43: 0.001575526186 | CZ43: 0.003108529836 | DA43: 0.001165648189 | DB43: 0.0004141228762 | DC43: 0.005817722688 | DD43: 0.005744832053 | DE43: 0.009883684638 | DF43: 0.002720820973 | DG43: 0.01273445618 | DH43: 0.01544766204 | DI43: 0.002078030537 | DJ43: 0.006619658423 | DK43: 0.01252949766 | DL43: 0.0002082361211 | DM43: 0.0001914081866 | DN43: 0.0001753998592 | DO43: 0.0003793659058 | DP43: 0.0003739316239 | DQ43: 0.0004554583025 | DR43: 0.0003415619709 | DS43: 0.001170775142 | DT43: 0.0002267493357 | DU43: 0.0002070002887 | DV43: 0.0003797535089 | DW43: 0.0002864732136 | DX43: 0.0002530601672 | DY43: 0.0009348815448 | DZ43: 0.0002004668965 | EA43: 0.000143810096 | EB43: 7.16429286e-05 | EC43: 0.0001743542435 | ED43: 0.0002831762694 | EE43: 5.60311907e-05 | EF43: 0.0003553124674 | EG43: 0.0001925240001 | EH43: 6.466423154e-05 | EI43: 0.0006269514907 | EJ43: 0.0002139184093 | EK43: 0.0002883472264 | EL43: 0.0001917695634 | EM43: 0.0002280426622 | EN43: 0.0002301109149
A44: n653_869.1308_3.84 | B44: n653 | C44: 869.1308 | D44: 3.84 | G44: 14.203 | H44: 3.8281 | I44: 2.68E-01 | L44: 0.63008 | M44: -0.6664 | N44: 0.97774 | P44: 0.78076 | Q44: -0.35705 | R44: 0.9506 | U44: 6e-08 | V44: 6e-08 | W44: 0.0002473269963 | X44: 6e-08 | Y44: 3.296740936e-06 | Z44: 3.908129265e-05 | AA44: 6e-08 | AB44: 6e-08 | AC44: 6e-08 | AD44: 6e-08 | AE44: 0.003977651185 | AF44: 4.81052585e-05 | AG44: 0.0005141401798 | AH44: 0.00196791053 | AI44: 0.002687995184 | AJ44: 0.0029583822 | AK44: 0.001797781753 | AL44: 0.001297751233 | AM44: 6e-08 | AN44: 3.101767515e-05 | AO44: 6e-08 | AP44: 4.263259419e-05 | AQ44: 2.188538011e-05 | AR44: 5.040551284e-05 | AS44: 0.0001451186106 | AT44: 3.444423686e-05 | AU44: 7.163896843e-05 | AV44: 6e-08 | AW44: 0.0008175285337 | AX44: 0.002132067758 | AY44: 3.00261399e-05 | AZ44: 2.097928296e-05 | BA44: 5.728783043e-05 | BB44: 2.250475643e-05 | BC44: 3.92251582e-05 | BD44: 9.143636984e-05 | BE44: 6e-08 | BF44: 5.737983275e-05 | BG44: 5.814321425e-05 | BH44: 0.0001008909287 | BI44: 6e-08 | BJ44: 9.410007468e-05 | BK44: 9.918331201e-06 | BL44: 3.275755282e-05 | BM44: 6e-08 | BN44: 6e-08 | BO44: 5.745652285e-05 | BP44: 6e-08 | BQ44: 3.028227405e-05 | BR44: 7.562859117e-05 | BS44: 3.798961774e-05 | BT44: 1.195750814e-05 | BU44: 5.202005001e-05 | BV44: 6e-08 | BW44: 1.958668106e-05 | BX44: 0.0001081914547 | BY44: 6e-08 | BZ44: 4.560260586e-05 | CA44: 4.889406286e-05 | CB44: 2.561613144e-05 | CC44: 5.578159361e-05 | CD44: 6e-08 | CE44: 0.0004636083644 | CF44: 0.00093953128 | CG44: 0.0009128807863 | CH44: 0.000508909222 | CI44: 0.001411844802 | CJ44: 0.000697122392 | CK44: 0.0004509289623 | CL44: 0.000955192103 | CM44: 0.001028331399 | CN44: 0.0005326999407 | CO44: 0.003030760894 | CP44: 0.001469787302 | CQ44: 0.001661711237 | CR44: 0.001427504523 | CS44: 0.002081452936 | CT44: 0.001605152318 | CU44: 0.0008267233147 | CV44: 0.002018678373 | CW44: 0.0001637760438 | CX44: 0.0003874945826 | CY44: 0.0001664831729 | CZ44: 0.002056953572 | DA44: 0.005284373636 | DB44: 0.001496243957 | DC44: 0.001262360459 | DD44: 0.0004935689831 | DE44: 0.00212135084 | DF44: 0.000245929356 | DG44: 0.0007240118791 | DH44: 0.0005939401109 | DI44: 0.0005732153798 | DJ44: 0.002545531855 | DK44: 0.003131007879 | DL44: 0.001173261802 | DM44: 0.0007544241588 | DN44: 0.0004065678788 | DO44: 0.001665911151 | DP44: 0.001970363767 | DQ44: 0.003099679138 | DR44: 0.0001903066698 | DS44: 0.001221312199 | DT44: 0.0007589016829 | DU44: 0.0003463587508 | DV44: 0.001146403226 | DW44: 0.002228725567 | DX44: 0.001139631501 | DY44: 0.0001503551529 | DZ44: 0.0001615136133 | EA44: 8.279975222e-05 | EB44: 0.0002419854237 | EC44: 0.0005698800738 | ED44: 0.0009096854249 | EE44: 0.000219052974 | EF44: 0.001671984554 | EG44: 0.001183394805 | EH44: 0.0004504821046 | EI44: 0.001755464174 | EJ44: 0.002001371272 | EK44: 0.0001691150399 | EL44: 0.0001951940199 | EM44: 0.0006621479709 | EN44: 0.0005417194456
A45: n179_575.1234_2.9 | B45: n179 | C45: 575.1234 | D45: 2.9 | G45: 14.034 | H45: 3.8108 | I45: 7.75E-16 | J45: =ROUND(H45,1) -> 3.8 | K45: B. rapa | L45: 1.0666 | M45: 0.093057 | N45: 0.88791 | P45: 0.78413 | Q45: -0.35083 | R45: 0.72187 | U45: 1.601225708e-05 | V45: 5.442422014e-05 | W45: 0.0002694756826 | X45: 0.0005677341059 | Y45: 0.0002742289051 | Z45: 0.002806369419 | AA45: 0.0002394278861 | AB45: 0.001987070453 | AC45: 0.005446358582 | AD45: 0.003481889448 | AE45: 0.001277351825 | AF45: 0.001507569881 | AG45: 0.0006407586367 | AH45: 0.001886042177 | AI45: 0.002663162082 | AJ45: 0.0004284666315 | AK45: 0.0002514721908 | AL45: 0.0003823104983 | AM45: 0.006858821915 | AN45: 0.003275466496 | AO45: 0.003686292402 | AP45: 0.004220626825 | AQ45: 0.002670722354 | AR45: 0.002813732395 | AS45: 0.005333516576 | AT45: 0.002116705993 | AU45: 0.002554786874 | AV45: 0.0001403508772 | AW45: 0.000319479947 | AX45: 0.0006452950325 | AY45: 0.003276452386 | AZ45: 0.001276064886 | BA45: 0.002549308454 | BB45: 0.0002813094553 | BC45: 8.859475388e-05 | BD45: 0.0002128966223 | BE45: 0.0008610392244 | BF45: 0.0001504756838 | BG45: 0.0005251347446 | BH45: 0.0001455711971 | BI45: 7.255159945e-05 | BJ45: 0.0001626421044 | BK45: 0.0001110302076 | BL45: 0.0002225586677 | BM45: 6.250450061e-05 | BN45: 8.527601731e-05 | BO45: 0.0001975067973 | BP45: 1.268895762e-05 | BQ45: 7.217275316e-05 | BR45: 8.719531687e-05 | BS45: 0.0002593204342 | BT45: 3.81145572e-05 | BU45: 0.0001976761901 | BV45: 5.282461503e-06 | BW45: 5.204460967e-05 | BX45: 0.0001287993509 | BY45: 1.68307757e-05 | BZ45: 3.227261338e-05 | CA45: 0.0002227396197 | CB45: 6.011949216e-05 | CC45: 0.0002949988123 | CD45: 0.000122008504 | CE45: 0.0001504641612 | CF45: 2.914143008e-05 | CG45: 6e-08 | CH45: 6e-08 | CI45: 2.555891878e-05 | CJ45: 7.835396854e-05 | CK45: 6e-08 | CL45: 2.016746196e-05 | CM45: 2.382466747e-05 | CN45: 2.922547757e-06 | CO45: 6e-08 | CP45: 2.360982047e-05 | CQ45: 0.001162042732 | CR45: 0.002837002924 | CS45: 0.002631294167 | CT45: 1.623799749e-05 | CU45: 0.00107760357 | CV45: 0.002379055158 | CW45: 1.603422985e-05 | CX45: 6.93373332e-05 | CY45: 2.371838436e-05 | CZ45: 3.170822709e-05 | DA45: 3.692381466e-05 | DB45: 1.659838495e-05 | DC45: 6e-08 | DD45: 6e-08 | DE45: 6e-08 | DF45: 7.969385238e-06 | DG45: 4.10777287e-05 | DH45: 0.001203831493 | DI45: 3.307625065e-06 | DJ45: 3.06041111e-05 | DK45: 2.95462302e-05 | DL45: 6e-08 | DM45: 2.699662542e-05 | DN45: 2.013364606e-05 | DO45: 7.561426712e-05 | DP45: 4.49040045e-05 | DQ45: 6.057052343e-05 | DR45: 6e-08 | DS45: 3.053331894e-05 | DT45: 3.991756156e-05 | DU45: 4.523366419e-05 | DV45: 7.769668957e-05 | DW45: 3.65708315e-05 | DX45: 6e-08 | DY45: 2.317780022e-05 | DZ45: 3.643765736e-05 | EA45: 3.521425527e-05 | EB45: 2.681446545e-05 | EC45: 6e-08 | ED45: 2.882200354e-05 | EE45: 6e-08 | EF45: 4.629340233e-05 | EG45: 1.254736631e-05 | EH45: 6e-08 | EI45: 2.812125534e-05 | EJ45: 5.890603086e-05 | EK45: 2.706529987e-05 | EL45: 6e-08 | EM45: 5.792294312e-05 | EN45: 6e-08
A46: n600_769.1302_7.86 | B46: n600 | C46: 769.1302 | D46: 7.86 | G46: 14.01 | H46: 3.8084 | I46: 4.18E-13 | J46: =ROUND(H46,1) -> 3.8 | K46: B. rapa | L46: 1.3313 | M46: 0.41288 | N46: 0.8625 | P46: 0.57459 | Q46: -0.7994 | R46: 0.5171 | U46: 5.097779805e-05 | V46: 8.465989799e-05 | W46: 0.0003949849046 | X46: 0.0002258971532 | Y46: 9.093010909e-05 | Z46: 0.0008223701794 | AA46: 0.0001970822626 | AB46: 0.000965264534 | AC46: 0.002821438337 | AD46: 0.001754074021 | AE46: 0.0006495808545 | AF46: 0.0007688687926 | AG46: 4.303049124e-05 | AH46: 2.353715142e-05 | AI46: 5.719138689e-05 | AJ46: 7.195622819e-05 | AK46: 5.920187646e-05 | AL46: 7.979416363e-05 | AM46: 0.0001240510381 | AN46: 0.0006954852051 | AO46: 0.0001534215694 | AP46: 0.0002925478015 | AQ46: 0.0003572258818 | AR46: 0.0004501971832 | AS46: 0.0004956860407 | AT46: 0.0005188163176 | AU46: 0.0007466596709 | AV46: 0.0003675856307 | AW46: 0.0001814030624 | AX46: 0.0003664238125 | AY46: 0.0001080941036 | AZ46: 0.0002722061964 | BA46: 0.0001819731084 | BB46: 5.224318456e-05 | BC46: 2.637553741e-05 | BD46: 6e-08 | BE46: 0.0001157021458 | BF46: 3.044644186e-05 | BG46: 3.137887753e-05 | BH46: 0.0001080974236 | BI46: 1.410725545e-05 | BJ46: 5.111608995e-05 | BK46: 1.6530552e-05 | BL46: 3.372101025e-05 | BM46: 6.04882264e-05 | BN46: 3.399516906e-05 | BO46: 7.660869714e-05 | BP46: 2.569915468e-06 | BQ46: 9.084682216e-06 | BR46: 5.249513975e-05 | BS46: 9.001887683e-05 | BT46: 6e-08 | BU46: 4.551754376e-05 | BV46: 1.50187631e-06 | BW46: 2.070591997e-05 | BX46: 6.955164946e-05 | BY46: 1.029942991e-05 | BZ46: 5.612628414e-05 | CA46: 0.0001349113957 | CB46: 3.55489171e-05 | CC46: 6.114520838e-05 | CD46: 0.0001037072284 | CE46: 3.79611416e-05 | CF46: 0.0001112672785 | CG46: 2.832136659e-05 | CH46: 0.006414557507 | CI46: 0.003463517483 | CJ46: 0.003536096656 | CK46: 0.01235378776 | CL46: 0.004216890249 | CM46: 0.003896325825 | CN46: 0.0002143774737 | CO46: 0.002859359318 | CP46: 0.001421432269 | CQ46: 0.001613593914 | CR46: 0.00202793172 | CS46: 0.001414200273 | CT46: 0.0001815498331 | CU46: 0.0003461158722 | CV46: 0.0001602472386 | CW46: 0.00197303254 | CX46: 0.002327753329 | CY46: 0.0030210445 | CZ46: 0.003424488526 | DA46: 0.004079242343 | DB46: 0.002801438527 | DC46: 0.001346147573 | DD46: 0.001629777689 | DE46: 0.002450523546 | DF46: 2.512700287e-05 | DG46: 9.506560071e-05 | DH46: 0.0002241058015 | DI46: 0.000216764824 | DJ46: 0.0007523510645 | DK46: 0.001645302933 | DL46: 0.0001509272127 | DM46: 0.0001775778028 | DN46: 0.0001220602293 | DO46: 0.0004029687162 | DP46: 0.0001943945511 | DQ46: 0.0005187687183 | DR46: 4.75691518e-05 | DS46: 8.014996222e-05 | DT46: 8.287232889e-05 | DU46: 0.0001673645575 | DV46: 7.307188662e-05 | DW46: 8.380815551e-05 | DX46: 0.0001164364859 | DY46: 0.0001033931436 | DZ46: 6.072942893e-05 | EA46: 4.976948078e-05 | EB46: 2.298382753e-05 | EC46: 0.0001628520022 | ED46: 9.042197189e-05 | EE46: 4.202826156e-06 | EF46: 4.122015276e-05 | EG46: 6.42425155e-05 | EH46: 9.440629721e-06 | EI46: 3.690914763e-05 | EJ46: 7.392129362e-05 | EK46: 0.0003806057794 | EL46: 0.0002858920264 | EM46: 0.0001109162741 | EN46: 3.374891591e-05
A47: p2131_664.1919_3.61 | B47: p2131 | C47: 664.1919 | D47: 3.61 | G47: 13.767 | H47: 3.7831 | I47: 6.53E-06 | J47: =ROUND(H47,1) -> 3.8 | K47: B. rapa | L47: 4.2892 | M47: 2.1007 | N47: 0.0069838 | O47: + | P47: 1.1151 | Q47: 0.15721 | R47: 0.75095 | U47: 3.068144878e-05 | V47: 8.332758114e-05 | W47: 0.0004599113821 | X47: 3.630725863e-05 | Y47: 2.628833716e-05 | Z47: 0.0005595072528 | AA47: 3.870798671e-05 | AB47: 7.056078053e-05 | AC47: 0.0001649825827 | AD47: 0.0001393711751 | AE47: 8.630023907e-05 | AF47: 0.0004749332949 | AG47: 8.313230655e-05 | AH47: 3.578771881e-05 | AI47: 0.001536745841 | AJ47: 0.0002584379741 | AK47: 6.539913078e-05 | AL47: 0.01046213451 | AM47: 0.0001334174963 | AN47: 5.37580886e-05 | AO47: 0.0002998140053 | AP47: 0.0001268657367 | AQ47: 6.038755873e-05 | AR47: 0.0008040731883 | AS47: 0.0001474018039 | AT47: 7.33132013e-05 | AU47: 0.0001978473523 | AV47: 7.255870201e-05 | AW47: 7.656802537e-05 | AX47: 0.0002835439309 | AY47: 0.0001581285377 | AZ47: 5.937647263e-05 | BA47: 0.0001390297498 | BB47: 0.0001133009189 | BC47: 8.251988149e-05 | BD47: 6.505975106e-05 | BE47: 0.0001516747419 | BF47: 0.0001322679118 | BG47: 0.0001875549705 | BH47: 9.015297672e-05 | BI47: 0.0001220225749 | BJ47: 7.657911873e-05 | BK47: 5.867469693e-05 | BL47: 4.159379675e-05 | BM47: 0.0001343607031 | BN47: 0.0001482331502 | BO47: 0.0001313834766 | BP47: 1.07057247e-05 | BQ47: 7.90157685e-05 | BR47: 6.182457221e-05 | BS47: 0.000117973719 | BT47: 3.761648466e-05 | BU47: 8.546579537e-05 | BV47: 3.937528229e-05 | BW47: 9.604200779e-05 | BX47: 0.0001527198056 | BY47: 7.438870324e-05 | BZ47: 0.0001101311085 | CA47: 9.997199664e-05 | CB47: 8.933257529e-05 | CC47: 7.149778931e-05 | CD47: 9.991628443e-05 | CE47: 0.0001697898333 | CF47: 0.0001192149412 | CG47: 0.0001193543306 | CH47: 0.001996610412 | CI47: 0.000757111972 | CJ47: 0.0009755368144 | CK47: 0.003807718513 | CL47: 0.002638786351 | CM47: 0.00200970997 | CN47: 0.0001597945965 | CO47: 0.002026402177 | CP47: 0.000947419719 | CQ47: 3.061363947e-05 | CR47: 5.113610209e-05 | CS47: 2.280150924e-05 | CT47: 2.909307884e-05 | CU47: 6.247778524e-05 | CV47: 0.0001492901625 | CW47: 9.78499155e-05 | CX47: 0.0001295947775 | CY47: 2.507372061e-05 | CZ47: 0.0005198480389 | DA47: 0.0004447641312 | DB47: 0.0002612708742 | DC47: 0.0003783695627 | DD47: 0.0002234461625 | DE47: 0.0004653740962 | DF47: 3.712795946e-05 | DG47: 0.0001942389743 | DH47: 0.00021599671 | DI47: 2.899941045e-05 | DJ47: 2.623209523e-05 | DK47: 0.000146886973 | DL47: 6e-08 | DM47: 1.739782527e-05 | DN47: 2.642541046e-05 | DO47: 4.702838565e-05 | DP47: 3.183068673e-05 | DQ47: 3.634231406e-05 | DR47: 6e-08 | DS47: 3.129665191e-05 | DT47: 3.080594425e-05 | DU47: 1.486248966e-05 | DV47: 5.087283245e-05 | DW47: 6.704652441e-05 | DX47: 2.557564429e-05 | DY47: 2.579789937e-05 | DZ47: 4.091245739e-05 | EA47: 4.037901271e-05 | EB47: 6.703616362e-06 | EC47: 3.163312272e-05 | ED47: 6e-08 | EE47: 2.541243722e-06 | EF47: 2.219546687e-05 | EG47: 3.212125775e-05 | EH47: 8.532876863e-06 | EI47: 3.60303584e-05 | EJ47: 3.696064681e-05 | EK47: 4.736427477e-05 | EL47: 3.786649356e-05 | EM47: 6e-08 | EN47: 2.354575529e-05
A48: p1883_117.0696_6.75 | B48: p1883 | C48: 117.0696 | D48: 6.75 | G48: 13.125 | H48: 3.7143 | I48: 5.06E-25 | J48: =ROUND(H48,1) -> 3.7 | K48: B. rapa | L48: 1.425 | M48: 0.51096 | N48: 0.36296 | P48: 0.69777 | Q48: -0.51917 | R48: 0.98091 | U48: 0.0006471512992 | V48: 0.001620547854 | W48: 0.001237524706 | X48: 0.0003066384778 | Y48: 0.0001186958254 | Z48: 0.0009400729968 | AA48: 2.88907437e-05 | AB48: 7.259130659e-05 | AC48: 0.0001763964721 | AD48: 0.001387984168 | AE48: 0.0001135035753 | AF48: 0.0003026776957 | AG48: 0.0003149935053 | AH48: 0.0007250903029 | AI48: 0.0003970036304 | AJ48: 0.000679245356 | AK48: 0.0004949341626 | AL48: 0.0003872227103 | AM48: 0.001588098585 | AN48: 0.001481333997 | AO48: 0.0004848377617 | AP48: 0.0005367396551 | AQ48: 0.0005527784222 | AR48: 0.000398368377 | AS48: 0.004043871712 | AT48: 0.002169404275 | AU48: 0.001300756411 | AV48: 0.001795827875 | AW48: 0.001168669861 | AX48: 0.001813208202 | AY48: 0.0005543800498 | AZ48: 0.00129482378 | BA48: 0.0003835643453 | BB48: 5.384598126e-05 | BC48: 6.418213005e-05 | BD48: 8.76499424e-05 | BE48: 0.0007652680162 | BF48: 8.817860787e-05 | BG48: 0.0001427048689 | BH48: 9.015297672e-05 | BI48: 6.526788887e-05 | BJ48: 6.746255698e-05 | BK48: 6.714993093e-05 | BL48: 5.840831033e-05 | BM48: 0.0001603660005 | BN48: 0.0001019952868 | BO48: 6.354494946e-05 | BP48: 1.289056648e-05 | BQ48: 0.0001050077976 | BR48: 3.329015427e-05 | BS48: 0.0001491621735 | BT48: 3.374419947e-05 | BU48: 5.792681686e-05 | BV48: 4.516576498e-05 | BW48: 3e-07 | BX48: 8.358313684e-05 | BY48: 3.134952494e-05 | BZ48: 0.0001802145411 | CA48: 6.97283674e-05 | CB48: 3.380151497e-05 | CC48: 6.256056565e-05 | CD48: 4.795981653e-05 | CE48: 0.0004009293781 | CF48: 0.0008495378624 | CG48: 0.004582319522 | CH48: 0.0006646410058 | CI48: 0.0002631075053 | CJ48: 0.0009686419856 | CK48: 0.0004611386746 | CL48: 0.0002682667183 | CM48: 0.001308785417 | CN48: 1.360663961e-05 | CO48: 7.111893796e-05 | CP48: 0.0005938347688 | CQ48: 9.939545191e-05 | CR48: 0.00188525764 | CS48: 0.003379614005 | CT48: 0.0002912556069 | CU48: 0.0002635692152 | CV48: 0.01729224948 | CW48: 0.0001675152229 | CX48: 0.0001654781135 | CY48: 0.01036495569 | CZ48: 9.569783996e-05 | DA48: 0.0006874727193 | DB48: 0.002518047141 | DC48: 0.0001364539225 | DD48: 0.0107069492 | DE48: 0.001734326557 | DF48: 0.0001021672695 | DG48: 0.007885260343 | DH48: 0.004989514464 | DI48: 1.657153484e-05 | DJ48: 9.354404365e-05 | DK48: 0.0008767696645 | DL48: 0.000127321514 | DM48: 0.0001457116375 | DN48: 0.000180796778 | DO48: 0.0001343096685 | DP48: 7.346559499e-05 | DQ48: 0.0003296539632 | DR48: 6.490227467e-05 | DS48: 8.142081325e-05 | DT48: 0.0001636846767 | DU48: 6.35670178e-05 | DV48: 8.333149097e-05 | DW48: 0.0001180125503 | DX48: 0.000162681536 | DY48: 3.026951923e-05 | DZ48: 0.0001026086484 | EA48: 6.82734799e-05 | EB48: 3.658362311e-05 | EC48: 8.959870849e-05 | ED48: 9.096854249e-05 | EE48: 5.361605317e-05 | EF48: 7.559839731e-05 | EG48: 0.0001538099349 | EH48: 4.371157551e-05 | EI48: 0.0001287792251 | EJ48: 0.0001367843675 | EK48: 7.421595278e-05 | EL48: 6.420855918e-05 | EM48: 0.0001474492715 | EN48: 5.393224569e-05
A49: n158_537.0931_4.02 | B49: n158 | C49: 537.0931 | D49: 4.02 | G49: 12.992 | H49: 3.6995 | I49: 3.32E-22 | J49: =ROUND(H49,1) -> 3.7 | K49: B. rapa | L49: 0.63553 | M49: -0.65396 | N49: 0.85604 | P49: 0.50458 | Q49: -0.98683 | R49: 0.44583 | U49: 0.001947286529 | V49: 0.003277115541 | W49: 0.008719199483 | X49: 8.100231606e-05 | Y49: 6.407665565e-05 | Z49: 0.0006909905148 | AA49: 0.0001321310807 | AB49: 0.0009908799683 | AC49: 0.003870385562 | AD49: 0.008437411143 | AE49: 0.004514645884 | AF49: 0.005382081548 | AG49: 0.002814045746 | AH49: 0.002155184387 | AI49: 0.003384074564 | AJ49: 0.00147183194 | AK49: 0.0004687267833 | AL49: 0.0005094550447 | AM49: 0.02628414738 | AN49: 0.005193048102 | AO49: 0.0120336782 | AP49: 0.005038731607 | AQ49: 0.01049862863 | AR49: 0.004771261558 | AS49: 0.001306067495 | AT49: 0.002780295744 | AU49: 0.002230898017 | AV49: 0.01250682261 | AW49: 0.00357663672 | AX49: 0.007214982148 | AY49: 0.01549829237 | AZ49: 0.005963885663 | BA49: 0.0139259976 | BB49: 0.0003431975355 | BC49: 0.0004328293319 | BD49: 0.001033094507 | BE49: 0.004118189165 | BF49: 0.0001621858538 | BG49: 0.0002796411733 | BH49: 0.0003314987656 | BI49: 0.0002109370576 | BJ49: 0.000241639698 | BK49: 0.0003683558005 | BL49: 0.001628243067 | BM49: 0.0003266364226 | BN49: 0.0001826520101 | BO49: 0.0004704252809 | BP49: 4.449166154e-05 | BQ49: 0.0004345506327 | BR49: 0.0004626690283 | BS49: 0.0004715667768 | BT49: 7.847114717e-05 | BU49: 0.0002119817038 | BV49: 2.434075398e-05 | BW49: 8.058520206e-05 | BX49: 0.0001622871821 | BY49: 6.330381309e-05 | BZ49: 0.0001066399399 | CA49: 0.0002055361531 | CB49: 0.0002206123973 | CC49: 0.0001265813086 | CD49: 0.000245237093 | CE49: 0.002219700654 | CF49: 0.001301904775 | CG49: 0.00188358007 | CH49: 0.001720001933 | CI49: 0.001720623799 | CJ49: 0.001688252197 | CK49: 0.001157100733 | CL49: 0.0005460176135 | CM49: 0.00016139335 | CN49: 4.422157873e-05 | CO49: 0.0005033032532 | CP49: 0.0007677303086 | CQ49: 0.0006198661819 | CR49: 0.001182925414 | CS49: 0.001060348008 | CT49: 0.0001159457034 | CU49: 0.0004035392021 | CV49: 0.0008327304989 | CW49: 0.000676791414 | CX49: 0.002371852961 | CY49: 0.001889749393 | CZ49: 0.0004960888026 | DA49: 0.001015931907 | DB49: 0.0007580249168 | DC49: 0.001479005312 | DD49: 0.001861571204 | DE49: 0.006017603363 | DF49: 0.0005266943714 | DG49: 0.002055059422 | DH49: 0.002904983003 | DI49: 0.0001633194638 | DJ49: 0.0009297711006 | DK49: 0.0009871857943 | DL49: 6.782547943e-05 | DM49: 0.0001388140452 | DN49: 5.127072808e-05 | DO49: 6.24422143e-05 | DP49: 4.044735005e-05 | DQ49: 0.0001537608592 | DR49: 2.970104095e-05 | DS49: 0.0001488035552 | DT49: 4.676705049e-05 | DU49: 4.319297363e-05 | DV49: 9.761688942e-05 | DW49: 4.864639476e-05 | DX49: 4.131594566e-05 | DY49: 3.820906526e-05 | DZ49: 6.270528516e-05 | EA49: 4.793669866e-05 | EB49: 2.095936741e-05 | EC49: 3.148062731e-05 | ED49: 3.448001207e-05 | EE49: 2.656651283e-05 | EF49: 8.315823705e-05 | EG49: 4.813100003e-05 | EH49: 4.515658627e-05 | EI49: 7.342675117e-05 | EJ49: 5.347960233e-05 | EK49: 0.0001508652155 | EL49: 7.533804278e-05 | EM49: 7.418255275e-05 | EN49: 0.0001330328727
A50: p2088_732.3078_3.91 | B50: p2088 | C50: 732.3078 | D50: 3.91 | G50: 12.564 | H50: 3.6512 | I50: 1.97E-22 | J50: =ROUND(H50,1) -> 3.7 | K50: B. rapa | L50: 0.98514 | M50: -0.021606 | N50: 0.79584 | P50: 0.68309 | Q50: -0.54986 | R50: 0.63168 | U50: 0.0001613616936 | V50: 0.0003515382329 | W50: 0.001325270956 | X50: 0.0003942494715 | Y50: 0.0005888985832 | Z50: 0.0007905350223 | AA50: 0.001068677024 | AB50: 0.005038750414 | AC50: 0.004806285051 | AD50: 0.001479625489 | AE50: 0.001789791915 | AF50: 0.002115462811 | AG50: 0.0007650770087 | AH50: 0.003229452626 | AI50: 0.006799673107 | AJ50: 0.00174005882 | AK50: 0.001530824098 | AL50: 0.00206785829 | AM50: 0.001857085473 | AN50: 0.0003603782977 | AO50: 0.0002167421146 | AP50: 0.0005074629467 | AQ50: 0.005071393634 | AR50: 0.001458483119 | AS50: 0.0003618044278 | AT50: 0.001123024947 | AU50: 0.0006539754299 | AV50: 0.002980953341 | AW50: 0.001910170738 | AX50: 0.0005472029627 | AY50: 0.0007162292589 | AZ50: 0.0008312706168 | BA50: 0.00369464165 | BB50: 3e-07 | BC50: 0.0002383907688 | BD50: 0.0001075293108 | BE50: 0.0002045310914 | BF50: 0.0001807661461 | BG50: 0.0004301532476 | BH50: 0.0001712906558 | BI50: 9.45911433e-05 | BJ50: 0.0003628391578 | BK50: 9.453145616e-05 | BL50: 5.132851514e-05 | BM50: 0.0002600529738 | BN50: 0.0001128747841 | BO50: 5.066421647e-05 | BP50: 1.638631332e-05 | BQ50: 4.158724658e-05 | BR50: 9.851168099e-05 | BS50: 0.0002278113195 | BT50: 0.0001875292397 | BU50: 0.0001244002133 | BV50: 6.176514868e-05 | BW50: 9.367060019e-05 | BX50: 0.0001547835867 | BY50: 0.0002582350698 | BZ50: 0.0008159713945 | CA50: 5.880705685e-05 | CB50: 0.0001529116154 | CC50: 0.000107246684 | CD50: 5.295563075e-05 | CE50: 0.004811402147 | CF50: 0.002408804118 | CG50: 0.002817975976 | CH50: 0.001035022197 | CI50: 0.0006122780989 | CJ50: 0.0008307913153 | CK50: 0.003931630708 | CL50: 0.002531016476 | CM50: 0.002058352 | CN50: 0.0006935893485 | CO50: 0.005314511994 | CP50: 0.004450148469 | CQ50: 0.002452280078 | CR50: 0.002285713714 | CS50: 0.003417692885 | CT50: 0.0004149710471 | CU50: 0.0004583547253 | CV50: 0.0006635879239 | CW50: 0.004161499347 | CX50: 0.01175597976 | CY50: 0.006950164286 | CZ50: 0.003709028143 | DA50: 0.007336090631 | DB50: 0.005103695995 | DC50: 0.001068567834 | DD50: 0.001231436629 | DE50: 0.003173558954 | DF50: 0.001060303267 | DG50: 0.005806630365 | DH50: 0.008866185773 | DI50: 0.0003723001236 | DJ50: 0.003585417349 | DK50: 0.007586627738 | DL50: 0.0004758743263 | DM50: 0.0002189726284 | DN50: 0.0002472663407 | DO50: 0.0002784818131 | DP50: 0.0001426696852 | DQ50: 0.000300714834 | DR50: 5.368138919e-05 | DS50: 0.0001114466141 | DT50: 0.000246447554 | DU50: 0.0009188895782 | DV50: 0.0003561098272 | DW50: 0.0003055188215 | DX50: 0.0001770103803 | DY50: 0.0001654693389 | DZ50: 0.0002314110871 | EA50: 0.0001859312678 | EB50: 4.261584687e-05 | EC50: 0.0001804259592 | ED50: 0.0001248953487 | EE50: 1.573616305e-05 | EF50: 0.0001674172358 | EG50: 8.080503902e-05 | EH50: 4.012267631e-05 | EI50: 0.0003110913872 | EJ50: 0.0003003052553 | EK50: 0.0003628441764 | EL50: 0.0001672436799 | EM50: 0.0001429587532 | EN50: 0.000241736421
A51: n542_432.0464_3.53 | B51: n542 | C51: 432.0464 | D51: 3.53 | G51: 12.555 | H51: 3.6502 | I51: 5.62E-15 | J51: =ROUND(H51,1) -> 3.7 | K51: B. rapa | L51: 0.73565 | M51: -0.44291 | N51: 0.90281 | P51: 0.57272 | Q51: -0.80411 | R51: 0.65676 | U51: 0.0001820168815 | V51: 0.0004906818577 | W51: 0.005190175476 | X51: 5.910656445e-05 | Y51: 2.109914199e-05 | Z51: 0.0003176394424 | AA51: 1.189975697e-05 | AB51: 3.342501784e-05 | AC51: 0.0001288852429 | AD51: 0.0003728720224 | AE51: 0.002397908272 | AF51: 0.000736255058 | AG51: 0.001021355913 | AH51: 0.004273016337 | AI51: 0.004995216134 | AJ51: 0.005911040609 | AK51: 0.00477579908 | AL51: 0.004386048423 | AM51: 0.001544635507 | AN51: 0.0001261385456 | AO51: 0.0004999247056 | AP51: 0.0004439670154 | AQ51: 0.0002901577815 | AR51: 0.0006414619374 | AS51: 0.001126707415 | AT51: 0.0008395782734 | AU51: 0.0009343335882 | AV51: 0.002027290448 | AW51: 0.0008074055949 | AX51: 0.001962637279 | AY51: 0.0001417233803 | AZ51: 0.0001583935863 | BA51: 0.0002594801731 | BB51: 6.912175188e-05 | BC51: 3.719627071e-05 | BD51: 0.0001392016377 | BE51: 0.001354791405 | BF51: 5.269576477e-05 | BG51: 0.000113517704 | BH51: 8.071274294e-05 | BI51: 0.0001142015917 | BJ51: 9.293834537e-05 | BK51: 2.36937912e-05 | BL51: 0.0001030899456 | BM51: 6.149636351e-05 | BN51: 7.893793495e-05 | BO51: 0.0002214470152 | BP51: 8.111295696e-06 | BQ51: 4.643282022e-05 | BR51: 7.562859117e-05 | BS51: 0.0001214016045 | BT51: 3.661986868e-05 | BU51: 0.00015606015 | BV51: 8.234425284e-06 | BW51: 3.581564536e-05 | BX51: 0.0002035029743 | BY51: 1.833800935e-05 | BZ51: 3.998997745e-05 | CA51: 0.0001231406028 | CB51: 3.816280807e-05 | CC51: 6.007248542e-05 | CD51: 0.0001244486741 | CE51: 0.0003544604744 | CF51: 0.00167507748 | CG51: 0.0008526192536 | CH51: 0.0007550210589 | CI51: 0.002442431936 | CJ51: 0.001990588431 | CK51: 0.002668138162 | CL51: 0.003795025646 | CM51: 0.01345826514 | CN51: 0.0002444659583 | CO51: 0.0007221307546 | CP51: 0.003453861413 | CQ51: 0.00340745681 | CR51: 0.003898039017 | CS51: 0.0006600685969 | CT51: 0.0004605363339 | CU51: 0.001222895675 | CV51: 0.001503227436 | CW51: 0.0006139732054 | CX51: 0.00064122769 | CY51: 0.001414555701 | CZ51: 0.0009063795417 | DA51: 0.0008387167176 | DB51: 0.0007058094237 | DC51: 0.0001862499038 | DD51: 0.0004819098732 | DE51: 0.0003287625627 | DF51: 0.0003189802535 | DG51: 0.0007603454005 | DH51: 0.003615832239 | DI51: 6.9081338e-05 | DJ51: 0.0004223655304 | DK51: 0.002598605352 | DL51: 2.974801729e-05 | DM51: 4.91453452e-05 | DN51: 5.306970099e-05 | DO51: 0.0001343096685 | DP51: 2.393822758e-05 | DQ51: 0.000365764468 | DR51: 6.215217829e-05 | DS51: 0.0003916621879 | DT51: 8.99911426e-05 | DU51: 5.297251483e-05 | DV51: 0.0001285685861 | DW51: 7.026701466e-05 | DX51: 0.0002005544862 | DY51: 5.656926545e-05 | DZ51: 6.175520508e-05 | EA51: 0.0001423574687 | EB51: 1.905397037e-05 | EC51: 4.60101476e-05 | ED51: 0.0002780409484 | EE51: 4.83027506e-06 | EF51: 0.0002797140701 | EG51: 0.0001067252609 | EH51: 3.468025825e-05 | EI51: 5.987104326e-05 | EJ51: 0.0001049022969 | EK51: 3.163302905e-05 | EL51: 7.876249927e-05 | EM51: 0.0002463593419 | EN51: 8.389460441e-05
A52: p1836_383.0953_6.05 | B52: p1836 | C52: 383.0953 | D52: 6.05 | G52: 12.135 | H52: 3.6011 | I52: 1.07E-13 | J52: =ROUND(H52,1) -> 3.6 | K52: B. rapa | L52: 0.27508 | M52: -1.8621 | N52: 0.13403 | P52: 0.82893 | Q52: -0.27068 | R52: 0.99532 | U52: 0.0001943158422 | V52: 0.0001510312408 | W52: 0.002925883595 | X52: 0.0001807470049 | Y52: 3.923335167e-05 | Z52: 0.0006057128067 | AA52: 6.928168635e-05 | AB52: 3.857999511e-05 | AC52: 0.0002282777874 | AD52: 0.0005231192051 | AE52: 0.003217498044 | AF52: 0.001133605896 | AG52: 0.004074781963 | AH52: 0.002590719644 | AI52: 0.008814926635 | AJ52: 0.008991205957 | AK52: 0.002136371605 | AL52: 0.003093330847 | AM52: 0.000357214587 | AN52: 0.0002259830762 | AO52: 0.0001827581594 | AP52: 0.0002439725705 | AQ52: 0.0004540679896 | AR52: 0.0005715082241 | AS52: 0.0002441807661 | AT52: 0.0003210229572 | AU52: 0.0002323807083 | AV52: 0.005423762975 | AW52: 0.002104613224 | AX52: 0.002906141172 | AY52: 0.0001395251803 | AZ52: 0.0001135444828 | BA52: 9.465855308e-05 | BB52: 4.487165105e-05 | BC52: 4.846405738e-05 | BD52: 6.41561434e-05 | BE52: 0.0007284983818 | BF52: 8.376967748e-05 | BG52: 6.523651148e-05 | BH52: 0.0001496539414 | BI52: 0.000148508095 | BJ52: 6.381593228e-05 | BK52: 4.368005216e-05 | BL52: 3.982384795e-05 | BM52: 8.090536961e-05 | BN52: 9.111578958e-05 | BO52: 7.556696693e-05 | BP52: 1.813418674e-05 | BQ52: 7.069831918e-05 | BR52: 3.464893607e-05 | BS52: 7.458108675e-05 | BT52: 3.927603545e-05 | BU52: 9.59116148e-05 | BV52: 2.586415601e-05 | BW52: 6.521370899e-05 | BX52: 0.0001227949788 | BY52: 4.144513466e-05 | BZ52: 9.135876043e-05 | CA52: 3.948473817e-05 | CB52: 8.691818136e-05 | CC52: 6.256056565e-05 | CD52: 5.994977066e-05 | CE52: 0.0002843634607 | CF52: 0.0008027139376 | CG52: 0.001888091106 | CH52: 0.0003711393112 | CI52: 0.0001925438548 | CJ52: 0.0004168909624 | CK52: 0.0002762209362 | CL52: 0.000111551274 | CM52: 6.849591896e-05 | CN52: 6.360839235e-05 | CO52: 0.0003190701385 | CP52: 0.0003680710474 | CQ52: 0.002561978953 | CR52: 0.005685213761 | CS52: 0.004186357097 | CT52: 0.0008439248142 | CU52: 0.004255124205 | CV52: 0.003959613391 | CW52: 0.000674671056 | CX52: 0.0007305183319 | CY52: 0.0007149398715 | CZ52: 0.0004263922117 | DA52: 0.0004221063358 | DB52: 0.0004924187535 | DC52: 0.0003219403089 | DD52: 0.0004452371682 | DE52: 0.0006006006006 | DF52: 0.0001349170042 | DG52: 0.0009019495574 | DH52: 0.001785474511 | DI52: 1.338434329e-05 | DJ52: 8.161096293e-05 | DK52: 0.0002540975797 | DL52: 5.030907089e-05 | DM52: 6.4191976e-05 | DN52: 5.033411516e-05 | DO52: 4.333988481e-05 | DP52: 8.867119875e-05 | DQ52: 0.0002287428003 | DR52: 3.321868143e-05 | DS52: 0.0001053399503 | DT52: 5.72730231e-05 | DU52: 0.0001634873863 | DV52: 6.844708367e-05 | DW52: 0.0001188552024 | DX52: 4.980520205e-05 | DY52: 0.0001739342747 | DZ52: 6.328645752e-05 | EA52: 3.99094893e-05 | EB52: 5.426737055e-06 | EC52: 6.092305117e-05 | ED52: 6.612106695e-05 | EE52: 5.962148733e-06 | EF52: 2.980534123e-05 | EG52: 7.428040854e-05 | EH52: 1.688420316e-05 | EI52: 6.942434912e-05 | EJ52: 6.006105107e-05 | EK52: 8.796222457e-05 | EL52: 6.626636373e-05 | EM52: 4.37503081e-05 | EN52: 9.81073137e-05
A53: n42_450.057_0.75 | B53: n42 | C53: 450.057 | D53: 0.75 | E53: Glucosinolates | F53: Glucoalyssin | G53: 12.075 | H53: 3.594 | I53: 4.31E-16 | J53: =ROUND(H53,1) -> 3.6 | K53: B. rapa | L53: 0.4627 | M53: -1.1118 | N53: 0.66634 | P53: 0.60246 | Q53: -0.73106 | R53: 0.38076 | U53: 0.0004192597109 | V53: 0.001293223136 | W53: 0.04643102925 | X53: 0.0002597577964 | Y53: 0.0001393622305 | Z53: 0.00164972946 | AA53: 3.812698053e-05 | AB53: 0.0002514685922 | AC53: 0.001085953878 | AD53: 0.001681600304 | AE53: 0.009509109205 | AF53: 0.004191680236 | AG53: 0.001296108072 | AH53: 0.006597565878 | AI53: 0.008409391428 | AJ53: 0.006162887407 | AK53: 0.005788748617 | AL53: 0.005351470117 | AM53: 0.001493947986 | AN53: 0.0005438432377 | AO53: 0.001370357283 | AP53: 0.0007298994144 | AQ53: 0.001143687606 | AR53: 0.0008417030158 | AS53: 0.001112032499 | AT53: 0.0009160014239 | AU53: 0.001274366438 | AV53: 0.01526928432 | AW53: 0.003926890401 | AX53: 0.009978563512 | AY53: 0.0004335774601 | AZ53: 0.000340388866 | BA53: 0.0007615911575 | BB53: 0.0001358322799 | BC53: 0.0001650161828 | BD53: 0.000593654043 | BE53: 0.002736490285 | BF53: 0.0003671138279 | BG53: 0.0008481526015 | BH53: 0.000230607837 | BI53: 0.0003197644568 | BJ53: 0.0002184051116 | BK53: 0.000111581226 | BL53: 0.0002543527631 | BM53: 0.0001723914452 | BN53: 0.0001198473757 | BO53: 0.000435711965 | BP53: 1.654383083e-05 | BQ53: 3.331050146e-05 | BR53: 0.000169052145 | BS53: 0.0001024067957 | BT53: 7.959216356e-05 | BU53: 0.0002587997488 | BV53: 2.330497722e-05 | BW53: 0.0002042611025 | BX53: 0.0006156608971 | BY53: 7.511047664e-05 | BZ53: 0.0001543472814 | CA53: 0.0003132841806 | CB53: 5.593726662e-05 | CC53: 0.0002059628072 | CD53: 0.0003294229608 | CE53: 0.0001534554493 | CF53: 0.0005039631387 | CG53: 0.0004731344664 | CH53: 0.0002697496969 | CI53: 0.0001816931074 | CJ53: 0.000119102153 | CK53: 0.0001701618726 | CL53: 0.0001625858899 | CM53: 0.0001075955667 | CN53: 0.0001392412787 | CO53: 0.0001838151012 | CP53: 0.0001294966786 | CQ53: 0.00180990082 | CR53: 0.001335192564 | CS53: 0.002423652589 | CT53: 0.0007865756519 | CU53: 0.0004706593128 | CV53: 0.001195189027 | CW53: 0.0001779849243 | CX53: 0.0003695677869 | CY53: 0.0001576628724 | CZ53: 9.01979641e-05 | DA53: 0.0003635966827 | DB53: 0.0001152341916 | DC53: 0.0001112325814 | DD53: 0.0003015823078 | DE53: 0.000261137352 | DF53: 0.000222792239 | DG53: 0.0005831087104 | DH53: 0.0008914320821 | DI53: 1.497427847e-05 | DJ53: 5.669335979e-05 | DK53: 0.0001432130001 | DL53: 9.400373465e-05 | DM53: 7.070032117e-05 | DN53: 4.767278225e-05 | DO53: 3.652280459e-05 | DP53: 7.511650724e-05 | DQ53: 0.000189871364 | DR53: 4.180146504e-05 | DS53: 8.282462037e-05 | DT53: 4.393268379e-05 | DU53: 8.55709855e-05 | DV53: 8.571239071e-05 | DW53: 8.738333874e-05 | DX53: 7.918889585e-05 | DY53: 0.0001721889045 | DZ53: 7.600640625e-05 | EA53: 5.592614843e-05 | EB53: 2.438908207e-05 | EC53: 3.713099631e-05 | ED53: 6.896002415e-05 | EE53: 2.463440281e-05 | EF53: 9.071807678e-05 | EG53: 6.382589134e-05 | EH53: 2.348142486e-05 | EI53: 7.342675117e-05 | EJ53: 8.227631128e-05 | EK53: 9.36824322e-05 | EL53: 7.61941569e-05 | EM53: 0.0001089842442 | EN53: 0.0001102614801
A54: p2452_517.2659_4.07 | B54: p2452 | C54: 517.2659 | D54: 4.07 | G54: 12.074 | H54: 3.5938 | I54: 7.97E-06 | J54: =ROUND(H54,1) -> 3.6 | K54: B. rapa | L54: 0.6684 | M54: -0.58121 | N54: 0.94123 | P54: 0.29053 | Q54: -1.7832 | R54: 0.54294 | U54: 0.0002636331895 | V54: 0.0002274148569 | W54: 0.0007806390564 | X54: 3.946441156e-05 | Y54: 2.091117729e-05 | Z54: 8.148979507e-05 | AA54: 2.776877307e-05 | AB54: 4.568683632e-05 | AC54: 0.0001411171777 | AD54: 0.01329371907 | AE54: 0.005770859465 | AF54: 0.005627836505 | AG54: 6.36481722e-05 | AH54: 0.0001011392053 | AI54: 3.615099284e-05 | AJ54: 7.036007671e-05 | AK54: 4.521421387e-05 | AL54: 6.587236911e-05 | AM54: 0.000378733538 | AN54: 6.072672972e-05 | AO54: 9.137907969e-05 | AP54: 0.00230066134 | AQ54: 0.005629978552 | AR54: 0.0009801476091 | AS54: 0.0001042234977 | AT54: 0.0001843938093 | AU54: 3.669169079e-05 | AV54: 0.0009291544896 | AW54: 9.571003171e-05 | AX54: 0.0004787105327 | AY54: 0.02645769486 | AZ54: 0.02829341005 | BA54: 0.009394861393 | BB54: 9.423046721e-05 | BC54: 0.0001060969905 | BD54: 0.0001111437414 | BE54: 0.006965547619 | BF54: 0.0001205107641 | BG54: 0.0001692072016 | BH54: 0.0001424417032 | BI54: 0.0001863445523 | BJ54: 0.0001176036466 | BK54: 4.368005216e-05 | BL54: 8.40725679e-05 | BM54: 5.345533349e-05 | BN54: 6.255710927e-05 | BO54: 8.673026886e-05 | BP54: 1.441995572e-05 | BQ54: 0.0001112458846 | BR54: 0.0001229697535 | BS54: 7.593710651e-05 | BT54: 3.042509789e-05 | BU54: 0.0001737804506 | BV54: 1.737144807e-05 | BW54: 6.877082039e-05 | BX54: 7.326423106e-05 | BY54: 6.269904987e-05 | BZ54: 0.0001639451728 | CA54: 9.241108933e-05 | CB54: 6.357904007e-05 | CC54: 9.741573794e-05 | CD54: 9.691879589e-05 | CE54: 0.001121579183 | CF54: 0.003000904993 | CG54: 0.003832824946 | CH54: 0.001542113609 | CI54: 0.0009956618807 | CJ54: 0.001068245708 | CK54: 0.0007279841496 | CL54: 0.0005338075088 | CM54: 0.0003931070132 | CN54: 0.0001302252898 | CO54: 0.001129784409 | CP54: 0.0008093930763 | CQ54: 0.003715092706 | CR54: 0.006429138972 | CS54: 0.006472081724 | CT54: 0.0006783874509 | CU54: 0.003759725129 | CV54: 0.006859814483 | CW54: 0.0005920331022 | CX54: 0.001307503998 | CY54: 0.001690104303 | CZ54: 0.0009020156181 | DA54: 0.00113205059 | DB54: 0.0006418042181 | DC54: 0.0004083781832 | DD54: 0.001539847505 | DE54: 0.001225566337 | DF54: 0.0003389332663 | DG54: 0.004814309804 | DH54: 0.006633974039 | DI54: 3.423007334e-05 | DJ54: 0.0001351681574 | DK54: 0.0005031300914 | DL54: 0.0001443293017 | DM54: 0.0002135733033 | DN54: 0.0001327562287 | DO54: 0.0006122911386 | DP54: 0.0003740105691 | DQ54: 0.001038962625 | DR54: 3.561042649e-05 | DS54: 0.0001206066098 | DT54: 0.0001071699751 | DU54: 0.000153148263 | DV54: 9.804582255e-05 | DW54: 0.0001234265563 | DX54: 0.0001379738705 | DY54: 0.0004194174109 | DZ54: 4.283022883e-05 | EA54: 2.723235741e-05 | EB54: 1.931279952e-05 | EC54: 8.669818821e-05 | ED54: 7.007702822e-05 | EE54: 4.686639865e-05 | EF54: 0.0003437126584 | EG54: 0.0001580968155 | EH54: 3.848872117e-05 | EI54: 0.0001283032275 | EJ54: 0.0002483293458 | EK54: 7.69669465e-05 | EL54: 5.869306502e-05 | EM54: 5.484193551e-05 | EN54: 0.0005187914749
A55: p1337_338.1091_0.89 | B55: p1337 | C55: 338.1091 | D55: 0.89 | G55: 12.067 | H55: 3.593 | I55: 4.03E-21 | J55: =ROUND(H55,1) -> 3.6 | K55: B. rapa | L55: 1.9134 | M55: 0.93615 | N55: 0.085809 | P55: 2.183 | Q55: 1.1263 | R55: 0.13928 | U55: 0.002712467342 | V55: 0.004828659728 | W55: 0.008462974576 | X55: 0.001138548273 | Y55: 0.0009637065417 | Z55: 0.002684962733 | AA55: 0.001233606707 | AB55: 0.0007375885908 | AC55: 0.001363440966 | AD55: 0.002333035287 | AE55: 0.006884320158 | AF55: 0.005891141492 | AG55: 0.004917795509 | AH55: 0.01105218116 | AI55: 0.02058700448 | AJ55: 0.04090761922 | AK55: 0.0129950495 | AL55: 0.04479410116 | AM55: 0.003253665395 | AN55: 0.000724738676 | AO55: 0.001174334454 | AP55: 0.001942021661 | AQ55: 0.001364526567 | AR55: 0.00414655261 | AS55: 0.00299865892 | AT55: 0.003032500599 | AU55: 0.002027395777 | AV55: 0.01355839968 | AW55: 0.01015231568 | AX55: 0.01552126843 | AY55: 0.00100830197 | AZ55: 0.0006979339765 | BA55: 0.001077727068 | BB55: 0.0006158634107 | BC55: 0.0003340090441 | BD55: 0.0006162604197 | BE55: 0.006411705 | BF55: 0.0003541840749 | BG55: 0.0006788674476 | BH55: 0.0002614436325 | BI55: 0.0006186260772 | BJ55: 0.0001786846104 | BK55: 0.0002112289089 | BL55: 0.0002531026781 | BM55: 0.0003554057308 | BN55: 0.0001523129617 | BO55: 0.0005761981228 | BP55: 7.9965209e-05 | BQ55: 0.0001122855658 | BR55: 0.0001875118893 | BS55: 0.0002779840506 | BT55: 0.0002505921699 | BU55: 0.0002867852245 | BV55: 7.527627496e-05 | BW55: 0.0002051267574 | BX55: 0.001257874615 | BY55: 0.0001764074963 | BZ55: 0.0001176400477 | CA55: 0.0002864743769 | CB55: 0.0001834939384 | CC55: 0.0001617637483 | CD55: 0.0005315546332 | CE55: 0.001049332685 | CF55: 0.00062275445 | CG55: 0.001118095736 | CH55: 0.0001418271602 | CI55: 9.730013404e-05 | CJ55: 4.914004914e-05 | CK55: 3.913723069e-05 | CL55: 0.0001178747702 | CM55: 8.466536393e-05 | CN55: 0.002568026449 | CO55: 0.004515505492 | CP55: 0.003363213738 | CQ55: 0.0001174673523 | CR55: 7.137522613e-05 | CS55: 4.709169538e-05 | CT55: 4.08128876e-05 | CU55: 3.192297948e-05 | CV55: 9.343831739e-05 | CW55: 0.00139620947 | CX55: 0.000162720145 | CY55: 0.001801546388 | CZ55: 0.001850158239 | DA55: 0.002160192056 | DB55: 0.001427823656 | DC55: 6.273000231e-05 | DD55: 5.130008328e-05 | DE55: 0.0001196446035 | DF55: 8.058995811e-05 | DG55: 0.0001958465426 | DH55: 0.0005553183462 | DI55: 0.003757745267 | DJ55: 0.01637800298 | DK55: 0.02408820796 | DL55: 9.995333811e-05 | DM55: 7.932231156e-05 | DN55: 5.936610619e-05 | DO55: 9.189608897e-05 | DP55: 5.61310164e-05 | DQ55: 0.0006406702465 | DR55: 5.170181203e-05 | DS55: 0.0001179197985 | DT55: 9.707705934e-05 | DU55: 9.04607561e-05 | DV55: 8.809329045e-05 | DW55: 7.026701466e-05 | DX55: 9.296087773e-05 | DY55: 2.481108134e-05 | DZ55: 5.605472461e-05 | EA55: 5.665246205e-05 | EB55: 2.134044682e-05 | EC55: 5.811808118e-05 | ED55: 5.502129586e-05 | EE55: 2.439288905e-05 | EF55: 7.559839731e-05 | EG55: 0.0001663658479 | EH55: 2.673269907e-05 | EI55: 6.664889721e-05 | EJ55: 0.0001172437436 | EK55: 7.908257263e-05 | EL55: 4.366182025e-05 | EM55: 8.517256057e-05 | EN55: 0.0001989500619
A56: n539_788.1944_2.74 | B56: n539 | C56: 788.1944 | D56: 2.74 | G56: 11.968 | H56: 3.5811 | I56: 5.02E-06 | J56: =ROUND(H56,1) -> 3.6 | K56: B. rapa | L56: 0.2367 | M56: -2.0789 | N56: 0.35438 | P56: 0.63975 | Q56: -0.64443 | R56: 0.6537 | U56: 2.156752994e-05 | V56: 3.282730738e-05 | W56: 0.0003506875321 | X56: 1.866523088e-05 | Y56: 2.283742358e-05 | Z56: 0.0002569387113 | AA56: 5.412598488e-06 | AB56: 2.342875083e-05 | AC56: 0.0002424573877 | AD56: 0.0001165881535 | AE56: 0.0005428892622 | AF56: 0.0007615307023 | AG56: 3.684794939e-05 | AH56: 0.0006702971383 | AI56: 0.006733533288 | AJ56: 0.00109733248 | AK56: 0.001316562831 | AL56: 0.00336187718 | AM56: 4.935363883e-05 | AN56: 2.963911181e-05 | AO56: 5.531525971e-05 | AP56: 4.189754947e-05 | AQ56: 0.0002103820411 | AR56: 0.000137406809 | AS56: 7.500512457e-05 | AT56: 6.727390011e-05 | AU56: 0.0002784838773 | AV56: 0.001064884433 | AW56: 0.0001542735866 | AX56: 0.003183509539 | AY56: 6e-08 | AZ56: 6.083992058e-05 | BA56: 0.0001179455332 | BB56: 2.732720423e-05 | BC56: 2.16414666e-05 | BD56: 9.825997953e-05 | BE56: 0.0001251197623 | BF56: 6e-08 | BG56: 3.23017857e-05 | BH56: 6.05345572e-05 | BI56: 3.963467007e-05 | BJ56: 9.5261804e-05 | BK56: 1.48774968e-05 | BL56: 5.009978666e-05 | BM56: 6e-08 | BN56: 1.209997543e-05 | BO56: 8.25937516e-05 | BP56: 3.051774618e-06 | BQ56: 2.674934208e-05 | BR56: 3.736942152e-05 | BS56: 4.294478528e-05 | BT56: 1.793626221e-05 | BU56: 4.421704251e-05 | BV56: 1.398298633e-06 | BW56: 1.90270616e-05 | BX56: 8.887155209e-05 | BY56: 1.482113084e-05 | BZ56: 1.122525683e-05 | CA56: 6.519208382e-05 | CB56: 1.568334578e-05 | CC56: 5.149070179e-05 | CD56: 7.076493232e-05 | CE56: 0.008056411088 | CF56: 0.01419016209 | CG56: 0.02728951653 | CH56: 0.007042691829 | CI56: 0.005502421866 | CJ56: 0.004206055054 | CK56: 0.005506438196 | CL56: 0.002506532469 | CM56: 0.003856683713 | CN56: 0.001317576269 | CO56: 0.0039060709 | CP56: 0.005608131158 | CQ56: 0.01718457004 | CR56: 0.04863412742 | CS56: 0.03958370941 | CT56: 0.01068184576 | CU56: 0.03048971955 | CV56: 0.07162919803 | CW56: 0.005730665862 | CX56: 0.003335762972 | CY56: 0.01843442815 | CZ56: 0.004776092197 | DA56: 0.007519423832 | DB56: 0.006923054169 | DC56: 0.004652367388 | DD56: 0.0144005552 | DE56: 0.00901392039 | DF56: 0.005898145063 | DG56: 0.0286157498 | DH56: 0.03335667871 | DI56: 0.0001457496438 | DJ56: 0.001179221884 | DK56: 0.002627029306 | DL56: 0.001004293064 | DM56: 0.001449356584 | DN56: 0.001757596538 | DO56: 0.0003935037656 | DP56: 0.0001609639441 | DQ56: 0.0111266949 | DR56: 0.0002134074794 | DS56: 0.0004576411227 | DT56: 0.0008240921169 | DU56: 0.0005093511042 | DV56: 0.0002095191773 | DW56: 0.0006125842303 | DX56: 0.000390779986 | DY56: 0.004982561354 | DZ56: 0.0001197100899 | EA56: 9.296814285e-05 | EB56: 0.0001295669985 | EC56: 0.000948454797 | ED56: 0.001461365618 | EE56: 0.0005013825512 | EF56: 0.0005430484874 | EG56: 0.003379633263 | EH56: 0.0002741907918 | EI56: 0.0008235092554 | EJ56: 0.0005337675694 | EK56: 0.0001691150399 | EL56: 0.0001284171184 | EM56: 0.0005220253712 | EN56: 0.0007910062701
A57: p1916_659.1611_9.79 | B57: p1916 | C57: 659.1611 | D57: 9.79 | G57: 11.778 | H57: 3.5581 | I57: 3.51E-22 | J57: =ROUND(H57,1) -> 3.6 | K57: B. rapa | L57: 1.0137 | M57: 0.019578 | N57: 0.9725 | P57: 0.76217 | Q57: -0.39181 | R57: 0.29612 | U57: 0.0008551033409 | V57: 0.001204777944 | W57: 0.002099858547 | X57: 0.0001917970402 | Y57: 0.00015514102 | Z57: 0.0005166621028 | AA57: 0.000189893529 | AB57: 0.0006517988648 | AC57: 0.001138276058 | AD57: 0.001370801421 | AE57: 0.000988700565 | AF57: 0.0011032561 | AG57: 0.0003740953795 | AH57: 0.0005119199778 | AI57: 0.0004587889636 | AJ57: 0.0002719687581 | AK57: 0.000167131112 | AL57: 0.0001967269402 | AM57: 0.0001527845523 | AN57: 0.0003205574913 | AO57: 3.624955227e-05 | AP57: 0.0007380170258 | AQ57: 0.0005934238944 | AR57: 0.0005384942702 | AS57: 0.0003052259576 | AT57: 0.0003387958545 | AU57: 0.0003129585391 | AV57: 0.003319560617 | AW57: 0.001700616142 | AX57: 0.001359537913 | AY57: 0.0001172011515 | AZ57: 0.0001083360202 | BA57: 0.0001114210052 | BB57: 6.730747658e-05 | BC57: 9.430843599e-05 | BD57: 7.409582759e-05 | BE57: 8.043357527e-05 | BF57: 0.0001146321902 | BG57: 0.000122318459 | BH57: 0.0001027743935 | BI57: 5.202512881e-05 | BJ57: 6.108096375e-05 | BK57: 2.412181985e-05 | BL57: 4.513369435e-05 | BM57: 9.968697327e-05 | BN57: 5.983723495e-05 | BO57: 5.324036306e-05 | BP57: 1.704176585e-05 | BQ57: 6.549991336e-05 | BR57: 8.220629931e-05 | BS57: 8.94973041e-05 | BT57: 4.259513704e-05 | BU57: 3.893441789e-05 | BV57: 1.428319063e-05 | BW57: 8.655637739e-05 | BX57: 7.12004499e-05 | BY57: 3.24122207e-05 | BZ57: 9.010727056e-05 | CA57: 8.232987959e-05 | CB57: 4.184949473e-05 | CC57: 5.183589725e-05 | CD57: 6.09489335e-05 | CE57: 1.311384891e-05 | CF57: 6.954204905e-05 | CG57: 7.215205299e-05 | CH57: 5.358695937e-05 | CI57: 6.020545314e-05 | CJ57: 0.0001483342305 | CK57: 2.71057928e-05 | CL57: 3.970469074e-05 | CM57: 4.417490426e-05 | CN57: 1.306550762e-05 | CO57: 7.056358831e-05 | CP57: 4.721964095e-05 | CQ57: 0.0001109744431 | CR57: 0.0009421651686 | CS57: 0.0008644305504 | CT57: 4.172263245e-05 | CU57: 0.0003228940405 | CV57: 0.00102174735 | CW57: 9.867218369e-06 | CX57: 3.797044437e-05 | CY57: 8.470851558e-05 | CZ57: 4.088692441e-05 | DA57: 3.440628184e-05 | DB57: 4.549186987e-05 | DC57: 2.935625917e-05 | DD57: 6.510283252e-05 | DE57: 1.705559515e-05 | DF57: 1.237598649e-05 | DG57: 0.0002317957548 | DH57: 0.000356062836 | DI57: 5.461427433e-06 | DJ57: 3.133278041e-05 | DK57: 3.883218827e-05 | DL57: 3.051533808e-05 | DM57: 1.019872516e-05 | DN57: 1.510023455e-05 | DO57: 4.518413523e-05 | DP57: 3.012547137e-05 | DQ57: 5.059420192e-05 | DR57: 1.116147696e-05 | DS57: 7.175329951e-05 | DT57: 9.545503851e-06 | DU57: 3.941790736e-05 | DV57: 2.77488177e-05 | DW57: 4.34278624e-05 | DX57: 3.970955298e-05 | DY57: 9.875758353e-06 | DZ57: 1.853845725e-05 | EA57: 2.300664677e-05 | EB57: 3.351808181e-06 | EC57: 3.514791414e-05 | ED57: 3.95596127e-05 | EE57: 6e-08 | EF57: 2.156131067e-05 | EG57: 2.258525935e-05 | EH57: 7.625124006e-06 | EI57: 7.733345218e-05 | EJ57: 6e-08 | EK57: 2.114476552e-05 | EL57: 6e-08 | EM57: 1.232403045e-05 | EN57: 3.217919889e-05
A58: p2041_174.0548_17.16 | B58: p2041 | C58: 174.0548 | D58: 17.16 | G58: 11.733 | H58: 3.5525 | I58: 1.90E-19 | J58: =ROUND(H58,1) -> 3.6 | K58: B. rapa | L58: 0.55313 | M58: -0.85431 | N58: 0.48353 | P58: 0.6127 | Q58: -0.70674 | R58: 0.93175 | U58: 0.0007124914216 | V58: 0.0002109229398 | W58: 0.0002904703466 | X58: 0.0001223396758 | Y58: 9.718718586e-05 | Z58: 0.007417251554 | AA58: 0.0007769646607 | AB58: 0.001682290839 | AC58: 0.004575932011 | AD58: 0.0004142951369 | AE58: 0.0001772907085 | AF58: 0.001533895098 | AG58: 0.001285303396 | AH58: 0.0005578216171 | AI58: 0.0005442367649 | AJ58: 0.005700519292 | AK58: 0.002830732747 | AL58: 0.00137441808 | AM58: 0.01695262962 | AN58: 0.0004659034345 | AO58: 0.002799522714 | AP58: 0.00460132268 | AQ58: 0.0002972925968 | AR58: 0.0004049711678 | AS58: 0.005175441115 | AT58: 0.003330196629 | AU58: 0.001377017572 | AV58: 0.002122342034 | AW58: 0.0004906398467 | AX58: 0.0005729796837 | AY58: 0.001460363554 | AZ58: 0.001067734815 | BA58: 0.0008154439937 | BB58: 8.97433021e-05 | BC58: 6.680180883e-05 | BD58: 0.0001725890618 | BE58: 0.001574199973 | BF58: 5.878573858e-05 | BG58: 0.0002059027394 | BH58: 0.0001514570009 | BI58: 5.013330595e-05 | BJ58: 8.296071196e-05 | BK58: 4.107228785e-05 | BL58: 7.079795192e-05 | BM58: 0.0001878160366 | BN58: 7.343660653e-05 | BO58: 4.465320773e-05 | BP58: 1.857115509e-05 | BQ58: 4.886501473e-05 | BR58: 8.492386293e-05 | BS58: 0.0002671358926 | BT58: 7.191386773e-05 | BU58: 0.0002848859846 | BV58: 0.000204597055 | BW58: 3e-07 | BX58: 7.63599028e-05 | BY58: 3.666300374e-05 | BZ58: 0.000105125149 | CA58: 0.0001461775413 | CB58: 0.0001054285348 | CC58: 5.004845252e-05 | CD58: 0.0008392967892 | CE58: 0.001119576377 | CF58: 0.00111111873 | CG58: 0.001274449983 | CH58: 0.0005339375444 | CI58: 0.0005162864255 | CJ58: 0.0006454836963 | CK58: 0.001524650378 | CL58: 0.0009457079261 | CM58: 0.0015539622 | CN58: 9.524647726e-05 | CO58: 0.0008206031303 | CP58: 0.0007816049528 | CQ58: 0.0003343301564 | CR58: 0.0005034332617 | CS58: 0.0007605308804 | CT58: 8.626360333e-05 | CU58: 0.0001833524975 | CV58: 0.0004343341566 | CW58: 0.0001316191037 | CX58: 0.0001723730349 | CY58: 7.387001712e-05 | CZ58: 0.0009107794424 | DA58: 0.001388694893 | DB58: 0.0009416794097 | DC58: 0.0007760412657 | DD58: 0.0003513278431 | DE58: 0.000616949999 | DF58: 0.0005357932376 | DG58: 0.001541959204 | DH58: 0.001995805786 | DI58: 2.93495858e-05 | DJ58: 5.38586918e-05 | DK58: 6.231405346e-05 | DL58: 5.83061139e-05 | DM58: 8.277110771e-05 | DN58: 9.174761866e-05 | DO58: 5.183881942e-05 | DP58: 2.889096432e-05 | DQ58: 5.47481847e-05 | DR58: 3.410119517e-05 | DS58: 7.720939187e-05 | DT58: 4.464127547e-05 | DU58: 1.792915887e-05 | DV58: 3.571349613e-05 | DW58: 5.585326806e-05 | DX58: 7.058140717e-05 | DY58: 6.004281684e-05 | DZ58: 4.750400391e-05 | EA58: 6.028403013e-05 | EB58: 2.172152622e-05 | EC58: 5.488929889e-05 | ED58: 4.254980213e-05 | EE58: 1.424931143e-05 | EF58: 8.441821033e-05 | EG58: 5.336263046e-05 | EH58: 3e-07 | EI58: 7.229710884e-05 | EJ58: 4.628042509e-05 | EK58: 4.379957869e-05 | EL58: 3.595679314e-05 | EM58: 6.136087697e-05 | EN58: 5.872622308e-05
A59: p2451_291.0976_4.36 | B59: p2451 | C59: 291.0976 | D59: 4.36 | G59: 11.61 | H59: 3.5373 | I59: 1.22E-11 | J59: =ROUND(H59,1) -> 3.5 | K59: B. rapa | L59: 0.98261 | M59: -0.025309 | N59: 0.72064 | P59: 0.97749 | Q59: -0.03285 | R59: 0.99253 | U59: 0.0002090883917 | V59: 0.0004261858577 | W59: 0.0008351022464 | X59: 4.104298802e-05 | Y59: 2.867818599e-05 | Z59: 0.0001865024176 | AA59: 4.684227377e-05 | AB59: 7.157604356e-05 | AC59: 0.0001618697038 | AD59: 0.01020464289 | AE59: 0.00427749011 | AF59: 0.007942623652 | AG59: 0.0003734459083 | AH59: 0.0002948596832 | AI59: 0.0001662945671 | AJ59: 0.000957979506 | AK59: 0.001133584934 | AL59: 0.0009774035308 | AM59: 0.0005702522021 | AN59: 0.000219014435 | AO59: 0.0001940861445 | AP59: 0.0005855341692 | AQ59: 0.0003600027539 | AR59: 0.0007703255909 | AS59: 0.001807533232 | AT59: 0.0008342153663 | AU59: 0.0006050531755 | AV59: 0.001042023582 | AW59: 0.001124341004 | AX59: 0.0005081696424 | AY59: 0.01180196992 | AZ59: 0.007915821325 | BA59: 0.009690669371 | BB59: 0.0001604161525 | BC59: 0.0001440823328 | BD59: 0.0001129509567 | BE59: 0.000717007871 | BF59: 0.0002028107981 | BG59: 0.0003282211984 | BH59: 0.000391263919 | BI59: 0.0001409408035 | BJ59: 0.0002279140438 | BK59: 8.344845785e-05 | BL59: 0.0001203565183 | BM59: 0.0001964844691 | BN59: 0.0001319139043 | BO59: 0.0001176440281 | BP59: 2.512568042e-05 | BQ59: 0.0001434760007 | BR59: 0.0001535423442 | BS59: 0.0001627223711 | BT59: 0.0001288917783 | BU59: 0.0001747300705 | BV59: 5.018418331e-05 | BW59: 0.0002288408334 | BX59: 0.0001950273193 | BY59: 9.776800997e-05 | BZ59: 0.0001439213349 | CA59: 0.0001629795575 | CB59: 0.0001110621206 | CC59: 9.473457084e-05 | CD59: 8.79263303e-05 | CE59: 0.0003144756038 | CF59: 0.0002063849044 | CG59: 0.0002068436394 | CH59: 0.001090122486 | CI59: 0.0004795506606 | CJ59: 0.0005596968309 | CK59: 0.007815534807 | CL59: 0.003450885512 | CM59: 0.0008872224595 | CN59: 0.0001036372383 | CO59: 0.0005197153158 | CP59: 0.0001720455872 | CQ59: 0.0009270884878 | CR59: 0.0007879824965 | CS59: 0.0004410922134 | CT59: 0.001557846471 | CU59: 0.002146206466 | CV59: 0.00128554696 | CW59: 0.003543993935 | CX59: 0.001343130688 | CY59: 0.00160088455 | CZ59: 0.000793082099 | DA59: 0.002053251855 | DB59: 0.0003583063146 | DC59: 0.003433982601 | DD59: 0.0003738687887 | DE59: 0.001064316777 | DF59: 0.0002399501011 | DG59: 0.0007186947784 | DH59: 0.0002327744196 | DI59: 0.0001860803671 | DJ59: 0.0004344128694 | DK59: 0.0006286066796 | DL59: 7.496500358e-05 | DM59: 8.794430194e-05 | DN59: 5.396918745e-05 | DO59: 9.307424396e-05 | DP59: 4.787645516e-05 | DQ59: 0.000179387669 | DR59: 0.0001039536433 | DS59: 8.142081325e-05 | DT59: 3.401240035e-05 | DU59: 7.008671193e-05 | DV59: 9.166464007e-05 | DW59: 8.377990209e-05 | DX59: 9.123938e-05 | DY59: 0.0001230629634 | DZ59: 5.22544043e-05 | EA59: 5.084195312e-05 | EB59: 4.61106083e-05 | EC59: 0.0002478090406 | ED59: 0.0003748784291 | EE59: 2.318532029e-05 | EF59: 0.0001511967946 | EG59: 0.0001014936305 | EH59: 4.732410241e-05 | EI59: 8.698245908e-05 | EJ59: 0.0001193006514 | EK59: 0.0001849315545 | EL59: 0.0002576903509 | EM59: 0.0001099000782 | EN59: 0.0001222464236
A60: n922_689.1727_8.64 | B60: n922 | C60: 689.1727 | D60: 8.64 | G60: 11.558 | H60: 3.5308 | I60: 8.19E-17 | J60: =ROUND(H60,1) -> 3.5 | K60: B. rapa | L60: 1.0614 | M60: 0.085967 | N60: 0.88791 | P60: 0.77806 | Q60: -0.36204 | R60: 0.90237 | T60: X | U60: 0.0002761297394 | V60: 0.0003598045665 | W60: 0.0009782336423 | X60: 7.29858387e-05 | Y60: 3.656385402e-05 | Z60: 0.000246128992 | AA60: 3.816677905e-05 | AB60: 0.0003929782472 | AC60: 0.000916233707 | AD60: 0.0005104670503 | AE60: 0.0002823495729 | AF60: 0.0002772167439 | AG60: 0.0001169736917 | AH60: 0.0001683418004 | AI60: 0.0002204878468 | AJ60: 0.0001954265743 | AK60: 0.0001303527555 | AL60: 0.0002911171684 | AM60: 0.0006322601299 | AN60: 0.000474225789 | AO60: 9.184420479e-05 | AP60: 0.0005593690376 | AQ60: 0.0005591361629 | AR60: 0.0003093379418 | AS60: 0.0004875333097 | AT60: 0.0002459533788 | AU60: 0.0004530408003 | AV60: 0.000940128098 | AW60: 0.0004012732922 | AX60: 0.0007247409034 | AY60: 0.0001261097876 | AZ60: 0.0001174839846 | BA60: 0.0001213154056 | BB60: 3.938332375e-05 | BC60: 3.719627071e-05 | BD60: 8.051859434e-05 | BE60: 8.744929623e-05 | BF60: 6e-08 | BG60: 2.953306121e-05 | BH60: 2.450208268e-05 | BI60: 3.694757379e-05 | BJ60: 6.273338312e-05 | BK60: 1.46019876e-05 | BL60: 4.720941436e-05 | BM60: 5.746381508e-05 | BN60: 2.592851878e-05 | BO60: 8.738179517e-05 | BP60: 2.248676035e-06 | BQ60: 6e-08 | BR60: 4.715665096e-05 | BS60: 4.955167532e-05 | BT60: 6e-08 | BU60: 5.982305752e-05 | BV60: 4.816361958e-06 | BW60: 1.790782268e-05 | BX60: 3.735181175e-05 | BY60: 3.391275701e-05 | BZ60: 2.946629917e-05 | CA60: 7.062475747e-05 | CB60: 9.410007468e-06 | CC60: 6e-08 | CD60: 4.27029764e-05 | CE60: 0.0006138217972 | CF60: 0.001309104248 | CG60: 0.0005390964144 | CH60: 0.0002906066322 | CI60: 0.0001112001532 | CJ60: 0.0001166035064 | CK60: 0.0002280169092 | CL60: 0.0001978128327 | CM60: 0.0001058317049 | CN60: 0.001444118017 | CO60: 0.01030896359 | CP60: 0.004087470161 | CQ60: 0.0002999935457 | CR60: 0.0004910615558 | CS60: 0.0002535102935 | CT60: 0.0004266801885 | CU60: 0.001136130654 | CV60: 0.001243448378 | CW60: 0.0005332069372 | CX60: 0.00138863717 | CY60: 0.001294379106 | CZ60: 0.0006753847556 | DA60: 0.002632256656 | DB60: 0.001462033806 | DC60: 0.00100562014 | DD60: 0.001131710928 | DE60: 0.001384756237 | DF60: 0.0001882165473 | DG60: 0.0008276953428 | DH60: 0.0009634564541 | DI60: 0.00254962048 | DJ60: 0.0111466232 | DK60: 0.01482309212 | DL60: 0.0002653523143 | DM60: 0.0001267432587 | DN60: 0.0001268275905 | DO60: 0.0003169236915 | DP60: 0.0001551857512 | DQ60: 0.0005125361972 | DR60: 9.460331562e-05 | DS60: 0.0001600340122 | DT60: 0.0001480956599 | DU60: 0.0001988506711 | DV60: 0.0002083287274 | DW60: 0.0001693615225 | DX60: 0.0001833395089 | DY60: 0.0001106574228 | DZ60: 0.0001235104102 | EA60: 0.0001300101373 | EB60: 4.039441719e-05 | EC60: 0.000224400369 | ED60: 0.0001100425917 | EE60: 2.149472402e-05 | EF60: 0.0001411170083 | EG60: 0.0002437939784 | EH60: 5.382665083e-05 | EI60: 0.0001095753056 | EJ60: 0.0002128899554 | EK60: 0.0002725307118 | EL60: 0.0001481077432 | EM60: 0.0001382909317 | EN60: 0.0001761786693
A61: p1690_280.1187_7.81 | B61: p1690 | C61: 280.1187 | D61: 7.81 | G61: 11.553 | H61: 3.5302 | I61: 1.54E-26 | J61: =ROUND(H61,1) -> 3.5 | K61: B. rapa | L61: 1.0956 | M61: 0.13178 | N61: 0.94144 | P61: 0.85641 | Q61: -0.22363 | R61: 0.77598 | U61: 0.0009079436138 | V61: 0.001154434197 | W61: 0.002121038676 | X61: 0.0001006342495 | Y61: 4.480966561e-05 | Z61: 0.0009089892605 | AA61: 0.0001267826811 | AB61: 0.000431994419 | AC61: 0.0008218000346 | AD61: 0.002165026199 | AE61: 0.001019656086 | AF61: 0.0006545712769 | AG61: 0.0004429393208 | AH61: 0.0004045568213 | AI61: 0.0004140931907 | AJ61: 0.002362474883 | AK61: 0.00168826645 | AL61: 0.002228978544 | AM61: 0.003042779675 | AN61: 0.0009337979094 | AO61: 0.001301207887 | AP61: 0.002165256563 | AQ61: 0.002734859631 | AR61: 0.001591272578 | AS61: 0.0009201445942 | AT61: 0.0003943361585 | AU61: 0.000513683671 | AV61: 0.003494910813 | AW61: 0.001174714705 | AX61: 0.001741033383 | AY61: 0.0003088157324 | AZ61: 0.0003406334483 | BA61: 0.0003303189092 | BB61: 0.0001402239095 | BC61: 8.644939966e-05 | BD61: 0.0001165653873 | BE61: 0.0004757071452 | BF61: 7.642146015e-05 | BG61: 0.0001855163295 | BH61: 0.0002181702037 | BI61: 0.000133373512 | BJ61: 6.65509008e-05 | BK61: 4.433199323e-05 | BL61: 9.469226069e-05 | BM61: 0.0003120635685 | BN61: 0.0001427934016 | BO61: 8.930641546e-05 | BP61: 2.119296523e-05 | BQ61: 8.941258014e-05 | BR61: 6.114518131e-05 | BS61: 0.0001220417783 | BT61: 3.208464868e-05 | BU61: 7.881845573e-05 | BV61: 3.937528229e-05 | BW61: 0.000136355937 | BX61: 0.0001207311977 | BY61: 4.941535287e-05 | BZ61: 9.26102503e-05 | CA61: 0.0001100532064 | CB61: 8.128459553e-05 | CC61: 5.719823145e-05 | CD61: 7.393805048e-05 | CE61: 0.0006418883942 | CF61: 0.0003775139806 | CG61: 0.0006480198404 | CH61: 0.0004604509102 | CI61: 0.0002544532359 | CJ61: 0.0003355463844 | CK61: 0.001293333542 | CL61: 0.0007959845143 | CM61: 0.0007514697196 | CN61: 3.997013844e-05 | CO61: 0.0002945262816 | CP61: 0.000297241586 | CQ61: 0.0001218167737 | CR61: 0.0003656581547 | CS61: 0.0001687311684 | CT61: 6.810937838e-05 | CU61: 0.0001404367916 | CV61: 0.0003766494924 | CW61: 0.0001422523982 | CX61: 0.0002047102218 | CY61: 0.0001050385593 | CZ61: 0.0007660040124 | DA61: 0.001197506444 | DB61: 0.0006540993181 | DC61: 8.643787423e-05 | DD61: 0.0001798603678 | DE61: 0.000275326036 | DF61: 8.503802837e-05 | DG61: 0.0006930399657 | DH61: 0.0005624760742 | DI61: 2.415335512e-05 | DJ61: 3.133278041e-05 | DK61: 3.629965425e-05 | DL61: 3.463903242e-05 | DM61: 9.59880015e-06 | DN61: 2.453788114e-05 | DO61: 6e-08 | DP61: 2.046258433e-05 | DQ61: 3.135415331e-05 | DR61: 1.089572751e-05 | DS61: 3.663998273e-05 | DT61: 2.733485194e-05 | DU61: 3.424834574e-05 | DV61: 0.0001146951132 | DW61: 3.961840079e-05 | DX61: 2.288347121e-05 | DY61: 3.547211164e-05 | DZ61: 6e-08 | EA61: 1.502474891e-05 | EB61: 7.820885755e-06 | EC61: 2.226034562e-05 | ED61: 4.238529932e-05 | EE61: 3.420905011e-06 | EF61: 2.346377926e-05 | EG61: 1.857010214e-05 | EH61: 1.180078715e-05 | EI61: 5.712129991e-05 | EJ61: 5.428595e-05 | EK61: 4.990164663e-05 | EL61: 1.009773162e-05 | EM61: 2.156705329e-05 | EN61: 2.590033082e-05
A62: p1364_308.1159_2.52 | B62: p1364 | C62: 308.1159 | D62: 2.52 | G62: 11.179 | H62: 3.4827 | I62: 1.12E-18 | J62: =ROUND(H62,1) -> 3.5 | K62: B. rapa | L62: 0.35389 | M62: -1.4986 | N62: 0.16657 | P62: 0.16519 | Q62: -2.5978 | R62: 0.17438 | U62: 8.352172167e-05 | V62: 0.00032029039 | W62: 0.006826053144 | X62: 0.0009274136716 | Y62: 0.0001794378165 | Z62: 0.002386726885 | AA62: 0.0001020993273 | AB62: 8.477446294e-05 | AC62: 0.0002926106184 | AD62: 0.007816240969 | AE62: 0.009693768158 | AF62: 0.01155260885 | AG62: 0.00920690295 | AH62: 0.004851569881 | AI62: 0.008839903685 | AJ62: 0.05310291482 | AK62: 0.01566511031 | AL62: 0.02254259291 | AM62: 0.005803661091 | AN62: 0.0006172224988 | AO62: 0.001924247067 | AP62: 0.001161309436 | AQ62: 0.000664263146 | AR62: 0.001229586372 | AS62: 0.002815523346 | AT62: 0.002312698259 | AU62: 0.002320929304 | AV62: 0.01044039101 | AW62: 0.002601297914 | AX62: 0.007113638516 | AY62: 0.001285491995 | AZ62: 0.0005750142613 | BA62: 0.001180273834 | BB62: 0.0001424674921 | BC62: 0.0001087166693 | BD62: 0.000135541148 | BE62: 0.01418388647 | BF62: 0.0001572518507 | BG62: 0.0002833710967 | BH62: 0.0001532600604 | BI62: 0.0002081005153 | BJ62: 7.293249403e-05 | BK62: 0.0001414712137 | BL62: 0.0001070819023 | BM62: 0.0001343607031 | BN62: 0.0002570281229 | BO62: 0.0001614385203 | BP62: 2.512568042e-05 | BQ62: 0.0001341188702 | BR62: 8.152690841e-05 | BS62: 0.0001532302328 | BT62: 5.919064498e-05 | BU62: 0.000111105534 | BV62: 6.794166355e-05 | BW62: 0.0001529557902 | BX62: 0.0001702619454 | BY62: 6.801252868e-05 | BZ62: 0.0001414183552 | CA62: 0.0001873424811 | CB62: 0.0001078429287 | CC62: 0.0001206525195 | CD62: 0.0001228970298 | CE62: 0.002234830064 | CF62: 0.001796268616 | CG62: 0.001425103814 | CH62: 0.0004505098031 | CI62: 0.0003206932989 | CJ62: 0.0003489776371 | CK62: 0.002072571608 | CL62: 0.0008007355076 | CM62: 0.0008404801232 | CN62: 0.0002510425008 | CO62: 0.001295458808 | CP62: 0.001287566975 | CQ62: 0.0002981863557 | CR62: 0.0005871801937 | CS62: 0.0007346304479 | CT62: 0.001223922845 | CU62: 0.002312369667 | CV62: 0.002850382078 | CW62: 0.001162136859 | CX62: 0.001418974824 | CY62: 0.0015964744 | CZ62: 0.003526520401 | DA62: 0.005102575295 | DB62: 0.002714305373 | DC62: 0.0006007852799 | DD62: 0.0003474414731 | DE62: 0.0007646850746 | DF62: 0.0004481841541 | DG62: 0.001645642668 | DH62: 0.001911255436 | DI62: 7.027928028e-05 | DJ62: 6.874069875e-05 | DK62: 0.0002066202825 | DL62: 8.091460704e-05 | DM62: 8.277110771e-05 | DN62: 6.116507911e-05 | DO62: 9.543055393e-05 | DP62: 0.0001056583838 | DQ62: 0.0003937209878 | DR62: 2.915102167e-05 | DS62: 0.0001305540626 | DT62: 8.219663419e-05 | DU62: 6.030717073e-05 | DV62: 9.404553981e-05 | DW62: 0.0001008962262 | DX62: 8.263189132e-05 | DY62: 8.237279004e-05 | DZ62: 8.26569668e-05 | EA62: 6.899979352e-05 | EB62: 3.201067022e-05 | EC62: 8.556273063e-05 | ED62: 7.849704876e-05 | EE62: 1.835504523e-05 | EF62: 0.0001360771152 | EG62: 0.0001485783044 | EH62: 5.527166159e-05 | EI62: 0.0001186124442 | EJ62: 8.330476517e-05 | EK62: 0.0001119322567 | EL62: 5.907187445e-05 | EM62: 0.0001529442754 | EN62: 0.0001534072766
A63: p1739_415.1835_12.6 | B63: p1739 | C63: 415.1835 | D63: 12.6 | G63: 11.164 | H63: 3.4807 | I63: 3.77E-18 | J63: =ROUND(H63,1) -> 3.5 | K63: B. rapa | L63: 0.89293 | M63: -0.16338 | N63: 0.97865 | P63: 0.92505 | Q63: -0.11239 | R63: 0.88466 | U63: 0.0008176037924 | V63: 0.001321089359 | W63: 0.002986398251 | X63: 2.644115574e-05 | Y63: 1.772471217e-05 | Z63: 0.0003914870567 | AA63: 2.328089056e-05 | AB63: 7.005314902e-05 | AC63: 9.027348865e-05 | AD63: 0.002187936529 | AE63: 0.001083443219 | AF63: 0.0007890946972 | AG63: 0.0001376878827 | AH63: 0.0002606279522 | AI63: 0.0001564352054 | AJ63: 0.001903781306 | AK63: 0.001538090668 | AL63: 0.001394891924 | AM63: 0.002063667403 | AN63: 0.0005505226481 | AO63: 0.000525618508 | AP63: 0.001594360748 | AQ63: 0.002215758886 | AR63: 0.001057180168 | AS63: 0.0004511388544 | AT63: 0.0002665934593 | AU63: 0.0003856224757 | AV63: 0.002426685478 | AW63: 0.0009863170636 | AX63: 0.001254958073 | AY63: 0.0001618492092 | AZ63: 0.0002510478931 | BA63: 0.0001646664413 | BB63: 9.535225849e-05 | BC63: 9.561827538e-05 | BD63: 8.584272709e-05 | BE63: 0.0002252140108 | BF63: 9.11178948e-05 | BG63: 5.708194754e-05 | BH63: 0.0001875181916 | BI63: 5.770059741e-05 | BJ63: 4.649446494e-05 | BK63: 4.237617e-05 | BL63: 8.67274911e-05 | BM63: 5.056585601e-05 | BN63: 0.0001346337786 | BO63: 6.096880286e-05 | BP63: 1.223511394e-05 | BQ63: 6.861895685e-05 | BR63: 8.424447202e-05 | BS63: 6.780098796e-05 | BT63: 3.595693387e-05 | BU63: 8.071769563e-05 | BV63: 2.625018819e-05 | BW63: 6.758511659e-05 | BX63: 4.74669666e-05 | BY63: 5.207209227e-05 | BZ63: 4.880810489e-05 | CA63: 0.000111733408 | CB63: 8.208939351e-05 | CC63: 8.579734718e-05 | CD63: 9.891712158e-05 | CE63: 0.0001383260388 | CF63: 0.001040323908 | CG63: 0.0009788427343 | CH63: 0.0009204860792 | CI63: 0.0009243512733 | CJ63: 0.000551368009 | CK63: 0.0003437269826 | CL63: 0.0002696216007 | CM63: 7.496412431e-05 | CN63: 0.0002077280314 | CO63: 0.0009912885814 | CP63: 0.0004190142528 | CQ63: 0.00519567135 | CR63: 0.007129909256 | CS63: 0.004699751199 | CT63: 0.006163673593 | CU63: 0.01583870905 | CV63: 0.006899033566 | CW63: 0.001275060067 | CX63: 0.002435286238 | CY63: 0.0007420077839 | CZ63: 0.0007347834149 | DA63: 0.0007149716281 | DB63: 0.000346602842 | DC63: 0.001271414274 | DD63: 0.000572073656 | DE63: 0.001177719054 | DF63: 0.0008914289237 | DG63: 0.001440048107 | DH63: 0.004430020792 | DI63: 7.467173529e-05 | DJ63: 0.0001743320814 | DK63: 0.0004799275345 | DL63: 7.139524151e-05 | DM63: 0.0001086370789 | DN63: 0.0001223301582 | DO63: 0.0001413785984 | DP63: 0.0001097856644 | DQ63: 0.0002446195487 | DR63: 3.960138793e-05 | DS63: 0.0001417845196 | DT63: 0.0001048715678 | DU63: 7.008671193e-05 | DV63: 6.904609252e-05 | DW63: 7.747388795e-05 | DX63: 9.898611981e-05 | DY63: 9.775566047e-05 | DZ63: 7.125600586e-05 | EA63: 5.665246205e-05 | EB63: 6.821321393e-05 | EC63: 7.426199262e-05 | ED63: 8.509960427e-05 | EE63: 5.434059443e-05 | EF63: 0.0001209574357 | EG63: 0.0002699521306 | EH63: 4.190531206e-05 | EI63: 0.0001073160209 | EJ63: 8.741858073e-05 | EK63: 0.0001119322567 | EL63: 8.903586874e-05 | EM63: 0.0001236375879 | EN63: 0.0001054675027
A64: n516_795.1067_2.59 | B64: n516 | C64: 795.1067 | D64: 2.59 | G64: 11.131 | H64: 3.4765 | I64: 1.35E-05 | J64: =ROUND(H64,1) -> 3.5 | K64: B. rapa | L64: 0.81336 | M64: -0.29804 | N64: 0.72554 | P64: 0.58878 | Q64: -0.76419 | R64: 0.38494 | U64: 1.568547632e-05 | V64: 2.462048054e-05 | W64: 0.0006681520349 | X64: 7.418232786e-06 | Y64: 7.792296758e-06 | Z64: 6.40267986e-05 | AA64: 2.188918506e-06 | AB64: 2.155445076e-05 | AC64: 9.315468052e-05 | AD64: 0.0001922129017 | AE64: 0.001213101088 | AF64: 0.000516927693 | AG64: 0.0002465597688 | AH64: 0.0005157706224 | AI64: 0.0006260951828 | AJ64: 0.004114587957 | AK64: 0.002703190267 | AL64: 0.002248266325 | AM64: 0.0001347220952 | AN64: 8.27138004e-05 | AO64: 9.288788894e-05 | AP64: 4.55727731e-05 | AQ64: 3.600498018e-05 | AR64: 4.004821568e-05 | AS64: 8.968004025e-05 | AT64: 0.0001280895058 | AU64: 0.0001695119253 | AV64: 0.0004945697577 | AW64: 0.0001720899588 | AX64: 0.0005390969807 | AY64: 6.245437099e-05 | AZ64: 3.986063762e-05 | BA64: 6.571251137e-05 | BB64: 5.143944326e-05 | BC64: 2.975701657e-05 | BD64: 8.461276015e-05 | BE64: 0.0003336526994 | BF64: 9.953644456e-06 | BG64: 5.814321425e-05 | BH64: 4.900416535e-05 | BI64: 3.560402565e-05 | BJ64: 4.7630902e-05 | BK64: 9.367312801e-06 | BL64: 3.853829743e-05 | BM64: 5.242312955e-05 | BN64: 3.111422253e-05 | BO64: 5.506250107e-05 | BP64: 6.665718245e-06 | BQ64: 1.8674069e-05 | BR64: 4.003866591e-05 | BS64: 4.62482303e-05 | BT64: 1.644157369e-05 | BU64: 9.623709253e-05 | BV64: 1.812609339e-06 | BW64: 2.294439781e-05 | BX64: 3.09118442e-05 | BY64: 1.256028037e-05 | BZ64: 4.419944876e-05 | CA64: 5.342129091e-05 | CB64: 2.561613144e-05 | CC64: 4.719980997e-05 | CD64: 4.514314648e-05 | CE64: 0.001812287243 | CF64: 0.002349428156 | CG64: 0.00165882084 | CH64: 0.0001404366979 | CI64: 0.0001429716255 | CJ64: 9.328280515e-05 | CK64: 0.0008950514497 | CL64: 0.000153101713 | CM64: 0.0001296438385 | CN64: 0.0001544353596 | CO64: 0.001204645395 | CP64: 0.001278317213 | CQ64: 0.0002295131344 | CR64: 0.0003416494158 | CS64: 0.0003885064869 | CT64: 0.000818576666 | CU64: 0.001452904835 | CV64: 0.002095687976 | CW64: 0.0007283920853 | CX64: 0.001118356251 | CY64: 0.0007100341944 | CZ64: 0.001845758339 | DA64: 0.002025752946 | DB64: 0.0009155716632 | DC64: 0.0001312803141 | DD64: 0.000286814102 | DE64: 0.0002600969641 | DF64: 0.0002695864082 | DG64: 0.001195461475 | DH64: 0.001253641605 | DI64: 3.553895423e-05 | DJ64: 7.582736872e-05 | DK64: 0.0001967812214 | DL64: 0.0001344610382 | DM64: 5.604293751e-05 | DN64: 6.926045723e-05 | DO64: 0.0001649416982 | DP64: 5.200373578e-05 | DQ64: 0.0001304637593 | DR64: 5.005175419e-05 | DS64: 0.0001165159914 | DT64: 5.314437555e-05 | DU64: 6.84567884e-05 | DV64: 9.285508994e-05 | DW64: 5.49524089e-05 | DX64: 6.111316962e-05 | DY64: 4.416372478e-05 | DZ64: 8.075680665e-05 | EA64: 4.938932589e-05 | EB64: 3.162959082e-05 | EC64: 5.166051661e-05 | ED64: 4.69515058e-05 | EE64: 1.883807273e-05 | EF64: 0.0001184374891 | EG64: 8.789139135e-05 | EH64: 3.648652171e-05 | EI64: 0.0001140938749 | EJ64: 5.039424066e-05 | EK64: 8.151588256e-05 | EL64: 7.448192865e-05 | EM64: 4.121252931e-05 | EN64: 8.389460441e-05
A65: p2161_695.1824_2.53 | B65: p2161 | C65: 695.1824 | D65: 2.53 | G65: 11.102 | H65: 3.4727 | I65: 2.66E-06 | J65: =ROUND(H65,1) -> 3.5 | K65: B. rapa | L65: 0.61863 | M65: -0.69285 | N65: 0.82193 | P65: 0.61969 | Q65: -0.69038 | R65: 0.63595 | U65: 6.193107253e-05 | V65: 3.29838342e-05 | W65: 0.0005990950898 | X65: 5.32769556e-05 | Y65: 1.314416858e-05 | Z65: 0.0001075329255 | AA65: 2.10369493e-05 | AB65: 2.842736482e-05 | AC65: 1.66020209e-05 | AD65: 0.0001928286121 | AE65: 0.002875111225 | AF65: 0.001030252536 | AG65: 0.0008897754685 | AH65: 0.001081411503 | AI65: 0.0007900635162 | AJ65: 0.01080568409 | AK65: 0.007170489882 | AL65: 0.003640783644 | AM65: 0.0001936705592 | AN65: 6.172224988e-05 | AO65: 0.0001064830598 | AP65: 0.0001268657367 | AQ65: 6.387145634e-05 | AR65: 3.228031048e-05 | AS65: 0.0001176236617 | AT65: 0.0002432665316 | AU65: 8.849172484e-05 | AV65: 0.0004575229265 | AW65: 0.0004231390875 | AX65: 0.0006451545025 | AY65: 0.0001469665233 | AZ65: 7.916863017e-05 | BA65: 6.606378183e-05 | BB65: 7.179464168e-05 | BC65: 0.0001467020115 | BD65: 3.433709084e-05 | BE65: 0.0006986230538 | BF65: 0.0001425554161 | BG65: 0.0001121252541 | BH65: 5.950096464e-05 | BI65: 7.283518034e-05 | BJ65: 7.110918168e-05 | BK65: 2.151405554e-05 | BL65: 2.743420637e-05 | BM65: 5.056585601e-05 | BN65: 0.0001441533387 | BO65: 7.21321048e-05 | BP65: 1.507540825e-05 | BQ65: 8.941258014e-05 | BR65: 5.367188137e-05 | BS65: 0.0001044135215 | BT65: 3e-07 | BU65: 4.178327774e-05 | BV65: 6.33092774e-05 | BW65: 0.0001173846762 | BX65: 7.429612164e-05 | BY65: 4.410187406e-05 | BZ65: 4.755661502e-05 | CA65: 5.796695603e-05 | CB65: 3.380151497e-05 | CC65: 2.681167099e-05 | CD65: 5.695228212e-05 | CE65: 2.139627981e-05 | CF65: 7.351588042e-05 | CG65: 0.0001820659281 | CH65: 4.664050168e-05 | CI65: 3.464653435e-05 | CJ65: 4.186853281e-05 | CK65: 9.809715491e-05 | CL65: 6e-08 | CM65: 2.332832023e-05 | CN65: 6.618711096e-06 | CO65: 8.206852119e-05 | CP65: 6.598642133e-05 | CQ65: 0.000508313972 | CR65: 0.001316929752 | CS65: 0.001567730435 | CT65: 0.0004587234292 | CU65: 0.003125547964 | CV65: 0.002761183188 | CW65: 5.385856693e-05 | CX65: 0.0001683906663 | CY65: 0.000255480883 | CZ65: 6.67541623e-05 | DA65: 7.720433975e-05 | DB65: 3.31967699e-05 | DC65: 3.457514969e-05 | DD65: 0.0001384814488 | DE65: 0.0001145161389 | DF65: 2.765845465e-05 | DG65: 0.0001848497792 | DH65: 0.0009163273398 | DI65: 3.999918683e-06 | DJ65: 1.675939417e-05 | DK65: 7.935273254e-05 | DL65: 3.216481582e-05 | DM65: 3.779527559e-05 | DN65: 2.957129266e-05 | DO65: 4.426201002e-05 | DP65: 5.34300813e-05 | DQ65: 3.705490845e-05 | DR65: 9.035481348e-06 | DS65: 2.671665407e-05 | DT65: 2.69009654e-05 | DU65: 1.680107527e-05 | DV65: 5.179779304e-05 | DW65: 3.276136988e-05 | DX65: 3.163303373e-05 | DY65: 1.390668013e-05 | DZ65: 1.214588579e-05 | EA65: 1.26771319e-05 | EB65: 9.895814629e-06 | EC65: 1.113017281e-05 | ED65: 3.051741551e-05 | EE65: 5.180227588e-06 | EF65: 2.917118503e-05 | EG65: 4.617430801e-05 | EH65: 3.812562003e-06 | EI65: 4.042430455e-05 | EJ65: 6.352611171e-05 | EK65: 5.074743725e-05 | EL65: 1.262216452e-05 | EM65: 1.540503806e-05 | EN65: 3.374891591e-05
A66: p1407_512.2057_2.58 | B66: p1407 | C66: 512.2057 | D66: 2.58 | G66: 11.06 | H66: 3.4673 | I66: 4.34E-18 | J66: =ROUND(H66,1) -> 3.5 | K66: B. rapa | L66: 0.74854 | M66: -0.41785 | N66: 0.96405 | P66: 0.30015 | Q66: -1.7363 | R66: 0.39994 | U66: 3.806772348e-05 | V66: 0.0002612666867 | W66: 0.003779140238 | X66: 0.000215081043 | Y66: 0.0001045558864 | Z66: 0.0007905350223 | AA66: 2.271990524e-05 | AB66: 3.80723636e-05 | AC66: 0.0001255527831 | AD66: 0.0006052145548 | AE66: 0.001958640208 | AF66: 0.001173798869 | AG66: 0.001901002041 | AH66: 0.00275798833 | AI66: 0.002279484421 | AJ66: 0.01244155587 | AK66: 0.007845473504 | AL66: 0.006268557071 | AM66: 0.001826958942 | AN66: 0.0005644599303 | AO66: 0.0006970486823 | AP66: 0.0002805684561 | AQ66: 0.0002833570063 | AR66: 0.0002949246548 | AS66: 0.0007876318613 | AT66: 0.001276316186 | AU66: 0.0003741113571 | AV66: 0.003031341328 | AW66: 0.001419530891 | AX66: 0.001835302535 | AY66: 0.0002083576026 | AZ66: 0.0004239688484 | BA66: 0.0003165145368 | BB66: 0.0001043265887 | BC66: 6.680180883e-05 | BD66: 9.307158832e-05 | BE66: 0.004037765479 | BF66: 6.025538204e-05 | BG66: 0.0001427048689 | BH66: 9.015297672e-05 | BI66: 0.0001324276006 | BJ66: 2.279140438e-05 | BK66: 4.107228785e-05 | BL66: 5.752333593e-05 | BM66: 3.03395136e-05 | BN66: 0.0001006353497 | BO66: 8.071926013e-05 | BP66: 1.922660763e-05 | BQ66: 4.158724658e-05 | BR66: 3.872528149e-05 | BS66: 0.0001383140154 | BT66: 4.812697302e-05 | BU66: 3.798479794e-05 | BV66: 3.744512139e-05 | BW66: 0.000130427418 | BX66: 0.0001300182129 | BY66: 2.550469825e-05 | BZ66: 7.759237187e-05 | CA66: 0.0001167740129 | CB66: 2.897272712e-05 | CC66: 3.396144992e-05 | CD66: 4.29640023e-05 | CE66: 0.0001502134328 | CF66: 0.0001067921889 | CG66: 0.0002809490377 | CH66: 6.118034363e-05 | CI66: 8.43929734e-05 | CJ66: 0.0001107733311 | CK66: 7.827446138e-05 | CL66: 6.909900319e-05 | CM66: 3.43953041e-05 | CN66: 1.678152218e-05 | CO66: 0.0001881916512 | CP66: 6.474833928e-05 | CQ66: 0.0005900475463 | CR66: 0.002010878038 | CS66: 0.002025727763 | CT66: 0.001026815149 | CU66: 0.007692619516 | CV66: 0.002655291085 | CW66: 8.375761146e-05 | CX66: 0.0003668098184 | CY66: 0.000143329884 | CZ66: 6.489853515e-05 | DA66: 7.63858577e-05 | DB66: 8.102404099e-05 | DC66: 6.273000231e-05 | DD66: 8.083649486e-05 | DE66: 0.0001664620571 | DF66: 8.474943982e-05 | DG66: 0.0002463589992 | DH66: 0.001140907805 | DI66: 9.583538219e-06 | DJ66: 3.047268089e-05 | DK66: 7.324634354e-05 | DL66: 7.496500358e-05 | DM66: 0.0001172590693 | DN66: 2.608510727e-05 | DO66: 9.778686391e-05 | DP66: 4.20982623e-05 | DQ66: 0.0001106612244 | DR66: 2.035071324e-05 | DS66: 4.4921828e-05 | DT66: 2.905225864e-05 | DU66: 3.341343243e-05 | DV66: 6.666519278e-05 | DW66: 5.855584555e-05 | DX66: 3e-07 | DY66: 6.897480612e-05 | DZ66: 6.365536524e-05 | EA66: 3.413673995e-05 | EB66: 3.734578193e-05 | EC66: 5.246771218e-05 | ED66: 4.03489503e-05 | EE66: 1.714747646e-05 | EF66: 0.0001096176761 | EG66: 4.603834785e-05 | EH66: 1.011507532e-05 | EI66: 5.535247396e-05 | EJ66: 7.816249571e-05 | EK66: 3.284968402e-05 | EL66: 2.739565192e-05 | EM66: 5.403420509e-05 | EN66: 0.0001318343784
A67: n995_479.0827_5.65 | B67: n995 | C67: 479.0827 | D67: 5.65 | G67: 11.043 | H67: 3.465 | I67: 4.85E-14 | J67: =ROUND(H67,1) -> 3.5 | K67: B. rapa | L67: 0.78298 | M67: -0.35296 | N67: 0.97774 | P67: 0.74037 | Q67: -0.43367 | R67: 0.63292 | U67: 0.001303201658 | V67: 0.001726025267 | W67: 0.006297609788 | X67: 6.819988206e-05 | Y67: 4.657395832e-05 | Z67: 0.000473964613 | AA67: 7.203531811e-06 | AB67: 2.936403437e-05 | AC67: 0.0001174004193 | AD67: 0.0006113000479 | AE67: 0.0006825904079 | AF67: 0.0005234504399 | AG67: 0.0003514156784 | AH67: 0.0001381528453 | AI67: 0.0005862117156 | AJ67: 0.001598573024 | AK67: 0.002364816239 | AL67: 0.0009136870165 | AM67: 0.002853173877 | AN67: 0.00101117621 | AO67: 0.001429847279 | AP67: 6.247880184e-05 | AQ67: 8.895348046e-05 | AR67: 0.0002016220514 | AS67: 0.0003342619682 | AT67: 0.0004456223143 | AU67: 0.0004641397954 | AV67: 0.004903369535 | AW67: 0.001474709718 | AX67: 0.003118655767 | AY67: 0.0003374938125 | AZ67: 0.0006272805604 | BA67: 0.001073304352 | BB67: 2.571972163e-05 | BC67: 3.110960823e-05 | BD67: 0.0001364721938 | BE67: 0.000107629903 | BF67: 4.801169679e-05 | BG67: 0.0001338216836 | BH67: 8.647793886e-05 | BI67: 4.97112811e-05 | BJ67: 0.0001138494731 | BK67: 2.01121716e-05 | BL67: 4.528249948e-05 | BM67: 0.0001008137107 | BN67: 3.68761156e-05 | BO67: 3.231929411e-05 | BP67: 1.011904216e-05 | BQ67: 2.977756949e-05 | BR67: 9.698254632e-05 | BS67: 0.0001090136857 | BT67: 2.466236054e-05 | BU67: 0.0002184842101 | BV67: 4.919939635e-06 | BW67: 7.163129072e-05 | BX67: 0.0001094794482 | BY67: 0.0001107816729 | BZ67: 0.0003234277124 | CA67: 0.0006763678696 | CB67: 7.684839432e-05 | CC67: 6.865426905e-05 | CD67: 5.734399688e-05 | CE67: 8.86151186e-05 | CF67: 0.001055922767 | CG67: 0.001035032542 | CH67: 0.0006312699093 | CI67: 0.0005421007468 | CJ67: 0.000564694124 | CK67: 0.000211000722 | CL67: 0.0003211071325 | CM67: 9.613046529e-05 | CN67: 8.640216151e-05 | CO67: 0.0005897401163 | CP67: 0.0005124368566 | CQ67: 0.002420731051 | CR67: 0.003966559234 | CS67: 0.004335575421 | CT67: 0.002478919139 | CU67: 0.006060454873 | CV67: 0.004282760679 | CW67: 0.0005406852954 | CX67: 0.003452976636 | CY67: 0.0006460870154 | CZ67: 0.0002705938923 | DA67: 0.0005285901353 | DB67: 0.0004195244789 | DC67: 0.0006926168296 | DD67: 0.0004896826131 | DE67: 0.001723922678 | DF67: 0.0004292065188 | DG67: 0.0008826387167 | DH67: 0.002308955229 | DI67: 3.274375558e-05 | DJ67: 6.023669478e-05 | DK67: 0.0003301551604 | DL67: 5.235651044e-05 | DM67: 0.0001060504818 | DN67: 9.264710512e-05 | DO67: 8.718346903e-05 | DP67: 6.108375314e-05 | DQ67: 0.0001491014392 | DR67: 3e-07 | DS67: 7.8613199e-05 | DT67: 4.251550044e-05 | DU67: 3.259847067e-05 | DV67: 4.642754497e-05 | DW67: 5.315069057e-05 | DX67: 1.291123302e-05 | DY67: 5.408815732e-05 | DZ67: 4.750400391e-05 | EA67: 3.123148549e-05 | EB67: 2.400800267e-05 | EC67: 4.681734317e-05 | ED67: 5.868938225e-05 | EE67: 4.081582426e-05 | EF67: 0.0001927759132 | EG67: 0.0001046326088 | EH67: 1.661762375e-05 | EI67: 8.698245908e-05 | EJ67: 7.404868015e-05 | EK67: 3.284968402e-05 | EL67: 4.109347788e-05 | EM67: 4.396003126e-05 | EN67: 9.228406485e-05
A68: n96_179.0562_5.46 | B68: n96 | C68: 179.0562 | D68: 5.46 | G68: 10.952 | H68: 3.4532 | I68: 2.10E-15 | J68: =ROUND(H68,1) -> 3.5 | K68: B. rapa | L68: 0.71306 | M68: -0.4879 | N68: 0.98105 | P68: 0.60513 | Q68: -0.72467 | R68: 0.6537 | U68: 0.001012040004 | V68: 0.00224521505 | W68: 0.01286469526 | X68: 2.10582092e-05 | Y68: 1.15086229e-05 | Z68: 0.0003267861279 | AA68: 1.002922661e-05 | AB68: 0.0001689993893 | AC68: 0.001353933096 | AD68: 0.0008843894164 | AE68: 0.0004786385243 | AF68: 0.0008528491591 | AG68: 0.001452650032 | AH68: 0.0011604839 | AI68: 0.0009398952925 | AJ68: 0.0005453955023 | AK68: 0.0004801326494 | AL68: 0.0002200915942 | AM68: 0.003882930882 | AN68: 0.0007161636552 | AO68: 0.0006293415397 | AP68: 0.00324963274 | AQ68: 0.001762126089 | AR68: 0.001351972523 | AS68: 0.0120562585 | AT68: 0.003771105745 | AU68: 0.001982684126 | AV68: 0.006222222222 | AW68: 0.001518035895 | AX68: 0.002088291462 | AY68: 0.004406636292 | AZ68: 0.002366463118 | BA68: 0.006428031561 | BB68: 0.0001109162995 | BC68: 0.0001068547413 | BD68: 0.0001951552371 | BE68: 0.002188923153 | BF68: 0.000111832123 | BG68: 0.0002242666835 | BH68: 0.0008157752232 | BI68: 0.0001128580436 | BJ68: 7.899759356e-05 | BK68: 4.408147201e-05 | BL68: 0.0001772761682 | BM68: 0.0001330740981 | BN68: 9.795218205e-05 | BO68: 0.0001987038082 | BP68: 2.545822511e-05 | BQ68: 0.0001150726414 | BR68: 0.0001023210351 | BS68: 0.0001403964134 | BT68: 5.007206534e-05 | BU68: 0.0002653022551 | BV68: 5.748561047e-06 | BW68: 9.345644961e-05 | BX68: 0.0002009269873 | BY68: 5.953572897e-05 | BZ68: 0.0002062640942 | CA68: 0.0003205277454 | CB68: 0.000102987304 | CC68: 0.0002081082531 | CD68: 0.0001403097796 | CE68: 0.002636573834 | CF68: 0.002953219016 | CG68: 0.003266397614 | CH68: 0.001204714235 | CI68: 0.0003822478298 | CJ68: 0.000617261798 | CK68: 0.0007137858771 | CL68: 0.0002325560457 | CM68: 2.928448709e-05 | CN68: 3.421100021e-05 | CO68: 0.0003888667312 | CP68: 0.0005829809517 | CQ68: 0.0002927429274 | CR68: 0.0008518013718 | CS68: 0.0008624037496 | CT68: 0.0006008059073 | CU68: 0.001210299751 | CV68: 0.002236613168 | CW68: 0.0004785600909 | CX68: 0.0009055125538 | CY68: 0.0006403963778 | CZ68: 0.0001760641031 | DA68: 4.447641312e-05 | DB68: 0.0001758199295 | DC68: 0.0001210130239 | DD68: 0.0003519966708 | DE68: 0.0004142073108 | DF68: 0.0002329873214 | DG68: 0.002732255783 | DH68: 0.002181345614 | DI68: 0.0001490738925 | DJ68: 9.035499468e-05 | DK68: 0.0006044314521 | DL68: 0.0001525766904 | DM68: 0.0001043869516 | DN68: 4.278399789e-05 | DO68: 7.192576629e-05 | DP68: 4.717762498e-05 | DQ68: 5.27319851e-05 | DR68: 2.046270776e-05 | DS68: 8.167662816e-05 | DT68: 4.989695195e-05 | DU68: 1.809346567e-05 | DV68: 0.0001396690491 | DW68: 6e-08 | DX68: 5.384346167e-05 | DY68: 4.051076386e-05 | DZ68: 4.155171453e-05 | EA68: 5.25866212e-05 | EB68: 2.202616805e-05 | EC68: 9.841415959e-05 | ED68: 6.838161624e-05 | EE68: 1.055593546e-05 | EF68: 6.975718159e-05 | EG68: 5.119325454e-05 | EH68: 6.06378909e-05 | EI68: 0.0002082730473 | EJ68: 0.000374226549 | EK68: 9.72659214e-05 | EL68: 6.879079664e-05 | EM68: 4.251790506e-05 | EN68: 4.709151058e-05
A69: p1603_673.2067_4.17 | B69: p1603 | C69: 673.2067 | D69: 4.17 | G69: 10.662 | H69: 3.4144 | I69: 2.43E-12 | J69: =ROUND(H69,1) -> 3.4 | K69: B. rapa | L69: 0.89952 | M69: -0.15277 | N69: 0.85074 | P69: 1.1956 | Q69: 0.2577 | R69: 0.33547 | U69: 0.0004284039329 | V69: 0.0004010139842 | W69: 0.000568837762 | X69: 6.156448203e-05 | Y69: 0.00017226827 | Z69: 0.008932793722 | AA69: 0.0002715168923 | AB69: 0.005941319247 | AC69: 0.009234874126 | AD69: 0.003738202203 | AE69: 0.00312275539 | AF69: 0.01448505536 | AG69: 0.0001285952867 | AH69: 0.00442522923 | AI69: 0.01301107097 | AJ69: 0.001606104059 | AK69: 0.0005982809371 | AL69: 0.00839605656 | AM69: 0.0002969615241 | AN69: 0.0008332503733 | AO69: 0.0004312186323 | AP69: 0.002137199718 | AQ69: 0.0003298089746 | AR69: 0.006340146435 | AS69: 0.0008442103315 | AT69: 0.0002999176417 | AU69: 0.004269905585 | AV69: 0.000358762471 | AW69: 0.0004805651066 | AX69: 0.00118425621 | AY69: 0.002866777371 | AZ69: 0.005384508544 | BA69: 0.008274735181 | BB69: 7.628180679e-05 | BC69: 0.0001296740995 | BD69: 0.0001192762103 | BE69: 0.0002987532796 | BF69: 0.0002292643805 | BG69: 0.001561598993 | BH69: 0.0002271855013 | BI69: 0.0004493079307 | BJ69: 0.0006691556327 | BK69: 2.5425702e-05 | BL69: 0.0001106217999 | BM69: 0.0001040211895 | BN69: 0.0002311893169 | BO69: 0.0002464513581 | BP69: 1.048724052e-05 | BQ69: 0.0001268411021 | BR69: 0.001182140172 | BS69: 0.000117973719 | BT69: 5.089289101e-05 | BU69: 0.0001139543938 | BV69: 2.432002729e-05 | BW69: 0.0001197560838 | BX69: 0.0004705421037 | BY69: 8.07648778e-05 | BZ69: 2.753277712e-05 | CA69: 0.0004015681882 | CB69: 0.0001062333328 | CC69: 0.0001689135273 | CD69: 0.0003537036469 | CE69: 0.001553645995 | CF69: 0.003598304309 | CG69: 0.003358779214 | CH69: 0.0002322101573 | CI69: 0.0002873958423 | CJ69: 0.0002422393684 | CK69: 0.0005511511203 | CL69: 0.0004934725849 | CM69: 0.0004764933493 | CN69: 0.0001497375939 | CO69: 0.00161452558 | CP69: 0.002371273508 | CQ69: 0.004158352695 | CR69: 0.002413904216 | CS69: 0.002730100707 | CT69: 7.825812681e-05 | CU69: 0.0005998973184 | CV69: 0.0005909972945 | CW69: 0.0009690430707 | CX69: 0.002674439995 | CY69: 0.0004642026654 | CZ69: 0.0006349989689 | DA69: 0.0007426721813 | DB69: 0.0003043037241 | DC69: 0.0009935462827 | DD69: 0.002876662447 | DE69: 0.003559137231 | DF69: 0.0002908356825 | DG69: 0.003279763225 | DH69: 0.005208248315 | DI69: 0.0003440699282 | DJ69: 0.002256688859 | DK69: 0.005135134809 | DL69: 0.0001088655305 | DM69: 9.718785152e-05 | DN69: 7.235529054e-05 | DO69: 0.0002194657997 | DP69: 0.0001597218388 | DQ69: 0.0001831367591 | DR69: 4.145691442e-05 | DS69: 0.0005877663896 | DT69: 6.464909426e-05 | DU69: 5.944995864e-05 | DV69: 0.0001877669998 | DW69: 0.0001927587577 | DX69: 0.0001655686446 | DY69: 8.162616598e-05 | DZ69: 0.0001022811435 | EA69: 6.948946373e-05 | EB69: 1.755709047e-05 | EC69: 0.0001177455124 | ED69: 6.329538033e-05 | EE69: 6.401979378e-06 | EF69: 0.0001185872087 | EG69: 0.0001224622952 | EH69: 2.777723745e-05 | EI69: 0.0002724246611 | EJ69: 0.0002575695075 | EK69: 0.0001133359432 | EL69: 0.000189963576 | EM69: 0.0001429587532 | EN69: 0.0001703142966
A70: p1317_387.1426_6.83 | B70: p1317 | C70: 387.1426 | D70: 6.83 | G70: 10.425 | H70: 3.3819 | I70: 8.16E-24 | J70: =ROUND(H70,1) -> 3.4 | K70: B. rapa | L70: 0.72449 | M70: -0.46495 | N70: 0.83086 | P70: 0.66874 | Q70: -0.58048 | R70: 0.93748 | U70: 0.006181175578 | V70: 0.007320675201 | W70: 0.01127993179 | X70: 0.003753854827 | Y70: 0.0005496652315 | Z70: 0.005000281034 | AA70: 0.0003043345332 | AB70: 0.000467528625 | AC70: 0.0008498159449 | AD70: 0.01208138077 | AE70: 0.0003930413062 | AF70: 0.001791458232 | AG70: 0.003929300427 | AH70: 0.004735648791 | AI70: 0.002570664236 | AJ70: 0.003764264104 | AK70: 0.002039484004 | AL70: 0.001916529874 | AM70: 0.01708174332 | AN70: 0.008271777003 | AO70: 0.005013011 | AP70: 0.009649115164 | AQ70: 0.003483897619 | AR70: 0.002354261735 | AS70: 0.04212713778 | AT70: 0.01347741017 | AU70: 0.01083771824 | AV70: 0.02447042225 | AW70: 0.007056348022 | AX70: 0.01182194072 | AY70: 0.006477689038 | AZ70: 0.006127235298 | BA70: 0.002428583502 | BB70: 0.000243428707 | BC70: 0.0004597536254 | BD70: 0.0004012017982 | BE70: 0.007733113737 | BF70: 0.0006760359937 | BG70: 0.003174164012 | BH70: 0.0002758681088 | BI70: 0.0001210766634 | BJ70: 0.0005014108965 | BK70: 8.931592754e-05 | BL70: 0.0001628352894 | BM70: 0.0006761377318 | BN70: 0.0006922080134 | BO70: 0.0006663632538 | BP70: 6.751161087e-05 | BQ70: 0.0005718246404 | BR70: 0.0002982526066 | BS70: 0.0002712039518 | BT70: 0.0001786783021 | BU70: 0.0003304677421 | BV70: 0.0001235302974 | BW70: 0.0006343515329 | BX70: 0.0006356445962 | BY70: 0.0002178526309 | BZ70: 0.0006094755662 | CA70: 0.000348641837 | CB70: 0.0002164906554 | CC70: 0.0002895660467 | CD70: 0.0002068267088 | CE70: 0.0005911276814 | CF70: 0.0004667658594 | CG70: 0.005330702611 | CH70: 0.0002919970946 | CI70: 0.001228165978 | CJ70: 0.01531337192 | CK70: 0.0004424208687 | CL70: 0.0002777508952 | CM70: 0.01942981909 | CN70: 8.889671211e-05 | CO70: 0.0004650084405 | CP70: 0.01833765466 | CQ70: 0.002951141327 | CR70: 0.001957584535 | CS70: 0.002583764353 | CT70: 0.0004136942697 | CU70: 0.003560640019 | CV70: 0.003274448287 | CW70: 0.0002497771627 | CX70: 9.377093101e-05 | CY70: 0.00232194412 | CZ70: 0.0007380833404 | DA70: 0.001092317765 | DB70: 0.001802334778 | DC70: 0.0001519747479 | DD70: 0.003224132507 | DE70: 0.001423250588 | DF70: 0.0001307637062 | DG70: 0.001039493187 | DH70: 0.0005970716053 | DI70: 0.0005833978891 | DJ70: 0.002775139962 | DK70: 0.005589679918 | DL70: 9.162389327e-05 | DM70: 0.0001293298558 | DN70: 0.0001547116707 | DO70: 0.0001672980081 | DP70: 0.0001725203298 | DQ70: 0.0002387952737 | DR70: 5.665198552e-05 | DS70: 0.0004239497517 | DT70: 0.0005860053144 | DU70: 0.0002428586065 | DV70: 0.0002023764781 | DW70: 0.000366649679 | DX70: 0.0005637905085 | DY70: 0.0002133752995 | DZ70: 0.0008104183067 | EA70: 0.0009471129553 | EB70: 6.287810222e-05 | EC70: 0.0004358856089 | ED70: 0.0003792801328 | EE70: 4.926880561e-05 | EF70: 0.0001159175425 | EG70: 0.001062020979 | EH70: 8.236561335e-05 | EI70: 0.0001920391954 | EJ70: 0.0001964346932 | EK70: 0.0002189978934 | EL70: 0.0002491292096 | EM70: 0.0008187555822 | EN70: 0.0001354298614
A71: p1400_330.0981_2.5 | B71: p1400 | C71: 330.0981 | D71: 2.5 | G71: 10.301 | H71: 3.3648 | I71: 1.30E-21 | J71: =ROUND(H71,1) -> 3.4 | K71: B. rapa | L71: 0.81443 | M71: -0.29614 | N71: 0.90206 | P71: 0.39882 | Q71: -1.3262 | R71: 0.56528 | U71: 7.102187217e-05 | V71: 0.0003263663595 | W71: 0.004384286793 | X71: 0.0002584918957 | Y71: 0.0001718699619 | Z71: 0.0003839261479 | AA71: 7.769646607e-05 | AB71: 8.071341083e-05 | AC71: 0.0001712083405 | AD71: 0.002703418958 | AE71: 0.004434143805 | AF71: 0.001626585015 | AG71: 0.002575802561 | AH71: 0.003305696027 | AI71: 0.001829897528 | AJ71: 0.008881606607 | AK71: 0.00644948465 | AL71: 0.00318590823 | AM71: 0.002027085186 | AN71: 0.0005445495271 | AO71: 0.0005724408463 | AP71: 0.0006172506034 | AQ71: 0.0007165216103 | AR71: 0.0006683491556 | AS71: 0.00126259323 | AT71: 0.002029442709 | AU71: 0.0007050560191 | AV71: 0.00435553764 | AW71: 0.002823949672 | AX71: 0.001969341484 | AY71: 0.0005078716563 | AZ71: 0.0005708474913 | BA71: 0.0004762508452 | BB71: 7.516001551e-05 | BC71: 6.94214876e-05 | BD71: 9.849323424e-05 | BE71: 0.004067640807 | BF71: 0.0001249196945 | BG71: 0.0001936708934 | BH71: 0.0001424417032 | BI71: 0.0002591797326 | BJ71: 0.0001103103972 | BK71: 7.953681139e-05 | BL71: 6.637307992e-05 | BM71: 0.0001025764508 | BN71: 9.791547537e-05 | BO71: 0.0001021871485 | BP71: 1.704176585e-05 | BQ71: 4.990469589e-05 | BR71: 5.503066318e-05 | BS71: 4.746069157e-05 | BT71: 6.582884816e-05 | BU71: 8.166731557e-05 | BV71: 4.748195805e-05 | BW71: 0.0001802269776 | BX71: 9.699771436e-05 | BY71: 5.951096259e-05 | BZ71: 0.000133909416 | CA71: 7.728927471e-05 | CB71: 8.047979756e-05 | CC71: 7.328523405e-05 | CD71: 6.794307341e-05 | CE71: 0.01092343438 | CF71: 0.006111153013 | CG71: 0.005286727979 | CH71: 0.01566077751 | CI71: 0.004066748459 | CJ71: 0.006432349144 | CK71: 0.004080481704 | CL71: 0.001784380141 | CM71: 0.0004850619808 | CN71: 0.0002787093346 | CO71: 0.003233176333 | CP71: 0.001588184265 | CQ71: 0.004895677804 | CR71: 0.003953235858 | CS71: 0.002571206568 | CT71: 0.0006706299485 | CU71: 0.001646079788 | CV71: 0.001803051487 | CW71: 0.005011247807 | CX71: 0.009805957212 | CY71: 0.005228233152 | CZ71: 0.003098630059 | DA71: 0.003379310345 | DB71: 0.002038204764 | DC71: 0.01093571484 | DD71: 0.007457166651 | DE71: 0.02122911421 | DF71: 0.003167965256 | DG71: 0.009942092131 | DH71: 0.009793226925 | DI71: 0.001005073571 | DJ71: 0.003346325562 | DK71: 0.002684970444 | DL71: 0.0004640690698 | DM71: 0.0003371198241 | DN71: 0.0004389493913 | DO71: 0.0006079279732 | DP71: 0.0006570630743 | DQ71: 0.001676226336 | DR71: 0.0001023035855 | DS71: 0.0004071040662 | DT71: 0.0004095659876 | DU71: 0.0002208546388 | DV71: 0.0005392737916 | DW71: 0.0004116926371 | DX71: 0.0009933041936 | DY71: 0.0001181007472 | DZ71: 0.0007524634219 | EA71: 0.000491714318 | EB71: 0.0001227075692 | EC71: 0.0003075415129 | ED71: 0.0003132545778 | EE71: 0.0002403061842 | EF71: 0.0009462399397 | EG71: 0.0008820528918 | EH71: 0.0001007895006 | EI71: 0.0006856928917 | EJ71: 0.0005018854988 | EK71: 0.0003856796235 | EL71: 0.000196050134 | EM71: 0.0002820768673 | EN71: 0.0003667392707
A72: p1807_606.2912_4.58 | B72: p1807 | C72: 606.2912 | D72: 4.58 | G72: 10.288 | H72: 3.3629 | I72: 3.29E-17 | J72: =ROUND(H72,1) -> 3.4 | K72: B. rapa | L72: 0.77737 | M72: -0.36333 | N72: 0.80194 | P72: 0.58046 | Q72: -0.78474 | R72: 0.96695 | U72: 0.001386346945 | V72: 0.001847962711 | W72: 0.005322263954 | X72: 4.30162086e-05 | Y72: 2.827987785e-05 | Z72: 0.0003015962519 | AA72: 3.898847937e-05 | AB72: 0.0001675183998 | AC72: 0.0003154383971 | AD72: 0.00110542343 | AE72: 0.0006763312214 | AF72: 0.002442748449 | AG72: 0.001186583782 | AH72: 0.001282133926 | AI72: 0.001487449033 | AJ72: 0.00034638807 | AK72: 0.0002527151597 | AL72: 0.0001326349054 | AM72: 0.004779359022 | AN72: 0.001546042807 | AO72: 0.001378993384 | AP72: 0.002349455854 | AQ72: 0.001203105978 | AR72: 0.001524511027 | AS72: 0.004499477287 | AT72: 0.003456828522 | AU72: 0.003049727005 | AV72: 0.003259095032 | AW72: 0.002985145515 | AX72: 0.004537439372 | AY72: 0.002855615357 | AZ72: 0.001487536893 | BA72: 0.002675090151 | BB72: 0.0001301277881 | BC72: 0.000117885545 | BD72: 0.0001536133011 | BE72: 0.002180898941 | BF72: 0.0002263250935 | BG72: 0.000368994018 | BH72: 0.0003083231804 | BI72: 0.000161750855 | BJ72: 0.0001294551769 | BK72: 5.671887369e-05 | BL72: 9.026738869e-05 | BM72: 3e-07 | BN72: 0.000137353653 | BO72: 9.102384653e-05 | BP72: 5.06883292e-05 | BQ72: 8.109513083e-05 | BR72: 0.0001120994991 | BS72: 9.085332386e-05 | BT72: 5.697791059e-05 | BU72: 0.000129148313 | BV72: 5.095624766e-05 | BW72: 0.000112641861 | BX72: 8.461502742e-05 | BY72: 6.907522444e-05 | BZ72: 0.0001639451728 | CA72: 0.0004376925231 | CB72: 5.714065627e-05 | CC72: 5.809195382e-05 | CD72: 5.095730506e-05 | CE72: 9.293780732e-05 | CF72: 0.001280306355 | CG72: 0.001323310685 | CH72: 0.000508909222 | CI72: 0.0008578297531 | CJ72: 0.0006229958772 | CK72: 0.0002058958658 | CL72: 0.0003062034259 | CM72: 9.789432704e-05 | CN72: 0.0001281291896 | CO72: 0.0009606527312 | CP72: 0.000718706566 | CQ72: 0.002830963189 | CR72: 0.004693634871 | CS72: 0.003524813399 | CT72: 0.00208516753 | CU72: 0.005936855645 | CV72: 0.004741737909 | CW72: 0.0006042513398 | CX72: 0.002701430204 | CY72: 0.001395812562 | CZ72: 0.0005488876108 | DA72: 0.000951767787 | DB72: 0.0005815725609 | DC72: 0.0007016706444 | DD72: 0.000924956047 | DE72: 0.00176657858 | DF72: 0.0006470593733 | DG72: 0.002053287055 | DH72: 0.004591814671 | DI72: 4.312592199e-05 | DJ72: 0.0002487421161 | DK72: 0.000811175924 | DL72: 6.782547943e-05 | DM72: 4.483435001e-05 | DN72: 0.0001673044811 | DO72: 8.836162401e-05 | DP72: 2.80655082e-05 | DQ72: 0.0003214999782 | DR72: 4.565159998e-05 | DS72: 0.0001193236056 | DT72: 0.0001169176262 | DU72: 9.372060316e-05 | DV72: 6.904609252e-05 | DW72: 5.675412722e-05 | DX72: 7.488515151e-05 | DY72: 2.977329761e-05 | DZ72: 7.220608594e-05 | EA72: 6.391559821e-05 | EB72: 3.048635259e-05 | EC72: 6.941881919e-05 | ED72: 8.583322154e-05 | EE72: 3.791765922e-05 | EF72: 0.0002028556995 | EG72: 0.000154856261 | EH72: 2.601019369e-05 | EI72: 8.81121014e-05 | EJ72: 9.256085019e-05 | EK72: 6.448271307e-05 | EL72: 9.674089584e-05 | EM72: 9.249923244e-05 | EN72: 0.0001797741523
A73: p1578_538.2284_5.47 | B73: p1578 | C73: 538.2284 | D73: 5.47 | G73: 10.076 | H73: 3.3329 | I73: 3.12E-24 | J73: =ROUND(H73,1) -> 3.3 | K73: B. rapa | L73: 0.69034 | M73: -0.53461 | N73: 0.91674 | P73: 0.67738 | Q73: -0.56195 | R73: 0.79398 | U73: 0.01175610846 | V73: 0.01388966618 | W73: 0.02932540207 | X73: 0.0003457082452 | Y73: 0.0004437152666 | Z73: 0.01599216226 | AA73: 0.0003643599618 | AB73: 0.00711851673 | AC73: 0.002913654668 | AD73: 0.007659687047 | AE73: 0.006635737947 | AF73: 0.006067498415 | AG73: 0.0164465578 | AH73: 0.01297927202 | AI73: 0.01239321764 | AJ73: 0.006830339755 | AK73: 0.002556217877 | AL73: 0.003055943826 | AM73: 0.04389866009 | AN73: 0.006639123942 | AO73: 0.00101800826 | AP73: 0.01662307109 | AQ73: 0.01379042807 | AR73: 0.002817924376 | AS73: 0.04122337116 | AT73: 0.02770683606 | AU73: 0.003172752086 | AV73: 0.03719641238 | AW73: 0.01604805363 | AX73: 0.003106463118 | AY73: 0.02302723576 | AZ73: 0.01119402763 | BA73: 0.01179978026 | BB73: 0.000406088442 | BC73: 0.0003719943864 | BD73: 0.0003560214155 | BE73: 0.0167761457 | BF73: 0.001360889848 | BG73: 0.002360746259 | BH73: 0.001130518328 | BI73: 0.001182389291 | BJ73: 0.0006272194487 | BK73: 0.0003494404172 | BL73: 0.0002115088814 | BM73: 0.0008422826872 | BN73: 0.001169545956 | BO73: 0.0007419302208 | BP73: 0.0002676431175 | BQ73: 0.0006019753942 | BR73: 0.001949851893 | BS73: 0.0006522455041 | BT73: 0.0005465453948 | BU73: 0.000572620829 | BV73: 0.0001297068122 | BW73: 0.0005122240416 | BX73: 0.0002817061279 | BY73: 0.0003607852107 | BZ73: 0.001132598331 | CA73: 0.0005704284514 | CB73: 0.0003372103518 | CC73: 0.0003753633939 | CD73: 0.0003866760207 | CE73: 0.00125033771 | CF73: 0.005324010587 | CG73: 0.003519599249 | CH73: 0.0001265320743 | CI73: 0.0002422574766 | CJ73: 0.0002673551826 | CK73: 0.0001718634913 | CL73: 0.000609697087 | CM73: 0.0003263144235 | CN73: 0.0002764415614 | CO73: 0.000934393431 | CP73: 0.001597434028 | CQ73: 0.001503582109 | CR73: 0.0009126512248 | CS73: 0.002089301552 | CT73: 0.0001586137223 | CU73: 0.0001915378769 | CV73: 0.0002546450847 | CW73: 0.0005451723103 | CX73: 0.00250699342 | CY73: 0.001303199407 | CZ73: 0.0003893912109 | DA73: 0.0004598428634 | DB73: 0.000191756897 | DC73: 0.001052829317 | DD73: 0.00156853891 | DE73: 0.002198339541 | DF73: 0.0003943708595 | DG73: 0.004266973314 | DH73: 0.005034399218 | DI73: 0.0004781786257 | DJ73: 0.002375451775 | DK73: 0.004082117116 | DL73: 9.281381396e-05 | DM73: 5.862953463e-05 | DN73: 0.0001106368343 | DO73: 0.0001024994839 | DP73: 0.0002228731533 | DQ73: 0.0001549257141 | DR73: 5.885206262e-05 | DS73: 0.0004239497517 | DT73: 0.0001211691763 | DU73: 6.764182663e-05 | DV73: 8.095059123e-05 | DW73: 6.125842303e-05 | DX73: 9.037863113e-05 | DY73: 0.0003046800788 | DZ73: 0.0001121094492 | EA73: 7.117873437e-05 | EB73: 3.658362311e-05 | EC73: 7.022601476e-05 | ED73: 8.876769066e-05 | EE73: 2.535894407e-05 | EF73: 0.0001058377562 | EG73: 0.0001443930001 | EH73: 3.793153247e-05 | EI73: 0.0001694463488 | EJ73: 0.000160438807 | EK73: 9.733239709e-05 | EL73: 6.592078743e-05 | EM73: 9.341506643e-05 | EN73: 0.0001126584688
A74: p1850_807.2349_2.75 | B74: p1850 | C74: 807.2349 | D74: 2.75 | G74: 10.051 | H74: 3.3292 | I74: 7.28E-06 | J74: =ROUND(H74,1) -> 3.3 | K74: B. rapa | L74: 0.31604 | M74: -1.6618 | N74: 0.29108 | P74: 0.88447 | Q74: -0.17712 | R74: 0.65462 | U74: 8.52262466e-06 | V74: 3.471982548e-05 | W74: 0.0003086247432 | X74: 1.815362932e-05 | Y74: 2.46951046e-05 | Z74: 0.0001856623166 | AA74: 3.225665559e-05 | AB74: 0.0001040644605 | AC74: 0.0002687452133 | AD74: 0.0003913848067 | AE74: 0.002096532982 | AF74: 0.0005298910337 | AG74: 0.0001902950455 | AH74: 0.003627007502 | AI74: 0.005066397324 | AJ74: 0.003626250108 | AK74: 0.0004287276351 | AL74: 0.002236099881 | AM74: 0.0001872148739 | AN74: 4.778496765e-05 | AO74: 2.265597017e-05 | AP74: 0.0001024684796 | AQ74: 5.341976349e-05 | AR74: 0.0001768080642 | AS74: 5.80673773e-05 | AT74: 1.999450944e-05 | AU74: 0.0001402917589 | AV74: 0.000536128187 | AW74: 0.0002135844918 | AX74: 0.00246646396 | AY74: 6.325141507e-05 | AZ74: 8.750217019e-05 | BA74: 8.184020735e-05 | BB74: 3.926269467e-05 | BC74: 7.204116638e-05 | BD74: 4.427677502e-05 | BE74: 7.583737097e-05 | BF74: 5.143752126e-05 | BG74: 3.057961476e-05 | BH74: 0.0001153958102 | BI74: 8.04024718e-05 | BJ74: 3.646624702e-05 | BK74: 2.933734846e-05 | BL74: 9.734718389e-05 | BM74: 0.0001473633518 | BN74: 0.0001183145327 | BO74: 4.551192327e-05 | BP74: 8.520882926e-06 | BQ74: 3.326979726e-05 | BR74: 2.309929072e-05 | BS74: 3.254447422e-05 | BT74: 3e-07 | BU74: 3.038783835e-05 | BV74: 1.737144807e-05 | BW74: 3e-07 | BX74: 6.500910643e-05 | BY74: 2.284795885e-05 | BZ74: 5.131108462e-05 | CA74: 6.384766172e-05 | CB74: 3e-07 | CC74: 4.736728542e-05 | CD74: 5.095730506e-05 | CE74: 0.01302534176 | CF74: 0.01826986369 | CG74: 0.01115001224 | CH74: 0.001073436938 | CI74: 0.001792109612 | CJ74: 0.02081872319 | CK74: 0.003243285291 | CL74: 0.003754379174 | CM74: 0.008408328955 | CN74: 0.002851724885 | CO74: 0.01053982661 | CP74: 0.007994569949 | CQ74: 0.017626428 | CR74: 0.01105745003 | CS74: 0.008060528526 | CT74: 0.001270301126 | CU74: 0.003079339713 | CV74: 0.00521200988 | CW74: 0.008511867264 | CX74: 0.0121405776 | CY74: 0.003416763926 | CZ74: 0.005409677896 | DA74: 0.003085988651 | DB74: 0.00148273995 | DC74: 0.01059619678 | DD74: 0.009176496715 | DE74: 0.01350007283 | DF74: 0.004690595529 | DG74: 0.0170492834 | DH74: 0.01846746651 | DI74: 0.003534928004 | DJ74: 0.009889447948 | DK74: 0.01702813503 | DL74: 0.0006092393942 | DM74: 0.0003103916539 | DN74: 0.0004182612027 | DO74: 0.0007658007415 | DP74: 0.0007982160714 | DQ74: 0.0009749836296 | DR74: 0.0005973209347 | DS74: 0.001660703829 | DT74: 0.001833835252 | DU74: 0.001244446618 | DV74: 0.0007809351154 | DW74: 0.0005693429905 | DX74: 0.001139631501 | DY74: 0.002056342421 | DZ74: 0.000778115584 | EA74: 0.0007945870959 | EB74: 0.0003707902634 | EC74: 0.001197878229 | ED74: 0.0008708037092 | EE74: 0.0001069905926 | EF74: 0.0008706415424 | EG74: 0.001748410892 | EH74: 0.0002066365388 | EI74: 0.0007444342926 | EJ74: 0.0009832019198 | EK74: 0.0004209626174 | EL74: 0.0004032297517 | EM74: 0.001085263272 | EN74: 0.0004266639881
A75: p1664_502.0864_3.09 | B75: p1664 | C75: 502.0864 | D75: 3.09 | G75: 9.8282 | H75: 3.2969 | I75: 9.64E-15 | J75: =ROUND(H75,1) -> 3.3 | K75: B. rapa | L75: 0.83825 | M75: -0.25454 | N75: 0.9609 | P75: 0.66983 | Q75: -0.57813 | R75: 0.33643 | U75: 0.0001897704424 | V75: 0.0003853900628 | W75: 0.0005052973737 | X75: 0.0007904721635 | Y75: 0.0003294008308 | Z75: 0.0008989080487 | AA75: 0.001085787076 | AB75: 0.0009223664621 | AC75: 0.002372013736 | AD75: 0.005506116013 | AE75: 0.001623757759 | AF75: 0.0006996858386 | AG75: 0.004074781963 | AH75: 0.002074131703 | AI75: 0.0008932581685 | AJ75: 0.0007617831383 | AK75: 0.0002938923902 | AL75: 0.000160230087 | AM75: 0.03722993716 | AN75: 0.003660527626 | AO75: 0.003763156646 | AP75: 0.006655571724 | AQ75: 0.005842496307 | AR75: 0.002323448711 | AS75: 0.001383194705 | AT75: 0.003466825776 | AU75: 0.0009288033884 | AV75: 0.0009493096846 | AW75: 0.0003989597111 | AX75: 9.353267331e-05 | AY75: 0.006429320309 | AZ75: 0.002695900196 | BA75: 0.001177315754 | BB75: 0.0006483953577 | BC75: 0.0008199594574 | BD75: 0.0004454785732 | BE75: 0.001656931651 | BF75: 0.0001543125638 | BG75: 0.0002303664312 | BH75: 0.001108881614 | BI75: 0.0002809356956 | BJ75: 0.0002352072932 | BK75: 0.0002666439005 | BL75: 0.0002265534461 | BM75: 0.0002831687936 | BN75: 0.0003739827184 | BO75: 0.0001854825552 | BP75: 0.0001022505951 | BQ75: 0.0006342055103 | BR75: 0.0001881912802 | BS75: 0.0002793400704 | BT75: 0.0001089771688 | BU75: 0.0001633346311 | BV75: 8.685724034e-05 | BW75: 0.0001399130484 | BX75: 7.842368395e-05 | BY75: 0.0001354937095 | BZ75: 0.000171454112 | CA75: 0.0002965555867 | CB75: 0.000164178787 | CC75: 0.0001027780721 | CD75: 0.0003307229015 | CE75: 3.998487059e-05 | CF75: 9.719289103e-05 | CG75: 0.0001832276333 | CH75: 4.727572008e-05 | CI75: 4.170005744e-05 | CJ75: 0.0001757381418 | CK75: 0.0002875735646 | CL75: 0.0001083905932 | CM75: 0.0001067136358 | CN75: 6.34976515e-06 | CO75: 9.081341308e-05 | CP75: 8.047293596e-05 | CQ75: 0.0008737763817 | CR75: 0.000505336601 | CS75: 0.001160810291 | CT75: 8.208955801e-05 | CU75: 0.0009847011362 | CV75: 0.001308136443 | CW75: 5.384417879e-05 | CX75: 2.757968559e-05 | CY75: 4.63065779e-05 | CZ75: 3e-07 | DA75: 7.027498909e-05 | DB75: 3.871148625e-05 | DC75: 4.591577489e-05 | DD75: 9.327287869e-05 | DE75: 6.034249568e-05 | DF75: 4.445446076e-05 | DG75: 0.0003039609235 | DH75: 0.0003434205562 | DI75: 1.397599324e-05 | DJ75: 3.472468287e-05 | DK75: 4.919530536e-05 | DL75: 5.592627251e-05 | DM75: 5.000754424e-05 | DN75: 4.317534996e-05 | DO75: 5.890774934e-05 | DP75: 2.311277146e-05 | DQ75: 4.309963476e-05 | DR75: 3.190111806e-05 | DS75: 9.686269162e-05 | DT75: 3.188662533e-05 | DU75: 2.852366183e-05 | DV75: 5.595114394e-05 | DW75: 3.243092984e-05 | DX75: 5.078418321e-05 | DY75: 2.580352459e-05 | DZ75: 3.230272266e-05 | EA75: 4.06735625e-05 | EB75: 9.908064593e-06 | EC75: 1.695110701e-05 | ED75: 4.328341941e-05 | EE75: 8.694495108e-06 | EF75: 3.149933221e-05 | EG75: 0.0001046326088 | EH75: 1.08375807e-05 | EI75: 9.714924001e-05 | EJ75: 6.684950291e-05 | EK75: 3.893295884e-05 | EL75: 1.797839657e-05 | EM75: 7.326671877e-05 | EN75: 4.43442909e-05
A76: p2284_321.1078_4.41 | B76: p2284 | C76: 321.1078 | D76: 4.41 | G76: 9.8223 | H76: 3.2961 | I76: 4.69E-02 | J76: =ROUND(H76,1) -> 3.3 | K76: B. rapa | L76: 1.9533 | M76: 0.96594 | N76: 0.9932 | P76: 0.58352 | Q76: -0.77713 | R76: 0.15785 | U76: 9.77260961e-05 | V76: 0.0002760226125 | W76: 0.0003509850021 | X76: 0.009657730796 | Y76: 0.005324184891 | Z76: 0.01913918053 | AA76: 0.007341053827 | AB76: 0.009592205101 | AC76: 0.02205786002 | AD76: 0.003432731134 | AE76: 0.006798019919 | AF76: 0.0002501807512 | AG76: 0.0003909816292 | AH76: 0.0002816337872 | AI76: 0.0002977527228 | AJ76: 0.0003856273435 | AK76: 0.0002809740434 | AL76: 0.0002893043238 | AM76: 0.0003012653143 | AN76: 0.007393728223 | AO76: 0.0001495294031 | AP76: 0.0001439438166 | AQ76: 0.000253163227 | AR76: 0.0002098220181 | AS76: 0.0001816466675 | AT76: 0.0002110531552 | AU76: 0.0001115139622 | AV76: 0.000342638315 | AW76: 0.0001067922459 | AX76: 0.0001170999611 | AY76: 0.0003943911763 | AZ76: 0.0003437585258 | BA76: 0.0002258000902 | BB76: 0.0006753183483 | BC76: 0.000653609855 | BD76: 0.0006469830799 | BE76: 0.0006756420323 | BF76: 0.0008112431924 | BG76: 0.00103562962 | BH76: 0.002571162896 | BI76: 0.0008778058098 | BJ76: 0.0002889950076 | BK76: 0.0001962342642 | BL76: 0.000206199035 | BM76: 0.0004810980014 | BN76: 0.0003087057349 | BO76: 0.0001459816407 | BP76: 7.472158873e-05 | BQ76: 0.0009814590192 | BR76: 0.0006990932396 | BS76: 0.0004569786588 | BT76: 8.297753969e-05 | BU76: 0.000240253847 | BV76: 0.0002937704884 | BW76: 0.0008050928801 | BX76: 0.0006666013136 | BY76: 0.000266205288 | BZ76: 0.0006707985697 | CA76: 0.0005561467376 | CB76: 0.0001698123728 | CC76: 0.0003753633939 | CD76: 0.0002268099657 | CE76: 0.0002928621603 | CF76: 0.0002687803406 | CG76: 0.0002752486224 | CH76: 0.003035379321 | CI76: 0.001028601417 | CJ76: 0.0008920168242 | CK76: 0.005795713379 | CL76: 0.0049697087 | CM76: 0.001529268136 | CN76: 0.0003086439418 | CO76: 0.003377602484 | CP76: 0.0008398784581 | CQ76: 0.002405369936 | CR76: 0.003043439642 | CS76: 0.002343596707 | CT76: 0.0001558310254 | CU76: 0.0001931749527 | CV76: 0.0002905828991 | CW76: 0.006539824216 | CX76: 0.01777372838 | CY76: 0.003028670702 | CZ76: 0.003944510967 | DA76: 0.0069465299 | DB76: 0.002384807606 | DC76: 0.002725198245 | DD76: 0.00113404275 | DE76: 0.003268898645 | DF76: 0.0001175053583 | DG76: 0.0002286353302 | DH76: 0.0004175325912 | DI76: 0.0002339980582 | DJ76: 0.002784352633 | DK76: 0.001725115375 | DL76: 0.0008650723429 | DM76: 0.000401784752 | DN76: 0.0003274130705 | DO76: 0.0001696543181 | DP76: 0.0001246438746 | DQ76: 0.0003028622983 | DR76: 0.0001683058987 | DS76: 0.0002189939115 | DT76: 8.290522586e-05 | DU76: 0.0003105004331 | DV76: 0.0003642776605 | DW76: 0.0001702623817 | DX76: 0.0001282515813 | DY76: 0.0003012065274 | DZ76: 0.0002850240235 | EA76: 0.0004052829977 | EB76: 3.0867432e-05 | EC76: 0.0001654750923 | ED76: 6.749278959e-05 | EE76: 3.284587041e-05 | EF76: 0.0001826961268 | EG76: 7.742813048e-05 | EH76: 0.0001076533017 | EI76: 0.0001999466916 | EJ76: 0.000217003771 | EK76: 0.0001277487712 | EL76: 0.0001498199714 | EM76: 0.0001694292871 | EN76: 0.0004758022564
A77: p2267_295.1028_2.9 | B77: p2267 | C77: 295.1028 | D77: 2.9 | G77: 9.7853 | H77: 3.2906 | I77: 4.64E-16 | J77: =ROUND(H77,1) -> 3.3 | K77: B. rapa | L77: 1.135 | M77: 0.18267 | N77: 0.99974 | P77: 0.9103 | Q77: -0.13558 | R77: 0.73238 | U77: 2.556787398e-05 | V77: 3.645581675e-05 | W77: 0.0002632387516 | X77: 0.00103081043 | Y77: 0.0005442880716 | Z77: 0.001436572676 | AA77: 0.0009587239027 | AB77: 0.002203628405 | AC77: 0.002562936977 | AD77: 0.003159716366 | AE77: 0.001332025429 | AF77: 0.001144269337 | AG77: 0.001317127482 | AH77: 0.001811947763 | AI77: 0.0009517570478 | AJ77: 0.0004018642843 | AK77: 0.0002188044993 | AL77: 0.0002528074706 | AM77: 0.005614294322 | AN77: 0.003635639622 | AO77: 0.001166027265 | AP77: 0.003559559804 | AQ77: 0.002309824121 | AR77: 0.001057180168 | AS77: 0.004206162587 | AT77: 0.002620391543 | AU77: 0.001269820279 | AV77: 0.000249924418 | AW77: 0.0004966846909 | AX77: 0.0001112081391 | AY77: 0.002100319048 | AZ77: 0.001888588507 | BA77: 0.0009012283074 | BB77: 0.0001716340653 | BC77: 0.00023577109 | BD77: 0.0001554205164 | BE77: 0.0003539077312 | BF77: 0.0004805734129 | BG77: 0.0004403464525 | BH77: 0.0001676845367 | BI77: 8.60779404e-05 | BJ77: 0.0001431300195 | BK77: 0.0001069183366 | BL77: 0.0001327461598 | BM77: 0.0001545870455 | BN77: 0.0004637385709 | BO77: 7.21321048e-05 | BP77: 2.643658549e-05 | BQ77: 0.00015179345 | BR77: 4.755736324e-05 | BS77: 0.0002332353986 | BT77: 6.914794974e-05 | BU77: 9.021389511e-05 | BV77: 0.0001073169458 | BW77: 0.0001529557902 | BX77: 0.0001898678664 | BY77: 5.579152743e-05 | BZ77: 0.0003041120381 | CA77: 8.989078689e-05 | CB77: 0.0001158909085 | CC77: 0.0001090341287 | CD77: 0.0001948367546 | CE77: 9.942184038e-05 | CF77: 0.001187913113 | CG77: 0.0001954428088 | CH77: 0.0368180527 | CI77: 0.02189352302 | CJ77: 0.02086619748 | CK77: 0.04002037081 | CL77: 0.03750856479 | CM77: 0.01938395869 | CN77: 0.002956269232 | CO77: 0.0003359002147 | CP77: 0.002268041827 | CQ77: 0.0005376390353 | CR77: 0.0003644894881 | CS77: 0.0002362433385 | CT77: 0.000156758591 | CU77: 0.0001407885249 | CV77: 0.0003378154552 | CW77: 0.0001114275367 | CX77: 0.0005405618376 | CY77: 0.0004851165303 | CZ77: 0.0004113907143 | DA77: 0.0003513749454 | DB77: 0.000302489753 | DC77: 0.0001280468088 | DD77: 0.0001266956602 | DE77: 0.0001914313656 | DF77: 3.197601564e-05 | DG77: 0.0001621715714 | DH77: 0.000213985453 | DI77: 4.911563337e-05 | DJ77: 0.0001112607186 | DK77: 0.0004219863971 | DL77: 0.0006889640805 | DM77: 0.0003888517664 | DN77: 0.0005010139568 | DO77: 0.0006927551323 | DP77: 0.0003739316239 | DQ77: 0.0003401376581 | DR77: 0.0001831564192 | DS77: 0.00044921828 | DT77: 0.0001289636847 | DU77: 0.0002811618095 | DV77: 0.0002226141259 | DW77: 0.0002360251005 | DX77: 0.0003511855381 | DY77: 0.0008609445224 | DZ77: 0.0003714813106 | EA77: 0.0002738202332 | EB77: 0.0001025103606 | EC77: 0.0002461946494 | ED77: 0.0002861107385 | EE77: 6.907293336e-05 | EF77: 0.0004044514256 | EG77: 0.0001841533914 | EH77: 0.0001401660438 | EI77: 0.0002812809391 | EJ77: 0.0004072677408 | EK77: 0.000434345822 | EL77: 0.0001309854607 | EM77: 0.0002271268282 | EN77: 0.0001605982427
A78: p809_192.0511_6.05 | B78: p809 | C78: 192.0511 | D78: 6.05 | G78: 9.7685 | H78: 3.2881 | I78: 3.13E-22 | J78: =ROUND(H78,1) -> 3.3 | K78: B. rapa | L78: 0.35179 | M78: -1.5072 | N78: 0.022579 | O78: - | P78: 0.28399 | Q78: -1.8161 | R78: 0.045764 | S78: - | U78: 0.01293620788 | V78: 0.004883343453 | W78: 0.1300338918 | X78: 0.0120248062 | Y78: 0.002538616922 | Z78: 0.0286247607 | AA78: 0.006095105443 | AB78: 0.001797523193 | AC78: 0.01580304864 | AD78: 0.0492973029 | AE78: 0.1066258215 | AF78: 0.05260521946 | AG78: 0.08980302468 | AH78: 0.0581254793 | AI78: 0.1499096225 | AJ78: 0.2104009848 | AK78: 0.03253647126 | AL78: 0.0920762195 | AM78: 0.04319283849 | AN78: 0.01215032354 | AO78: 0.0190657541 | AP78: 0.01716712992 | AQ78: 0.02011602485 | AR78: 0.02666720467 | AS78: 0.01962230681 | AT78: 0.0175574009 | AU78: 0.01818612862 | AV78: 0.1579179684 | AW78: 0.05680742998 | AX78: 0.07471345755 | AY78: 0.01231356225 | AZ78: 0.005470969022 | BA78: 0.009753775073 | BB78: 0.001716340653 | BC78: 0.001401528146 | BD78: 0.00603067748 | BE78: 0.08802420668 | BF78: 0.005036468153 | BG78: 0.01006069325 | BH78: 0.001922061464 | BI78: 0.003231233455 | BJ78: 0.001241675711 | BK78: 0.002142278379 | BL78: 0.001791188183 | BM78: 0.002083313268 | BN78: 0.0009424364505 | BO78: 0.003115419955 | BP78: 0.0003897757728 | BQ78: 0.0005759833651 | BR78: 0.001097216309 | BS78: 0.001072611629 | BT78: 0.0004624614879 | BU78: 0.001713114387 | BV78: 0.001233758845 | BW78: 0.001999096607 | BX78: 0.002978036209 | BY78: 0.0004893713977 | BZ78: 0.000687067938 | CA78: 0.002615233828 | CB78: 0.0001529116154 | CC78: 0.0007811133483 | CD78: 0.003410142788 | CE78: 7.780839682e-05 | CF78: 0.0001391898193 | CG78: 0.0001026074746 | CH78: 0.004926408125 | CI78: 0.003159275781 | CJ78: 0.002676883355 | CK78: 0.006985144869 | CL78: 0.004789509339 | CM78: 0.003772018349 | CN78: 0.0004589973094 | CO78: 0.002658754142 | CP78: 0.001062797741 | CQ78: 0.00102829113 | CR78: 0.001438924559 | CS78: 0.001330340394 | CT78: 0.0001961801302 | CU78: 0.0003626123054 | CV78: 0.0002628594423 | CW78: 0.001399200813 | CX78: 0.001909893227 | CY78: 0.002274535005 | CZ78: 0.003078830506 | DA78: 0.003860541248 | DB78: 0.002498241264 | DC78: 0.001224205097 | DD78: 0.0009117423892 | DE78: 0.002446992239 | DF78: 4.081491427e-05 | DG78: 9.304926231e-05 | DH78: 0.0002171169474 | DI78: 0.0003350245236 | DJ78: 0.001009141804 | DK78: 0.0009740670462 | DL78: 0.0002498833453 | DM78: 0.0001646800164 | DN78: 0.0001268275905 | DO78: 0.0004052853155 | DP78: 0.0001262947869 | DQ78: 0.0004484691725 | DR78: 6.215217829e-05 | DS78: 0.0001502073624 | DT78: 4.393268379e-05 | DU78: 0.0001100198385 | DV78: 0.0001928528791 | DW78: 0.0001297237194 | DX78: 0.0001187833438 | DY78: 0.0001339798392 | DZ78: 8.170688672e-05 | EA78: 3.341042634e-05 | EB78: 3.010527319e-05 | EC78: 0.0001404520295 | ED78: 8.143151788e-05 | EE78: 3.139678789e-05 | EF78: 0.0002809740434 | EG78: 5.02236522e-05 | EH78: 4.118280668e-05 | EI78: 0.0003117812819 | EJ78: 0.000169694892 | EK78: 0.0002725307118 | EL78: 0.0001883451069 | EM78: 0.0001511126075 | EN78: 0.0003176010024
A79: p2294_622.2855_4.09 | B79: p2294 | C79: 622.2855 | D79: 4.09 | G79: 9.7593 | H79: 3.2868 | I79: 1.57E-06 | J79: =ROUND(H79,1) -> 3.3 | K79: B. rapa | L79: 1.1066 | M79: 0.14611 | N79: 0.60788 | P79: 0.88444 | Q79: -0.17716 | R79: 0.62709 | U79: 3.806772348e-05 | V79: 8.072359423e-05 | W79: 0.0003630879332 | X79: 0.0001882452431 | Y79: 0.0001077423515 | Z79: 0.007124056312 | AA79: 5.609853146e-05 | AB79: 0.001277708522 | AC79: 0.005987103787 | AD79: 0.0009125948176 | AE79: 0.002153753792 | AF79: 0.002248345702 | AG79: 6.559658564e-05 | AH79: 6.146151709e-05 | AI79: 0.0001327727373 | AJ79: 0.0001569570942 | AK79: 0.0001889308223 | AL79: 0.001549781008 | AM79: 0.0002302527759 | AN79: 0.002844201095 | AO79: 9.28894777e-05 | AP79: 0.0006111512891 | AQ79: 0.000478455273 | AR79: 0.001939753202 | AS79: 0.0003632933349 | AT79: 0.0002477097559 | AU79: 0.002197184778 | AV79: 0.0001713191575 | AW79: 0.0002367563942 | AX79: 0.000103106884 | AY79: 0.0003348604327 | AZ79: 8.750217019e-05 | BA79: 0.0002849616858 | BB79: 5.945493764e-05 | BC79: 7.728052394e-05 | BD79: 5.240924391e-05 | BE79: 0.0003240324032 | BF79: 0.0001969322242 | BG79: 0.0002609460459 | BH79: 0.0001514570009 | BI79: 0.0001655345008 | BJ79: 7.384415021e-05 | BK79: 0.0001003989258 | BL79: 5.398343834e-05 | BM79: 0.0001647002167 | BN79: 0.0001060750983 | BO79: 0.0001150678815 | BP79: 2.643658549e-05 | BQ79: 0.0001673886675 | BR79: 0.0001331606171 | BS79: 8.678526459e-05 | BT79: 4.425468784e-05 | BU79: 9.40123749e-05 | BV79: 4.47797328e-05 | BW79: 6.758511659e-05 | BX79: 0.000151687915 | BY79: 5.791691895e-05 | BZ79: 0.0001464243147 | CA79: 7.476897228e-05 | CB79: 0.0001038189389 | CC79: 0.0001063529616 | CD79: 0.0001059112615 | CE79: 0.01013454369 | CF79: 0.02779956666 | CG79: 0.02554926119 | CH79: 0.01616412488 | CI79: 0.006722644975 | CJ79: 0.006344896514 | CK79: 0.02010632686 | CL79: 0.00372999129 | CM79: 0.001689779555 | CN79: 0.006711474987 | CO79: 0.001508815622 | CP79: 0.003078321045 | CQ79: 0.05284042942 | CR79: 0.04771386284 | CS79: 0.04107259185 | CT79: 0.03667640868 | CU79: 0.02539350237 | CV79: 0.05068053263 | CW79: 0.008463257936 | CX79: 0.01486269257 | CY79: 0.0130507372 | CZ79: 0.009279390551 | DA79: 0.0218998254 | DB79: 0.006114614293 | DC79: 0.007507552544 | DD79: 0.01577710743 | DE79: 0.005628498304 | DF79: 0.008688637354 | DG79: 0.0250603818 | DH79: 0.02214070948 | DI79: 0.001187160797 | DJ79: 0.002252143718 | DK79: 0.005366661201 | DL79: 0.001123285133 | DM79: 0.0009027223935 | DN79: 0.0005010139568 | DO79: 0.00180493344 | DP79: 0.0004894954812 | DQ79: 0.00915576025 | DR79: 0.0008178786647 | DS79: 0.002232053329 | DT79: 0.0009431355182 | DU79: 0.001038261291 | DV79: 0.0004142765551 | DW79: 0.0003909728764 | DX79: 0.0006756878613 | DY79: 0.01161208229 | DZ79: 0.0002099676973 | EA79: 0.0001045891607 | EB79: 0.0002812366027 | EC79: 0.0005618081181 | ED79: 0.0002985822322 | EE79: 0.000646290803 | EF79: 0.001208314384 | EG79: 0.001234664783 | EH79: 0.0002590181788 | EI79: 0.001095753056 | EJ79: 0.0006201576963 | EK79: 0.001373603454 | EL79: 0.0001712228245 | EM79: 0.0002674235235 | EN79: 0.001709052941
A80: p1414_326.1234_7.46 | B80: p1414 | C80: 326.1234 | D80: 7.46 | G80: 9.7148 | H80: 3.2802 | I80: 1.14E-19 | J80: =ROUND(H80,1) -> 3.3 | K80: B. rapa | L80: 1.1157 | M80: 0.15793 | N80: 0.84407 | P80: 0.61648 | Q80: -0.69786 | R80: 0.4192 | U80: 0.0006641965485 | V80: 0.001238629774 | W80: 0.003043887173 | X80: 0.0004100352361 | Y80: 0.0001802344328 | Z80: 0.001118174405 | AA80: 0.0003980190807 | AB80: 0.001832549768 | AC80: 0.002951009215 | AD80: 0.0009450511187 | AE80: 0.0003320683112 | AF80: 0.0002026053952 | AG80: 0.0003247355725 | AH80: 0.0004255626563 | AI80: 0.0004009473751 | AJ80: 0.0001961963678 | AK80: 0.0002850110267 | AL80: 0.0006053136621 | AM80: 0.004818093134 | AN80: 0.0008889995022 | AO80: 0.0009847795035 | AP80: 8.295067397e-05 | AQ80: 0.0001393559048 | AR80: 9.317271433e-05 | AS80: 0.0009797008786 | AT80: 0.0004109982497 | AU80: 0.0002215890346 | AV80: 0.000556283382 | AW80: 0.0005863498785 | AX80: 0.000300482919 | AY80: 0.0007032069088 | AZ80: 0.0003093826732 | BA80: 0.0006310570205 | BB80: 7.964718062e-05 | BC80: 0.0001467020115 | BD80: 7.409582759e-05 | BE80: 0.0007422869947 | BF80: 8.817860787e-05 | BG80: 0.0003180279935 | BH80: 0.0001388355842 | BI80: 7.567291464e-05 | BJ80: 0.0001176036466 | BK80: 6.7801872e-05 | BL80: 5.752333593e-05 | BM80: 0.000101131712 | BN80: 0.0001427934016 | BO80: 0.0001056220106 | BP80: 1.026875635e-05 | BQ80: 6.757927569e-05 | BR80: 3.872528149e-05 | BS80: 0.0001600103316 | BT80: 2.876554709e-05 | BU80: 6.362453655e-05 | BV80: 3.049654216e-05 | BW80: 7.707074699e-05 | BX80: 0.0001083485107 | BY80: 2.869278554e-05 | BZ80: 8.760429082e-05 | CA80: 7.560907309e-05 | CB80: 7.24318178e-05 | CC80: 3.843006176e-05 | CD80: 8.392967892e-05 | CE80: 6.375965851e-05 | CF80: 0.0003815720907 | CG80: 0.0001229661006 | CH80: 0.0001167988378 | CI80: 0.0003961505457 | CJ80: 0.01121309291 | CK80: 0.0001582505415 | CL80: 0.0002506532469 | CM80: 0.005795167775 | CN80: 2.562583793e-05 | CO80: 0.0001422378759 | CP80: 0.008633728555 | CQ80: 4.789053592e-05 | CR80: 9.231195913e-05 | CS80: 8.554991327e-05 | CT80: 0.0001256851425 | CU80: 0.0004158172712 | CV80: 0.002180911935 | CW80: 4.262664154e-05 | CX80: 7.170718254e-05 | CY80: 0.0001267918204 | CZ80: 0.0002342947116 | DA80: 0.001972282846 | DB80: 0.001138837909 | DC80: 6.919701286e-05 | DD80: 0.00127628389 | DE80: 0.0005742940968 | DF80: 3.82152382e-05 | DG80: 0.0001533097369 | DH80: 0.0001607500476 | DI80: 1.677119188e-05 | DJ80: 0.0001077173836 | DK80: 0.0001935015344 | DL80: 0.0001308912761 | DM80: 9.829069041e-05 | DN80: 0.0001151342666 | DO80: 0.0001696543181 | DP80: 0.0001494075583 | DQ80: 0.0002644220835 | DR80: 7.150250599e-05 | DS80: 0.0002302243685 | DT80: 6.306465899e-05 | DU80: 0.000122244265 | DV80: 5.118934445e-05 | DW80: 7.026701466e-05 | DX80: 0.000123947837 | DY80: 8.386145492e-05 | DZ80: 3.515296289e-05 | EA80: 0.0001648731908 | EB80: 1.752965274e-05 | EC80: 5.973247232e-05 | ED80: 6.675917231e-05 | EE80: 1.545688019e-05 | EF80: 0.0001020578364 | EG80: 5.545528264e-05 | EH80: 4.40728282e-05 | EI80: 0.0001084456633 | EJ80: 0.0001326705519 | EK80: 0.0001484319056 | EL80: 5.650353208e-05 | EM80: 0.0001025734063 | EN80: 7.670363831e-05
A81: p2279_516.102_3.36 | B81: p2279 | C81: 516.102 | D81: 3.36 | G81: 9.6843 | H81: 3.2757 | I81: 4.17E-16 | J81: =ROUND(H81,1) -> 3.3 | K81: B. rapa | L81: 0.76541 | M81: -0.38569 | N81: 0.97774 | P81: 0.66832 | Q81: -0.58139 | R81: 0.8887 | U81: 0.001705661282 | V81: 0.003233283747 | W81: 0.003993967265 | X81: 0.0002131078224 | Y81: 7.667431671e-05 | Z81: 0.0001243349451 | AA81: 0.0002016742206 | AB81: 0.0001086331441 | AC81: 0.000179509351 | AD81: 0.002386492724 | AE81: 0.0004230587806 | AF81: 0.0005938716848 | AG81: 0.0007845611431 | AH81: 0.0006060572381 | AI81: 0.0003496786944 | AJ81: 0.0001271893694 | AK81: 0.0001283760715 | AL81: 0.0001139413952 | AM81: 0.006475052363 | AN81: 0.00112195122 | AO81: 0.0009069940059 | AP81: 0.00111617451 | AQ81: 0.0009580718452 | AR81: 0.0003690226402 | AS81: 0.0005240953028 | AT81: 0.0009997254722 | AU81: 0.0003554057892 | AV81: 0.004549027512 | AW81: 0.001985731289 | AX81: 0.0005170073753 | AY81: 0.001797084322 | AZ81: 0.0007291847516 | BA81: 0.0004121591165 | BB81: 0.0001424674921 | BC81: 0.0001074068299 | BD81: 0.0001445772246 | BE81: 0.0007767585269 | BF81: 0.0001660697115 | BG81: 0.000252791482 | BH81: 0.0001983365488 | BI81: 0.0001154011948 | BJ81: 9.207727371e-05 | BK81: 4.302811108e-05 | BL81: 2.389430877e-05 | BM81: 0.0001935949916 | BN81: 0.0001128747841 | BO81: 4.465320773e-05 | BP81: 4.238593045e-05 | BQ81: 0.0001798648414 | BR81: 0.0001426720897 | BS81: 0.0001098376005 | BT81: 3e-07 | BU81: 0.0001063574342 | BV81: 4.47797328e-05 | BW81: 0.0001138275648 | BX81: 3e-07 | BY81: 4.994670075e-05 | BZ81: 0.0001163885578 | CA81: 7.056846822e-05 | CB81: 6.840782792e-05 | CC81: 0.0001394206892 | CD81: 6.594474772e-05 | CE81: 0.001504295672 | CF81: 0.002414223417 | CG81: 0.001823318537 | CH81: 0.002305386585 | CI81: 0.003501811967 | CJ81: 0.002179652688 | CK81: 0.004442926493 | CL81: 0.002548533824 | CM81: 0.00203814225 | CN81: 7.256874458e-05 | CO81: 0.0005186211783 | CP81: 0.0003311415066 | CQ81: 0.0003045115208 | CR81: 0.0003502144429 | CS81: 0.0005580365902 | CT81: 0.0001845855598 | CU81: 0.0002054530218 | CV81: 0.0002566986741 | CW81: 0.0005369461163 | CX81: 0.0004054213782 | CY81: 0.001128998471 | CZ81: 0.0001066975917 | DA81: 0.0002123526844 | DB81: 5.851736294e-05 | DC81: 0.0002884286704 | DD81: 0.0002254094568 | DE81: 0.000304833642 | DF81: 7.799028204e-05 | DG81: 0.0002525622834 | DH81: 0.0002160731159 | DI81: 0.0001231883975 | DJ81: 4.039401885e-05 | DK81: 0.0008964477866 | DL81: 7.139524151e-05 | DM81: 5.690513655e-05 | DN81: 7.82553218e-05 | DO81: 0.0001189936537 | DP81: 8.337106847e-05 | DQ81: 8.270470454e-05 | DR81: 3.685129155e-05 | DS81: 0.0001165159914 | DT81: 5.597874225e-05 | DU81: 6.438197957e-05 | DV81: 0.0001488062339 | DW81: 7.567216963e-05 | DX81: 9.468237547e-05 | DY81: 5.905037358e-05 | DZ81: 6.650560547e-05 | EA81: 3.558936718e-05 | EB81: 1.867289096e-05 | EC81: 4.116697417e-05 | ED81: 6.675917231e-05 | EE81: 2.704954034e-05 | EF81: 7.68583706e-05 | EG81: 8.684506526e-05 | EH81: 1.806263451e-05 | EI81: 6.438961256e-05 | EJ81: 7.816249571e-05 | EK81: 8.759915738e-05 | EL81: 6.078410269e-05 | EM81: 4.579169923e-05 | EN81: 7.190966092e-05
A82: n62_857.1288_3.8 | B82: n62 | C82: 857.1288 | D82: 3.8 | G82: 9.6588 | H82: 3.2718 | I82: 4.64E-14 | J82: =ROUND(H82,1) -> 3.3 | K82: B. rapa | L82: 0.63027 | M82: -0.66597 | N82: 0.77814 | P82: 0.46827 | Q82: -1.0946 | R82: 0.25844 | U82: 0.00117445004 | V82: 0.00323521753 | W82: 0.03338176161 | X82: 0.0003923287952 | Y82: 0.0001667551506 | Z82: 0.002032227218 | AA82: 9.284994318e-05 | AB82: 0.000433588082 | AC82: 0.001175280284 | AD82: 0.002007206858 | AE82: 0.00792170336 | AF82: 0.003796238705 | AG82: 0.004461322195 | AH82: 0.01053287526 | AI82: 0.01598574515 | AJ82: 0.01771758582 | AK82: 0.01158673056 | AL82: 0.01011895218 | AM82: 0.002438336535 | AN82: 0.0005300576043 | AO82: 0.0007618894261 | AP82: 0.00126721711 | AQ82: 0.002266901792 | AR82: 0.001372687117 | AS82: 0.005361235861 | AT82: 0.002035439122 | AU82: 0.002176412041 | AV82: 0.02019715957 | AW82: 0.007955820025 | AX82: 0.01571893302 | AY82: 0.0005813060685 | AZ82: 0.0005276289664 | BA82: 0.0009957972877 | BB82: 0.0003568611376 | BC82: 0.000392251582 | BD82: 0.001356533606 | BE82: 0.007361885368 | BF82: 8.489873212e-05 | BG82: 0.0001033657142 | BH82: 0.0001729558777 | BI82: 0.0006025813398 | BJ82: 0.0005390424031 | BK82: 3.0306012e-05 | BL82: 9.634574358e-05 | BM82: 0.0006119392237 | BN82: 0.0002950089248 | BO82: 0.0006787051762 | BP82: 1.598166182e-05 | BQ82: 5.45080933e-05 | BR82: 0.0001601546636 | BS82: 0.0001147947145 | BT82: 0.0003019270806 | BU82: 0.0006021320789 | BV82: 5.246209316e-05 | BW82: 0.0006793780229 | BX82: 0.001067746619 | BY82: 0.000240654972 | BZ82: 0.0007001753946 | CA82: 0.0006356228172 | CB82: 0.0002096340553 | CC82: 0.0002317081581 | CD82: 0.001484843494 | CE82: 0.003522991301 | CF82: 0.002533014728 | CG82: 0.002053778183 | CH82: 0.0009482953263 | CI82: 0.000330621884 | CJ82: 0.0003273227002 | CK82: 0.0006159859787 | CL82: 0.0006733765605 | CM82: 0.0002619334697 | CN82: 0.0002360751972 | CO82: 0.001096325782 | CP82: 0.000628058891 | CQ82: 0.0007346227491 | CR82: 0.0005824218453 | CS82: 0.00084922024 | CT82: 5.287124075e-05 | CU82: 7.039426244e-05 | CV82: 0.0001334833106 | CW82: 0.001175597904 | CX82: 0.001931956976 | CY82: 0.001378171961 | CZ82: 0.0005587873874 | DA82: 0.001268005238 | DB82: 0.00061938378 | DC82: 0.0008607591039 | DD82: 0.0004834644212 | DE82: 0.0008697642481 | DF82: 0.0006130036168 | DG82: 0.001357633046 | DH82: 0.001366375405 | DI82: 0.0001096117184 | DJ82: 0.0005938629438 | DK82: 0.0003760707788 | DL82: 0.0002272748521 | DM82: 0.0001534714289 | DN82: 0.0001313250228 | DO82: 3e-07 | DP82: 7.429105111e-05 | DQ82: 3.960506978e-05 | DR82: 2.915102167e-05 | DS82: 0.0001179197985 | DT82: 8.928255093e-05 | DU82: 6.275205603e-05 | DV82: 0.0001309494858 | DW82: 3.603436649e-05 | DX82: 6.369541623e-05 | DY82: 5.607304382e-05 | DZ82: 0.0001016585684 | EA82: 9.369445646e-05 | EB82: 3.810794074e-05 | EC82: 0.0001331872694 | ED82: 6.822640687e-05 | EE82: 1.400779767e-05 | EF82: 7.055850416e-05 | EG82: 7.428915221e-05 | EH82: 4.009904861e-05 | EI82: 0.0001231310135 | EJ82: 6.78779568e-05 | EK82: 4.988285351e-05 | EL82: 8.304306988e-05 | EM82: 9.249923244e-05 | EN82: 0.0001869651184
A83: p2097_1019.2667_5.16 | B83: p2097 | C83: 1,019.27 | D83: 5.16 | G83: 9.6575 | H83: 3.2717 | I83: 1.69E-01 | L83: 1.9085 | M83: 0.93245 | N83: 0.95313 | P83: 1.0311 | Q83: 0.044204 | R83: 0.93836 | U83: 1.931794923e-05 | V83: 3.819180802e-05 | W83: 3e-07 | X83: 1.578576462e-05 | Y83: 3.18646511e-06 | Z83: 3.360403921e-05 | AA83: 3e-07 | AB83: 3.096552239e-05 | AC83: 9.96121254e-05 | AD83: 5.345743702e-05 | AE83: 3.376965877e-05 | AF83: 5.577800355e-05 | AG83: 0.000631935424 | AH83: 0.001843067519 | AI83: 0.005108463933 | AJ83: 4.735774394e-05 | AK83: 2.906628035e-05 | AL83: 2.49246802e-05 | AM83: 7.531632858e-05 | AN83: 3.086112494e-05 | AO83: 4.455674134e-05 | AP83: 5.001437696e-05 | AQ83: 3.71615746e-05 | AR83: 1.760744208e-05 | AS83: 0.0001116680333 | AT83: 3.665660065e-05 | AU83: 2.949724161e-05 | AV83: 6.4496624e-05 | AW83: 2.921674652e-05 | AX83: 6.775595232e-05 | AY83: 6.325141507e-05 | AZ83: 3e-07 | BA83: 2.859477124e-05 | BB83: 2.916657318e-05 | BC83: 3e-07 | BD83: 6.054171279e-05 | BE83: 7.353926882e-05 | BF83: 6.025538204e-05 | BG83: 7.135243443e-05 | BH83: 4.327342883e-05 | BI83: 4.824148308e-05 | BJ83: 2.826134144e-05 | BK83: 2.803346631e-05 | BL83: 4.955856634e-05 | BM83: 6.35685047e-05 | BN83: 6.255710927e-05 | BO83: 5.92513718e-05 | BP83: 6.991493683e-06 | BQ83: 3e-07 | BR83: 3.464893607e-05 | BS83: 4.339263229e-05 | BT83: 3e-07 | BU83: 3.893441789e-05 | BV83: 2.547812383e-05 | BW83: 4.1499633e-05 | BX83: 3.405238908e-05 | BY83: 3.666300374e-05 | BZ83: 8.259833135e-05 | CA83: 3e-07 | CB83: 2.333914129e-05 | CC83: 2.859911573e-05 | CD83: 6.594474772e-05 | CE83: 0.0009441971219 | CF83: 0.0002245214726 | CG83: 0.000227245251 | CH83: 0.001860658312 | CI83: 0.0003652085506 | CJ83: 0.0001082600634 | CK83: 0.003525043816 | CL83: 0.001158368596 | CM83: 0.000153867644 | CN83: 8.226112363e-05 | CO83: 0.0003397790176 | CP83: 0.0001525557631 | CQ83: 0.0001364858093 | CR83: 0.000220655783 | CS83: 0.0002112939856 | CT83: 7.239440549e-05 | CU83: 0.0001089214486 | CV83: 9.655923351e-05 | CW83: 0.001010567615 | CX83: 0.001269533553 | CY83: 0.000527225801 | CZ83: 0.0003329363845 | DA83: 0.0002869987412 | DB83: 0.0001327870796 | DC83: 0.0005626616342 | DD83: 0.0005075814061 | DE83: 0.0003191832806 | DF83: 4.040947103e-05 | DG83: 0.0002288616313 | DH83: 0.0003383702727 | DI83: 7.853686491e-05 | DJ83: 0.0001348038227 | DK83: 0.0003115016841 | DL83: 0.0004865959316 | DM83: 0.0004979377578 | DN83: 0.0001673609329 | DO83: 0.0004693617313 | DP83: 0.0001693847258 | DQ83: 0.0002016642133 | DR83: 0.0005235264193 | DS83: 0.0002282365591 | DT83: 0.0001961167155 | DU83: 0.0005143713813 | DV83: 0.0005152030487 | DW83: 0.0002346628354 | DX83: 0.000136627784 | DY83: 0.000315419629 | DZ83: 0.0002275755442 | EA83: 6.901994032e-05 | EB83: 4.373311626e-05 | EC83: 0.0001810117578 | ED83: 0.0001661503734 | EE83: 2.316441393e-05 | EF83: 9.005017987e-05 | EG83: 0.0001741574444 | EH83: 0.0001149215118 | EI83: 0.0002372730919 | EJ83: 0.0002263839617 | EK83: 0.001237391678 | EL83: 0.000131270511 | EM83: 0.000122624103 | EN83: 0.0002393818454
A84: p1667_361.0559_4.93 | B84: p1667 | C84: 361.0559 | D84: 4.93 | G84: 9.6467 | H84: 3.27 | I84: 1.47E-22 | J84: =ROUND(H84,1) -> 3.3 | K84: B. rapa | L84: 0.82334 | M84: -0.28045 | N84: 0.88426 | P84: 0.79598 | Q84: -0.3292 | R84: 0.98033 | U84: 0.000476698806 | V84: 0.001768107112 | W84: 0.002293505445 | X84: 0.0001176039464 | Y84: 5.018682548e-05 | Z84: 0.000170540499 | AA84: 7.348907621e-05 | AB84: 0.0001685336629 | AC84: 0.000382884107 | AD84: 0.002774059142 | AE84: 0.002187523451 | AF84: 0.0009129546757 | AG84: 0.001439877528 | AH84: 0.001110197277 | AI84: 0.0009464987216 | AJ84: 0.0001217770558 | AK84: 0.0005522593266 | AL84: 0.0003195700069 | AM84: 0.004178980289 | AN84: 0.001596814335 | AO84: 0.000795979752 | AP84: 0.004142654247 | AQ84: 0.001837175344 | AR84: 0.002120963127 | AS84: 0.002928680286 | AT84: 0.002056102055 | AU84: 0.001206509127 | AV84: 0.001805905472 | AW84: 0.001064900037 | AX84: 0.0006363167696 | AY84: 0.0007552963094 | AZ84: 0.001502120588 | BA84: 0.000369759973 | BB84: 0.0001189098753 | BC84: 0.0001008576329 | BD84: 0.0001165653873 | BE84: 0.001461592968 | BF84: 0.0001190411206 | BG84: 5.912058853e-05 | BH84: 9.015297672e-05 | BI84: 0.0001144552834 | BJ84: 9.937052312e-05 | BK84: 5.215528616e-05 | BL84: 4.513369435e-05 | BM84: 0.000208042379 | BN84: 5.711736063e-05 | BO84: 5.581650966e-05 | BP84: 1.900812345e-05 | BQ84: 0.0001341188702 | BR84: 6.250396311e-05 | BS84: 0.0001776385884 | BT84: 5.919064498e-05 | BU84: 5.887643681e-05 | BV84: 2.779431691e-05 | BW84: 6.165659759e-05 | BX84: 5.469020065e-05 | BY84: 6.057365835e-05 | BZ84: 0.0001777115614 | CA84: 0.0001293755251 | CB84: 7.323661578e-05 | CC84: 0.0001206525195 | CD84: 4.895897937e-05 | CE84: 0.001972598958 | CF84: 0.006920427338 | CG84: 0.008326481778 | CH84: 0.002201034739 | CI84: 0.001378477686 | CJ84: 0.002258508284 | CK84: 0.001519215149 | CL84: 0.0009535428108 | CM84: 0.0005449892683 | CN84: 0.0003051483687 | CO84: 0.0009326665586 | CP84: 0.001142352083 | CQ84: 0.007502892807 | CR84: 0.01386068564 | CS84: 0.01277644568 | CT84: 0.002165517388 | CU84: 0.008853046878 | CV84: 0.01399218624 | CW84: 0.001268759829 | CX84: 0.001320711109 | CY84: 0.001263173384 | CZ84: 0.001467757144 | DA84: 0.001588563208 | DB84: 0.001005124422 | DC84: 0.001239160318 | DD84: 0.001896257927 | DE84: 0.001974185138 | DF84: 0.0008343477557 | DG84: 0.007447392214 | DH84: 0.009854757746 | DI84: 5.669115518e-05 | DJ84: 0.0004408449337 | DK84: 0.0007386557551 | DL84: 0.0004222662999 | DM84: 0.000382152231 | DN84: 0.0003057797496 | DO84: 6e-08 | DP84: 3.751473793e-05 | DQ84: 0.0008494125168 | DR84: 2.949818911e-05 | DS84: 0.0001809099147 | DT84: 0.0002807245905 | DU84: 4.523366419e-05 | DV84: 0.0001452188126 | DW84: 0.0003314231604 | DX84: 0.0001998938515 | DY84: 0.0007116592397 | DZ84: 4.7944286e-05 | EA84: 4.084853611e-05 | EB84: 3.798715938e-05 | EC84: 0.0001124733252 | ED84: 0.0002780475636 | EE84: 5.121583502e-05 | EF84: 0.0006075216361 | EG84: 0.000489347286 | EH84: 8.115310549e-05 | EI84: 0.0008366073463 | EJ84: 0.0006167807937 | EK84: 3.552320608e-05 | EL84: 7.51018789e-05 | EM84: 7.147937662e-05 | EN84: 0.001703142966
A85: p1404_592.1631_2.58 | B85: p1404 | C85: 592.1631 | D85: 2.58 | G85: 9.627 | H85: 3.2671 | I85: 2.78E-17 | J85: =ROUND(H85,1) -> 3.3 | K85: B. rapa | L85: 0.68172 | M85: -0.55275 | N85: 0.81823 | P85: 0.30452 | Q85: -1.7154 | R85: 0.56041 | U85: 5.056757298e-05 | V85: 0.0002595306954 | W85: 0.004102893645 | X85: 0.0002813812544 | Y85: 0.0001505604765 | Z85: 0.001055166831 | AA85: 2.88907437e-05 | AB85: 6.040815024e-05 | AC85: 9.753687279e-05 | AD85: 0.001506354207 | AE85: 0.002276637828 | AF85: 0.001111458747 | AG85: 0.002527092225 | AH85: 0.002833453737 | AI85: 0.002732357768 | AJ85: 0.01384605125 | AK85: 0.008618152123 | AL85: 0.007018077811 | AM85: 0.002670501822 | AN85: 0.0005176704828 | AO85: 0.0006154871897 | AP85: 0.0002964266732 | AQ85: 0.0002880022032 | AR85: 0.0004181767494 | AS85: 0.0009216335013 | AT85: 0.001345186163 | AU85: 0.0005733975992 | AV85: 0.003857704323 | AW85: 0.001766101953 | AX85: 0.002869317285 | AY85: 0.0002771900249 | AZ85: 0.0003489669883 | BA85: 0.0003480673879 | BB85: 7.628180679e-05 | BC85: 7.335100577e-05 | BD85: 9.668601893e-05 | BE85: 0.005317808377 | BF85: 0.0001792965027 | BG85: 0.0001427048689 | BH85: 7.572850045e-05 | BI85: 0.000113509372 | BJ85: 0.0001221619275 | BK85: 6.714993093e-05 | BL85: 4.955856634e-05 | BM85: 0.000112689622 | BN85: 9.791547537e-05 | BO85: 0.0001502752183 | BP85: 2.14114494e-05 | BQ85: 0.0001174839716 | BR85: 5.842761769e-05 | BS85: 5.695282988e-05 | BT85: 3.153146508e-05 | BU85: 5.887643681e-05 | BV85: 2.97244778e-05 | BW85: 0.000106713342 | BX85: 8.874258974e-05 | BY85: 1.859717581e-05 | BZ85: 8.384982122e-05 | CA85: 0.000138616634 | CB85: 0.0001062333328 | CC85: 6.077312092e-05 | CD85: 7.493721332e-05 | CE85: 3.350083752e-05 | CF85: 4.79964894e-05 | CG85: 4.967504725e-05 | CH85: 5.28375695e-05 | CI85: 3.673576489e-05 | CJ85: 5.163869571e-05 | CK85: 7.657284265e-05 | CL85: 3e-07 | CM85: 3.880495847e-05 | CN85: 1.088531169e-05 | CO85: 3.282412521e-05 | CP85: 5.549857653e-05 | CQ85: 0.002174049612 | CR85: 0.008645919059 | CS85: 0.004778237358 | CT85: 3e-07 | CU85: 4.338251057e-05 | CV85: 6.05808871e-05 | CW85: 3.365261175e-05 | CX85: 2.206374847e-05 | CY85: 4.410150276e-05 | CZ85: 6.489853515e-05 | DA85: 5.041466608e-05 | DB85: 5.941763006e-05 | DC85: 3.104165063e-05 | DD85: 2.176367169e-05 | DE85: 3.953473855e-05 | DF85: 8.058995811e-06 | DG85: 3e-07 | DH85: 6.054222572e-05 | DI85: 2.835130057e-05 | DJ85: 1.346467295e-05 | DK85: 4.372916032e-05 | DL85: 4.40270656e-05 | DM85: 3e-07 | DN85: 3e-07 | DO85: 4.005726955e-05 | DP85: 4.622554291e-05 | DQ85: 5.241847471e-05 | DR85: 2.090073252e-05 | DS85: 4.913324937e-05 | DT85: 2.125775022e-05 | DU85: 3.259847067e-05 | DV85: 4.52370951e-05 | DW85: 1.891804241e-05 | DX85: 3.529070358e-05 | DY85: 0.0002411637106 | DZ85: 6.460544532e-05 | EA85: 3.558936718e-05 | EB85: 2.134044682e-05 | EC85: 3.228782288e-05 | ED85: 2.787745657e-05 | EE85: 1.038509138e-05 | EF85: 3e-07 | EG85: 0.0001025399566 | EH85: 1.119883339e-05 | EI85: 4.066712372e-05 | EJ85: 4.936578677e-05 | EK85: 3.893295884e-05 | EL85: 3e-07 | EM85: 6.685588088e-05 | EN85: 2.636687567e-05
A86: p2236_556.1339_4.02 | B86: p2236 | C86: 556.1339 | D86: 4.02 | G86: 9.6134 | H86: 3.265 | I86: 5.27E-23 | J86: =ROUND(H86,1) -> 3.3 | K86: B. rapa | L86: 0.67065 | M86: -0.57636 | N86: 0.92017 | P86: 0.52529 | Q86: -0.92881 | R86: 0.54275 | U86: 0.001682934283 | V86: 0.002795813946 | W86: 0.002396380359 | X86: 0.0002012684989 | Y86: 0.0001224797527 | Z86: 0.0002595912029 | AA86: 0.0006027787205 | AB86: 0.0007051001738 | AC86: 0.001030362922 | AD86: 0.008156077533 | AE86: 0.002891996055 | AF86: 0.001726657316 | AG86: 0.003870198553 | AH86: 0.001008280078 | AI86: 0.0008748540267 | AJ86: 0.000784785471 | AK86: 0.0001986195824 | AL86: 0.0002234319547 | AM86: 0.0183233868 | AN86: 0.00349925336 | AO86: 0.003063842366 | AP86: 0.004267080258 | AQ86: 0.005943529338 | AR86: 0.001388786994 | AS86: 0.0006551191285 | AT86: 0.002492648844 | AU86: 0.0006734004427 | AV86: 0.01050287212 | AW86: 0.004072209981 | AX86: 0.001355855524 | AY86: 0.01004395265 | AZ86: 0.003628214985 | BA86: 0.002522256029 | BB86: 0.0001727558566 | BC86: 0.0002423202869 | BD86: 0.0002593353966 | BE86: 0.004262979489 | BF86: 0.0001690089984 | BG86: 0.0002691006098 | BH86: 0.0003461874306 | BI86: 0.0001097257262 | BJ86: 0.0002042109833 | BK86: 0.0004504912842 | BL86: 0.0004106281211 | BM86: 0.0002817240549 | BN86: 0.0001781517677 | BO86: 0.0003331816269 | BP86: 5.767982288e-05 | BQ86: 0.0004730549298 | BR86: 0.0001773210258 | BS86: 0.0001762825687 | BT86: 9.293484446e-05 | BU86: 0.0001709315907 | BV86: 5.906292343e-05 | BW86: 0.0002063124612 | BX86: 0.0002332072707 | BY86: 6.641848504e-05 | BZ86: 0.0001376638856 | CA86: 8.064967796e-05 | CB86: 0.0001416444437 | CC86: 0.000207343589 | CD86: 0.0002387999198 | CE86: 0.001281677203 | CF86: 0.001579084501 | CG86: 0.00131923896 | CH86: 0.0002169121274 | CI86: 0.0003018289872 | CJ86: 0.0001640777912 | CK86: 0.0004202998252 | CL86: 0.0005351785541 | CM86: 7.408219344e-05 | CN86: 0.0002267773268 | CO86: 0.001410343247 | CP86: 0.001084997171 | CQ86: 0.001587616445 | CR86: 0.001605466753 | CS86: 0.001899365047 | CT86: 0.0001762374692 | CU86: 0.001258911345 | CV86: 0.000159153178 | CW86: 0.0009647082034 | CX86: 0.00129210827 | CY86: 0.001599782013 | CZ86: 0.002360546719 | DA86: 0.003820820602 | DB86: 0.001868954546 | DC86: 0.0008174301332 | DD86: 0.002105635236 | DE86: 0.001792588277 | DF86: 0.0002984428126 | DG86: 0.001170648338 | DH86: 0.0008225392046 | DI86: 0.0002098395556 | DJ86: 9.141804266e-05 | DK86: 0.0007750993667 | DL86: 8.68642105e-05 | DM86: 6.380272886e-05 | DN86: 2.96830531e-05 | DO86: 7.775822913e-05 | DP86: 7.924378785e-05 | DQ86: 0.0004799202574 | DR86: 4.840169636e-05 | DS86: 0.0001249388341 | DT86: 7.65279008e-05 | DU86: 5.297251483e-05 | DV86: 0.0001154736375 | DW86: 0.0001026979445 | DX86: 5.939167189e-05 | DY86: 0.0002585314675 | DZ86: 0.0001045088086 | EA86: 4.357881696e-05 | EB86: 4.001333778e-05 | EC86: 6.05396679e-05 | ED86: 9.757109799e-05 | EE86: 1.255871516e-05 | EF86: 0.0001285172754 | EG86: 6.905752178e-05 | EH86: 3.431900556e-05 | EI86: 0.0001412052907 | EJ86: 0.0001943777854 | EK86: 0.0001374820109 | EL86: 0.0001789278516 | EM86: 0.0001703451211 | EN86: 8.62915931e-05
A87: p1381_325.1428_5.45 | B87: p1381 | C87: 325.1428 | D87: 5.45 | G87: 9.6052 | H87: 3.2638 | I87: 3.38E-16 | J87: =ROUND(H87,1) -> 3.3 | K87: B. rapa | L87: 0.865 | M87: -0.20922 | N87: 0.94076 | P87: 0.66198 | Q87: -0.59513 | R87: 0.76529 | U87: 0.00149657289 | V87: 0.001464308639 | W87: 0.005458421929 | X87: 3.670190275e-05 | Y87: 2.648749123e-05 | Z87: 0.0001470176715 | AA87: 8.218434859e-05 | AB87: 0.0002624454931 | AC87: 0.0004326901697 | AD87: 0.00138416578 | AE87: 0.0009089666484 | AF87: 0.0002592036635 | AG87: 0.00169057339 | AH87: 0.001761378161 | AI87: 0.0003621672192 | AJ87: 0.0004167481467 | AK87: 0.000446490362 | AL87: 0.0001477677469 | AM87: 0.004549106246 | AN87: 0.0007526132404 | AO87: 0.0003073659953 | AP87: 0.001318671744 | AQ87: 0.002090338571 | AR87: 0.0004555925638 | AS87: 0.00475556931 | AT87: 0.003619006209 | AU87: 0.00061008929 | AV87: 0.003934294064 | AW87: 0.002382676052 | AX87: 0.0006149589151 | AY87: 0.00266214044 | AZ87: 0.001735459709 | BA87: 0.002086432274 | BB87: 6.842926785e-05 | BC87: 0.000165039763 | BD87: 3e-07 | BE87: 0.001565007565 | BF87: 0.0002601268932 | BG87: 0.0004240373246 | BH87: 0.0002812772874 | BI87: 0.0001466162721 | BJ87: 8.113739961e-05 | BK87: 6.193440231e-05 | BL87: 0.0001000021071 | BM87: 0.000112689622 | BN87: 0.0002271095054 | BO87: 6.526238053e-05 | BP87: 2.818445891e-05 | BQ87: 5.718246404e-05 | BR87: 5.231309956e-05 | BS87: 0.000180350628 | BT87: 8.961574287e-05 | BU87: 0.0001092062941 | BV87: 4.169147536e-05 | BW87: 0.0002086838688 | BX87: 4.024373255e-05 | BY87: 6.801252868e-05 | BZ87: 0.0002014898689 | CA87: 0.0001873424811 | CB87: 3e-07 | CC87: 6.613545512e-05 | CD87: 0.0001059112615 | CE87: 0.0001113092343 | CF87: 0.001039123996 | CG87: 0.001447905475 | CH87: 0.0005422803185 | CI87: 0.0007515938925 | CJ87: 0.0004955649023 | CK87: 0.0001378311168 | CL87: 0.0001978128327 | CM87: 5.46797142e-05 | CN87: 7.166163527e-05 | CO87: 0.0005011149782 | CP87: 0.0003570408423 | CQ87: 0.002905961576 | CR87: 0.004150231482 | CS87: 0.004458013829 | CT87: 0.002865714005 | CU87: 0.007140924948 | CV87: 0.004293028626 | CW87: 0.000876463577 | CX87: 0.003033765415 | CY87: 0.0007056240441 | CZ87: 0.0003486921295 | DA87: 0.0008356612833 | DB87: 0.0002646785339 | DC87: 0.0005238278543 | DD87: 0.0004617007495 | DE87: 0.001369150419 | DF87: 0.0004073692399 | DG87: 0.001198120025 | DH87: 0.002666989426 | DI87: 3.853380992e-05 | DJ87: 0.0001041740486 | DK87: 0.000412147336 | DL87: 6.782547943e-05 | DM87: 9.915288944e-05 | DN87: 0.0001241291311 | DO87: 0.0001460912184 | DP87: 8.006924398e-05 | DQ87: 0.0002166630288 | DR87: 4.840169636e-05 | DS87: 0.0001165159914 | DT87: 6.519043401e-05 | DU87: 6.764182663e-05 | DV87: 7.023654239e-05 | DW87: 7.837474712e-05 | DX87: 8.779638453e-05 | DY87: 5.111082756e-05 | DZ87: 2.280192188e-05 | EA87: 5.88314029e-05 | EB87: 2.781879674e-05 | EC87: 7.022601476e-05 | ED87: 6.089023409e-05 | EE87: 4.371398929e-05 | EF87: 0.0001234773823 | EG87: 6.173323916e-05 | EH87: 1.950764527e-05 | EI87: 9.601959768e-05 | EJ87: 3.702434008e-05 | EK87: 2.433309927e-05 | EL87: 0.0001164315207 | EM87: 8.792006252e-05 | EN87: 0.0001833696353
A88: p1797_703.2166_4.19 | B88: p1797 | C88: 703.2166 | D88: 4.19 | G88: 9.5324 | H88: 3.2528 | I88: 1.35E-06 | J88: =ROUND(H88,1) -> 3.3 | K88: B. rapa | L88: 0.60955 | M88: -0.71418 | N88: 0.68536 | P88: 0.97065 | Q88: -0.042974 | R88: 0.90627 | U88: 6.477194742e-05 | V88: 0.0002065829616 | W88: 0.0003177019415 | X88: 3.906976744e-05 | Y88: 3.246211331e-05 | Z88: 0.005299356983 | AA88: 4.964720034e-05 | AB88: 0.002735626232 | AC88: 0.001416359908 | AD88: 0.002016109053 | AE88: 0.001645332819 | AF88: 0.01873976866 | AG88: 7.923547968e-05 | AH88: 0.00253781606 | AI88: 0.01226373135 | AJ88: 0.002266406317 | AK88: 8.558404769e-05 | AL88: 0.005625856388 | AM88: 0.0002302527759 | AN88: 7.565953211e-05 | AO88: 0.0006064248016 | AP88: 0.0008002300313 | AQ88: 0.0001614205897 | AR88: 0.002512728713 | AS88: 0.0004273163406 | AT88: 0.0001010833533 | AU88: 0.003925291469 | AV88: 0.000157210521 | AW88: 0.0001843677453 | AX88: 0.005557461046 | AY88: 0.001153408157 | AZ88: 0.002203179642 | BA88: 0.0006320430471 | BB88: 8.749971955e-05 | BC88: 0.0001126461874 | BD88: 8.94571577e-05 | BE88: 0.0002045310914 | BF88: 0.0002116286589 | BG88: 0.000246675559 | BH88: 0.0007031932184 | BI88: 0.0007482159435 | BJ88: 0.0002944649446 | BK88: 5.0851404e-05 | BL88: 0.0002247834973 | BM88: 0.0001141343607 | BN88: 0.0001346337786 | BO88: 0.0001339596232 | BP88: 2.490719624e-05 | BQ88: 5.718246404e-05 | BR88: 0.0003430924062 | BS88: 0.0001233977981 | BT88: 4.259513704e-05 | BU88: 0.0001130047739 | BV88: 3.474289613e-05 | BW88: 9.011348879e-05 | BX88: 0.00017851707 | BY88: 7.226331172e-05 | BZ88: 6.883194279e-05 | CA88: 0.0007619714366 | CB88: 9.8990151e-05 | CC88: 7.507267878e-05 | CD88: 0.0001418811239 | CE88: 0.003106932512 | CF88: 0.001871863087 | CG88: 0.001231289696 | CH88: 0.001102636648 | CI88: 0.0004646577829 | CJ88: 0.0004689126723 | CK88: 0.002504782764 | CL88: 0.001701732314 | CM88: 0.001164148754 | CN88: 0.0007678680286 | CO88: 0.002637965529 | CP88: 0.002328165285 | CQ88: 0.001457498763 | CR88: 0.001487459713 | CS88: 0.001746317037 | CT88: 0.0002305000584 | CU88: 0.00020217887 | CV88: 0.0003141991771 | CW88: 0.003586620576 | CX88: 0.00833595997 | CY88: 0.003073874742 | CZ88: 0.002278048581 | DA88: 0.003869707551 | DB88: 0.002022900223 | DC88: 0.001319916853 | DD88: 0.0005643009161 | DE88: 0.001995463909 | DF88: 0.001331294114 | DG88: 0.002882754765 | DH88: 0.006275514845 | DI88: 0.0004665985171 | DJ88: 0.001763163489 | DK88: 0.003827394757 | DL88: 0.0002558329487 | DM88: 0.0003302222318 | DN88: 0.000263549532 | DO88: 0.0001566946133 | DP88: 8.337106847e-05 | DQ88: 0.0002387952737 | DR88: 0.0001083537975 | DS88: 0.0002639157395 | DT88: 0.0001438441098 | DU88: 0.0002982760066 | DV88: 0.0003059456168 | DW88: 0.0003062921152 | DX88: 0.0001557955451 | DY88: 0.0001756624559 | DZ88: 0.0001719644942 | EA88: 0.0001517995457 | EB88: 7.735911971e-05 | EC88: 0.0001590175277 | ED88: 0.0001188459991 | EE88: 3.332889791e-05 | EF88: 0.0001121376227 | EG88: 0.0002490256088 | EH88: 8.381062411e-05 | EI88: 0.0001502424293 | EJ88: 0.0001892355159 | EK88: 0.0001946647942 | EL88: 0.0001635177974 | EM88: 0.000176755959 | EN88: 0.0002444928471
A89: p2488_261.0374_5.12 | B89: p2488 | C89: 261.0374 | D89: 5.12 | G89: 9.3024 | H89: 3.2176 | I89: 2.94E-14 | J89: =ROUND(H89,1) -> 3.2 | K89: B. rapa | L89: 0.73377 | M89: -0.44661 | N89: 0.9433 | P89: 0.71842 | Q89: -0.47711 | R89: 0.18859 | U89: 0.0004590853817 | V89: 0.0005893690374 | W89: 0.001074135136 | X89: 3.472868217e-05 | Y89: 1.891963659e-05 | Z89: 8.485019899e-05 | AA89: 2.075645664e-05 | AB89: 4.365631026e-05 | AC89: 9.234874126e-05 | AD89: 0.004034127301 | AE89: 0.001236344729 | AF89: 0.0005692637421 | AG89: 0.000103265912 | AH89: 0.0001563767713 | AI89: 0.0001031946523 | AJ89: 0.0003734496379 | AK89: 0.0002010417724 | AL89: 0.0001228430667 | AM89: 0.001611769432 | AN89: 0.001661523146 | AO89: 0.0003685371148 | AP89: 0.002148178483 | AQ89: 0.0008396193261 | AR89: 0.0009955541209 | AS89: 0.001192614595 | AT89: 0.0009575148412 | AU89: 0.0009482284012 | AV89: 0.0003567469515 | AW89: 0.0002004873296 | AX89: 7.070186329e-05 | AY89: 0.005223822751 | AZ89: 0.002413601528 | BA89: 0.001693993689 | BB89: 8.413434572e-05 | BC89: 0.0001008576329 | BD89: 5.512006687e-05 | BE89: 0.0002275121129 | BF89: 0.0001939929373 | BG89: 0.0002711392508 | BH89: 0.0001153958102 | BI89: 0.0001021584348 | BJ89: 7.202083786e-05 | BK89: 3.716064139e-05 | BL89: 0.0001185865695 | BM89: 0.000101131712 | BN89: 9.519560106e-05 | BO89: 6.869724266e-05 | BP89: 2.272235447e-05 | BQ89: 0.0001216426962 | BR89: 5.095431776e-05 | BS89: 9.763342266e-05 | BT89: 6.029701218e-05 | BU89: 8.261693552e-05 | BV89: 3.628702485e-05 | BW89: 8.892778499e-05 | BX89: 7.945557453e-05 | BY89: 5.472883167e-05 | BZ89: 0.0001088796186 | CA89: 0.0002007840941 | CB89: 6.035984817e-05 | CC89: 6.613545512e-05 | CD89: 8.492884176e-05 | CE89: 0.001859836819 | CF89: 0.003240962947 | CG89: 0.002349385431 | CH89: 0.0002043979662 | CI89: 0.0003137432893 | CJ89: 0.0002107191938 | CK89: 0.0003522350762 | CL89: 0.0006137617342 | CM89: 0.0004286184049 | CN89: 0.0003190756988 | CO89: 0.001196986433 | CP89: 0.00144296299 | CQ89: 0.00182797272 | CR89: 0.001638775192 | CS89: 0.001240866173 | CT89: 9.507547679e-05 | CU89: 0.0003265966362 | CV89: 0.0002618326476 | CW89: 0.001088101113 | CX89: 0.002764863481 | CY89: 0.0006857783679 | CZ89: 0.0005895866922 | DA89: 0.0002902662593 | DB89: 0.000147643808 | DC89: 0.001147894372 | DD89: 0.001309706672 | DE89: 0.003280342912 | DF89: 0.0006356207986 | DG89: 0.002878323847 | DH89: 0.00389140375 | DI89: 0.0004450355561 | DJ89: 0.001919778896 | DK89: 0.003091651635 | DL89: 6.782547943e-05 | DM89: 5.949173367e-05 | DN89: 0.0001340234822 | DO89: 0.0001166373437 | DP89: 8.914926133e-05 | DQ89: 0.000175893104 | DR89: 9.240323851e-05 | DS89: 0.0004674677726 | DT89: 5.952170062e-05 | DU89: 0.0001483230415 | DV89: 8.690284058e-05 | DW89: 0.0001035988037 | DX89: 9.210012887e-05 | DY89: 0.0002773878894 | DZ89: 6.460544532e-05 | EA89: 9.51470837e-05 | EB89: 5.716191111e-05 | EC89: 8.07195572e-05 | ED89: 8.803407338e-05 | EE89: 2.077018276e-05 | EF89: 0.0001033178097 | EG89: 0.0001443930001 | EH89: 3.323524749e-05 | EI89: 0.0001920391954 | EJ89: 9.256085019e-05 | EK89: 6.813267796e-05 | EL89: 0.0001087264936 | EM89: 9.158339846e-05 | EN89: 9.587954789e-05
A90: p1300_486.0916_3.18 | B90: p1300 | C90: 486.0916 | D90: 3.18 | G90: 9.2854 | H90: 3.215 | I90: 1.08E-20 | J90: =ROUND(H90,1) -> 3.2 | K90: B. rapa | L90: 0.9317 | M90: -0.10206 | N90: 0.98105 | P90: 0.65073 | Q90: -0.61987 | R90: 0.66475 | U90: 0.005172096819 | V90: 0.01114766796 | W90: 0.01465362384 | X90: 0.001011867512 | Y90: 0.0005544449292 | Z90: 0.001763371957 | AA90: 0.001967095006 | AB90: 0.002583844409 | AC90: 0.004371519628 | AD90: 0.0105616622 | AE90: 0.004829061203 | AF90: 0.003308127769 | AG90: 0.008431434403 | AH90: 0.00823584329 | AI90: 0.004794278941 | AJ90: 0.0004181012251 | AK90: 0.0002317228461 | AL90: 0.0002759518165 | AM90: 0.02236894959 | AN90: 0.003550024888 | AO90: 0.003608340849 | AP90: 0.00652992585 | AQ90: 0.00986059156 | AR90: 0.003947001599 | AS90: 0.001896867658 | AT90: 0.01011500017 | AU90: 0.002402946024 | AV90: 0.0202579865 | AW90: 0.009433986704 | AX90: 0.003736888066 | AY90: 0.01154524359 | AZ90: 0.004004265979 | BA90: 0.002657341672 | BB90: 0.001322591915 | BC90: 0.001814127553 | BD90: 0.001134027605 | BE90: 0.006264626463 | BF90: 0.0004291358916 | BG90: 0.0005585876295 | BH90: 0.002343977395 | BI90: 0.0007132172205 | BJ90: 0.0004011287172 | BK90: 0.0004198500536 | BL90: 0.0002539876525 | BM90: 0.00051721647 | BN90: 0.0005902127266 | BO90: 0.0002799412639 | BP90: 0.000302600586 | BQ90: 0.001874545139 | BR90: 0.0004606270325 | BS90: 0.0002549317147 | BT90: 8.07648053e-05 | BU90: 0.0001500399519 | BV90: 4.670989369e-05 | BW90: 0.0001138275648 | BX90: 0.0001186674165 | BY90: 0.000128586187 | BZ90: 0.000391716329 | CA90: 0.0005183422011 | CB90: 0.0002752409077 | CC90: 0.0001572951365 | CD90: 0.0002587831767 | CE90: 9.185713514e-05 | CF90: 0.0001283906091 | CG90: 0.0006213452631 | CH90: 0.0002294262886 | CI90: 5.65929351e-05 | CJ90: 0.005281305959 | CK90: 0.0001463392104 | CL90: 0.0001680054195 | CM90: 0.003315178156 | CN90: 2.721327922e-05 | CO90: 0.0001148844382 | CP90: 0.005670104569 | CQ90: 0.003086680579 | CR90: 0.0002150773481 | CS90: 0.003265809075 | CT90: 0.0001363521472 | CU90: 0.001818791292 | CV90: 0.005424556382 | CW90: 6.954873094e-05 | CX90: 7.308616682e-05 | CY90: 0.007854477641 | CZ90: 0.0001374968965 | DA90: 0.0003330423396 | DB90: 0.0006797016772 | DC90: 8.665794133e-05 | DD90: 0.001183788285 | DE90: 0.0003037932541 | DF90: 4.263468751e-05 | DG90: 0.00266829837 | DH90: 0.0001680568679 | DI90: 0.0002467761092 | DJ90: 0.0008454397279 | DK90: 0.0007073191682 | DL90: 8.329444843e-05 | DM90: 8.794430194e-05 | DN90: 0.0001097373478 | DO90: 9.543055393e-05 | DP90: 0.0001007056471 | DQ90: 8.037499456e-05 | DR90: 7.205252527e-05 | DS90: 0.000157226398 | DT90: 0.0007631532329 | DU90: 0.0004392643922 | DV90: 0.0001357112853 | DW90: 0.0001171116911 | DX90: 0.0002289591989 | DY90: 0.0001791360073 | DZ90: 0.0001757648145 | EA90: 0.0001670521317 | EB90: 6.554565808e-05 | EC90: 0.0002389298893 | ED90: 0.0001474570729 | EE90: 3.139678789e-05 | EF90: 0.000170096394 | EG90: 0.0007826519135 | EH90: 8.41718768e-05 | EI90: 0.0001050567363 | EJ90: 0.0001007884813 | EK90: 0.0002384643729 | EL90: 3.681290727e-05 | EM90: 0.0003196260606 | EN90: 0.0001054675027
A91: p1854_498.1243_5.85 | B91: p1854 | C91: 498.1243 | D91: 5.85 | G91: 9.2703 | H91: 3.2126 | I91: 2.82E-15 | J91: =ROUND(H91,1) -> 3.2 | K91: B. rapa | L91: 0.89971 | M91: -0.15247 | N91: 0.91212 | P91: 0.92419 | Q91: -0.11374 | R91: 0.95916 | U91: 0.000677264573 | V91: 0.001021630865 | W91: 0.002042369624 | X91: 0.0001472022551 | Y91: 6.512338069e-05 | Z91: 0.00105432673 | AA91: 2.412236853e-05 | AB91: 3.959525814e-05 | AC91: 6.53704573e-05 | AD91: 0.0003913848067 | AE91: 0.0002326354271 | AF91: 0.0002452591627 | AG91: 0.0004702171089 | AH91: 0.000206946374 | AI91: 0.0002865787796 | AJ91: 0.001749530369 | AK91: 0.001742362027 | AL91: 0.0008162832766 | AM91: 0.00410796775 | AN91: 0.001354902937 | AO91: 0.0008420468914 | AP91: 7.441163401e-05 | AQ91: 0.000152130196 | AR91: 0.0002465041891 | AS91: 0.0001578241537 | AT91: 0.0003265769876 | AU91: 0.0001446084284 | AV91: 0.00447646881 | AW91: 0.00224162969 | AX91: 0.002316958978 | AY91: 0.0003348604327 | AZ91: 0.0001989632679 | BA91: 0.0001695965743 | BB91: 6.955105913e-05 | BC91: 8.906907843e-05 | BD91: 9.216798066e-05 | BE91: 0.0001723576613 | BF91: 6.61339559e-05 | BG91: 0.0003282211984 | BH91: 0.0001514570009 | BI91: 0.0001721558808 | BJ91: 5.92576514e-05 | BK91: 4.889558077e-05 | BL91: 6.371815672e-05 | BM91: 0.0001271370094 | BN91: 7.615648085e-05 | BO91: 3.09137592e-05 | BP91: 1.966357598e-05 | BQ91: 4.158724658e-05 | BR91: 5.774822679e-05 | BS91: 0.0001139056598 | BT91: 4.923334022e-05 | BU91: 7.027187619e-05 | BV91: 2.547812383e-05 | BW91: 0.0001055276382 | BX91: 0.0001568473679 | BY91: 5.738557107e-05 | BZ91: 8.760429082e-05 | CA91: 0.0001369364324 | CB91: 5.875025222e-05 | CC91: 7.507267878e-05 | CD91: 5.695228212e-05 | CE91: 0.0009747663046 | CF91: 0.00062275445 | CG91: 0.0004299741794 | CH91: 0.0001640745579 | CI91: 7.446438829e-05 | CJ91: 6.912922167e-05 | CK91: 0.0002212104343 | CL91: 0.0001422626536 | CM91: 6.790867732e-05 | CN91: 0.0002149849058 | CO91: 0.001646676948 | CP91: 0.001695481513 | CQ91: 0.0003912566425 | CR91: 0.0003121476556 | CS91: 0.0002229006915 | CT91: 0.000156758591 | CU91: 0.0002463799185 | CV91: 0.0003039312302 | CW91: 0.0003559698487 | CX91: 0.001515503723 | CY91: 0.0006593174662 | CZ91: 0.0007754824963 | DA91: 0.0009181580096 | DB91: 0.001454831669 | DC91: 0.0008665794133 | DD91: 0.001287165726 | DE91: 0.0009082585988 | DF91: 3.197601564e-05 | DG91: 0.0002171149454 | DH91: 0.0002066786326 | DI91: 0.000850539017 | DJ91: 0.00244986181 | DK91: 0.001558944565 | DL91: 7.853476566e-05 | DM91: 0.0001094992779 | DN91: 8.095378117e-05 | DO91: 4.830435446e-05 | DP91: 3.632006943e-05 | DQ91: 0.0001397825992 | DR91: 4.180146504e-05 | DS91: 8.703604175e-05 | DT91: 7.156775908e-05 | DU91: 5.460243837e-05 | DV91: 0.0001309494858 | DW91: 7.927560628e-05 | DX91: 6.799916056e-05 | DY91: 5.111082756e-05 | DZ91: 6.175520508e-05 | EA91: 5.519983482e-05 | EB91: 2.629447911e-05 | EC91: 5.569649446e-05 | ED91: 6.896002415e-05 | EE91: 1.883807273e-05 | EF91: 6.425863772e-05 | EG91: 5.336263046e-05 | EH91: 3.612526901e-05 | EI91: 7.342675117e-05 | EJ91: 7.816249571e-05 | EK91: 0.0001143655666 | EL91: 8.989198286e-05 | EM91: 8.792006252e-05 | EN91: 9.228406485e-05
A92: p1812_628.1551_2.74 | B92: p1812 | C92: 628.1551 | D92: 2.74 | G92: 9.2698 | H92: 3.2125 | I92: 4.46E-06 | J92: =ROUND(H92,1) -> 3.2 | K92: B. rapa | L92: 0.27793 | M92: -1.8472 | N92: 0.19995 | P92: 0.74233 | Q92: -0.42987 | R92: 0.21819 | U92: 3.068144878e-05 | V92: 8.24595855e-05 | W92: 0.0002057498288 | X92: 2.644115574e-05 | Y92: 3.883504353e-05 | Z92: 0.0005410250312 | AA92: 4.235439125e-05 | AB92: 0.0001324918253 | AC92: 0.0001753588458 | AD92: 0.0001450987576 | AE92: 0.003065534579 | AF92: 0.001048298361 | AG92: 0.0002429022082 | AH92: 0.004988496805 | AI92: 0.009160004294 | AJ92: 0.004567992673 | AK92: 0.0007492641156 | AL92: 0.004695631717 | AM92: 0.0001075947551 | AN92: 0.0001035340966 | AO92: 8.533748765e-05 | AP92: 9.75890282e-05 | AQ92: 0.0001207751175 | AR92: 0.0002134902352 | AS92: 0.0001042234977 | AT92: 0.0001010833533 | AU92: 0.0003431752256 | AV92: 0.000616748967 | AW92: 0.0004412736199 | AX92: 0.004090397382 | AY92: 0.0001265028301 | AZ92: 6.354324264e-05 | BA92: 0.0001557922019 | BB92: 7.628180679e-05 | BC92: 4.846405738e-05 | BD92: 6.777057402e-05 | BE92: 0.000167761457 | BF92: 0.0001410857726 | BG92: 0.000130473023 | BH92: 0.0001893212511 | BI92: 0.0001295898663 | BJ92: 8.843064901e-05 | BK92: 5.541499154e-05 | BL92: 4.690364314e-05 | BM92: 0.0001386949193 | BN92: 0.0001523129617 | BO92: 5.324036306e-05 | BP92: 2.184841776e-05 | BQ92: 5.094437706e-05 | BR92: 5.095431776e-05 | BS92: 4.881671133e-05 | BT92: 5.255244181e-05 | BU92: 4.748099743e-05 | BV92: 3.474289613e-05 | BW92: 8.655637739e-05 | BX92: 0.0001145398542 | BY92: 6.535578928e-05 | BZ92: 0.0001063766389 | CA92: 0.0001134136096 | CB92: 5.955505019e-05 | CC92: 6.077312092e-05 | CD92: 0.0001528719152 | CE92: 0.01058410331 | CF92: 0.009769685417 | CG92: 0.007333177057 | CH92: 0.004258986194 | CI92: 0.002160460119 | CJ92: 0.002089701412 | CK92: 0.01007188124 | CL92: 0.00846395045 | CM92: 0.005398298881 | CN92: 0.001333450682 | CO92: 0.006193912427 | CP92: 0.003757253631 | CQ92: 0.00914528517 | CR92: 0.009457693298 | CS92: 0.009375171688 | CT92: 0.0002133400943 | CU92: 0.0001743485802 | CV92: 0.0001991981711 | CW92: 0.00619058489 | CX92: 0.008904101493 | CY92: 0.008172008461 | CZ92: 0.00485749036 | DA92: 0.00832605849 | DB92: 0.004042199378 | DC92: 0.005655400724 | DD92: 0.003314296289 | DE92: 0.01131941988 | DF92: 0.00250166828 | DG92: 0.005691070119 | DH92: 0.009494691123 | DI92: 0.0004065017461 | DJ92: 0.003232230175 | DK92: 0.004464747269 | DL92: 0.001796780245 | DM92: 0.001451080982 | DN92: 0.001335737389 | DO92: 0.0003004295216 | DP92: 0.0001304220675 | DQ92: 0.0006965832862 | DR92: 0.0003014105637 | DS92: 0.0005966180281 | DT92: 0.0003082373782 | DU92: 0.0002974610448 | DV92: 0.0003297546143 | DW92: 0.0003080938335 | DX92: 0.0003270845698 | DY92: 0.0008763273929 | DZ92: 0.0005158934825 | EA92: 0.001735889542 | EB92: 4.763492593e-05 | EC92: 7.749077491e-05 | ED92: 9.757109799e-05 | EE92: 7.052201588e-05 | EF92: 0.0001549767145 | EG92: 0.0001642731957 | EH92: 8.850690909e-05 | EI92: 0.0003490594786 | EJ92: 0.0002026054165 | EK92: 0.0007226930484 | EL92: 0.0002354313837 | EM92: 0.0002463593419 | EN92: 0.0006651643635
A93: p1991_526.1709_6.11 | B93: p1991 | C93: 526.1709 | D93: 6.11 | G93: 9.2547 | H93: 3.2102 | I93: 3.67E-02 | J93: =ROUND(H93,1) -> 3.2 | K93: B. rapa | L93: 1.1334 | M93: 0.1807 | N93: 0.83183 | P93: 2.1092 | Q93: 1.0767 | R93: 0.79398 | U93: 3e-07 | V93: 9.634751569e-05 | W93: 0.001782156605 | X93: 3.78858351e-05 | Y93: 2.350018019e-05 | Z93: 0.0001974237303 | AA93: 2.10369493e-05 | AB93: 8.578972597e-05 | AC93: 0.0001162141463 | AD93: 0.0001470079518 | AE93: 0.0001285123125 | AF93: 0.0001107357423 | AG93: 6.949341251e-05 | AH93: 9.569324812e-05 | AI93: 5.91561701e-05 | AJ93: 0.0001231301342 | AK93: 7.105090751e-05 | AL93: 0.00017180226 | AM93: 0.0002001262445 | AN93: 0.0001343952215 | AO93: 0.0001872893534 | AP93: 0.0001268657367 | AQ93: 0.0001649044873 | AR93: 0.000183410855 | AS93: 0.01799790915 | AT93: 0.01956129507 | AU93: 0.01301763634 | AV93: 0.0002600020155 | AW93: 7.556055135e-05 | AX93: 0.0002113691121 | AY93: 0.002729112527 | AZ93: 0.005235546517 | BA93: 0.008811133649 | BB93: 0.0001413457008 | BC93: 7.466084516e-05 | BD93: 9.939684189e-05 | BE93: 0.0003332248118 | BF93: 0.001040507573 | BG93: 0.0002140573033 | BH93: 0.0002776711683 | BI93: 6.432197744e-05 | BJ93: 5.378771435e-05 | BK93: 9.387951508e-05 | BL93: 0.000144250827 | BM93: 0.0001329159644 | BN93: 0.000163192459 | BO93: 0.0002919632813 | BP93: 2.971384815e-05 | BQ93: 0.0001143649281 | BR93: 4.619858143e-05 | BS93: 0.000117973719 | BT93: 7.191386773e-05 | BU93: 0.000221261448 | BV93: 5.095624766e-05 | BW93: 0.0001434701598 | BX93: 0.0002032824439 | BY93: 4.410187406e-05 | BZ93: 0.0001739570918 | CA93: 0.0001528983478 | CB93: 6.760302995e-05 | CC93: 6.971034458e-05 | CD93: 7.393805048e-05 | CE93: 0.00158750743 | CF93: 0.001355900826 | CG93: 0.001457677616 | CH93: 0.0007856112307 | CI93: 0.0006185508521 | CJ93: 0.0005946778828 | CK93: 0.0002280169092 | CL93: 0.0002127165392 | CM93: 0.0001040678432 | CN93: 4.558224269e-05 | CO93: 0.0004081132901 | CP93: 0.0003144919337 | CQ93: 0.0003533056518 | CR93: 0.0006452320443 | CS93: 0.0007126543234 | CT93: 0.0008417658067 | CU93: 0.002022607238 | CV93: 0.002622433655 | CW93: 0.0006872611154 | CX93: 0.0009694259485 | CY93: 0.0009007731938 | CZ93: 0.0001781959779 | DA93: 9.930161502e-05 | DB93: 0.000376311657 | DC93: 9.247825083e-05 | DD93: 0.0001912094013 | DE93: 0.0003027528663 | DF93: 0.0004895190036 | DG93: 0.002208369159 | DH93: 0.003867395626 | DI93: 7.846521917e-05 | DJ93: 4.677202183e-05 | DK93: 0.0001738234123 | DL93: 0.000127321514 | DM93: 9.915288944e-05 | DN93: 9.444607804e-05 | DO93: 0.0001225281186 | DP93: 4.457463067e-05 | DQ93: 0.0001432771642 | DR93: 4.235148432e-05 | DS93: 9.405507737e-05 | DT93: 4.109831709e-05 | DU93: 8.394106197e-05 | DV93: 9.999778916e-05 | DW93: 6.125842303e-05 | DX93: 6.541691396e-05 | DY93: 6.401258985e-05 | DZ93: 6.365536524e-05 | EA93: 8.134712499e-05 | EB93: 2.972419378e-05 | EC93: 8.314114391e-05 | ED93: 5.355406131e-05 | EE93: 5.361605317e-05 | EF93: 0.0001499368213 | EG93: 0.0001203275001 | EH93: 4.009904861e-05 | EI93: 0.0001366867214 | EJ93: 0.0001151868358 | EK93: 0.0001107156017 | EL93: 6.164021682e-05 | EM93: 7.235088478e-05 | EN93: 0.000103070514
A94: n167_449.0761_5.7 | B94: n167 | C94: 449.0761 | D94: 5.7 | G94: 9.1956 | H94: 3.2009 | I94: 6.20E-18 | J94: =ROUND(H94,1) -> 3.2 | K94: B. rapa | L94: 0.82947 | M94: -0.26975 | N94: 0.95995 | P94: 0.85419 | Q94: -0.22738 | R94: 0.80481 | U94: 0.002746265479 | V94: 0.003428725869 | W94: 0.008453415248 | X94: 7.035356255e-05 | Y94: 5.568495145e-05 | Z94: 0.0004041171964 | AA94: 0.0002331397202 | AB94: 0.003385298303 | AC94: 0.009328228967 | AD94: 0.003747626411 | AE94: 0.0004821752622 | AF94: 0.003388567022 | AG94: 0.001414318272 | AH94: 0.001739702496 | AI94: 0.003545113469 | AJ94: 0.0004955167532 | AK94: 0.0007408381605 | AL94: 0.0004971790195 | AM94: 0.01240777158 | AN94: 0.002034070208 | AO94: 0.007181590604 | AP94: 0.005588545063 | AQ94: 0.00587092971 | AR94: 0.00409665627 | AS94: 0.0006065631813 | AT94: 0.002298614619 | AU94: 0.001441860365 | AV94: 0.01001169591 | AW94: 0.003085876649 | AX94: 0.005026167339 | AY94: 0.00332449421 | AZ94: 0.001805791781 | BA94: 0.003310899612 | BB94: 0.001183107195 | BC94: 0.0006147529105 | BD94: 0.001562606619 | BE94: 0.0003861222772 | BF94: 0.0001089045805 | BG94: 0.0001855045407 | BH94: 0.0009613464203 | BI94: 0.0004023926673 | BJ94: 0.0002579039084 | BK94: 5.152022041e-05 | BL94: 0.0005395361641 | BM94: 8.669979117e-05 | BN94: 6.856652743e-05 | BO94: 0.0003040407668 | BP94: 5.22817178e-05 | BQ94: 0.0001776560078 | BR94: 0.000331876053 | BS94: 0.0002816186881 | BT94: 0.0001072439011 | BU94: 0.0007529902239 | BV94: 1.025418998e-05 | BW94: 0.0001410241036 | BX94: 0.0003902620331 | BY94: 8.289785047e-05 | BZ94: 0.000311500877 | CA94: 0.0003341094296 | CB94: 0.0002242718447 | CC94: 0.0002874897517 | CD94: 0.0003855468726 | CE94: 0.0001069865456 | CF94: 0.0002099846411 | CG94: 0.0001881137035 | CH94: 5.561849421e-05 | CI94: 7.446438829e-05 | CJ94: 0.000163244909 | CK94: 0.0001480408291 | CL94: 8.942223943e-05 | CM94: 9.965818879e-05 | CN94: 1.26995303e-05 | CO94: 8.096617552e-05 | CP94: 0.000208119662 | CQ94: 0.001304791205 | CR94: 0.0006737821347 | CS94: 0.001861691691 | CT94: 6.724850797e-05 | CU94: 0.00141934478 | CV94: 0.001706532786 | CW94: 6.132253696e-05 | CX94: 0.0001089397581 | CY94: 0.0001157664447 | CZ94: 4.619895722e-05 | DA94: 0.0001023570493 | DB94: 7.832323962e-05 | DC94: 4.914928016e-05 | DD94: 0.0001049319885 | DE94: 5.410016854e-05 | DF94: 4.029497905e-05 | DG94: 0.0004138476714 | DH94: 0.0004039627819 | DI94: 2.076433281e-05 | DJ94: 5.102402381e-05 | DK94: 8.08989466e-05 | DL94: 6.068595528e-05 | DM94: 9.13930981e-05 | DN94: 5.486867391e-05 | DO94: 0.0001001431739 | DP94: 6.933831437e-05 | DQ94: 0.0001153206444 | DR94: 4.895171564e-05 | DS94: 0.0001361692911 | DT94: 6.873339238e-05 | DU94: 8.55709855e-05 | DV94: 9.880733929e-05 | DW94: 5.855584555e-05 | DX94: 4.648043887e-05 | DY94: 6.30201466e-05 | DZ94: 6.745568555e-05 | EA94: 5.665246205e-05 | EB94: 6.859429334e-06 | EC94: 8.959870849e-05 | ED94: 4.621788852e-05 | EE94: 1.473233893e-05 | EF94: 6.803855758e-05 | EG94: 6.801119569e-05 | EH94: 1.48113603e-05 | EI94: 5.535247396e-05 | EJ94: 8.330476517e-05 | EK94: 4.866619854e-05 | EL94: 3.938124963e-05 | EM94: 8.975173049e-05 | EN94: 4.793977395e-05
A95: p1645_468.1172_5.69 | B95: p1645 | C95: 468.1172 | D95: 5.69 | G95: 9.1635 | H95: 3.1959 | I95: 3.53E-21 | J95: =ROUND(H95,1) -> 3.2 | K95: B. rapa | L95: 0.99246 | M95: -0.010916 | N95: 0.89861 | P95: 0.97965 | Q95: -0.029661 | R95: 0.8502 | U95: 0.004090859837 | V95: 0.005220993756 | W95: 0.004686860071 | X95: 0.0002107399577 | Y95: 0.0001232763689 | Z95: 0.0004133296822 | AA95: 0.001567392969 | AB95: 0.003900132927 | AC95: 0.005312646688 | AD95: 0.005124277177 | AE95: 0.0006453757009 | AF95: 0.002141711283 | AG95: 0.003396084617 | AH95: 0.00246779661 | AI95: 0.00189891306 | AJ95: 0.0008673232533 | AK95: 0.0007541084957 | AL95: 0.0003925637132 | AM95: 0.01838579175 | AN95: 0.002662020906 | AO95: 0.003081967142 | AP95: 0.008063293455 | AQ95: 0.00681798764 | AR95: 0.002900092439 | AS95: 0.0007310533911 | AT95: 0.003682322156 | AU95: 0.001061181253 | AV95: 0.01628741308 | AW95: 0.005497785716 | AX95: 0.002874472629 | AY95: 0.004723392437 | AZ95: 0.002362558595 | BA95: 0.001779778003 | BB95: 0.001521148971 | BC95: 0.00102822392 | BD95: 0.0006957778932 | BE95: 0.0006089970699 | BF95: 0.0003438965707 | BG95: 0.000499467041 | BH95: 0.001233292722 | BI95: 0.000550520454 | BJ95: 0.0001139570219 | BK95: 0.0001499464477 | BL95: 0.0003433700668 | BM95: 0.0002932819648 | BN95: 0.0001699921447 | BO95: 0.0001391119164 | BP95: 0.0001302165698 | BQ95: 0.0003992375671 | BR95: 0.0003539626607 | BS95: 0.0005342717851 | BT95: 9.791349684e-05 | BU95: 0.0002744401651 | BV95: 0.0001146515572 | BW95: 0.0002276551296 | BX95: 0.0002022505534 | BY95: 0.0001710940175 | BZ95: 0.0008322407628 | CA95: 0.0002352282274 | CB95: 0.0003436487356 | CC95: 0.0002091310337 | CD95: 0.0001638627065 | CE95: 0.000176149565 | CF95: 7.55944708e-05 | CG95: 0.0001286665158 | CH95: 0.0002155216651 | CI95: 0.0002472217691 | CJ95: 0.0001166035064 | CK95: 0.0002075974845 | CL95: 0.0002655569535 | CM95: 0.0001675668661 | CN95: 2.88007205e-05 | CO95: 0.0001422378759 | CP95: 0.006652429373 | CQ95: 7.499838644e-05 | CR95: 0.000146557131 | CS95: 0.0001451993941 | CT95: 7.049498767e-05 | CU95: 9.904309018e-05 | CV95: 0.0001550459992 | CW95: 4.860932808e-05 | CX95: 0.0002523541232 | CY95: 0.0003208384326 | CZ95: 9.899776548e-05 | DA95: 0.0001833260585 | DB95: 0.0001521451436 | DC95: 0.01769956117 | DD95: 0.01621937633 | DE95: 0.02792088891 | DF95: 2.651669589e-05 | DG95: 0.000224204413 | DH95: 0.0001753636883 | DI95: 0.001872184123 | DJ95: 0.0001594500744 | DK95: 0.007403346843 | DL95: 0.0001225618313 | DM95: 0.0001448494385 | DN95: 0.0001502142384 | DO95: 0.0001272407386 | DP95: 0.0001089602083 | DQ95: 0.004526626505 | DR95: 5.94020819e-05 | DS95: 0.0001417845196 | DT95: 0.001111780337 | DU95: 9.453556493e-05 | DV95: 0.0001226163367 | DW95: 0.0001234177052 | DX95: 0.0001187833438 | DY95: 7.741057377e-05 | DZ95: 0.0001681641738 | EA95: 0.0001024102199 | EB95: 4.191873482e-05 | EC95: 9.605627306e-05 | ED95: 7.776343148e-05 | EE95: 3.912522799e-05 | EF95: 9.95378898e-05 | EG95: 0.0001140495435 | EH95: 5.49104089e-05 | EI95: 0.0001389460061 | EJ95: 0.0001480973603 | EK95: 4.501623365e-05 | EL95: 0.0001198559771 | EM95: 0.0001071525762 | EN95: 0.001543660721
A96: p2668_402.1756_6.79 | B96: p2668 | C96: 402.1756 | D96: 6.79 | G96: 9.1253 | H96: 3.1899 | I96: 2.55E-22 | J96: =ROUND(H96,1) -> 3.2 | K96: B. rapa | L96: 1.4793 | M96: 0.56496 | N96: 0.89054 | P96: 0.78705 | Q96: -0.34547 | R96: 0.40473 | U96: 0.0003068144878 | V96: 0.0006067289502 | W96: 0.0009652087558 | X96: 0.0001933756166 | Y96: 9.459818296e-05 | Z96: 0.000509101194 | AA96: 0.001128141468 | AB96: 0.003642763749 | AC96: 0.005668552511 | AD96: 0.0004181135252 | AE96: 0.0001491493262 | AF96: 0.000179637982 | AG96: 0.0003110966784 | AH96: 0.0006628507919 | AI96: 0.0003128704107 | AJ96: 0.00125024444 | AK96: 0.0008203150231 | AL96: 0.0007156943887 | AM96: 0.0006993659082 | AN96: 0.0007555998009 | AO96: 0.0002378876868 | AP96: 0.001438218303 | AQ96: 0.0007943286571 | AR96: 0.0005832465189 | AS96: 0.0009469449221 | AT96: 0.0008730935791 | AU96: 0.0003474918951 | AV96: 0.00173334677 | AW96: 0.0009067266162 | AX96: 0.0005877092386 | AY96: 0.0005581007212 | AZ96: 0.0005770976463 | BA96: 0.0004890691909 | BB96: 0.0001346149532 | BC96: 0.0001925463901 | BD96: 9.216798066e-05 | BE96: 0.0003194361989 | BF96: 0.0001837054331 | BG96: 0.000244636918 | BH96: 0.0002452160967 | BI96: 0.0001437785378 | BJ96: 5.743433905e-05 | BK96: 0.0001036586312 | BL96: 0.0001035420047 | BM96: 9.968697327e-05 | BN96: 0.0001142347213 | BO96: 8.24366912e-05 | BP96: 2.425174371e-05 | BQ96: 7.797608733e-05 | BR96: 8.764142654e-05 | BS96: 0.0001369579957 | BT96: 5.753109419e-05 | BU96: 0.0001329467928 | BV96: 8.801533687e-05 | BW96: 0.000142284456 | BX96: 8.771069916e-05 | BY96: 0.0001009560973 | BZ96: 0.000391716329 | CA96: 0.0001268552226 | CB96: 8.530858541e-05 | CC96: 0.0001135027405 | CD96: 0.0001658610321 | CE96: 0.00342616558 | CF96: 0.002687634619 | CG96: 0.002489582987 | CH96: 0.000937771789 | CI96: 0.0003169305929 | CJ96: 0.0007195406424 | CK96: 0.01079197779 | CL96: 0.005176105159 | CM96: 0.003782662307 | CN96: 0.0002606224941 | CO96: 0.002617755727 | CP96: 0.0008499535371 | CQ96: 0.00475468088 | CR96: 0.003186549704 | CS96: 0.003771876329 | CT96: 0.0001820008886 | CU96: 0.000580545792 | CV96: 0.0007094706803 | CW96: 0.003980600344 | CX96: 0.00862259265 | CY96: 0.003319218474 | CZ96: 0.003063181623 | DA96: 0.005444584307 | DB96: 0.00331352944 | DC96: 0.001686353999 | DD96: 0.0007950269633 | DE96: 0.002748387333 | DF96: 0.0007584979597 | DG96: 0.003986886983 | DH96: 0.003774413499 | DI96: 0.0001209975402 | DJ96: 0.001102476669 | DK96: 0.003147095606 | DL96: 0.001115046948 | DM96: 0.001038470191 | DN96: 0.0006681853787 | DO96: 0.0001816586661 | DP96: 0.0001261859367 | DQ96: 0.0002686480863 | DR96: 0.0002195090469 | DS96: 0.0002648765418 | DT96: 0.0002967783925 | DU96: 0.0001408705542 | DV96: 0.0001248696797 | DW96: 9.523654036e-05 | DX96: 0.0001063408368 | DY96: 0.0003593566764 | DZ96: 0.0002985330875 | EA96: 0.0001145637105 | EB96: 2.98470538e-05 | EC96: 0.0001569940165 | ED96: 0.0001944072396 | EE96: 5.629832246e-05 | EF96: 0.0002257596059 | EG96: 0.0001505683957 | EH96: 9.131993749e-05 | EI96: 0.0003075762303 | EJ96: 0.0003846217309 | EK96: 0.001638296433 | EL96: 9.466623391e-05 | EM96: 6.28525553e-05 | EN96: 0.0002283938263
A97: p1834_357.1044_2.71 | B97: p1834 | C97: 357.1044 | D97: 2.71 | G97: 9.0819 | H97: 3.183 | I97: 1.76E-17 | J97: =ROUND(H97,1) -> 3.2 | K97: B. rapa | L97: 1.3848 | M97: 0.46973 | N97: 0.57074 | P97: 1.2078 | Q97: 0.27237 | R97: 0.6657 | U97: 0.0005994246011 | V97: 0.0006345048106 | W97: 0.0008865397036 | X97: 0.0001164200141 | Y97: 8.344555507e-05 | Z97: 0.0006216747253 | AA97: 0.0001323925342 | AB97: 0.0001852855028 | AC97: 0.0002147886454 | AD97: 0.0006300340791 | AE97: 0.002566494066 | AF97: 0.002313966882 | AG97: 0.0005747819633 | AH97: 0.002193164768 | AI97: 0.004608265651 | AJ97: 0.006467714744 | AK97: 0.001513061371 | AL97: 0.004918173504 | AM97: 0.000441138496 | AN97: 0.000230960677 | AO97: 0.0005158009209 | AP97: 0.000339121873 | AQ97: 0.0003054216912 | AR97: 0.0006331342714 | AS97: 0.0005196285815 | AT97: 0.000374341649 | AU97: 0.000496416993 | AV97: 0.001166985791 | AW97: 0.001088071939 | AX97: 0.002931181416 | AY97: 0.0001618492092 | AZ97: 0.0002166720405 | BA97: 0.0001597363083 | BB97: 0.0001637815263 | BC97: 0.0001270544207 | BD97: 8.584272709e-05 | BE97: 0.0006825363387 | BF97: 8.083039055e-05 | BG97: 0.0006788674476 | BH97: 0.0001875181916 | BI97: 0.0001106716377 | BJ97: 8.113739961e-05 | BK97: 8.670816323e-05 | BL97: 0.0001371710318 | BM97: 0.0001892607753 | BN97: 0.0001264741557 | BO97: 0.0001219376057 | BP97: 2.381477536e-05 | BQ97: 6.549991336e-05 | BR97: 0.0001385957443 | BS97: 5.559681012e-05 | BT97: 3.706330106e-05 | BU97: 0.0001044581943 | BV97: 4.439370062e-05 | BW97: 6.995652419e-05 | BX97: 0.0001578792585 | BY97: 4.782130923e-05 | BZ97: 9.386174017e-05 | CA97: 6.468776253e-05 | CB97: 0.0001014045449 | CC97: 6.702917748e-05 | CD97: 0.0001278928441 | CE97: 0.0040784568 | CF97: 0.004702456049 | CG97: 0.00309451114 | CH97: 0.0008926768321 | CI97: 0.0005927365308 | CJ97: 0.000683796277 | CK97: 0.01012973627 | CL97: 0.008958482532 | CM97: 0.005116962932 | CN97: 0.0008601664006 | CO97: 0.002923535419 | CP97: 0.001467937349 | CQ97: 0.005379101138 | CR97: 0.003424107515 | CS97: 0.003822275942 | CT97: 0.0002982123491 | CU97: 0.0005238642786 | CV97: 0.0006304519437 | CW97: 0.00567383034 | CX97: 0.01276249951 | CY97: 0.003658219654 | CZ97: 0.003877412481 | DA97: 0.008707987778 | DB97: 0.003539850324 | DC97: 0.002729725152 | DD97: 0.0009125196632 | DE97: 0.004165712978 | DF97: 0.001755561249 | DG97: 0.005224937624 | DH97: 0.006323531093 | DI97: 0.0002932962009 | DJ97: 0.001620012756 | DK97: 0.004365263429 | DL97: 0.001423145147 | DM97: 0.001171728494 | DN97: 0.000857210594 | DO97: 0.0002556596321 | DP97: 0.0001246438746 | DQ97: 0.000368094178 | DR97: 0.0004702664817 | DS97: 0.0006190789421 | DT97: 0.0002650132861 | DU97: 0.0002053703652 | DV97: 0.0001892815295 | DW97: 0.000110805677 | DX97: 0.0001480488053 | DY97: 0.0007582266457 | DZ97: 0.000266972502 | EA97: 0.000143810096 | EB97: 5.144572e-05 | EC97: 0.0001525599631 | ED97: 0.0002200851834 | EE97: 0.0002668726971 | EF97: 0.0003515325475 | EG97: 0.0002113578697 | EH97: 0.0002272279421 | EI97: 0.0002338359614 | EJ97: 0.0002581419266 | EK97: 0.001716700154 | EL97: 0.0001386904878 | EM97: 0.0001428701016 | EN97: 0.000388312169
A98: p1307_128.0521_6.05 | B98: p1307 | C98: 128.0521 | D98: 6.05 | G98: 8.9063 | H98: 3.1548 | I98: 1.08E-21 | J98: =ROUND(H98,1) -> 3.2 | K98: B. rapa | L98: 0.42996 | M98: -1.2177 | N98: 0.11403 | P98: 0.40412 | Q98: -1.3071 | R98: 0.13348 | U98: 0.001751683455 | V98: 0.0006032569676 | W98: 0.01365513202 | X98: 0.001522931642 | Y98: 0.0003849648161 | Z98: 0.002611873947 | AA98: 0.0006886094737 | AB98: 0.0002918881209 | AC98: 0.001659164464 | AD98: 0.004816896914 | AE98: 0.01702459825 | AF98: 0.005627836505 | AG98: 0.01388894043 | AH98: 0.009393498194 | AI98: 0.01758252833 | AJ98: 0.03122769636 | AK98: 0.004089464165 | AL98: 0.009123323121 | AM98: 0.004633030155 | AN98: 0.002009955202 | AO98: 0.001530033186 | AP98: 0.003039898229 | AQ98: 0.003157572542 | AR98: 0.003296993529 | AS98: 0.002367362305 | AT98: 0.002968073846 | AU98: 0.001843937323 | AV98: 0.02354328328 | AW98: 0.009379583107 | AX98: 0.01025471609 | AY98: 0.002100319048 | AZ98: 0.0009958580322 | BA98: 0.001138860717 | BB98: 0.0003623385822 | BC98: 0.0002187431779 | BD98: 0.0007075247927 | BE98: 0.01103318843 | BF98: 0.001041977216 | BG98: 0.001259880128 | BH98: 0.000263246692 | BI98: 0.0006848398775 | BJ98: 0.0002406772303 | BK98: 0.0002366546109 | BL98: 0.0002433679597 | BM98: 0.0004912111726 | BN98: 0.0003073457977 | BO98: 0.0005324036306 | BP98: 7.384765202e-05 | BQ98: 0.0001226823774 | BR98: 0.0001569392987 | BS98: 0.0002291673393 | BT98: 0.0001084239852 | BU98: 0.0001956217094 | BV98: 0.0001733284485 | BW98: 0.0002691547626 | BX98: 0.0005438063348 | BY98: 7.492005112e-05 | BZ98: 0.0001364123957 | CA98: 0.0003973676841 | CB98: 0.0001191101004 | CC98: 0.0002037686995 | CD98: 0.0004935864451 | CE98: 0.000552223483 | CF98: 0.0008891349661 | CG98: 0.0005618980754 | CH98: 0.0009427334768 | CI98: 0.0009908727935 | CJ98: 0.0009003456461 | CK98: 0.01128513539 | CL98: 0.006447885416 | CM98: 0.005892180171 | CN98: 4.807679328e-05 | CO98: 0.0001674030386 | CP98: 0.0002395688553 | CQ98: 0.0006379380822 | CR98: 0.0005081916101 | CS98: 0.0005007416942 | CT98: 0.0003580403321 | CU98: 0.0008250862388 | CV98: 0.001055544948 | CW98: 0.000171254402 | CX98: 0.0003364721642 | CY98: 0.0007717762983 | CZ98: 0.0008359811307 | DA98: 0.001512439983 | DB98: 0.001356702553 | DC98: 0.0004106551698 | DD98: 0.0004850189692 | DE98: 0.0008229467946 | DF98: 0.0002508687406 | DG98: 0.001008476767 | DH98: 0.001415435484 | DI98: 0.0001203931989 | DJ98: 0.0003571681667 | DK98: 0.0009281514278 | DL98: 0.0002439337418 | DM98: 0.0001491604337 | DN98: 0.0001034409426 | DO98: 0.0001201718087 | DP98: 8.832380521e-05 | DQ98: 9.668296447e-05 | DR98: 7.425260238e-05 | DS98: 0.0001291502555 | DT98: 6.731620903e-05 | DU98: 7.905129137e-05 | DV98: 8.571239071e-05 | DW98: 7.026701466e-05 | DX98: 0.0001050113619 | DY98: 5.061460593e-05 | DZ98: 8.835744727e-05 | EA98: 9.950496539e-05 | EB98: 3.048635259e-05 | EC98: 7.587638376e-05 | ED98: 8.289875243e-05 | EE98: 5.458210818e-05 | EF98: 0.0001159175425 | EG98: 0.0002019409349 | EH98: 7.261179072e-05 | EI98: 0.0001570202833 | EJ98: 7.610558793e-05 | EK98: 9.854905205e-05 | EL98: 0.0001087264936 | EM98: 0.0001245534219 | EN98: 0.0002480883302
A99: p2108_492.162_4.57 | B99: p2108 | C99: 492.162 | D99: 4.57 | G99: 8.8705 | H99: 3.149 | I99: 1.82E-06 | J99: =ROUND(H99,1) -> 3.1 | K99: B. rapa | L99: 4.946 | M99: 2.3062 | N99: 0.0016465 | O99: + | P99: 1.8568 | Q99: 0.89283 | R99: 0.1024 | U99: 0.0001477254941 | V99: 0.0002612666867 | W99: 0.0009470543591 | X99: 8.326990839e-05 | Y99: 3.146634296e-05 | Z99: 0.0003595632195 | AA99: 8.442828985e-05 | AB99: 8.528209446e-05 | AC99: 0.0004534426959 | AD99: 0.0003226538163 | AE99: 0.0001444590958 | AF99: 0.001946488271 | AG99: 0.0001039153832 | AH99: 0.000124479022 | AI99: 0.003222696689 | AJ99: 0.0003504473052 | AK99: 0.0002365672262 | AL99: 0.01146624306 | AM99: 0.0002237970906 | AN99: 0.0001891488303 | AO99: 0.0004093178611 | AP99: 0.0002427527077 | AQ99: 0.0002032273611 | AR99: 0.001228852728 | AS99: 0.0003856269416 | AT99: 0.0002499313681 | AU99: 0.0004460558488 | AV99: 0.0003204676005 | AW99: 0.0005722452422 | AX99: 0.001112081391 | AY99: 0.0002102179383 | AZ99: 0.0001072943277 | BA99: 0.0003875084517 | BB99: 0.0001850955606 | BC99: 0.0004676126618 | BD99: 0.0001771071001 | BE99: 0.0003470134247 | BF99: 0.0002660054671 | BG99: 0.0005626649115 | BH99: 0.0002109579655 | BI99: 0.0001314816892 | BJ99: 8.843064901e-05 | BK99: 8.605622216e-05 | BL99: 0.000148675699 | BM99: 0.0001834818204 | BN99: 0.0002638278086 | BO99: 0.0001588623737 | BP99: 6.052011719e-05 | BQ99: 0.0003056662623 | BR99: 0.0002010997074 | BS99: 6.508894844e-05 | BT99: 4.757378942e-05 | BU99: 8.831465521e-05 | BV99: 5.520260164e-05 | BW99: 0.0001114561572 | BX99: 0.0004220432465 | BY99: 5.100939651e-05 | BZ99: 0.0001752085816 | CA99: 9.913189583e-05 | CB99: 0.0001126717166 | CC99: 0.0003199526072 | CD99: 0.0001049120986 | CE99: 0.0009326200897 | CF99: 0.0007679438304 | CG99: 0.003026106157 | CH99: 0.0006354412963 | CI99: 0.0003465076202 | CJ99: 0.001176029651 | CK99: 0.0004100901129 | CL99: 0.0001734249492 | CM99: 0.0007161278699 | CN99: 0.0001628261206 | CO99: 0.0005580101286 | CP99: 0.0007436809255 | CQ99: 0.0023394075 | CR99: 0.005137112942 | CS99: 0.005928844448 | CT99: 0.0008380555442 | CU99: 0.006741478435 | CV99: 0.008098329772 | CW99: 0.0004928238031 | CX99: 0.0004261061424 | CY99: 0.004574428374 | CZ99: 0.0005048886039 | DA99: 0.0009334351811 | DB99: 0.001164045389 | DC99: 0.0003550388791 | DD99: 0.0009871379661 | DE99: 0.0007053829668 | DF99: 0.0005721887026 | DG99: 0.002097596227 | DH99: 0.001609588139 | DI99: 4.372489313e-05 | DJ99: 0.0002444901141 | DK99: 0.0003454603665 | DL99: 0.0001713485796 | DM99: 0.0001577824241 | DN99: 0.0001942890748 | DO99: 0.0002615504071 | DP99: 0.000120516594 | DQ99: 0.0006581430714 | DR99: 3.850134938e-05 | DS99: 0.0001923215761 | DT99: 9.211691763e-05 | DU99: 0.0001532128121 | DV99: 5.237979432e-05 | DW99: 0.0001477409026 | DX99: 9.296087773e-05 | DY99: 0.0007870075 | DZ99: 6.460544532e-05 | EA99: 3.050517187e-05 | EB99: 3.277282904e-05 | EC99: 0.000156595941 | ED99: 0.0001129770608 | EE99: 7.003898837e-05 | EF99: 0.000122217409 | EG99: 0.0003484265871 | EH99: 4.443408089e-05 | EI99: 0.0001287792251 | EJ99: 9.770311964e-05 | EK99: 0.0001119322567 | EL99: 9.759700996e-05 | EM99: 7.601422072e-05 | EN99: 0.000288837138
A100: n562_514.0194_3.79 | B100: n562 | C100: 514.0194 | D100: 3.79 | G100: 8.7797 | H100: 3.1342 | I100: 1.50E-13 | J100: =ROUND(H100,1) -> 3.1 | K100: B. rapa | L100: 0.62391 | M100: -0.68058 | N100: 0.71099 | P100: 0.58982 | Q100: -0.76166 | R100: 0.48981 | U100: 0.0002888741889 | V100: 0.0007878553772 | W100: 0.009147407417 | X100: 9.189036741e-05 | Y100: 4.363686185e-05 | Z100: 0.0005895454572 | AA100: 2.184938654e-05 | AB100: 6.310143556e-05 | AC100: 0.0004236623826 | AD100: 0.0005535311431 | AE100: 0.003106434758 | AF100: 0.00113414262 | AG100: 0.00117319914 | AH100: 0.003477358284 | AI100: 0.00517732555 | AJ100: 0.005231544863 | AK100: 0.003370161866 | AL100: 0.002934846875 | AM100: 0.00069495259 | AN100: 0.0002950125548 | AO100: 0.0002703141937 | AP100: 0.0004594029547 | AQ100: 0.0005534883228 | AR100: 0.0004301730754 | AS100: 0.001477274845 | AT100: 0.0003928795766 | AU100: 0.0007244616807 | AV100: 0.006222222222 | AW100: 0.002215303917 | AX100: 0.004667850248 | AY100: 0.0002318018 | AZ100: 8.496609598e-05 | BA100: 0.0005644536233 | BB100: 8.92152844e-05 | BC100: 8.859475388e-05 | BD100: 0.0003097918799 | BE100: 0.002098783109 | BF100: 4.274212031e-05 | BG100: 7.752428567e-05 | BH100: 0.0001124213205 | BI100: 0.0001383854582 | BJ100: 0.0001324371421 | BK100: 2.64488832e-05 | BL100: 6.647856307e-05 | BM100: 0.0001905379132 | BN100: 0.0001630615736 | BO100: 0.0001867336993 | BP100: 6.344478812e-06 | BQ100: 2.372111468e-05 | BR100: 9.431330193e-05 | BS100: 3.964134025e-05 | BT100: 9.379170448e-05 | BU100: 0.0001989766913 | BV100: 1.460445239e-05 | BW100: 0.0001309509534 | BX100: 0.000379958085 | BY100: 7.03375701e-05 | BZ100: 0.0002104735655 | CA100: 0.0002326995214 | CB100: 6.116504854e-05 | CC100: 5.792703951e-05 | CD100: 0.0004794934207 | CE100: 0.001600475496 | CF100: 0.004704855873 | CG100: 0.004508214124 | CH100: 0.002310948434 | CI100: 0.0009789584914 | CJ100: 0.001119393662 | CK100: 0.002639210643 | CL100: 0.00104325946 | CM100: 0.0004145075109 | CN100: 0.0008769479227 | CO100: 0.0002833816143 | CP100: 0.0004476885173 | CQ100: 0.007247735634 | CR100: 0.007969281915 | CS100: 0.00723799358 | CT100: 0.005809807306 | CU100: 0.004869482177 | CV100: 0.00944240403 | CW100: 0.001276555739 | CX100: 0.002352547181 | CY100: 0.002056232566 | CZ100: 0.001325470082 | DA100: 0.003704714099 | DB100: 0.001010999978 | DC100: 0.001112325814 | DD100: 0.002275080966 | DE100: 0.0009155413138 | DF100: 0.001166214684 | DG100: 0.003886800614 | DH100: 0.003186817502 | DI100: 0.0002855095761 | DJ100: 0.0003791368436 | DK100: 0.00108011026 | DL100: 0.0002617825522 | DM100: 0.0001422628414 | DN100: 0.000159209103 | DO100: 0.0003310615513 | DP100: 8.502198072e-05 | DQ100: 0.001649434671 | DR100: 0.0001259544144 | DS100: 0.0004730830011 | DT100: 0.0002600531444 | DU100: 8.883083256e-05 | DV100: 0.0001095213881 | DW100: 0.0001243185644 | DX100: 0.0001592385406 | DY100: 0.002040463329 | DZ100: 5.510464453e-05 | EA100: 6.464191182e-05 | EB100: 4.915924356e-05 | EC100: 0.0002066420664 | ED100: 9.610386344e-05 | EE100: 9.781306997e-05 | EF100: 0.0002179753789 | EG100: 0.0002197284784 | EH100: 4.479533358e-05 | EI100: 0.0002123727572 | EJ100: 0.0002056907782 | EK100: 0.0002287311332 | EL100: 0.0001010214665 | EM100: 9.707840237e-05 | EN100: 0.0005477119173
